{"text_format":"1","workbook":"xlsx","n_sheets":7,"sheets":["Public Service SET UP","Public Service COMPLETION","Year 1","Year 2","Year 3","Validation","Data Validation"],"not_rendered":{"charts":0,"images":63,"macros":1,"external_links":1,"defined_names":117,"comments":5,"pivot_tables":0},"unopened":[],"bounds":{"document_bytes":16777216,"sheet_cells":100000,"rows_first":2000,"rows_last":500,"rows_between":2000,"halvings":0,"cell_chars":16384,"cell_head_chars":4096},"cells_cut":0,"cells_raw":0,"read":"whole","date_system":"1900"}

{"sheet":"Public Service SET UP","index":0,"n_rows":306,"n_cols":94,"rows_kept":306,"cut":false,"hidden":false,"merged":[[4,93,4,103],[210,13,211,25],[171,13,172,19],[171,21,172,27],[174,13,175,19],[174,21,175,27],[177,13,178,19],[177,21,178,27],[180,13,181,19],[180,21,181,27],[183,13,184,19],[183,21,184,27],[186,13,187,19],[186,21,187,27],[189,13,190,19],[189,21,190,27],[192,13,193,19],[192,21,193,27],[195,13,196,19],[195,21,196,27],[198,13,199,19],[198,21,199,27],[130,13,131,23],[77,29,77,77],[126,53,128,79],[126,11,128,17],[126,18,128,52],[109,13,110,47],[221,29,222,33],[220,13,223,27],[217,50,218,54],[217,38,218,42],[217,29,218,33],[217,13,218,27],[214,47,215,58],[214,37,215,43],[214,29,215,33],[214,13,215,25],[151,58,151,64],[151,48,151,50],[151,51,151,57],[68,13,69,14],[117,56,118,77],[77,13,77,28],[79,38,79,47],[79,52,79,59],[94,13,101,77],[84,13,84,34],[121,65,122,66],[121,13,122,35],[121,38,123,46],[105,11,107,17],[92,29,93,39],[73,11,75,17],[80,13,81,36],[121,62,122,64],[115,13,115,29],[86,13,86,34],[117,24,118,47],[79,61,79,77],[79,13,79,36],[84,36,84,59],[83,36,83,59],[226,11,228,17],[134,13,135,29],[134,31,135,77],[137,31,144,77],[153,29,154,77],[137,13,137,29],[156,13,157,19],[151,13,151,27],[151,65,151,77],[165,21,166,27],[168,21,169,27],[226,53,228,79],[226,18,228,52],[147,11,149,17],[147,53,149,79],[147,18,149,52],[206,11,208,17],[206,18,208,52],[206,53,208,79],[210,43,211,56],[201,28,202,34],[221,50,222,54],[221,38,222,42],[267,14,267,35],[269,14,269,35],[271,14,271,35],[239,14,239,63],[255,53,255,63],[244,13,246,26],[230,51,232,76],[234,65,237,76],[267,67,267,76],[263,14,263,35],[248,65,251,76],[230,13,232,21],[234,14,237,33],[42,18,44,53],[83,61,83,77],[84,61,84,77],[115,57,115,66],[115,45,115,56],[92,13,93,28],[121,54,123,61],[66,46,66,63],[65,65,65,77],[65,36,65,44],[65,13,65,30],[66,65,66,77],[66,36,66,44],[66,13,66,34],[116,12,118,23],[83,13,83,34],[80,65,81,73],[58,54,59,77],[58,13,59,53],[73,18,75,53],[73,54,75,79],[105,53,107,79],[105,18,107,52],[49,13,50,43],[31,63,31,79],[28,56,30,79],[62,47,63,77],[32,56,32,62],[32,63,32,79],[46,53,46,77],[51,13,51,43],[52,13,53,43],[61,47,61,76],[55,65,56,77],[35,11,35,20],[38,11,38,20],[54,65,54,77],[62,13,63,43],[55,47,56,63],[54,47,54,63],[31,56,31,62],[31,26,31,54],[49,47,50,77],[40,11,40,13],[40,14,40,20],[31,11,31,23],[40,72,40,79],[35,21,36,43],[35,56,35,67],[35,68,35,79],[36,56,37,67],[38,21,38,43],[36,68,37,79],[36,11,36,13],[34,11,34,20],[35,46,35,53],[34,56,34,79],[34,21,34,43],[1,55,3,60],[7,56,8,79],[12,11,14,54],[16,11,28,54],[15,56,19,61],[12,56,13,61],[15,62,19,67],[25,73,27,79],[4,11,4,79],[12,62,13,67],[12,69,13,72],[12,73,13,79],[15,69,19,72],[15,73,19,79],[25,63,27,66],[25,70,27,72],[7,11,10,54],[9,56,11,79],[1,11,3,22],[1,23,3,52],[1,61,3,79],[25,56,27,62],[39,56,39,71],[5,11,5,79],[11,11,11,36],[51,47,51,77],[52,47,53,77],[46,13,46,43],[80,52,81,59],[80,38,81,50],[65,47,65,63],[48,13,48,43],[54,13,54,43],[46,47,46,51],[55,13,56,43],[61,13,61,43],[40,56,40,71],[39,21,40,43],[39,72,39,79],[42,11,44,17],[36,14,36,20],[36,46,36,53],[39,11,39,20],[48,47,48,77],[68,15,69,36],[42,54,44,79],[273,37,273,65],[275,37,275,65],[239,65,239,76],[265,14,265,35],[265,67,265,76],[263,37,263,65],[263,67,263,76],[282,67,284,76],[259,13,261,35],[275,14,275,35],[277,14,277,35],[273,14,273,35],[241,53,241,63],[248,14,251,33],[253,14,253,63],[282,52,284,65],[271,67,271,76],[267,37,267,65],[269,37,269,65],[271,37,271,65],[269,67,269,76],[255,65,255,76],[253,65,253,76],[265,37,265,65],[286,12,287,58],[225,81,303,83],[104,81,224,83],[1,81,103,83],[305,11,306,79],[32,11,32,23],[279,67,279,76],[279,55,279,65],[277,67,277,76],[156,21,157,27],[159,21,160,27],[162,21,163,27],[159,13,160,19],[277,37,277,65],[275,67,275,76],[201,39,202,57],[201,59,202,65],[162,13,163,19],[165,13,166,19],[168,13,169,19],[273,67,273,76],[201,13,202,26],[288,12,303,78],[241,65,241,76]]}
[]
[null,null,null,null,null,null,null,null,null,null,null,"Jurisdiction Name:",null,null,null,null,null,null,null,null,null,null,null,null,null,null,null,null,null,null,null,null,null,null,null,null,null,null,null,null,null,null,null,null,null,null,null,null,null,null,null,null,null,null,null,"Contract #",null,null,null,null,null,null,null,null,null,null,null,null,null,null,null,null,null,null,null,null,null,null,null,null,null,"Page 1"]
[]
[]
[null,null,null,null,null,null,null,null,null,null,null,"STATE OF CALIFORNIA - CDBG PROGRAM\nCDBG Program",null,null,null,null,null,null,null,null,null,null,null,null,null,null,null,null,null,null,null,null,null,null,null,null,null,null,null,null,null,null,null,null,null,null,null,null,null,null,null,null,null,null,null,null,null,null,null,null,null,null,null,null,null,null,null,null,null,null,null,null,null,null,null,null,null,null,null,null,null,null,null,null,null,null,null,null,null,null,null,null,null,"Updates"]
[null,null,null,null,null,null,null,null,null,null,null,"Project Setup & Completion Report",null,null,null,null,null,null,null,null,null,null,null,null,null,null,null,null,null,null,null,null,null,null,null,null,null,null,null,null,null,null,null,null,null,null,null,null,null,null,null,null,null,null,null,null,null,null,null,null,null,null,null,null,null,null,null,null,null,null,null,null,null,null,null,null,null,null,null,null,null,null,null,null,null,null,null,null,null,null,null,null,null,"Added more Cencus Block fields"]
[]
[null,null,null,null,null,null,null,null,null,null,null,"Public Service",null,null,null,null,null,null,null,null,null,null,null,null,null,null,null,null,null,null,null,null,null,null,null,null,null,null,null,null,null,null,null,null,null,null,null,null,null,null,null,null,null,null,null,null,"FOR CDBG USE ONLY"]
[]
[null,null,null,null,null,null,null,null,null,null,null,null,null,null,null,null,null,null,null,null,null,null,null,null,null,null,null,null,null,null,null,null,null,null,null,null,null,null,null,null,null,null,null,null,null,null,null,null,null,null,null,null,null,null,null,null,"Project Completion Report"]
[]
[]
[null,null,null,null,null,null,null,null,null,null,null,"Complete this form as a Setup Report, a Completion Report or a Setup and Completion Report and submit and electronically to your CDBG Program Representative.",null,null,null,null,null,null,null,null,null,null,null,null,null,null,null,null,null,null,null,null,null,null,null,null,null,null,null,null,null,null,null,null,null,null,null,null,null,null,null,null,null,null,null,null,"Mgr Initials:",null,null,null,null,null,null,null,null,null,null,null,null,"Date",null,null,null,null,null,null,null,null,null,null,null,null,null,null,null,null,null,null,null,null,null,null,null,"Completion, deleted SBA information required."]
[]
[]
[null,null,null,null,null,null,null,null,null,null,null,null,null,null,null,null,null,null,null,null,null,null,null,null,null,null,null,null,null,null,null,null,null,null,null,null,null,null,null,null,null,null,null,null,null,null,null,null,null,null,null,null,null,null,null,null,"Rep Initials:",null,null,null,null,null,null,null,null,null,null,null,null,"Date"]
[null,null,null,null,null,null,null,null,null,null,null,"Department of Housing and Community Development\nCDBG Program \nP.O. Box 952054\nSacramento CA, 94252-2054"]
[]
[]
[]
[]
[]
[]
[]
[]
[null,null,null,null,null,null,null,null,null,null,null,null,null,null,null,null,null,null,null,null,null,null,null,null,null,null,null,null,null,null,null,null,null,null,null,null,null,null,null,null,null,null,null,null,null,null,null,null,null,null,null,null,null,null,null,null,"Fiscal Initials",null,null,null,null,null,null," ",null,null,null,null,null,null,"Date:"]
[]
[]
[null,null,null,null,null,null,null,null,null,null,null,null,null,null,null,null,null,null,null,null,null,null,null,null,null,null,null,null,null,null,null,null,null,null,null,null,null,null,null,null,null,null,null,null,null,null,null,null,null,null,null,null,null,null,null,null,"Program Income"]
[]
[]
[null,null,null,null,null,null,null,null,null,null,null,"PI Only Funding",null,null,null,null,null,null,null,null,null,null,null,null,null,null,"All CDBG funds used in this project",null,null,null,null,null,null,null,null,null,null,null,null,null,null,null,null,null,null,null,null,null,null,null,null,null,null,null,null,null,"PI Receipt #"]
[null,null,null,null,null,null,null,null,null,null,null,"Select Option",null,null,null,null,null,null,null,null,null,null,null,null,null,null,null,null,null,null,null,null,null,null,null,null,null,null,null,null,null,null,null,null,null,null,null,null,null,null,null,null,null,null,null,null,"PI Voucher #"]
[]
[null,null,null,null,null,null,null,null,null,null,null,"Setup",null,null,null,null,null,null,null,null,null,{"$f":"IF(L36=\"revised\",\"If Revised, Why?\",\"\")","v":""},null,null,null,null,null,null,null,null,null,null,null,null,null,null,null,null,null,null,null,null,null,null,null,null,null,null,null,null,null,null,null,null,null,null,"CDBG-Assigned Numbers"]
[null,null,null,null,null,null,null,null,null,null,null,"Select Option",null,null,null,null,null,null,null,null,null,null,null,null,null,null,null,null,null,null,null,null,null,null,null,null,null,null,null,null,null,null,null,null,null,null,"Reporting FY",null,null,null,null,null,null,null,null,null,"CDBG Project Number",null,null,null,null,null,null,null,null,null,null,null,"IDIS Activity Number"]
[null,null,null,null,null,null,null,null,null,null,null,"Date"]
[null,null,null,null,null,null,null,null,null,null,null,null,null,null,null,null,null,null,null,null,null,""]
[null,null,null,null,null,null,null,null,null,null,null,"Completion",null,null,null,null,null,null,null,null,null,{"$f":"IF(L40=\"Cancelled\",\"If Cancelled, Why?\",IF(L40=\"revised\",\"If Revised, Why?\",\"\"))","v":""}]
[null,null,null,null,null,null,null,null,null,null,null,"Select Option",null,null,null,null,null,null,null,null,null,null,null,null,null,null,null,null,null,null,null,null,null,null,null,null,null,null,null,null,null,null,null,null,null,null,null,null,null,null,null,null,null,null,null,null,"Proposed completion MM/YY"]
[null,null,null,null,null,null,null,null,null,null,null,"Date",null,null,null,null,null,null,null,null,null,null,null,null,null,null,null,null,null,null,null,null,null,null,null,null,null,null,null,null,null,null,null,null,null,null,null,null,null,null,null,null,null,null,null,null,"Proposed # of Beneficiaries"]
[]
[null,null,null,null,null,null,null,null,null,null,null,"Part A ",null,null,null,null,null,null,"JURISDICTION INFORMATION & PREPARER",null,null,null,null,null,null,null,null,null,null,null,null,null,null,null,null,null,null,null,null,null,null,null,null,null,null,null,null,null,null,null,null,null,null,null,"REQUIRED"]
[]
[]
[]
[null,null,null,null,null,null,null,null,null,null,null,null,null,"Jurisdiction Contact Information",null,null,null,null,null,null,null,null,null,null,null,null,null,null,null,null,null,null,null,null,null,null,null,null,null,null,null,null,null,null,null,null,null,"Preparer",null,null,null,null,null,"Select Option"]
[]
[null,null,null,null,null,null,null,null,null,null,null,null,null,"1a. Name (Contact Person)",null,null,null,null,null,null,null,null,null,null,null,null,null,null,null,null,null,null,null,null,null,null,null,null,null,null,null,null,null,null,null,null,null,"2a. Preparer's Name"]
[]
[]
[null,null,null,null,null,null,null,null,null,null,null,null,null,"1b. E-Mail",null,null,null,null,null,null,null,null,null,null,null,null,null,null,null,null,null,null,null,null,null,null,null,null,null,null,null,null,null,null,null,null,null,"2b. Organization (if not grantee)"]
[]
[]
[null,null,null,null,null,null,null,null,null,null,null,null,null,"1c. Phone/Direct Line",null,null,null,null,null,null,null,null,null,null,null,null,null,null,null,null,null,null,null,null,null,null,null,null,null,null,null,null,null,null,null,null,null,"2c. E-Mail",null,null,null,null,null,null,null,null,null,null,null,null,null,null,null,null,null,"2d. Phone/Direct Line"]
[]
[]
[]
[null,null,null,null,null,null,null,null,null,null,null,null,null,"Subrecipient Information (Only)",null,null,null,null,null,null,null,null,null,null,null,null,null,null,null,null,null,null,null,null,null,null,null,null,null,null,null,null,null,null,null,null,null,null,null,null,null,null,null,null,"REQUIRED if applicable"]
[]
[]
[null,null,null,null,null,null,null,null,null,null,null,null,null,"3a. Organization name",null,null,null,null,null,null,null,null,null,null,null,null,null,null,null,null,null,null,null,null,null,null,null,null,null,null,null,null,null,null,null,null,null,"3b. Complete address"]
[]
[]
[]
[null,null,null,null,null,null,null,null,null,null,null,null,null,"3c. Organization is categorized as:",null,null,null,null,null,null,null,null,null,null,null,null,null,null,null,null,null,null,null,null,null,null,"3d. DUNS number",null,null,null,null,null,null,null,null,null,null,"3e. E-Mail",null,null,null,null,null,null,null,null,null,null,null,null,null,null,null,null,null,"3f. Phone/Direct Line"]
[null,null,null,null,null,null,null,null,null,null,null,null,null,"Select Option"]
[null,null,null,null,null,null,null,null,null,null,null,null,null,null,null,null,null,null,null,null,null,null,null,null,null,null,null,null,null,null,null,null,null,null,null,null,null,null,null,null,null,null,null,null,null,null,null,null,null,null,null,null,null,null,null,null,null,null,null,null,null,null,null,null,null,null,null,null,null,null,null,null,null,null,null,null,null,null,null,null,null,null,null,null,null,null,null,null,null,null,"URG - Urgent Need (requires department approval)"]
[null,null,null,null,null,null,null,null,null,null,null,null,null,"3g. ",null,"Check all that applies to this organization"]
[null,null,null,null,null,null,null,null,null,null,null,null,null,null,null,null,null,null,null,null,null,null,null,null,null,null,null,null,null,null,null,null,null,null,null,null,null,null,null,null,null,null,null,null,null,null,null,null,null,null,null,null,null,null,null,null,null,null,null,null,null,null,null,null,null,null,null,null,null,null,null,null,null,null,null,null,null,null,null,null,null,null,null,null,null,null,null,null,null,null,"LMH - Low/Mod housing benefit"]
[]
[]
[]
[null,null,null,null,null,null,null,null,null,null,null,"Part B ",null,null,null,null,null,null,"PROJECT & ACTIVITY INFORMATION",null,null,null,null,null,null,null,null,null,null,null,null,null,null,null,null,null,null,null,null,null,null,null,null,null,null,null,null,null,null,null,null,null,null,null,"REQUIRED"]
[null,null,null,null,null,null,null,null,null,null,null,null,null,null,null,null,null,null,null,null,null,null,null,null,null,null,null,null,null,null,null,null,null,null,null,null,null,null,null,null,null,null,null,null,null,null,null,null,null,null,null,null,null,null,null,null,null,null,null,null,null,null,null,null,null,null,null,null,null,null,null,null,null,null,null,null,null,null,null,null,null,null,null,null,null,null,null,null,null,null,"LMA - Low/Mod area benefit"]
[]
[]
[null,null,null,null,null,null,null,null,null,null,null,null,null,"1a. Name of Public Service",null,null,null,null,null,null,null,null,null,null,null,null,null,null,null,null,null,null,null,null,null,null,null,null,null,null,null,null,null,null,null,null,null,null,null,null,null,null,null,null,null,null,null,null,null,null,null,null,null,null,null,null,null,null,null,null,null,null,null,null,null,null,null,null,null,null,null,null,null,null,null,null,null,null,null,null,"SBA - Slum/Blight area benefit"]
[]
[null,null,null,null,null,null,null,null,null,null,null,null,null,"1b. Public Service Address",null,null,null,null,null,null,null,null,null,null,null,null,null,null,null,null,null,null,null,null,null,null,null,null,"1c. City",null,null,null,null,null,null,null,null,null,null,null,null,null,"1d. Zip Code",null,null,null,null,null,null,null,null,"CDBG Project Amount (Incl AD)",null,null,null,null,null,null,null,null,null,null,null,null,null,null,null,null,null,null,null,null,null,null,null,null,null,null,null,null,"03T - Operating Cost of Homeless/AIDS Patient Programs"]
[null,null,null,null,null,null,null,null,null,null,null,null,null," ",null,null,null,null,null,null,null,null,null,null,null,null,null,null,null,null,null,null,null,null,null,null,null,null,null,null,null,null,null,null,null,null,null,null,null,null,null,null,null,null,null,null,null,null,null,null,null,null,null,null,null,{"$f":"SUM($BN$242,$BN$256)","v":0},null,null,null,null,null,null,null,null,null,null,null,null,null,null,null,null,null,null,null,null,null,null,null,null,"LMC - Low/Mod limited clientele benefit"]
[]
[]
[null,null,null,null,null,null,null,null,null,null,null,null,null,"2. National Objective",null,null,null,null,null,null,null,null,null,null,null,null,null,null,null,null,null,null,null,null,null,null,"3. Activity & Matrix Code",null,null,null,null,null,null,null,null,null,null,null,null,null,null,null,null,null,null,null,null,null,null,null,null,"Accomplishment Type",null,null,null,null,null,null,null,null,null,null,null,null,null,null,null,null,null,null,null,null,null,null,null,null,null,null,null,null,"05H - Employment Training"]
[null,null,null,null,null,null,null,null,null,null,null,null,null,"Select Option",null,null,null,null,null,null,null,null,null,null,null,null,null,null,null,null,null,null,null,null,null,null,"Select Option",null,null,null,null,null,null,null,null,null,null,null,null,null,null,null,null,null,null,null,null,null,null,null,null,"Select Option",null,null,null,null,null,null,null,null,null,null,null,null,null,null,null,null,null,null,null,null,null,null,null,null,null,null,null,null,"05R - Homeownership Assistance (not direct)"]
[]
[null,null,null,null,null,null,null,null,null,null,null,null,null,"4. Activity Purpose (check all that apply)",null,null,null,null,null,null,null,null,null,null,null,null,null,null,null,null,null,null,null,null,null,null,null,null,null,null,null,null,null,null,null,null,null,null,null,null,null,null,null,null,null,null,null,null,null,null,null,null,null,null,null,null,null,null,null,null,null,null,null,null,null,null,null,null,null,null,null,null,null,null,null,null,null,null,null,null,"05S - Rental Housing Subsidies"]
[]
[null,null,null,null,null,null,null,null,null,null,null,null,null,null,null,null,null,null,null,null,null,null,null,null,null,null,null,null,null,null,null,null,null,null,null,null,null,null,null,null,null,null,null,null,null,null,null,null,null,null,null,null,null,null,null,null,null,null,null,null,null,null,null,null,null,null,null,null,null,null,null,null,null,null,null,null,null,null,null,null,null,null,null,null,null,null,null,null,null,null,"05T - Security Deposits"]
[]
[]
[]
[null,null,null,null,null,null,null,null,null,null,null,null,null,"5. Description / Scope of work",null,null,null,null,null,null,null,null,null,null,null,null,null,null,null,null,null,null,null,null,null,null,null,null,null,null,null,null,null,null,null,null,null,null,null,null,null,null,null,null,null,null,null,null,null,null,null,null,null,null,null,null,null,null,null,null,null,null,null,null,null,null,null,null,null,null,null,null,null,null,null,null,null,null,null,null,"15 - Code Enforcement"]
[]
[]
[null,null,null,null,null,null,null,null,null,null,null,null,null,null,null,null,null,null,null,null,null,null,null,null,null,null,null,null,null,null,null,null,null,null,null,null,null,null,null,null,null,null,null,null,null,null,null,null,null,null,null,null,null,null,null,null,null,null,null,null,null,null,null,null,null,null,null,null,null,null,null,null,null,null,null,null,null,null,null,null,null,null,null,null,null,null,null,null,null,null,"10 - Housing Units"]
[]
[]
[null,null,null,null,null,null,null,null,null,null,null,null,null,null,null,null,null,null,null,null,null,null,null,null,null,null,null,null,null,null,null,null,null,null,null,null,null,null,null,null,null,null,null,null,null,null,null,null,null,null,null,null,null,null,null,null,null,null,null,null,null,null,null,null,null,null,null,null,null,null,null,null,null,null,null,null,null,null,null,null,null,null,null,null,null,null,null,null,null,null,"01 - People (General)"]
[]
[null,null,null,null,null,null,null,null,null,null,null,null,null,null,null,null,null,null,null,null,null,null,null,null,null,null,null,null,null,null,null,null,null,null,null,null,null,null,null,null,null,null,null,null,null,null,null,null,null,null,null,null,null,null,null,null,null,null,null,null,null,null,null,null,null,null,null,null,null,null,null,null,null,null,null,null,null,null,null,null,null,null,null,null,null,null,null,null,null,null,"08 - Businesses"]
[null,null,null,null,null,null,null,null,null,null,null,null,null,null,null,null,null,null,null,null,null,null,null,null,null,null,null,null,null,null,null,null,null,null,null,null,null,null,null,null,null,null,null,null,null,null,null,null,null,null,null,null,null,null,null,null,null,null,null,null,null,null,null,null,null,null,null,null,null,null,null,null,null,null,null,null,null,null,null,null,null,null,null,null,null,null,null,null,null,null,"09 - Organizations"]
[]
[]
[null,null,null,null,null,null,null,null,null,null,null,null,null,null,null,null,null,null,null,null,null,null,null,null,null,null,null,null,null,null,null,null,null,null,null,null,null,null,null,null,null,null,null,null,null,null,null,null,null,null,null,null,null,null,null,null,null,null,null,null,null,null,null,null,null,null,null,null,null,null,null,null,null,null,null,null,null,null,null,null,null,"Page 2"]
[null,null,null,null,null,null,null,null,null,null,null," Part C ",null,null,null,null,null,null,"SPECIAL CHARACTERISTICS",null,null,null,null,null,null,null,null,null,null,null,null,null,null,null,null,null,null,null,null,null,null,null,null,null,null,null,null,null,null,null,null,null,null,"REQUIRED"]
[]
[]
[]
[null,null,null,null,null,null,null,null,null,null,null,null,null,"1. Special Areas Where Activity is Located (Check all that apply)"]
[]
[]
[]
[]
[]
[null,null,null,null,null,null,null,null,null,null,null,null,null,null,null,null,null,null,null,null,null,null,null,null,null,null,null,null,null,null,null,null,null,null,null,null,null,null,null,null,null,null,null,null,null,null,null,null,null,null,null,null,null,null,null,null,null,null,null,null,null,null,null,null,null,null,null,null,null,null,null,null,null,null,null,null,null,null,null,null,null,null,null,null,null,null,"LMC - Low/Mod limited clientele benefit"]
[]
[]
[null,null,null,null,null,null,null,null,null,null,null,null,null,null,null,null,null,null,null,null,null,null,null,null,null,null,null,null,null,null,null,null,null,null,null,null,null,null,null,null,null,null,null,null,null,null,null,null,null,null,null,null,null,null,null,null,null,null,null,null,null,null,null,null,null,null,null,null,null,null,null,null,null,null,null,null,null,null,null,null,null,null,null,null,null,null,"SBA - Slum/Blight area benefit"]
[]
[]
[null,null,null,null,null,null,null,null,null,null,null,null,null,"2. Activity Information (check all that apply)"]
[]
[]
[]
[]
[null,null,null,null,null,null,null,null,null,null,null,"Part D",null,null,null,null,null,null,"PRESUMED BENEFIT ",null,null,null,null,null,null,null,null,null,null,null,null,null,null,null,null,null,null,null,null,null,null,null,null,null,null,null,null,null,null,null,null,null,null,{"$f":"IF($N$85=$CM$81,\"REQUIRED\",IF($N$85=\"select one\",\"\",\"NOT REQUIRED\"))","v":"NOT REQUIRED"}]
[]
[]
[]
[null,null,null,null,null,null,null,null,null,null,null,null,null,"Presumed Benefit?"]
[]
[]
[]
[null,null,null,null,null,null,null,null,null,null,null,null,null,"Check Group",null,null,null,null,null,null,null,null,null,null,null,null,null,null,null,null,null,"Income Level"]
[]
[]
[null,null,null,null,null,null,null,null,null,null,null,null,null,"Select Option",null,null,null,null,null,null,null,null,null,null,null,null,null,null,null,null,null,{"$f":"IF(N138=Validation!C83,Validation!D83,IF('Public Service SET UP'!N138=Validation!C84,Validation!D84,IF('Public Service SET UP'!N138=Validation!C85,Validation!D85,IF('Public Service SET UP'!N138=Validation!C86,Validation!D86,IF('Public Service SET UP'!N138=Validation!C87,Validation!D87,IF('Public Service SET UP'!N138=Validation!C88,Validation!D88,IF('Public Service SET UP'!N138=Validation!C89,Validation!D89,IF('Public Service SET UP'!N138=Validation!C90,Validation!D90,\"\"))))))))","v":""}]
[]
[]
[]
[]
[]
[]
[]
[]
[]
[null,null,null,null,null,null,null,null,null,null,null," Part E ",null,null,null,null,null,null,"AREA BENEFIT DATA",null,null,null,null,null,null,null,null,null,null,null,null,null,null,null,null,null,null,null,null,null,null,null,null,null,null,null,null,null,null,null,null,null,null,{"$f":"IF(N85=\"SELECT OPTION\",\"NOT REQUIRED\",IF($N$85=$CM$68,\"NOT REQUIRED\",IF($N$85=$CM$81,\"NOT REQUIRED\",IF($N$85=$CM$78,\"NOT REQUIRED\",IF($N$85=$CM$70,\"NOT REQUIRED\",\"REQUIRED\")))))","v":"NOT REQUIRED"}]
[]
[]
[]
[null,null,null,null,null,null,null,null,null,null,null,null,null,"Benefit data determined by",null,null,null,null,null,null,null,null,null,null,null,null,null,null,null,null,null,null,null,null,null,null,null,null,null,null,null,null,null,null,null,null,null,null,"Date",null,null,null,null,null,null,null,null,null,"County Code",null,null,null,null,null,null,"Select Option"]
[]
[null,null,null,null,null,null,null,null,null,null,null,null,null,null,null,null,null,null,null,null,null,null,null,null,null,null,null,null,null,"Block Groups"]
[]
[]
[null,null,null,null,null,null,null,null,null,null,null,null,null,"Census Tract"]
[]
[]
[null,null,null,null,null,null,null,null,null,null,null,null,null,"Census Tract"]
[]
[]
[null,null,null,null,null,null,null,null,null,null,null,null,null,"Census Tract"]
[]
[]
[null,null,null,null,null,null,null,null,null,null,null,null,null,"Census Tract"]
[]
[]
[null,null,null,null,null,null,null,null,null,null,null,null,null,"Census Tract"]
[]
[]
[null,null,null,null,null,null,null,null,null,null,null,null,null,"Census Tract"]
[]
[]
[null,null,null,null,null,null,null,null,null,null,null,null,null,"Census Tract"]
[]
[]
[null,null,null,null,null,null,null,null,null,null,null,null,null,"Census Tract"]
[]
[]
[null,null,null,null,null,null,null,null,null,null,null,null,null,"Census Tract"]
[]
[]
[null,null,null,null,null,null,null,null,null,null,null,null,null,"Census Tract"]
[]
[]
[null,null,null,null,null,null,null,null,null,null,null,null,null,"Census Tract"]
[]
[]
[null,null,null,null,null,null,null,null,null,null,null,null,null,"Census Tract"]
[]
[]
[null,null,null,null,null,null,null,null,null,null,null,null,null,"Census Tract"]
[]
[]
[null,null,null,null,null,null,null,null,null,null,null,null,null,"Census Tract"]
[]
[]
[null,null,null,null,null,null,null,null,null,null,null,null,null,"Census Tract"]
[]
[]
[null,null,null,null,null,null,null,null,null,null,null,null,null,"Total # Low/Mod",null,null,null,null,null,null,null,null,null,null,null,null,null,null,null,null,null,null,null,null,null,null,null,null,null,"Total Low/Mod Universe Population"]
[]
[]
[]
[]
[null,null,null,null,null,null,null,null,null,null,null," Part F",null,null,null,null,null,null,"HOMEOWNERSHIP ASSISTANCE (not direct)",null,null,null,null,null,null,null,null,null,null,null,null,null,null,null,null,null,null,null,null,null,null,null,null,null,null,null,null,null,null,null,null,null,null,{"$f":"IF(AND($N$85=$CM$68,$AK$85=$CM$85),\"REQUIRED\",IF(AND($N$85=$CM$78,$AK$85=$CM$85),\"REQUIRED\",IF(AND($N$85=$CM$70,$AK$85=$CM$85),\"REQUIRED\",IF(AND($N$85=$CM$70,$AK$85=$CM$87),\"REQUIRED\",IF(AND($N$85=$CM$70,$AK$85=$CM$89),\"REQUIRED\",\"NOT REQUIRED\")))))","v":"NOT REQUIRED"}]
[]
[]
[]
[null,null,null,null,null,null,null,null,null,null,null,null,null,"Multi-Unit Housing:",null,null,null,null,null,null,null,null,null,null,null,null,null,null,null,null,null,null,null,null,null,null,null,null,null,null,null,null,null,"Includes Rental Housing:"]
[]
[]
[]
[null,null,null,null,null,null,null,null,null,null,null,null,null,"Multi-Unit Housing",null,null,null,null,null,null,null,null,null,null,null,null,null,null,null,"Total",null,null,null,null,null,null,null,"Occupied",null,null,null,null,null,null,null,null,null,"Occupied Low/Mod"]
[]
[]
[null,null,null,null,null,null,null,null,null,null,null,null,null,"Units at Start"]
[]
[]
[null,null,null,null,null,null,null,null,null,null,null,null,null,"Units Expected at Completion"]
[]
[]
[]
[]
[null,null,null,null,null,null,null,null,null,null,null,null,null,null,null,null,null,null,null,null,null,null,null,null,null,null,null,null,null,null,null,null,null,null,null,null,null,null,null,null,null,null,null,null,null,null,null,null,null,null,null,null,null,null,null,null,null,null,null,null,null,null,null,null,null,null,null,null,null,null,null,null,null,null,null,null,null,null,null,null,null,"Page 3"]
[null,null,null,null,null,null,null,null,null,null,null," Part G",null,null,null,null,null,null,"PROJECT FUNDING SOURCE DETAIL",null,null,null,null,null,null,null,null,null,null,null,null,null,null,null,null,null,null,null,null,null,null,null,null,null,null,null,null,null,null,null,null,null,null,"REQUIRED"]
[]
[]
[]
[null,null,null,null,null,null,null,null,null,null,null,null,null,"CDBG Grant",null,null,null,null,null,null,null,null,null,null,null,null,null,null,null,null,null,null,null,null,null,null,null,null,null,null,null,null,null,null,null,null,null,null,null,null,null,{"$f":"IF(AK85>0,AK85,\"\")","v":"Select Option"}]
[]
[]
[]
[null,null,null,null,null,null,null,null,null,null,null,null,null,null,"Funding Type (CDBG Funds)",null,null,null,null,null,null,null,null,null,null,null,null,null,null,null,null,null,null,null,null,null,null,null,null,null,null,null,null,null,null,null,null,null,null,null,null,null,null,null,null,null,null,null,null,null,null,null,null,null,null,"Amount (CBDG Funds)"]
[]
[]
[]
[]
[null,null,null,null,null,null,null,null,null,null,null,null,null,null,"CDBG - Grants"]
[]
[null,null,null,null,null,null,null,null,null,null,null,null,null,null,null,null,null,null,null,null,null,null,null,null,null,null,null,null,null,null,null,null,null,null,null,null,null,null,null,null,null,null,null,null,null,null,null,null,null,null,null,null,null,"TOTAL",null,null,null,null,null,null,null,null,null,null,null,{"$f":"SUMIF($BN$240:$BY$240,\">0\")","v":0}]
[]
[]
[null,null,null,null,null,null,null,null,null,null,null,null,null,"CDBG Program Income"]
[]
[]
[]
[null,null,null,null,null,null,null,null,null,null,null,null,null,null,"Program Income (PI) Type",null,null,null,null,null,null,null,null,null,null,null,null,null,null,null,null,null,null,null,null,null,null,null,null,null,null,null,null,null,null,null,null,null,null,null,null,null,null,null,null,null,null,null,null,null,null,null,null,null,null,"Amount"]
[]
[]
[]
[]
[null,null,null,null,null,null,null,null,null,null,null,null,null,null,"CDBG - PI Funds"]
[]
[null,null,null,null,null,null,null,null,null,null,null,null,null,null,null,null,null,null,null,null,null,null,null,null,null,null,null,null,null,null,null,null,null,null,null,null,null,null,null,null,null,null,null,null,null,null,null,null,null,null,null,null,null,"TOTAL",null,null,null,null,null,null,null,null,null,null,null,{"$f":"SUMIF($BN$253:$BY$255,\">0\")","v":0}]
[]
[]
[]
[null,null,null,null,null,null,null,null,null,null,null,null,null,"Leverage and Other Funding Sources"]
[]
[]
[]
[null,null,null,null,null,null,null,null,null,null,null,null,null,null,"Funding Source ",null,null,null,null,null,null,null,null,null,null,null,null,null,null,null,null,null,null,null,null,null,null,"Name of Source",null,null,null,null,null,null,null,null,null,null,null,null,null,null,null,null,null,null,null,null,null,null,null,null,null,null,null,null,null,"Amount"]
[]
[null,null,null,null,null,null,null,null,null,null,null,null,null,null,"Select Option"]
[]
[]
[]
[]
[]
[]
[]
[]
[]
[]
[]
[]
[]
[null,null,null,null,null,null,null,null,null,null,null,null,null,null,null,null,null,null,null,null,null,null,null,null,null,null,null,null,null,null,null,null,null,null,null,null,null,null,null,null,null,null,null,null,null,null,null,null,null,null,null,null,null,null,null,"TOTAL",null,null,null,null,null,null,null,null,null,null,null,{"$f":"SUMIF($BP$266:$BY$278,\">0\")","v":0}]
[]
[]
[null,null,null,null,null,null,null,null,null,null,null,null,null,null,null,null,null,null,null,null,null,null,null,null,null,null,null,null,null,null,null,null,null,null,null,null,null,null,null,null,null,null,null,null,null,null,null,null,null,null,null,null,"TOTAL PROJECT COST",null,null,null,null,null,null,null,null,null,null,null,null,null,null,{"$f":"SUM($BN$242,$BN$256,$BP$280)","v":0}]
[]
[]
[]
[null,null,null,null,null,null,null,null,null,null,null,null,"Comments: explain any issues with this activity or clarification of information provided in this form."]
[]
[]
[]
[]
[]
[]
[]
[]
[]
[]
[]
[]
[]
[]
[]
[]
[]
[]
[null,null,null,null,null,null,null,null,null,null,null,"END OF DOCUMENT"]

{"sheet":"Public Service COMPLETION","index":1,"n_rows":160,"n_cols":89,"rows_kept":160,"cut":false,"hidden":false,"merged":[[149,16,149,54],[132,76,132,79],[129,76,131,79],[140,30,140,32],[140,34,140,36],[140,38,140,40],[140,42,140,46],[142,30,142,32],[142,34,142,36],[142,38,142,40],[142,43,142,45],[142,16,142,28],[140,52,140,61],[141,52,141,61],[140,63,140,65],[141,63,141,65],[140,67,140,69],[141,67,141,69],[140,71,140,73],[141,71,141,73],[140,76,140,78],[141,76,141,78],[139,76,139,78],[137,52,137,61],[151,56,151,59],[151,61,151,64],[88,67,90,75],[85,55,87,60],[89,55,91,60],[85,19,87,53],[89,18,91,53],[92,15,94,60],[77,22,79,53],[77,55,79,60],[81,17,83,53],[81,55,83,60],[151,66,151,69],[151,71,151,75],[132,66,132,68],[134,75,134,79],[136,76,136,78],[132,56,132,58],[132,60,132,64],[150,61,150,64],[150,66,150,69],[126,50,126,54],[134,67,134,69],[134,71,134,73],[152,56,152,59],[152,61,152,64],[156,56,156,59],[156,61,156,64],[156,66,156,69],[156,71,156,75],[157,56,157,59],[157,61,157,64],[157,66,157,69],[154,56,154,59],[154,61,154,64],[154,66,154,69],[154,71,154,75],[155,56,155,59],[155,61,155,64],[155,66,155,69],[155,71,155,75],[157,71,157,75],[18,15,18,20],[18,21,18,28],[18,29,18,80],[152,66,152,69],[152,71,152,75],[153,56,153,59],[153,61,153,64],[153,66,153,69],[153,71,153,75],[68,17,70,53],[68,55,70,60],[105,15,105,24],[105,25,105,63],[138,45,138,49],[139,45,139,49],[136,63,136,65],[134,63,134,65],[134,45,134,49],[132,50,132,54],[134,35,134,38],[126,16,126,34],[125,16,125,34],[126,46,126,48],[121,36,121,44],[15,15,15,20],[15,21,15,28],[15,29,15,80],[16,15,16,20],[16,21,16,28],[16,29,16,80],[17,15,17,20],[17,21,17,28],[17,29,17,80],[72,55,74,60],[31,67,33,75],[39,67,41,75],[45,67,47,75],[55,67,57,75],[64,22,66,53],[105,64,105,80],[64,55,66,60],[35,55,37,60],[35,22,37,53],[39,55,41,60],[95,15,102,60],[137,67,137,69],[148,66,148,69],[144,71,144,75],[146,71,146,75],[147,71,147,75],[148,71,148,75],[139,63,139,65],[139,67,139,69],[139,71,139,73],[147,61,147,64],[148,61,148,64],[144,66,144,69],[146,66,146,69],[147,66,147,69],[142,71,142,73],[137,76,137,78],[138,76,138,78],[147,56,147,59],[142,52,142,61],[142,63,142,65],[126,70,126,74],[136,71,136,73],[137,71,137,73],[138,63,138,65],[138,67,138,69],[138,71,138,73],[127,66,127,68],[127,70,127,74],[128,66,128,68],[128,70,128,74],[129,66,129,68],[129,70,129,74],[130,66,130,68],[130,70,130,74],[131,66,131,68],[131,70,131,74],[127,60,127,64],[132,70,132,74],[127,56,127,58],[126,66,126,68],[126,56,126,58],[126,60,126,64],[121,66,121,74],[122,66,122,68],[122,70,122,74],[123,66,123,68],[123,70,123,74],[124,66,124,68],[124,70,124,74],[125,66,125,68],[125,70,125,74],[121,56,121,64],[122,56,122,58],[122,60,122,64],[123,56,123,58],[123,60,123,64],[124,56,124,58],[124,60,124,64],[125,56,125,58],[125,60,125,64],[139,52,139,61],[136,67,136,69],[1,59,3,64],[113,29,113,80],[27,55,29,60],[31,55,33,60],[39,22,41,53],[31,22,33,53],[27,22,29,53],[4,65,5,80],[21,15,26,22],[21,23,24,28],[21,44,24,49],[131,16,131,34],[132,16,132,34],[121,46,121,54],[122,46,122,48],[128,56,128,58],[129,56,129,58],[130,56,130,58],[131,56,131,58],[128,46,128,48],[128,50,128,54],[129,46,129,48],[137,30,137,33],[138,30,138,33],[122,16,122,34],[132,46,132,48],[136,45,136,49],[137,45,137,49],[128,60,128,64],[129,60,129,64],[130,60,130,64],[131,60,131,64],[130,46,130,48],[130,50,130,54],[131,46,131,48],[131,50,131,54],[122,50,122,54],[123,46,123,48],[123,50,123,54],[124,46,124,48],[124,50,124,54],[125,46,125,48],[125,50,125,54],[138,52,138,61],[129,50,129,54],[137,63,137,65],[1,65,3,80],[68,67,70,75],[72,22,74,53],[144,16,144,42],[146,56,146,59],[144,56,144,59],[144,61,144,64],[146,61,146,64],[136,40,136,43],[122,36,122,38],[123,36,123,38],[124,36,124,38],[125,36,125,38],[126,36,126,38],[127,36,127,38],[128,36,128,38],[129,36,129,38],[130,36,130,38],[131,36,131,38],[132,36,132,38],[127,46,127,48],[127,50,127,54],[138,40,138,43],[139,40,139,43],[130,16,130,34],[127,16,127,34],[139,30,139,33],[1,86,3,101],[5,15,6,63],[8,17,8,28],[110,21,110,28],[111,21,111,28],[112,21,112,28],[110,29,110,80],[111,29,111,80],[112,29,112,80],[107,15,107,80],[21,55,25,60],[8,29,8,63],[10,17,10,28],[10,29,10,63],[110,15,110,20],[108,15,108,80],[13,15,13,24],[13,64,13,80],[13,25,13,63],[1,15,3,26],[1,27,3,56],[1,82,103,84],[104,82,157,84],[136,52,136,61],[153,16,153,54],[152,16,152,54],[146,16,146,54],[147,16,147,54],[148,16,148,54],[150,16,150,54],[151,16,151,54],[150,71,150,75],[43,22,45,53],[43,55,45,60],[47,22,49,53],[47,55,49,60],[51,22,53,53],[51,55,53,60],[150,56,150,59],[149,56,149,59],[149,61,149,64],[149,66,149,69],[137,40,137,43],[124,40,124,44],[125,40,125,44],[159,15,160,80],[154,16,154,54],[155,16,155,54],[156,16,156,54],[157,16,157,54],[59,22,61,53],[59,55,61,60],[55,17,57,53],[148,56,148,59],[115,15,115,80],[117,15,119,80],[136,30,136,33],[122,40,122,44],[123,40,123,44],[134,16,134,28],[134,30,134,33],[137,35,137,38],[138,35,138,38],[139,35,139,38],[126,40,126,44],[127,40,127,44],[128,40,128,44],[129,40,129,44],[136,35,136,38],[134,40,134,43],[123,16,123,34],[149,71,149,75],[55,55,57,60],[142,67,142,69],[142,76,142,78],[21,30,24,43],[25,30,26,43],[25,44,26,49],[130,40,130,44],[131,40,131,44],[132,40,132,44],[113,15,113,20],[111,15,111,20],[112,15,112,20],[113,21,113,28],[136,16,136,28],[139,16,139,28],[138,16,138,28],[137,16,137,28],[128,16,128,34],[124,16,124,34],[135,16,135,27],[129,16,129,34]]}
[]
[null,null,null,null,null,null,null,null,null,null,null,null,null,null,null,"Jurisdiction Name:",null,null,null,null,null,null,null,null,null,null,null,{"$f":"IF('Public Service SET UP'!X2>0,'Public Service SET UP'!X2,\"\")","v":""},null,null,null,null,null,null,null,null,null,null,null,null,null,null,null,null,null,null,null,null,null,null,null,null,null,null,null,null,null,null,null,"Contract #",null,null,null,null,null,{"$f":"IF('Public Service SET UP'!BJ2>0,'Public Service SET UP'!BJ2,\"\")","v":""},null,null,null,null,null,null,null,null,null,null,null,null,null,null,null,null,"Page 1"]
[]
[]
[null,null,null,null,null,null,null,null,null,null,null,null,null,null,null,null,null,null,null,null,null,null,null,null,null,null,null,null,null,null,null,null,null,null,null,null,null,null,null,null,null,null,null,null,null,null,null,null,null,null,null,null,null,null,null,null,null,null,null,null,null,null,null,null,null,"Status"]
[null,null,null,null,null,null,null,null,null,null,null,null,null,null,null,"STATE OF CALIFORNIA - CDBG PROGRAM\nProject Status and/or Completion Report"]
[]
[]
[null,null,null,null,null,null,null,null,null,null,null,null,null,null,null,null,null,"National Objective",null,null,null,null,null,null,null,null,null,null,null,{"$f":"'Public Service SET UP'!N85","v":"Select Option"}]
[]
[null,null,null,null,null,null,null,null,null,null,null,null,null,null,null,null,null,"Activity Matrix Code",null,null,null,null,null,null,null,null,null,null,null,{"$f":"'Public Service SET UP'!AK85","v":"Select Option"}]
[]
[]
[null,null,null,null,null,null,null,null,null,null,null,null,null,null,null,"Part A",null,null,null,null,null,null,null,null,null,"DIRECT BENEFIT DATA BY PERSONS (LMA & URG) ONLY",null,null,null,null,null,null,null,null,null,null,null,null,null,null,null,null,null,null,null,null,null,null,null,null,null,null,null,null,null,null,null,null,null,null,null,null,null,null,{"$f":"IF(AND('Public Service SET UP'!N85=\"SELECT OPTION\",'Public Service SET UP'!AK85=\"SELECT OPTION\"),\"NOT REQUIRED\",IF(AND('Public Service SET UP'!N85='Public Service SET UP'!CM78,'Public Service SET UP'!AK85='Public Service SET UP'!CM93,'Public Service SET UP'!BJ85='Public Service SET UP'!CM96),\"REQUIRED\",IF(AND('Public Service SET UP'!N85='Public Service SET UP'!CM75,'Public Service SET UP'!AK85='Public Service SET UP'!CM93,'Public Service SET UP'!BJ85='Public Service SET UP'!CM96),\"REQUIRED\",IF('Public Service SET UP'!N85='Public Service SET UP'!CM81,\"NOT REQUIRED\",IF('Public Service SET UP'!N85='Public Service SET UP'!CM70,\"NOT REQUIRED\",IF(AND('Public Service SET UP'!N85='Public Service SET UP'!CM75,'Public Service SET UP'!AK85='Public Service SET UP'!CM93),\"REQUIRED\",IF(AND('Public Service SET UP'!N85='Public Service SET UP'!CM78,'Public Service SET UP'!AK85='Public Service SET UP'!CM93),\"REQUIRED\",\"REQUIRED\")))))))","v":"NOT REQUIRED"}]
[]
[null,null,null,null,null,null,null,null,null,null,null,null,null,null,null,"Program Year",null,null,null,null,null,"# of People  or Households",null,null,null,null,null,null,null,"Accomplishment Narrative"]
[]
[]
[]
[]
[]
[null,null,null,null,null,null,null,null,null,null,null,null,null,null,null,"Total Persons Assisted:",null,null,null,null,null,null,null,{"$f":"SUM(V17:AC19)","v":0},null,null,null,null,null,null,"How many veterans?",null,null,null,null,null,null,null,null,null,null,null,null,null,null,null,null,null,null,null,null,null,null,null,null,"Number of Persons"]
[]
[]
[]
[null,null,null,null,null,null,null,null,null,null,null,null,null,null,null,null,null,null,null,null,null,null,null,null,null,null,null,null,null,null,"How many disable?"]
[]
[null,null,null,null,null,null,null,null,null,null,null,null,null,null,null,null,null,null,null,null,null,null,"With new or continuing Access to a Service or Benefit"]
[]
[]
[]
[null,null,null,null,null,null,null,null,null,null,null,null,null,null,null,null,null,null,null,null,null,null,"With Improved Access to a Service or Benefit",null,null,null,null,null,null,null,null,null,null,null,null,null,null,null,null,null,null,null,null,null,null,null,null,null,null,null,null,null,null,null,null,null,null,null,null,null,null,null,null,null,null,null,null,{"$f":"IF(AND('Public Service SET UP'!N85='Public Service SET UP'!CM68,'Public Service SET UP'!AK85='Public Service SET UP'!CM93),\"NOT REQUIRED\",IF(AND('Public Service SET UP'!N85='Public Service SET UP'!CM78,'Public Service SET UP'!AK85='Public Service SET UP'!CM93),\"NOT REQUIRED\",IF(AND('Public Service SET UP'!N85='Public Service SET UP'!CM75,'Public Service SET UP'!AK85='Public Service SET UP'!CM93),\"NOT REQUIRED\",IF('Public Service SET UP'!N85='Public Service SET UP'!CM68,\"REQUIRED\",IF('Public Service SET UP'!N85='Public Service SET UP'!CM75,\"REQUIRED\",IF('Public Service SET UP'!N85='Public Service SET UP'!CM78,\"REQUIRED\",\"NOT REQUIRED\"))))))","v":"NOT REQUIRED"}]
[]
[]
[]
[null,null,null,null,null,null,null,null,null,null,null,null,null,null,null,null,null,null,null,null,null,null,"Received a Service or Benefit that is No Longer Substandard"]
[]
[]
[]
[null,null,null,null,null,null,null,null,null,null,null,null,null,null,null,null,null,null,null,null,null,null,"Jobs Placements",null,null,null,null,null,null,null,null,null,null,null,null,null,null,null,null,null,null,null,null,null,null,null,null,null,null,null,null,null,null,null,null,null,null,null,null,null,null,null,null,null,null,null,null,{"$f":"IF(AND('Public Service SET UP'!N85='Public Service SET UP'!CM68,'Public Service SET UP'!AK85='Public Service SET UP'!CM84),\"REQUIRED\",IF(AND('Public Service SET UP'!N85='Public Service SET UP'!CM78,'Public Service SET UP'!AK85='Public Service SET UP'!CM84),\"REQUIRED\",IF('Public Service SET UP'!N85='Public Service SET UP'!CM68,\"NOT REQUIRED\",IF('Public Service SET UP'!N85='Public Service SET UP'!CM75,\"NOT REQUIRED\",IF('Public Service SET UP'!N85='Public Service SET UP'!CM81,\"NOT REQUIRED\",\"NOT REQUIRED\")))))","v":"NOT REQUIRED"}]
[]
[]
[]
[null,null,null,null,null,null,null,null,null,null,null,null,null,null,null,null,null,null,null,null,null,null,"Homeless Persons Given Overnight Shelter"]
[]
[null,null,null,null,null,null,null,null,null,null,null,null,null,null,null,null,null,null,null,null,null,null,null,null,null,null,null,null,null,null,null,null,null,null,null,null,null,null,null,null,null,null,null,null,null,null,null,null,null,null,null,null,null,null,null,null,null,null,null,null,null,null,null,null,null,null,null,{"$f":"IF(AND('Public Service SET UP'!N85='Public Service SET UP'!CM68,'Public Service SET UP'!AK85='Public Service SET UP'!CM80),\"REQUIRED\",\"NOT REQUIRED\")","v":"NOT REQUIRED"}]
[]
[null,null,null,null,null,null,null,null,null,null,null,null,null,null,null,null,null,null,null,null,null,null,"Beds Created in Overnight Shelter or Other Emergency Housing "]
[]
[]
[]
[null,null,null,null,null,null,null,null,null,null,null,null,null,null,null,null,null,null,null,null,null,null,"First-Time Homebuyers"]
[]
[]
[]
[null,null,null,null,null,null,null,null,null,null,null,null,null,null,null,null,null,"Of the Number of First-Time Homebuyers, Number Receiving Housing Counseling",null,null,null,null,null,null,null,null,null,null,null,null,null,null,null,null,null,null,null,null,null,null,null,null,null,null,null,null,null,null,null,null,null,null,null,null,null,null,null,null,null,null,null,null,null,null,null,null,null,{"$f":"IF(AND('Public Service SET UP'!N85='Public Service SET UP'!CM68,'Public Service SET UP'!AK85='Public Service SET UP'!CM85),\"REQUIRED\",IF(AND('Public Service SET UP'!N85='Public Service SET UP'!CM78,'Public Service SET UP'!AK85='Public Service SET UP'!CM85),\"REQUIRED\",\"NOT REQUIRED\"))","v":"NOT REQUIRED"}]
[]
[]
[]
[null,null,null,null,null,null,null,null,null,null,null,null,null,null,null,null,null,null,null,null,null,null,"Down payment Assistance/Closing Costs"]
[]
[]
[]
[]
[null,null,null,null,null,null,null,null,null,null,null,null,null,null,null,null,null,null,null,null,null,null,"Receiving short-term rental assistance (not more than three months) "]
[]
[]
[]
[null,null,null,null,null,null,null,null,null,null,null,null,null,null,null,null,null,"That were previously homeless ",null,null,null,null,null,null,null,null,null,null,null,null,null,null,null,null,null,null,null,null,null,null,null,null,null,null,null,null,null,null,null,null,null,null,null,null,null,null,null,null,null,null,null,null,null,null,null,null,null,{"$f":"IF(AND('Public Service SET UP'!N85='Public Service SET UP'!CM68,'Public Service SET UP'!AK85='Public Service SET UP'!CM87),\"REQUIRED\",IF(AND('Public Service SET UP'!N85='Public Service SET UP'!CM78,'Public Service SET UP'!AK85='Public Service SET UP'!CM87),\"REQUIRED\",\"NOT REQUIRED\"))","v":"NOT REQUIRED"}]
[]
[]
[]
[null,null,null,null,null,null,null,null,null,null,null,null,null,null,null,null,null,null,null,null,null,null,"Of those, the number that were chronically homeless "]
[]
[]
[]
[]
[null,null,null,null,null,null,null,null,null,null,null,null,null,null,null,null,null,null,null,null,null,null," Housing units receiving violations"]
[]
[]
[]
[null,null,null,null,null,null,null,null,null,null,null,null,null,null,null,null,null,"Housing units where code violations have been corrected using CDBG funds"]
[]
[]
[]
[null,null,null,null,null,null,null,null,null,null,null,null,null,null,null,null,null,null,null,"Housing units where code violations have been corrected by the owner"]
[]
[]
[null,null,null,null,null,null,null,null,null,null,null,null,null,null,null,null,null,null,null,null,null,null,null,null,null,null,null,null,null,null,null,null,null,null,null,null,null,null,null,null,null,null,null,null,null,null,null,null,null,null,null,null,null,null,null,null,null,null,null,null,null,null,null,null,null,null,null,{"$f":"IF(AND('Public Service SET UP'!N85='Public Service SET UP'!CM75,'Public Service SET UP'!AK85='Public Service SET UP'!CM93,'Public Service SET UP'!BJ85='Public Service SET UP'!CM96),\"REQUIRED\",IF(AND('Public Service SET UP'!N85='Public Service SET UP'!CM78,'Public Service SET UP'!AK85='Public Service SET UP'!CM93,'Public Service SET UP'!BJ85='Public Service SET UP'!CM96),\"REQUIRED\",\"NOT REQUIRED\"))","v":"NOT REQUIRED"}]
[null,null,null,null,null,null,null,null,null,null,null,null,null,null,null,null,null,null,"Housing units where code violations have been corrected using other funds"]
[]
[]
[null,null,null,null,null,null,null,null,null,null,null,null,null,null,null,"Describe specific public and private improvements or services provided in the code enforcement area"]
[]
[]
[]
[]
[]
[]
[]
[]
[]
[]
[]
[null,null,null,null,null,null,null,null,null,null,null,null,null,null,null,null,null,null,null,null,null,null,null,null,null,null,null,null,null,null,null,null,null,null,null,null,null,null,null,null,null,null,null,null,null,null,null,null,null,null,null,null,null,null,null,null,null,null,null,null,null,null,null,null,null,null,null,null,null,null,null,null,null,null,null,null,null,null,null,null,null,null,"Page 2"]
[null,null,null,null,null,null,null,null,null,null,null,null,null,null,null,"Part B",null,null,null,null,null,null,null,null,null,"DIRECT BENEFIT DATA BY PERSONS - LMC & LMH ONLY",null,null,null,null,null,null,null,null,null,null,null,null,null,null,null,null,null,null,null,null,null,null,null,null,null,null,null,null,null,null,null,null,null,null,null,null,null,null,{"$f":"IF('Public Service SET UP'!N85='Public Service SET UP'!CM81,\"REQUIRED\",IF('Public Service SET UP'!N85='Public Service SET UP'!CM70,\"REQUIRED\",\"NOT REQUIRED\"))","v":"NOT REQUIRED"}]
[]
[null,null,null,null,null,null,null,null,null,null,null,null,null,null,null,"If this project is LMC or LMH, you must provide accomplishment data by person in the following tabs of this workbook: (Year 1, Year 2, & Year 3)"]
[null,null,null,null,null,null,null,null,null,null,null,null,null,null,null,"Information to be updated for each year until the project is completed. "]
[]
[null,null,null,null,null,null,null,null,null,null,null,null,null,null,null,"Program Year",null,null,null,null,null,"# of People  or Households",null,null,null,null,null,null,null,"Accomplishment Narrative"]
[]
[]
[]
[null,null,null,null,null,null,null,null,null,null,null,null,null,null,null,null,null,null,null,null,null,null,null,null,null,null,null,null,null,null,null,null,null,null,null,null,null,null,null,null,null,null,null,null,null,null,null,null,null,null,null,null,null,null,null,null,null,null,null,null,null,null,null,null,null,null,null,null,null,null,null,null,null,null,null,null,null,null,null,null,null,null,null,null,null,null,null,null,"Extremely Low ( ≤ 30%)"]
[null,null,null,null,null,null,null,null,null,null,null,null,null,null,null,"FOR CDBG USE ONLY (All Years)   LMC ",null,null,null,null,null,null,null,null,null,null,null,null,null,null,null,null,null,null,null,null,null,null,null,null,null,null,null,null,null,null,null,null,null,null,null,null,null,null,null,null,null,null,null,null,null,null,null,null,null,null,null,null,null,null,null,null,null,null,null,null,null,null,null,null,null,null,null,null,null,null,null,null,"Low (31-50%)"]
[null,null,null,null,null,null,null,null,null,null,null,null,null,null,null,null,null,null,null,null,null,null,null,null,null,null,null,null,null,null,null,null,null,null,null,null,null,null,null,null,null,null,null,null,null,null,null,null,null,null,null,null,null,null,null,null,null,null,null,null,null,null,null,null,null,null,null,null,null,null,null,null,null,null,null,null,null,null,null,null,null,null,null,null,null,null,null,null,"Moderate (51-80%)"]
[null,null,null,null,null,null,null,null,null,null,null,null,null,null,null,"DIRECT BENEFIT DATA BY PERSON",null,null,null,null,null,null,null,null,null,null,null,null,null,null,null,null,null,null,null,null,null,null,null,null,null,null,null,null,null,null,null,null,null,null,null,null,null,null,null,null,null,null,null,null,null,null,null,null,null,null,null,null,null,null,null,null,null,null,null,null,null,null,null,null,null,null,null,null,null,null,null,null,"Non-Low/ Moderate (+80%)"]
[]
[null,null,null,null,null,null,null,null,null,null,null,null,null,null,null,null,null,null,null,null,null,null,null,null,null,null,null,null,null,null,null,null,null,null,null,null,null,null,null,null,null,null,null,null,null,null,null,null,null,null,null,null,null,null,null,null,null,null,null,null,null,null,null,null,null,null,null,null,null,null,null,null,null,null,null,null,null,null,null,null,null,null,null,null,null,null,null,null,"11 - White"]
[null,null,null,null,null,null,null,null,null,null,null,null,null,null,null,null,null,null,null,null,null,null,null,null,null,null,null,null,null,null,null,null,null,null,null,null,null,null,null,null,null,null,null,null,null,null,null,null,null,null,null,null,null,null,null,null,null,null,null,null,null,null,null,null,null,null,null,null,null,null,null,null,null,null,null,null,null,null,null,null,null,null,null,null,null,null,null,null,"12 - Black/African American "]
[null,null,null,null,null,null,null,null,null,null,null,null,null,null,null,null,null,null,null,null,null,null,null,null,null,null,null,null,null,null,null,null,null,null,null,null,"YEAR 1",null,null,null,null,null,null,null,null,null,"YEAR 2",null,null,null,null,null,null,null,null,null,"YEAR 3",null,null,null,null,null,null,null,null,null,"All Years",null,null,null,null,null,null,null,null,null,null,null,null,null,null,null,null,null,null,null,null,null,"13 - Asian"]
[null,null,null,null,null,null,null,null,null,null,null,null,null,null,null,null,"Race / Ethnicity",null,null,null,null,null,null,null,null,null,null,null,null,null,null,null,null,null,null,null,"Total",null,null,null,"Hispanic/Latino",null,null,null,null,null,"Total",null,null,null,"Hispanic/Latino",null,null,null,null,null,"Total",null,null,null,"Hispanic/Latino",null,null,null,null,null,"Total",null,null,null,"Hispanic/Latino",null,null,null,null,null,null,null,null,null,null,null,null,null,null,null,null,null,"14 - American Indian/ Alaskan Native "]
[null,null,null," ",null,null,null,null,null,null,null,null,null,null,null,null,"White (11)",null,null,null,null,null,null,null,null,null,null,null,null,null,null,null,null,null,null,null,{"$f":"COUNTIF('Year 1'!$BH$13:$BH$1512,'Public Service COMPLETION'!CK120)","v":0},null,null,null,{"$f":"COUNTIFS('Year 1'!$BH$13:$BH$1512,'Public Service COMPLETION'!CK120,'Year 1'!$BD$13:$BD$1512,'Public Service COMPLETION'!$CK$131)","v":0},null,null,null,null,null,{"$f":"COUNTIF('Year 2'!$BH$13:$BH$1512,'Public Service COMPLETION'!CK120)","v":0},null,null,null,{"$f":"COUNTIFS('Year 2'!$BH$13:$BH$1512,'Public Service COMPLETION'!CK120,'Year 2'!$BD$13:$BD$1512,'Public Service COMPLETION'!$CK$131)","v":0},null,null,null,null,null,{"$f":"COUNTIF('Year 3'!$BH$13:$BH$1512,'Public Service COMPLETION'!CK120)","v":0},null,null,null,{"$f":"COUNTIFS('Year 3'!$BH$13:$BH$1512,'Public Service COMPLETION'!CK120,'Year 3'!$BD$13:$BD$1512,'Public Service COMPLETION'!$CK$131)","v":0},null,null,null,null,null,{"$f":"SUM(AK124,AU124,BE124)","v":0},null,null,null,{"$f":"SUM(AO124,AY124,BI124)","v":0},null,null,null,null,null,null,null,null,null,null,null,null,null,null,null,null,null,"15 - Native Hawaiian/ Other Pacific Islander"]
[null,null,null,null,null,null,null,null,null,null,null,null,null,null,null,null,"Black/African American (12)",null,null,null,null,null,null,null,null,null,null,null,null,null,null,null,null,null,null,null,{"$f":"COUNTIF('Year 1'!$BH$13:$BH$1512,'Public Service COMPLETION'!CK121)","v":0},null,null,null,{"$f":"COUNTIFS('Year 1'!$BH$13:$BH$1512,'Public Service COMPLETION'!CK121,'Year 1'!$BD$13:$BD$1512,'Public Service COMPLETION'!$CK$131)","v":0},null,null,null,null,null,{"$f":"COUNTIF('Year 2'!$BH$13:$BH$1512,'Public Service COMPLETION'!CK121)","v":0},null,null,null,{"$f":"COUNTIFS('Year 2'!$BH$13:$BH$1512,'Public Service COMPLETION'!CK121,'Year 2'!$BD$13:$BD$1512,'Public Service COMPLETION'!$CK$131)","v":0},null,null,null,null,null,{"$f":"COUNTIF('Year 3'!$BH$13:$BH$1512,'Public Service COMPLETION'!CK121)","v":0},null,null,null,{"$f":"COUNTIFS('Year 3'!$BH$13:$BH$1512,'Public Service COMPLETION'!CK121,'Year 3'!$BD$13:$BD$1512,'Public Service COMPLETION'!$CK$131)","v":0},null,null,null,null,null,{"$f":"SUM(AK125,AU125,BE125)","v":0},null,null,null,{"$f":"SUM(AO125,AY125,BI125)","v":0},null,null,null,null,null,null,null,null,null,null,null,null,null,null,null,null,null,"16 - Am. Indian/Alaskan Native & White "]
[null,null,null,null,null,null,null,null,null,null,null,null,null,null,null,null,"Asian (13)",null,null,null,null,null,null,null,null,null,null,null,null,null,null,null,null,null,null,null,{"$f":"COUNTIF('Year 1'!$BH$13:$BH$1512,'Public Service COMPLETION'!CK122)","v":0},null,null,null,{"$f":"COUNTIFS('Year 1'!$BH$13:$BH$1512,'Public Service COMPLETION'!CK122,'Year 1'!$BD$13:$BD$1512,'Public Service COMPLETION'!$CK$131)","v":0},null,null,null,null,null,{"$f":"COUNTIF('Year 2'!$BH$13:$BH$1512,'Public Service COMPLETION'!CK122)","v":0},null,null,null,{"$f":"COUNTIFS('Year 2'!$BH$13:$BH$1512,'Public Service COMPLETION'!CK122,'Year 2'!$BD$13:$BD$1512,'Public Service COMPLETION'!$CK$131)","v":0},null,null,null,null,null,{"$f":"COUNTIF('Year 3'!$BH$13:$BH$1512,'Public Service COMPLETION'!CK122)","v":0},null,null,null,{"$f":"COUNTIFS('Year 3'!$BH$13:$BH$1512,'Public Service COMPLETION'!CK122,'Year 3'!$BD$13:$BD$1512,'Public Service COMPLETION'!$CK$131)","v":0},null,null,null,null,null,0,null,null,null,0,null,null,null,null,null,null,null,null,null,null,null,null,null,null,null,null,null,"17 - Asian & White "]
[null,null,null,null,null,null,null,null,null,null,null,null,null,null,null,null,"American Indian / Alaskan Native (14)",null,null,null,null,null,null,null,null,null,null,null,null,null,null,null,null,null,null,null,{"$f":"COUNTIF('Year 1'!$BH$13:$BH$1512,'Public Service COMPLETION'!CK123)","v":0},null,null,null,{"$f":"COUNTIFS('Year 1'!$BH$13:$BH$1512,'Public Service COMPLETION'!CK123,'Year 1'!$BD$13:$BD$1512,'Public Service COMPLETION'!$CK$131)","v":0},null,null,null,null,null,{"$f":"COUNTIF('Year 2'!$BH$13:$BH$1512,'Public Service COMPLETION'!CK123)","v":0},null,null,null,{"$f":"COUNTIFS('Year 2'!$BH$13:$BH$1512,'Public Service COMPLETION'!CK123,'Year 2'!$BD$13:$BD$1512,'Public Service COMPLETION'!$CK$131)","v":0},null,null,null,null,null,{"$f":"COUNTIF('Year 3'!$BH$13:$BH$1512,'Public Service COMPLETION'!CK123)","v":0},null,null,null,{"$f":"COUNTIFS('Year 3'!$BH$13:$BH$1512,'Public Service COMPLETION'!CK123,'Year 3'!$BD$13:$BD$1512,'Public Service COMPLETION'!$CK$131)","v":0},null,null,null,null,null,0,null,null,null,0,null,null,null,null,null,null,null,null,null,null,null,null,null,null,null,null,null,"18 - Black/African Am. & White"]
[null,null,null,null,null,null,null,null,null,null,null,null,null,null,null,null,"Native Hawaiian / Other Pacific Isl. (15)",null,null,null,null,null,null,null,null,null,null,null,null,null,null,null,null,null,null,null,{"$f":"COUNTIF('Year 1'!$BH$13:$BH$1512,'Public Service COMPLETION'!CK124)","v":0},null,null,null,{"$f":"COUNTIFS('Year 1'!$BH$13:$BH$1512,'Public Service COMPLETION'!CK124,'Year 1'!$BD$13:$BD$1512,'Public Service COMPLETION'!$CK$131)","v":0},null,null,null,null,null,{"$f":"COUNTIF('Year 2'!$BH$13:$BH$1512,'Public Service COMPLETION'!CK124)","v":0},null,null,null,{"$f":"COUNTIFS('Year 2'!$BH$13:$BH$1512,'Public Service COMPLETION'!CK124,'Year 2'!$BD$13:$BD$1512,'Public Service COMPLETION'!$CK$131)","v":0},null,null,null,null,null,{"$f":"COUNTIF('Year 3'!$BH$13:$BH$1512,'Public Service COMPLETION'!CK124)","v":0},null,null,null,{"$f":"COUNTIFS('Year 3'!$BH$13:$BH$1512,'Public Service COMPLETION'!CK124,'Year 3'!$BD$13:$BD$1512,'Public Service COMPLETION'!$CK$131)","v":0},null,null,null,null,null,0,null,null,null,0,null,null,null,null,null,null,null,null,null,null,null,null,null,null,null,null,null,"19 - Am. Indian/Alaskan & Blk/African "]
[null,null,null,null,null,null,null,null,null,null,null,null,null,null,null,null,"Am. Indian / Alaskan Native & White (16)",null,null,null,null,null,null,null,null,null,null,null,null,null,null,null,null,null,null,null,{"$f":"COUNTIF('Year 1'!$BH$13:$BH$1512,'Public Service COMPLETION'!CK125)","v":0},null,null,null,{"$f":"COUNTIFS('Year 1'!$BH$13:$BH$1512,'Public Service COMPLETION'!CK125,'Year 1'!$BD$13:$BD$1512,'Public Service COMPLETION'!$CK$131)","v":0},null,null,null,null,null,{"$f":"COUNTIF('Year 2'!$BH$13:$BH$1512,'Public Service COMPLETION'!CK125)","v":0},null,null,null,{"$f":"COUNTIFS('Year 2'!$BH$13:$BH$1512,'Public Service COMPLETION'!CK125,'Year 2'!$BD$13:$BD$1512,'Public Service COMPLETION'!$CK$131)","v":0},null,null,null,null,null,{"$f":"COUNTIF('Year 3'!$BH$13:$BH$1512,'Public Service COMPLETION'!CK125)","v":0},null,null,null,{"$f":"COUNTIFS('Year 3'!$BH$13:$BH$1512,'Public Service COMPLETION'!CK125,'Year 3'!$BD$13:$BD$1512,'Public Service COMPLETION'!$CK$131)","v":0},null,null,null,null,null,0,null,null,null,0,null,null,null,null,null,null,null,null,null,null,null,null,null,null,null,null,null,"20 - Other Multi-Racial "]
[null,null,null,null,null,null,null,null,null,null,null,null,null,null,null,null,"Asian & White (17)",null,null,null,null,null,null,null,null,null,null,null,null,null,null,null,null,null,null,null,{"$f":"COUNTIF('Year 1'!$BH$13:$BH$1512,'Public Service COMPLETION'!CK126)","v":0},null,null,null,{"$f":"COUNTIFS('Year 1'!$BH$13:$BH$1512,'Public Service COMPLETION'!CK126,'Year 1'!$BD$13:$BD$1512,'Public Service COMPLETION'!$CK$131)","v":0},null,null,null,null,null,{"$f":"COUNTIF('Year 2'!$BH$13:$BH$1512,'Public Service COMPLETION'!CK126)","v":0},null,null,null,{"$f":"COUNTIFS('Year 2'!$BH$13:$BH$1512,'Public Service COMPLETION'!CK126,'Year 2'!$BD$13:$BD$1512,'Public Service COMPLETION'!$CK$131)","v":0},null,null,null,null,null,{"$f":"COUNTIF('Year 3'!$BH$13:$BH$1512,'Public Service COMPLETION'!CK126)","v":0},null,null,null,{"$f":"COUNTIFS('Year 3'!$BH$13:$BH$1512,'Public Service COMPLETION'!CK126,'Year 3'!$BD$13:$BD$1512,'Public Service COMPLETION'!$CK$131)","v":0},null,null,null,null,null,0,null,null,null,0,null,null,null,null,null,"Total Persons"]
[null,null,null,null,null,null,null,null,null,null,null,null,null,null,null,null,"Black/African Am. & White (18)",null,null,null,null,null,null,null,null,null,null,null,null,null,null,null,null,null,null,null,{"$f":"COUNTIF('Year 1'!$BH$13:$BH$1512,'Public Service COMPLETION'!CK127)","v":0},null,null,null,{"$f":"COUNTIFS('Year 1'!$BH$13:$BH$1512,'Public Service COMPLETION'!CK127,'Year 1'!$BD$13:$BD$1512,'Public Service COMPLETION'!$CK$131)","v":0},null,null,null,null,null,{"$f":"COUNTIF('Year 2'!$BH$13:$BH$1512,'Public Service COMPLETION'!CK127)","v":0},null,null,null,{"$f":"COUNTIFS('Year 2'!$BH$13:$BH$1512,'Public Service COMPLETION'!CK127,'Year 2'!$BD$13:$BD$1512,'Public Service COMPLETION'!$CK$131)","v":0},null,null,null,null,null,{"$f":"COUNTIF('Year 3'!$BH$13:$BH$1512,'Public Service COMPLETION'!CK127)","v":0},null,null,null,{"$f":"COUNTIFS('Year 3'!$BH$13:$BH$1512,'Public Service COMPLETION'!CK127,'Year 3'!$BD$13:$BD$1512,'Public Service COMPLETION'!$CK$131)","v":0},null,null,null,null,null,0,null,null,null,0,null,null,null,null,null,null,null,null,null,null,null,null,null,null,null,null,null,"Yes"]
[null,null,null,null,null,null,null,null,null,null,null,null,null,null,null,null,"Am. Indian/Alaskan & Blk/African (19)",null,null,null,null,null,null,null,null,null,null,null,null,null,null,null,null,null,null,null,{"$f":"COUNTIF('Year 1'!$BH$13:$BH$1512,'Public Service COMPLETION'!CK128)","v":0},null,null,null,{"$f":"COUNTIFS('Year 1'!$BH$13:$BH$1512,'Public Service COMPLETION'!CK128,'Year 1'!$BD$13:$BD$1512,'Public Service COMPLETION'!$CK$131)","v":0},null,null,null,null,null,{"$f":"COUNTIF('Year 2'!$BH$13:$BH$1512,'Public Service COMPLETION'!CK128)","v":0},null,null,null,{"$f":"COUNTIFS('Year 2'!$BH$13:$BH$1512,'Public Service COMPLETION'!CK128,'Year 2'!$BD$13:$BD$1512,'Public Service COMPLETION'!$CK$131)","v":0},null,null,null,null,null,{"$f":"COUNTIF('Year 3'!$BH$13:$BH$1512,'Public Service COMPLETION'!CK128)","v":0},null,null,null,{"$f":"COUNTIFS('Year 3'!$BH$13:$BH$1512,'Public Service COMPLETION'!CK128,'Year 3'!$BD$13:$BD$1512,'Public Service COMPLETION'!$CK$131)","v":0},null,null,null,null,null,0,null,null,null,0,null,null,null,null,null,null,null,null,null,null,null,null,null,null,null,null,null,"No"]
[null,null,null,null,null,null,null,null,null,null,null,null,null,null,null,null,"Other Multi-Racial (20)",null,null,null,null,null,null,null,null,null,null,null,null,null,null,null,null,null,null,null,{"$f":"COUNTIF('Year 1'!$BH$13:$BH$1512,'Public Service COMPLETION'!CK129)","v":0},null,null,null,{"$f":"COUNTIFS('Year 1'!$BH$13:$BH$1512,'Public Service COMPLETION'!CK129,'Year 1'!$BD$13:$BD$1512,'Public Service COMPLETION'!$CK$131)","v":0},null,null,null,null,null,{"$f":"COUNTIF('Year 2'!$BH$13:$BH$1512,'Public Service COMPLETION'!CK129)","v":0},null,null,null,{"$f":"COUNTIFS('Year 2'!$BH$13:$BH$1512,'Public Service COMPLETION'!CK129,'Year 2'!$BD$13:$BD$1512,'Public Service COMPLETION'!$CK$131)","v":0},null,null,null,null,null,{"$f":"COUNTIF('Year 3'!$BH$13:$BH$1512,'Public Service COMPLETION'!CK129)","v":0},null,null,null,{"$f":"COUNTIFS('Year 3'!$BH$13:$BH$1512,'Public Service COMPLETION'!CK129,'Year 3'!$BD$13:$BD$1512,'Public Service COMPLETION'!$CK$131)","v":0},null,null,null,null,null,0,null,null,null,0,null,null,null,null,null,{"$f":"SUM(BO124:BQ133)","v":0},null,null,null,null,null,null,null,null,null,null,null,"New"]
[null,null,null,null,null,null,null,null,null,null,null,null,null,null,null,null,null,null,null,null,null,null,null,null,null,null,null,null,null,null,null,null,null,null,null,null,null,null,null,null,null,null,null,null,null,null,null,null,null,null,null,null,null,null,null,null,null,null,null,null,null,null,null,null,null,null,null,null,null,null,null,null,null,null,null,null,null,null,null,null,null,null,null,null,null,null,null,null,"Improved"]
[null,null,null,null,null,null,null,null,null,null,null,null,null,null,null,null,"INCOME LEVELS",null,null,null,null,null,null,null,null,null,null,null,null,null,"Year 1",null,null,null,null,"Year 2",null,null,null,null,"Year 3",null,null,null,null,"All Years",null,null,null,null,null,null,null,null,null,null,null,null,null,null,null,null,null,"Year 1",null,null,null,"Year 2",null,null,null,"Year 3",null,null,null,"All Years",null,null,null,null,null,null,null,null,null,null,null,null,"No Longer Substandard"]
[]
[null,null,null,null,null,null,null,null,null,null,null,null,null,null,null,null,"Extremely Low (<30%)",null,null,null,null,null,null,null,null,null,null,null,null,null,{"$f":"COUNTIF('Year 1'!$AO$13:$AO$1512,'Public Service COMPLETION'!CK115)","v":0},null,null,null,null,{"$f":"COUNTIF('Year 2'!$AO$13:$AO$1512,'Public Service COMPLETION'!CK115)","v":0},null,null,null,null,{"$f":"COUNTIF('Year 3'!$AO$13:$AO$1512,'Public Service COMPLETION'!CK115)","v":0},null,null,null,null,{"$f":"SUM(AE137:AR137)","v":0},null,null,null,null,null,null,"Veteran",null,null,null,null,null,null,null,null,null,null,{"$f":"COUNTIF('Year 1'!$BS$13:$BS$1512,'Public Service COMPLETION'!$CK$131)","v":0},null,null,null,{"$f":"COUNTIF('Year 2'!$BS$13:$BS$1512,'Public Service COMPLETION'!$CK$131)","v":0},null,null,null,{"$f":"COUNTIF('Year 3'!$BS$13:$BS$1512,'Public Service COMPLETION'!$CK$131)","v":0},null,null,null,null,{"$f":"SUM(BL137:BV137)","v":0},null,null,null,null,null,null,null,null,null,null,null,"Single/ Non-Elderly"]
[null,null,null,null,null,null,null,null,null,null,null,null,null,null,null,null,"Low (31-50%)",null,null,null,null,null,null,null,null,null,null,null,null,null,{"$f":"COUNTIF('Year 1'!$AO$13:$AO$1512,'Public Service COMPLETION'!CK116)","v":0},null,null,null,null,{"$f":"COUNTIF('Year 2'!$AO$13:$AO$1512,'Public Service COMPLETION'!CK116)","v":0},null,null,null,null,{"$f":"COUNTIF('Year 3'!$AO$13:$AO$1512,'Public Service COMPLETION'!CK116)","v":0},null,null,null,null,{"$f":"SUM(AE138:AR138)","v":0},null,null,null,null,null,null,"Single / Non Elderly",null,null,null,null,null,null,null,null,null,null,{"$f":"COUNTIF('Year 1'!$Y$13:$Y$1512,'Public Service COMPLETION'!CK137)","v":0},null,null,null,{"$f":"COUNTIF('Year 2'!$Y$13:$Y$1512,'Public Service COMPLETION'!CK137)","v":0},null,null,null,{"$f":"COUNTIF('Year 3'!$Y$13:$Y$1512,'Public Service COMPLETION'!CK137)","v":0},null,null,null,null,{"$f":"SUM(BL138:BV138)","v":0},null,null,null,null,null,null,null,null,null,null,null,"Elderly"]
[null,null,null,null,null,null,null,null,null,null,null,null,null,null,null,null,"Moderate (51-80%)",null,null,null,null,null,null,null,null,null,null,null,null,null,{"$f":"COUNTIF('Year 1'!$AO$13:$AO$1512,'Public Service COMPLETION'!CK117)","v":0},null,null,null,null,{"$f":"COUNTIF('Year 2'!$AO$13:$AO$1512,'Public Service COMPLETION'!CK117)","v":0},null,null,null,null,{"$f":"COUNTIF('Year 3'!$AO$13:$AO$1512,'Public Service COMPLETION'!CK117)","v":0},null,null,null,null,0,null,null,null,null,null,null,"Elderly",null,null,null,null,null,null,null,null,null,null,{"$f":"COUNTIF('Year 1'!$Y$13:$Y$1512,'Public Service COMPLETION'!CK138)","v":0},null,null,null,{"$f":"COUNTIF('Year 2'!$Y$13:$Y$1512,'Public Service COMPLETION'!CK138)","v":0},null,null,null,{"$f":"COUNTIF('Year 3'!$Y$13:$Y$1512,'Public Service COMPLETION'!CK138)","v":0},null,null,null,null,0,null,null,null,null,null,null,null,null,null,null,null,"Related/ Single Parent"]
[null,null,null,null,null,null,null,null,null,null,null,null,null,null,null,null,"Non-Low/ Moderate (+80%)",null,null,null,null,null,null,null,null,null,null,null,null,null,{"$f":"COUNTIF('Year 1'!$AO$13:$AO$1512,'Public Service COMPLETION'!CK118)","v":0},null,null,null,null,{"$f":"COUNTIF('Year 2'!$AO$13:$AO$1512,'Public Service COMPLETION'!CK118)","v":0},null,null,null,null,{"$f":"COUNTIF('Year 3'!$AO$13:$AO$1512,'Public Service COMPLETION'!CK118)","v":0},null,null,null,null,{"$f":"SUM(AE140:AR140)","v":0},null,null,null,null,null,null,"Related/Single Parent",null,null,null,null,null,null,null,null,null,null,{"$f":"COUNTIF('Year 1'!$Y$13:$Y$1512,'Public Service COMPLETION'!CK139)","v":0},null,null,null,{"$f":"COUNTIF('Year 2'!$Y$13:$Y$1512,'Public Service COMPLETION'!CK139)","v":0},null,null,null,{"$f":"COUNTIF('Year 3'!$Y$13:$Y$1512,'Public Service COMPLETION'!CK139)","v":0},null,null,null,null,0,null,null,null,null,null,null,null,null,null,null,null,"Related/Two Parent"]
[null,null,null,null,null,null,null,null,null,null,null,null,null,null,null,null,null,null,null,null,null,null,null,null,null,null,null,null,null,null,"Year 1",null,null,null,"Year 2",null,null,null,"Year 3",null,null,null,"All Years",null,null,null,null,null,null,null,null,null,"Related/Two Parent",null,null,null,null,null,null,null,null,null,null,{"$f":"COUNTIF('Year 1'!$Y$13:$Y$1512,'Public Service COMPLETION'!CK140)","v":0},null,null,null,{"$f":"COUNTIF('Year 2'!$Y$13:$Y$1512,'Public Service COMPLETION'!CK140)","v":0},null,null,null,{"$f":"COUNTIF('Year 3'!$Y$13:$Y$1512,'Public Service COMPLETION'!CK140)","v":0},null,null,null,null,{"$f":"SUM(BL141:BV141)","v":0},null,null,null,null,null,null,null,null,null,null,null,"Other"]
[null,null,null,null,null,null,null,null,null,null,null,null,null,null,null,null,null,null,null,null,null,null,null,null,null,null,null,null,null,null,null,null,null,null,null,null,null,null,null,null,null,null,null,null,null,null,null,null,null,null,null,null,"Other",null,null,null,null,null,null,null,null,null,null,{"$f":"COUNTIF('Year 1'!$Y$13:$Y$1512,'Public Service COMPLETION'!CK141)","v":0},null,null,null,{"$f":"COUNTIF('Year 2'!$Y$13:$Y$1512,'Public Service COMPLETION'!CK141)","v":0},null,null,null,{"$f":"COUNTIF('Year 3'!$Y$13:$Y$1512,'Public Service COMPLETION'!CK141)","v":0},null,null,null,null,{"$f":"SUM(BL142:BV142)","v":0}]
[null,null,null,null,null,null,null,null,null,null,null,null,null,null,null,null,"Female head of household",null,null,null,null,null,null,null,null,null,null,null,null,null,{"$f":"COUNTIF('Year 1'!$CA$13:$CA$1512,'Public Service COMPLETION'!$CK$131)","v":0},null,null,null,{"$f":"COUNTIF('Year 2'!$CA$13:$CA$1512,'Public Service COMPLETION'!$CK$131)","v":0},null,null,null,{"$f":"COUNTIF('Year 3'!$CA$13:$CA$1512,'Public Service COMPLETION'!$CK$131)","v":0},null,null,null,null,{"$f":"SUM(AE143:AO143)","v":0},null,null,null,null,null,null,null,null,"Participans Disable",null,null,null,null,null,null,null,null,null,null,{"$f":"COUNTIF('Year 1'!$BW$13:$BW$1512,'Public Service COMPLETION'!$CK$131)","v":0},null,null,null,{"$f":"COUNTIF('Year 2'!$BW$13:$BW$1512,'Public Service COMPLETION'!$CK$131)","v":0},null,null,null,{"$f":"COUNTIF('Year 3'!$BW$13:$BW$1512,'Public Service COMPLETION'!$CK$131)","v":0},null,null,null,null,{"$f":"SUM(BL143:BV143)","v":0}]
[]
[null,null,null,null,null,null," ",null,null,null,null,null,null,null,null,null,"PERSONS ASSISTED",null,null,null,null,null,null,null,null,null,null,null,null,null,null,null,null,null,null,null,null,null,null,null,null,null,null,null,null,null,null,null,null,null,null,null,null,null,null,null,"Year 1",null,null,null,null,"Year 2",null,null,null,null,"Year 3",null,null,null,null,"All Years"]
[]
[null,null,null,null,null,null,null,null,null,null,null,null,null,null,null,null,"With new or continuing access to a service or benefit",null,null,null,null,null,null,null,null,null,null,null,null,null,null,null,null,null,null,null,null,null,null,null,null,null,null,null,null,null,null,null,null,null,null,null,null,null,null,null,{"$f":"COUNTIF('Year 1'!$AX$13:$AX$1512,'Public Service COMPLETION'!CK133)","v":0},null,null,null,null,{"$f":"COUNTIF('Year 2'!$AX$13:$AX$1512,'Public Service COMPLETION'!CK133)","v":0},null,null,null,null,{"$f":"COUNTIF('Year 3'!$AX$13:$AX$1512,'Public Service COMPLETION'!CK133)","v":0},null,null,null,null,{"$f":"SUM(BE147:BR147)","v":0}]
[null,null,null,null,null,null,null,null,null,null,null,null,null,null,null,null,"With improved access to a service of benefit",null,null,null,null,null,null,null,null,null,null,null,null,null,null,null,null,null,null,null,null,null,null,null,null,null,null,null,null,null,null,null,null,null,null,null,null,null,null,null,{"$f":"COUNTIF('Year 1'!$AX$13:$AX$1512,'Public Service COMPLETION'!CK134)","v":0},null,null,null,null,{"$f":"COUNTIF('Year 2'!$AX$13:$AX$1512,'Public Service COMPLETION'!CK134)","v":0},null,null,null,null,{"$f":"COUNTIF('Year 3'!$AX$13:$AX$1512,'Public Service COMPLETION'!CK134)","v":0},null,null,null,null,{"$f":"SUM(BE148:BR148)","v":0}]
[null,null,null,null,null,null,null,null,null,null,null,null,null,null,null,null,"Received a service or benefit that is no longer substandard",null,null,null,null,null,null,null,null,null,null,null,null,null,null,null,null,null,null,null,null,null,null,null,null,null,null,null,null,null,null,null,null,null,null,null,null,null,null,null,{"$f":"COUNTIF('Year 1'!$AX$13:$AX$1512,'Public Service COMPLETION'!CK135)","v":0},null,null,null,null,{"$f":"COUNTIF('Year 2'!$AX$13:$AX$1512,'Public Service COMPLETION'!CK135)","v":0},null,null,null,null,{"$f":"COUNTIF('Year 3'!$AX$13:$AX$1512,'Public Service COMPLETION'!CK135)","v":0},null,null,null,null,0]
[null,null,null,null,null,null,null,null,null,null,null,null,null,null,null,null,"Homeless Persons Given Overnight Shelter ",null,null,null,null,null,null,null,null,null,null,null,null,null,null,null,null,null,null,null,null,null,null,null,null,null,null,null,null,null,null,null,null,null,null,null,null,null,null,null,{"$f":"COUNTIF('Year 1'!$CE$13:$CE$1512,'Public Service COMPLETION'!CK131)","v":0},null,null,null,null,{"$f":"COUNTIF('Year 2'!$CE$13:$CE$1512,'Public Service COMPLETION'!CK131)","v":0},null,null,null,null,{"$f":"COUNTIF('Year 3'!$CE$13:$CE$1512,'Public Service COMPLETION'!CK131)","v":0},null,null,null,null,{"$f":"SUM(BE150:BR150)","v":0}]
[null,null,null,null,null,null,null,null,null,null,null,null,null,null,null,null,"Beds Created in Overnight Shelter or Other Emergency Housing ",null,null,null,null,null,null,null,null,null,null,null,null,null,null,null,null,null,null,null,null,null,null,null,null,null,null,null,null,null,null,null,null,null,null,null,null,null,null,null,{"$f":"COUNTIF('Year 1'!$CJ$13:$CJ$1512,'Public Service COMPLETION'!CK131)","v":0},null,null,null,null,{"$f":"COUNTIF('Year 2'!$CJ$13:$CJ$1512,'Public Service COMPLETION'!CK131)","v":0},null,null,null,null,{"$f":"COUNTIF('Year 3'!$CJ$13:$CJ$1512,'Public Service COMPLETION'!CK131)","v":0},null,null,null,null,{"$f":"SUM(BE151:BR151)","v":0}]
[null,null,null,null,null,null,null,null,null,null,null,null,null,null,null,null,"Jobs Placements",null,null,null,null,null,null,null,null,null,null,null,null,null,null,null,null,null,null,null,null,null,null,null,null,null,null,null,null,null,null,null,null,null,null,null,null,null,null,null,{"$f":"COUNTIF('Year 1'!$CO$13:$CR$1512,'Public Service COMPLETION'!$CK$131)","v":0},null,null,null,null,{"$f":"COUNTIF('Year 2'!$CO$13:$CR$1512,'Public Service COMPLETION'!$CK$131)","v":0},null,null,null,null,{"$f":"COUNTIF('Year 3'!$CO$13:$CR$1512,'Public Service COMPLETION'!$CK$131)","v":0},null,null,null,null,{"$f":"SUM(BE152:BR152)","v":0}]
[null,null,null,null,null,null,null,null,null,null,null,null,null,null,null,null,"First-Time Homebuyers",null,null,null,null,null,null,null,null,null,null,null,null,null,null,null,null,null,null,null,null,null,null,null,null,null,null,null,null,null,null,null,null,null,null,null,null,null,null,null,{"$f":"COUNTIF('Year 1'!$CS$13:$CV$1512,'Public Service COMPLETION'!$CK$131)","v":0},null,null,null,null,{"$f":"COUNTIF('Year 2'!$CS$13:$CV$1512,'Public Service COMPLETION'!$CK$131)","v":0},null,null,null,null,{"$f":"COUNTIF('Year 3'!$CS$13:$CV$1512,'Public Service COMPLETION'!$CK$131)","v":0},null,null,null,null,{"$f":"SUM(BE153:BR153)","v":0}]
[null,null,null,null,null,null,null,null,null,null,null,null,null,null,null,null,"Of the Number of First-Time Homebuyers, Number Receiving Housing Counseling",null,null,null,null,null,null,null,null,null,null,null,null,null,null,null,null,null,null,null,null,null,null,null,null,null,null,null,null,null,null,null,null,null,null,null,null,null,null,null,{"$f":"COUNTIF('Year 1'!$CW$13:$CZ$1512,'Public Service COMPLETION'!$CK$131)","v":0},null,null,null,null,{"$f":"COUNTIF('Year 2'!$CW$13:$CZ$1512,'Public Service COMPLETION'!$CK$131)","v":0},null,null,null,null,{"$f":"COUNTIF('Year 3'!$CW$13:$CZ$1512,'Public Service COMPLETION'!$CK$131)","v":0},null,null,null,null,0]
[null,null,null,null,null,null,null,null,null,null,null,null,null,null,null,null,"Down payment Assistance/Closing Costs",null,null,null,null,null,null,null,null,null,null,null,null,null,null,null,null,null,null,null,null,null,null,null,null,null,null,null,null,null,null,null,null,null,null,null,null,null,null,null,{"$f":"COUNTIF('Year 1'!$DA$13:$DD$1512,'Public Service COMPLETION'!$CK$131)","v":0},null,null,null,null,{"$f":"COUNTIF('Year 2'!$DA$13:$DD$1512,'Public Service COMPLETION'!$CK$131)","v":0},null,null,null,null,{"$f":"COUNTIF('Year 3'!$DA$13:$DD$1512,'Public Service COMPLETION'!$CK$131)","v":0},null,null,null,null,0]
[null,null,null,null,null,null,null,null,null,null,null,null,null,null,null,null,"Receiving short-term rental assistance (not more than three months)",null,null,null,null,null,null,null,null,null,null,null,null,null,null,null,null,null,null,null,null,null,null,null,null,null,null,null,null,null,null,null,null,null,null,null,null,null,null,null,{"$f":"COUNTIF('Year 1'!$DE$13:$DH$1512,'Public Service COMPLETION'!$CK$131)","v":0},null,null,null,null,{"$f":"COUNTIF('Year 2'!$DE$13:$DH$1512,'Public Service COMPLETION'!$CK$131)","v":0},null,null,null,null,{"$f":"COUNTIF('Year 3'!$DE$13:$DH$1512,'Public Service COMPLETION'!$CK$131)","v":0},null,null,null,null,{"$f":"SUM(BE156:BR156)","v":0}]
[null,null,null,null,null,null,null,null,null,null,null,null,null,null,null,null,"That were previously homeless ",null,null,null,null,null,null,null,null,null,null,null,null,null,null,null,null,null,null,null,null,null,null,null,null,null,null,null,null,null,null,null,null,null,null,null,null,null,null,null,{"$f":"COUNTIF('Year 1'!$DI$13:$DL$1512,'Public Service COMPLETION'!$CK$131)","v":0},null,null,null,null,{"$f":"COUNTIF('Year 2'!$DI$13:$DL$1512,'Public Service COMPLETION'!$CK$131)","v":0},null,null,null,null,{"$f":"COUNTIF('Year 3'!$DI$13:$DL$1512,'Public Service COMPLETION'!$CK$131)","v":0},null,null,null,null,0]
[null,null,null,null,null,null,null,null,null,null,null,null,null,null,null,null,"Of those, the number that were chronically homeless ",null,null,null,null,null,null,null,null,null,null,null,null,null,null,null,null,null,null,null,null,null,null,null,null,null,null,null,null,null,null,null,null,null,null,null,null,null,null,null,{"$f":"COUNTIF('Year 1'!$DM$13:$DP$1512,'Public Service COMPLETION'!$CK$131)","v":0},null,null,null,null,{"$f":"COUNTIF('Year 2'!$DM$13:$DP$1512,'Public Service COMPLETION'!$CK$131)","v":0},null,null,null,null,{"$f":"COUNTIF('Year 3'!$DM$13:$DP$1512,'Public Service COMPLETION'!$CK$131)","v":0},null,null,null,null,{"$f":"SUM(BE158:BR158)","v":0}]
[]
[null,null,null,null,null,null,null,null,null,null,null,null,null,null,null,"END OF DOCUMENT"]

{"sheet":"Year 1","index":2,"n_rows":1514,"n_cols":122,"rows_kept":1514,"cut":false,"hidden":false,"merged":[[491,121,513,123],[514,121,536,123],[537,121,559,123],[560,121,582,123],[583,121,605,123],[606,121,628,123],[629,121,651,123],[652,121,674,123],[675,121,697,123],[698,121,720,123],[721,121,743,123],[744,121,766,123],[767,121,789,123],[790,121,812,123],[813,121,835,123],[836,121,858,123],[859,121,881,123],[882,121,904,123],[905,121,927,123],[928,121,950,123],[951,121,973,123],[974,121,996,123],[997,121,1019,123],[1020,121,1042,123],[1043,121,1065,123],[1066,121,1088,123],[1089,121,1111,123],[1112,121,1134,123],[1135,121,1157,123],[1158,121,1180,123],[1181,121,1203,123],[1204,121,1226,123],[1227,121,1249,123],[1250,121,1272,123],[1273,121,1295,123],[1296,121,1318,123],[1319,121,1341,123],[1342,121,1364,123],[1365,121,1387,123],[1388,121,1410,123],[1411,121,1433,123],[1434,121,1456,123],[1457,121,1479,123],[1480,121,1502,123],[1503,121,1511,123],[1510,8,1510,17],[1510,18,1510,23],[1510,24,1510,29],[1510,30,1510,33],[1510,34,1510,39],[1510,40,1510,48],[1510,49,1510,54],[1510,55,1510,58],[1510,59,1510,69],[1510,70,1510,73],[1510,74,1510,77],[1510,78,1510,81],[1510,82,1510,86],[1510,87,1510,91],[1510,92,1510,95],[1510,96,1510,99],[1510,100,1510,103],[1510,104,1510,107],[1510,108,1510,111],[1510,112,1510,115],[1510,116,1510,119],[1511,8,1511,17],[1511,18,1511,23],[1511,24,1511,29],[1511,30,1511,33],[1511,34,1511,39],[1511,40,1511,48],[1511,49,1511,54],[1511,55,1511,58],[1511,59,1511,69],[1511,70,1511,73],[1511,74,1511,77],[1511,78,1511,81],[1511,82,1511,86],[1511,87,1511,91],[1511,92,1511,95],[1511,96,1511,99],[1511,100,1511,103],[1511,104,1511,107],[1511,108,1511,111],[1511,112,1511,115],[1511,116,1511,119],[1508,8,1508,17],[1508,18,1508,23],[1508,24,1508,29],[1508,30,1508,33],[1508,34,1508,39],[1508,40,1508,48],[1508,49,1508,54],[1508,55,1508,58],[1508,59,1508,69],[1508,70,1508,73],[1508,74,1508,77],[1508,78,1508,81],[1508,82,1508,86],[1508,87,1508,91],[1508,92,1508,95],[1508,96,1508,99],[1508,100,1508,103],[1508,104,1508,107],[1508,108,1508,111],[1508,112,1508,115],[1508,116,1508,119],[1509,8,1509,17],[1509,18,1509,23],[1509,24,1509,29],[1509,30,1509,33],[1509,34,1509,39],[1509,40,1509,48],[1509,49,1509,54],[1509,55,1509,58],[1509,59,1509,69],[1509,70,1509,73],[1509,74,1509,77],[1509,78,1509,81],[1509,82,1509,86],[1509,87,1509,91],[1509,92,1509,95],[1509,96,1509,99],[1509,100,1509,103],[1509,104,1509,107],[1509,108,1509,111],[1509,112,1509,115],[1509,116,1509,119],[1506,8,1506,17],[1506,18,1506,23],[1506,24,1506,29],[1506,30,1506,33],[1506,34,1506,39],[1506,40,1506,48],[1506,49,1506,54],[1506,55,1506,58],[1506,59,1506,69],[1506,70,1506,73],[1506,74,1506,77],[1506,78,1506,81],[1506,82,1506,86],[1506,87,1506,91],[1506,92,1506,95],[1506,96,1506,99],[1506,100,1506,103],[1506,104,1506,107],[1506,108,1506,111],[1506,112,1506,115],[1506,116,1506,119],[1507,8,1507,17],[1507,18,1507,23],[1507,24,1507,29],[1507,30,1507,33],[1507,34,1507,39],[1507,40,1507,48],[1507,49,1507,54],[1507,55,1507,58],[1507,59,1507,69],[1507,70,1507,73],[1507,74,1507,77],[1507,78,1507,81],[1507,82,1507,86],[1507,87,1507,91],[1507,92,1507,95],[1507,96,1507,99],[1507,100,1507,103],[1507,104,1507,107],[1507,108,1507,111],[1507,112,1507,115],[1507,116,1507,119],[1504,8,1504,17],[1504,18,1504,23],[1504,24,1504,29],[1504,30,1504,33],[1504,34,1504,39],[1504,40,1504,48],[1504,49,1504,54],[1504,55,1504,58],[1504,59,1504,69],[1504,70,1504,73],[1504,74,1504,77],[1504,78,1504,81],[1504,82,1504,86],[1504,87,1504,91],[1504,92,1504,95],[1504,96,1504,99],[1504,100,1504,103],[1504,104,1504,107],[1504,108,1504,111],[1504,112,1504,115],[1504,116,1504,119],[1505,8,1505,17],[1505,18,1505,23],[1505,24,1505,29],[1505,30,1505,33],[1505,34,1505,39],[1505,40,1505,48],[1505,49,1505,54],[1505,55,1505,58],[1505,59,1505,69],[1505,70,1505,73],[1505,74,1505,77],[1505,78,1505,81],[1505,82,1505,86],[1505,87,1505,91],[1505,92,1505,95],[1505,96,1505,99],[1505,100,1505,103],[1505,104,1505,107],[1505,108,1505,111],[1505,112,1505,115],[1505,116,1505,119],[1502,8,1502,17],[1502,18,1502,23],[1502,24,1502,29],[1502,30,1502,33],[1502,34,1502,39],[1502,40,1502,48],[1502,49,1502,54],[1502,55,1502,58],[1502,59,1502,69],[1502,70,1502,73],[1502,74,1502,77],[1502,78,1502,81],[1502,82,1502,86],[1502,87,1502,91],[1502,92,1502,95],[1502,96,1502,99],[1502,100,1502,103],[1502,104,1502,107],[1502,108,1502,111],[1502,112,1502,115],[1502,116,1502,119],[1503,8,1503,17],[1503,18,1503,23],[1503,24,1503,29],[1503,30,1503,33],[1503,34,1503,39],[1503,40,1503,48],[1503,49,1503,54],[1503,55,1503,58],[1503,59,1503,69],[1503,70,1503,73],[1503,74,1503,77],[1503,78,1503,81],[1503,82,1503,86],[1503,87,1503,91],[1503,92,1503,95],[1503,96,1503,99],[1503,100,1503,103],[1503,104,1503,107],[1503,108,1503,111],[1503,112,1503,115],[1503,116,1503,119],[1500,8,1500,17],[1500,18,1500,23],[1500,24,1500,29],[1500,30,1500,33],[1500,34,1500,39],[1500,40,1500,48],[1500,49,1500,54],[1500,55,1500,58],[1500,59,1500,69],[1500,70,1500,73],[1500,74,1500,77],[1500,78,1500,81],[1500,82,1500,86],[1500,87,1500,91],[1500,92,1500,95],[1500,96,1500,99],[1500,100,1500,103],[1500,104,1500,107],[1500,108,1500,111],[1500,112,1500,115],[1500,116,1500,119],[1501,8,1501,17],[1501,18,1501,23],[1501,24,1501,29],[1501,30,1501,33],[1501,34,1501,39],[1501,40,1501,48],[1501,49,1501,54],[1501,55,1501,58],[1501,59,1501,69],[1501,70,1501,73],[1501,74,1501,77],[1501,78,1501,81],[1501,82,1501,86],[1501,87,1501,91],[1501,92,1501,95],[1501,96,1501,99],[1501,100,1501,103],[1501,104,1501,107],[1501,108,1501,111],[1501,112,1501,115],[1501,116,1501,119],[1498,8,1498,17],[1498,18,1498,23],[1498,24,1498,29],[1498,30,1498,33],[1498,34,1498,39],[1498,40,1498,48],[1498,49,1498,54],[1498,55,1498,58],[1498,59,1498,69],[1498,70,1498,73],[1498,74,1498,77],[1498,78,1498,81],[1498,82,1498,86],[1498,87,1498,91],[1498,92,1498,95],[1498,96,1498,99],[1498,100,1498,103],[1498,104,1498,107],[1498,108,1498,111],[1498,112,1498,115],[1498,116,1498,119],[1499,8,1499,17],[1499,18,1499,23],[1499,24,1499,29],[1499,30,1499,33],[1499,34,1499,39],[1499,40,1499,48],[1499,49,1499,54],[1499,55,1499,58],[1499,59,1499,69],[1499,70,1499,73],[1499,74,1499,77],[1499,78,1499,81],[1499,82,1499,86],[1499,87,1499,91],[1499,92,1499,95],[1499,96,1499,99],[1499,100,1499,103],[1499,104,1499,107],[1499,108,1499,111],[1499,112,1499,115],[1499,116,1499,119],[1496,8,1496,17],[1496,18,1496,23],[1496,24,1496,29],[1496,30,1496,33],[1496,34,1496,39],[1496,40,1496,48],[1496,49,1496,54],[1496,55,1496,58],[1496,59,1496,69],[1496,70,1496,73],[1496,74,1496,77],[1496,78,1496,81],[1496,82,1496,86],[1496,87,1496,91],[1496,92,1496,95],[1496,96,1496,99],[1496,100,1496,103],[1496,104,1496,107],[1496,108,1496,111],[1496,112,1496,115],[1496,116,1496,119],[1497,8,1497,17],[1497,18,1497,23],[1497,24,1497,29],[1497,30,1497,33],[1497,34,1497,39],[1497,40,1497,48],[1497,49,1497,54],[1497,55,1497,58],[1497,59,1497,69],[1497,70,1497,73],[1497,74,1497,77],[1497,78,1497,81],[1497,82,1497,86],[1497,87,1497,91],[1497,92,1497,95],[1497,96,1497,99],[1497,100,1497,103],[1497,104,1497,107],[1497,108,1497,111],[1497,112,1497,115],[1497,116,1497,119],[1494,8,1494,17],[1494,18,1494,23],[1494,24,1494,29],[1494,30,1494,33],[1494,34,1494,39],[1494,40,1494,48],[1494,49,1494,54],[1494,55,1494,58],[1494,59,1494,69],[1494,70,1494,73],[1494,74,1494,77],[1494,78,1494,81],[1494,82,1494,86],[1494,87,1494,91],[1494,92,1494,95],[1494,96,1494,99],[1494,100,1494,103],[1494,104,1494,107],[1494,108,1494,111],[1494,112,1494,115],[1494,116,1494,119],[1495,8,1495,17],[1495,18,1495,23],[1495,24,1495,29],[1495,30,1495,33],[1495,34,1495,39],[1495,40,1495,48],[1495,49,1495,54],[1495,55,1495,58],[1495,59,1495,69],[1495,70,1495,73],[1495,74,1495,77],[1495,78,1495,81],[1495,82,1495,86],[1495,87,1495,91],[1495,92,1495,95],[1495,96,1495,99],[1495,100,1495,103],[1495,104,1495,107],[1495,108,1495,111],[1495,112,1495,115],[1495,116,1495,119],[1492,8,1492,17],[1492,18,1492,23],[1492,24,1492,29],[1492,30,1492,33],[1492,34,1492,39],[1492,40,1492,48],[1492,49,1492,54],[1492,55,1492,58],[1492,59,1492,69],[1492,70,1492,73],[1492,74,1492,77],[1492,78,1492,81],[1492,82,1492,86],[1492,87,1492,91],[1492,92,1492,95],[1492,96,1492,99],[1492,100,1492,103],[1492,104,1492,107],[1492,108,1492,111],[1492,112,1492,115],[1492,116,1492,119],[1493,8,1493,17],[1493,18,1493,23],[1493,24,1493,29],[1493,30,1493,33],[1493,34,1493,39],[1493,40,1493,48],[1493,49,1493,54],[1493,55,1493,58],[1493,59,1493,69],[1493,70,1493,73],[1493,74,1493,77],[1493,78,1493,81],[1493,82,1493,86],[1493,87,1493,91],[1493,92,1493,95],[1493,96,1493,99],[1493,100,1493,103],[1493,104,1493,107],[1493,108,1493,111],[1493,112,1493,115],[1493,116,1493,119],[1490,8,1490,17],[1490,18,1490,23],[1490,24,1490,29],[1490,30,1490,33],[1490,34,1490,39],[1490,40,1490,48],[1490,49,1490,54],[1490,55,1490,58],[1490,59,1490,69],[1490,70,1490,73],[1490,74,1490,77],[1490,78,1490,81],[1490,82,1490,86],[1490,87,1490,91],[1490,92,1490,95],[1490,96,1490,99],[1490,100,1490,103],[1490,104,1490,107],[1490,108,1490,111],[1490,112,1490,115],[1490,116,1490,119],[1491,8,1491,17],[1491,18,1491,23],[1491,24,1491,29],[1491,30,1491,33],[1491,34,1491,39],[1491,40,1491,48],[1491,49,1491,54],[1491,55,1491,58],[1491,59,1491,69],[1491,70,1491,73],[1491,74,1491,77],[1491,78,1491,81],[1491,82,1491,86],[1491,87,1491,91],[1491,92,1491,95],[1491,96,1491,99],[1491,100,1491,103],[1491,104,1491,107],[1491,108,1491,111],[1491,112,1491,115],[1491,116,1491,119],[1488,8,1488,17],[1488,18,1488,23],[1488,24,1488,29],[1488,30,1488,33],[1488,34,1488,39],[1488,40,1488,48],[1488,49,1488,54],[1488,55,1488,58],[1488,59,1488,69],[1488,70,1488,73],[1488,74,1488,77],[1488,78,1488,81],[1488,82,1488,86],[1488,87,1488,91],[1488,92,1488,95],[1488,96,1488,99],[1488,100,1488,103],[1488,104,1488,107],[1488,108,1488,111],[1488,112,1488,115],[1488,116,1488,119],[1489,8,1489,17],[1489,18,1489,23],[1489,24,1489,29],[1489,30,1489,33],[1489,34,1489,39],[1489,40,1489,48],[1489,49,1489,54],[1489,55,1489,58],[1489,59,1489,69],[1489,70,1489,73],[1489,74,1489,77],[1489,78,1489,81],[1489,82,1489,86],[1489,87,1489,91],[1489,92,1489,95],[1489,96,1489,99],[1489,100,1489,103],[1489,104,1489,107],[1489,108,1489,111],[1489,112,1489,115],[1489,116,1489,119],[1486,8,1486,17],[1486,18,1486,23],[1486,24,1486,29],[1486,30,1486,33],[1486,34,1486,39],[1486,40,1486,48],[1486,49,1486,54],[1486,55,1486,58],[1486,59,1486,69],[1486,70,1486,73],[1486,74,1486,77],[1486,78,1486,81],[1486,82,1486,86],[1486,87,1486,91],[1486,92,1486,95],[1486,96,1486,99],[1486,100,1486,103],[1486,104,1486,107],[1486,108,1486,111],[1486,112,1486,115],[1486,116,1486,119],[1487,8,1487,17],[1487,18,1487,23],[1487,24,1487,29],[1487,30,1487,33],[1487,34,1487,39],[1487,40,1487,48],[1487,49,1487,54],[1487,55,1487,58],[1487,59,1487,69],[1487,70,1487,73],[1487,74,1487,77],[1487,78,1487,81],[1487,82,1487,86],[1487,87,1487,91],[1487,92,1487,95],[1487,96,1487,99],[1487,100,1487,103],[1487,104,1487,107],[1487,108,1487,111],[1487,112,1487,115],[1487,116,1487,119],[1484,8,1484,17],[1484,18,1484,23],[1484,24,1484,29],[1484,30,1484,33],[1484,34,1484,39],[1484,40,1484,48],[1484,49,1484,54],[1484,55,1484,58],[1484,59,1484,69],[1484,70,1484,73],[1484,74,1484,77],[1484,78,1484,81],[1484,82,1484,86],[1484,87,1484,91],[1484,92,1484,95],[1484,96,1484,99],[1484,100,1484,103],[1484,104,1484,107],[1484,108,1484,111],[1484,112,1484,115],[1484,116,1484,119],[1485,8,1485,17],[1485,18,1485,23],[1485,24,1485,29],[1485,30,1485,33],[1485,34,1485,39],[1485,40,1485,48],[1485,49,1485,54],[1485,55,1485,58],[1485,59,1485,69],[1485,70,1485,73],[1485,74,1485,77],[1485,78,1485,81],[1485,82,1485,86],[1485,87,1485,91],[1485,92,1485,95],[1485,96,1485,99],[1485,100,1485,103],[1485,104,1485,107],[1485,108,1485,111],[1485,112,1485,115],[1485,116,1485,119],[1482,8,1482,17],[1482,18,1482,23],[1482,24,1482,29],[1482,30,1482,33],[1482,34,1482,39],[1482,40,1482,48],[1482,49,1482,54],[1482,55,1482,58],[1482,59,1482,69],[1482,70,1482,73],[1482,74,1482,77],[1482,78,1482,81],[1482,82,1482,86],[1482,87,1482,91],[1482,92,1482,95],[1482,96,1482,99],[1482,100,1482,103],[1482,104,1482,107],[1482,108,1482,111],[1482,112,1482,115],[1482,116,1482,119],[1483,8,1483,17],[1483,18,1483,23],[1483,24,1483,29],[1483,30,1483,33],[1483,34,1483,39],[1483,40,1483,48],[1483,49,1483,54],[1483,55,1483,58],[1483,59,1483,69],[1483,70,1483,73],[1483,74,1483,77],[1483,78,1483,81],[1483,82,1483,86],[1483,87,1483,91],[1483,92,1483,95],[1483,96,1483,99],[1483,100,1483,103],[1483,104,1483,107],[1483,108,1483,111],[1483,112,1483,115],[1483,116,1483,119],[1480,8,1480,17],[1480,18,1480,23],[1480,24,1480,29],[1480,30,1480,33],[1480,34,1480,39],[1480,40,1480,48],[1480,49,1480,54],[1480,55,1480,58],[1480,59,1480,69],[1480,70,1480,73],[1480,74,1480,77],[1480,78,1480,81],[1480,82,1480,86],[1480,87,1480,91],[1480,92,1480,95],[1480,96,1480,99],[1480,100,1480,103],[1480,104,1480,107],[1480,108,1480,111],[1480,112,1480,115],[1480,116,1480,119],[1481,8,1481,17],[1481,18,1481,23],[1481,24,1481,29],[1481,30,1481,33],[1481,34,1481,39],[1481,40,1481,48],[1481,49,1481,54],[1481,55,1481,58],[1481,59,1481,69],[1481,70,1481,73],[1481,74,1481,77],[1481,78,1481,81],[1481,82,1481,86],[1481,87,1481,91],[1481,92,1481,95],[1481,96,1481,99],[1481,100,1481,103],[1481,104,1481,107],[1481,108,1481,111],[1481,112,1481,115],[1481,116,1481,119],[1478,8,1478,17],[1478,18,1478,23],[1478,24,1478,29],[1478,30,1478,33],[1478,34,1478,39],[1478,40,1478,48],[1478,49,1478,54],[1478,55,1478,58],[1478,59,1478,69],[1478,70,1478,73],[1478,74,1478,77],[1478,78,1478,81],[1478,82,1478,86],[1478,87,1478,91],[1478,92,1478,95],[1478,96,1478,99],[1478,100,1478,103],[1478,104,1478,107],[1478,108,1478,111],[1478,112,1478,115],[1478,116,1478,119],[1479,8,1479,17],[1479,18,1479,23],[1479,24,1479,29],[1479,30,1479,33],[1479,34,1479,39],[1479,40,1479,48],[1479,49,1479,54],[1479,55,1479,58],[1479,59,1479,69],[1479,70,1479,73],[1479,74,1479,77],[1479,78,1479,81],[1479,82,1479,86],[1479,87,1479,91],[1479,92,1479,95],[1479,96,1479,99],[1479,100,1479,103],[1479,104,1479,107],[1479,108,1479,111],[1479,112,1479,115],[1479,116,1479,119],[1476,8,1476,17],[1476,18,1476,23],[1476,24,1476,29],[1476,30,1476,33],[1476,34,1476,39],[1476,40,1476,48],[1476,49,1476,54],[1476,55,1476,58],[1476,59,1476,69],[1476,70,1476,73],[1476,74,1476,77],[1476,78,1476,81],[1476,82,1476,86],[1476,87,1476,91],[1476,92,1476,95],[1476,96,1476,99],[1476,100,1476,103],[1476,104,1476,107],[1476,108,1476,111],[1476,112,1476,115],[1476,116,1476,119],[1477,8,1477,17],[1477,18,1477,23],[1477,24,1477,29],[1477,30,1477,33],[1477,34,1477,39],[1477,40,1477,48],[1477,49,1477,54],[1477,55,1477,58],[1477,59,1477,69],[1477,70,1477,73],[1477,74,1477,77],[1477,78,1477,81],[1477,82,1477,86],[1477,87,1477,91],[1477,92,1477,95],[1477,96,1477,99],[1477,100,1477,103],[1477,104,1477,107],[1477,108,1477,111],[1477,112,1477,115],[1477,116,1477,119],[1474,8,1474,17],[1474,18,1474,23],[1474,24,1474,29],[1474,30,1474,33],[1474,34,1474,39],[1474,40,1474,48],[1474,49,1474,54],[1474,55,1474,58],[1474,59,1474,69],[1474,70,1474,73],[1474,74,1474,77],[1474,78,1474,81],[1474,82,1474,86],[1474,87,1474,91],[1474,92,1474,95],[1474,96,1474,99],[1474,100,1474,103],[1474,104,1474,107],[1474,108,1474,111],[1474,112,1474,115],[1474,116,1474,119],[1475,8,1475,17],[1475,18,1475,23],[1475,24,1475,29],[1475,30,1475,33],[1475,34,1475,39],[1475,40,1475,48],[1475,49,1475,54],[1475,55,1475,58],[1475,59,1475,69],[1475,70,1475,73],[1475,74,1475,77],[1475,78,1475,81],[1475,82,1475,86],[1475,87,1475,91],[1475,92,1475,95],[1475,96,1475,99],[1475,100,1475,103],[1475,104,1475,107],[1475,108,1475,111],[1475,112,1475,115],[1475,116,1475,119],[1472,8,1472,17],[1472,18,1472,23],[1472,24,1472,29],[1472,30,1472,33],[1472,34,1472,39],[1472,40,1472,48],[1472,49,1472,54],[1472,55,1472,58],[1472,59,1472,69],[1472,70,1472,73],[1472,74,1472,77],[1472,78,1472,81],[1472,82,1472,86],[1472,87,1472,91],[1472,92,1472,95],[1472,96,1472,99],[1472,100,1472,103],[1472,104,1472,107],[1472,108,1472,111],[1472,112,1472,115],[1472,116,1472,119],[1473,8,1473,17],[1473,18,1473,23],[1473,24,1473,29],[1473,30,1473,33],[1473,34,1473,39],[1473,40,1473,48],[1473,49,1473,54],[1473,55,1473,58],[1473,59,1473,69],[1473,70,1473,73],[1473,74,1473,77],[1473,78,1473,81],[1473,82,1473,86],[1473,87,1473,91],[1473,92,1473,95],[1473,96,1473,99],[1473,100,1473,103],[1473,104,1473,107],[1473,108,1473,111],[1473,112,1473,115],[1473,116,1473,119],[1470,8,1470,17],[1470,18,1470,23],[1470,24,1470,29],[1470,30,1470,33],[1470,34,1470,39],[1470,40,1470,48],[1470,49,1470,54],[1470,55,1470,58],[1470,59,1470,69],[1470,70,1470,73],[1470,74,1470,77],[1470,78,1470,81],[1470,82,1470,86],[1470,87,1470,91],[1470,92,1470,95],[1470,96,1470,99],[1470,100,1470,103],[1470,104,1470,107],[1470,108,1470,111],[1470,112,1470,115],[1470,116,1470,119],[1471,8,1471,17],[1471,18,1471,23],[1471,24,1471,29],[1471,30,1471,33],[1471,34,1471,39],[1471,40,1471,48],[1471,49,1471,54],[1471,55,1471,58],[1471,59,1471,69],[1471,70,1471,73],[1471,74,1471,77],[1471,78,1471,81],[1471,82,1471,86],[1471,87,1471,91],[1471,92,1471,95],[1471,96,1471,99],[1471,100,1471,103],[1471,104,1471,107],[1471,108,1471,111],[1471,112,1471,115],[1471,116,1471,119],[1468,8,1468,17],[1468,18,1468,23],[1468,24,1468,29],[1468,30,1468,33],[1468,34,1468,39],[1468,40,1468,48],[1468,49,1468,54],[1468,55,1468,58],[1468,59,1468,69],[1468,70,1468,73],[1468,74,1468,77],[1468,78,1468,81],[1468,82,1468,86],[1468,87,1468,91],[1468,92,1468,95],[1468,96,1468,99],[1468,100,1468,103],[1468,104,1468,107],[1468,108,1468,111],[1468,112,1468,115],[1468,116,1468,119],[1469,8,1469,17],[1469,18,1469,23],[1469,24,1469,29],[1469,30,1469,33],[1469,34,1469,39],[1469,40,1469,48],[1469,49,1469,54],[1469,55,1469,58],[1469,59,1469,69],[1469,70,1469,73],[1469,74,1469,77],[1469,78,1469,81],[1469,82,1469,86],[1469,87,1469,91],[1469,92,1469,95],[1469,96,1469,99],[1469,100,1469,103],[1469,104,1469,107],[1469,108,1469,111],[1469,112,1469,115],[1469,116,1469,119],[1466,8,1466,17],[1466,18,1466,23],[1466,24,1466,29],[1466,30,1466,33],[1466,34,1466,39],[1466,40,1466,48],[1466,49,1466,54],[1466,55,1466,58],[1466,59,1466,69],[1466,70,1466,73],[1466,74,1466,77],[1466,78,1466,81],[1466,82,1466,86],[1466,87,1466,91],[1466,92,1466,95],[1466,96,1466,99],[1466,100,1466,103],[1466,104,1466,107],[1466,108,1466,111],[1466,112,1466,115],[1466,116,1466,119],[1467,8,1467,17],[1467,18,1467,23],[1467,24,1467,29],[1467,30,1467,33],[1467,34,1467,39],[1467,40,1467,48],[1467,49,1467,54],[1467,55,1467,58],[1467,59,1467,69],[1467,70,1467,73]],"merged_total":31601,"flags":["merged_cut"]}
[null,null,null,null,null,null,null,null,"Only two pages are unhidden, if you need additional pages to input data, press button(s) on the right to unhide additional pages. Please, only unhide pages as needed."]
[null,null,null,null,null,null,null,null,"Jurisdiction Name:",null,null,null,null,null,null,null,null,null,null,null,{"$f":"IF('Public Service COMPLETION'!AB2>0,'Public Service COMPLETION'!AB2,\"\")","v":""},null,null,null,null,null,null,null,null,null,null,null,null,null,null,null,null,null,null,null,null,null,null,null,null,null,null,null,null,null,null,"Contract #",null,null,null,null,null,null,{"$f":"IF('Public Service COMPLETION'!BN2>0,'Public Service COMPLETION'!BN2,\"\")","v":""},null,null,null,null,null,null,null,null,null,null,null,null,null,null,null,null,null,null,null,null,null,null,null,null,null,null,null,null,null,null,null,null,null,null,null,null,null,null,null,null,null,null,null,null,null,null,null,null,null,null,null,null,null,null,null,null,null,null,null,null,null,null,"Page  1"]
[]
[]
[]
[null,null,null,null,null,null,null,null,"DIRECT BENEFIT DATA BY PARTICIPANT (Fill in ALL fields for every participant added below (LMC & LMH)",null,null,null,null,null,null,null,null,null,null,null,null,null,null,null,null,null,null,null,null,null,null,null,null,null,null,null,null,null,null,null,null,null,null,null,null,null,null,null,null,null,null,null,null,null,null,null,null,null,null,null,null,null,null,null,null,null,null,null,null,null,null,null,null,null,{"$f":"IF('Public Service SET UP'!N85=\"LMC - Low/Mod limited clientele benefit\",\"REQUIRED\",IF('Public Service SET UP'!N85='Public Service SET UP'!CM70,\"REQUIRED\",\"NOT REQUIRED\"))","v":"NOT REQUIRED"}]
[]
[]
[]
[null,null,null,null,null,null,null,null,null,null,null,null,null,null,null,null,null,null,null,null,null,null,null,null,null,null,null,null,null,null,null,null,null,null,null,null,null,null,null,null,null,null,null,null,null,null,null,null,null,null,null,null,null,null,null,null,null,null,null,null,null,null,null,null,null,null,null,null,null,null,null,null,null,null,null,null,null,null,null,null,null,null,null,null,null,null,null,null,null,null,null,null,{"$f":"IF(AND('Public Service SET UP'!N85='Public Service SET UP'!CM81,'Public Service SET UP'!AK85='Public Service SET UP'!CM84),\"REQUIRED\",\"NOT REQUIRED\")","v":"NOT REQUIRED"}]
[null,null,null,null,null,null,null,null,{"$f":"IF('Public Service SET UP'!N85='Public Service SET UP'!CM81,\"REQUIRED\",IF('Public Service SET UP'!N85='Public Service SET UP'!CM70,\"REQUIRED\",\"NOT REQUIRED\"))","v":"NOT REQUIRED"},null,null,null,null,null,null,null,null,null,null,null,null,null,null,null,null,null,null,null,null,null,null,null,null,null,null,null,null,null,null,null,null,null,null,null,null,null,null,null,null,null,null,null,null,null,null,null,null,null,null,null,null,null,null,null,null,null,null,null,null,null,null,null,null,null,null,null,null,null,null,null,null,null,{"$f":"IF(AND('Public Service SET UP'!N85='Public Service SET UP'!CM81,'Public Service SET UP'!AK85='Public Service SET UP'!CM80),\"REQUIRED\",\"NOT REQUIRED\")","v":"NOT REQUIRED"},null,null,null,null,null,null,null,null,null,null,null,null,null,{"$f":"IF(AND('Public Service SET UP'!N85='Public Service SET UP'!CM70,'Public Service SET UP'!AK85='Public Service SET UP'!CM85),\"REQUIRED\",\"NOT REQUIRED\")","v":"NOT REQUIRED"},null,null,null,null,null,null,null,null,null,null,null,{"$f":"IF(AND('Public Service SET UP'!N85='Public Service SET UP'!CM70,'Public Service SET UP'!AK85='Public Service SET UP'!CM87),\"REQUIRED\",\"NOT REQUIRED\")","v":"NOT REQUIRED"}]
[null,null,null,null,null,null,null,null,"Participant Name or Code",null,null,null,null,null,null,null,null,null,"Home Address within Service Area?",null,null,null,null,null,"Participant Type",null,null,null,null,null,"Total Household Size",null,null,null,"Annual Gross Income for HH - All",null,null,null,null,null,"% of Area Median Income",null,null,null,null,null,null,null,null,"Access to a Service or Benefit",null,null,null,null,null,"Hispanic",null,null,null,"Race / Ethnicity",null,null,null,null,null,null,null,null,null,null,"Veteran",null,null,null,"Is beneficiary disable?",null,null,null,"Is head of houseld female?",null,null,null,"Homeless Person given overnight shelter?",null,null,null,null,"Bed created for overnight shelter?",null,null,null,null,"Person placed in a job?",null,null,null,"First Time Homebuyer?",null,null,null,"Receiving Housing Counseling?",null,null,null,"Down Payment Assistance?",null,null,null,"Short-term Rental Assistance?",null,null,null,"Previously Homeless?",null,null,null," Chronically homeless?"]
[null,null,null,null,null,null,null,1,null,null,null,null,null,null,null,null,null,null,"Select Option",null,null,null,null,null,"Select Option",null,null,null,null,null,null,null,null,null,null,null,null,null,null,null,"Select Option",null,null,null,null,null,null,null,null,"Select Option",null,null,null,null,null,"Select Option",null,null,null,"Select Option",null,null,null,null,null,null,null,null,null,null,"Select Option",null,null,null,"Select Option",null,null,null,"Select Option",null,null,null,"Select Option",null,null,null,null,"Select Option",null,null,null,null,"Select Option",null,null,null,"Select Option",null,null,null,"Select Option",null,null,null,"Select Option",null,null,null,"Select Option",null,null,null,"Select Option",null,null,null,"Select Option"]
[null,null,null,null,null,null,null,2]
[null,null,null,null,null,null,null,3]
[null,null,null,null,null,null,null,4]
[null,null,null,null,null,null,null,5]
[null,null,null,null,null,null,null,6]
[null,null,null,null,null,null,null,7]
[null,null,null,null,null,null,null,8]
[null,null,null,null,null,null,null,9]
[null,null,null,null,null,null,null,10]
[null,null,null,null,null,null,null,11]
[null,null,null,null,null,null,null,12]
[null,null,null,null,null,null,null,13]
[null,null,null,null,null,null,null,14]
[null,null,null,null,null,null,null,15]
[null,null,null,null,null,null,null,16]
[null,null,null,null,null,null,null,17]
[null,null,null,null,null,null,null,18]
[null,null,null,null,null,null,null,19]
[null,null,null,null,null,null,null,20,null,null,null,null,null,null,null,null,null,null,null,null,null,null,null,null,null,null,null,null,null,null,null,null,null,null,null,null,null,null,null,null,null,null,null,null,null,null,null,null,null,null,null,null,null,null,null,null,null,null,null,null,null,null,null,null,null,null,null,null,null,null,null,null,null,null,null,null,null,null,null,null,null,null,null,null,null,null,null,null,null,null,null,null,null,null,null,null,null,null,null,null,null,null,null,null,null,null,null,null,null,null,null,null,null,null,null,null,null,null,null,null,null,"Page  2"]
[null,null,null,null,null,null,null,21]
[null,null,null,null,null,null,null,22]
[null,null,null,null,null,null,null,23]
[null,null,null,null,null,null,null,24]
[null,null,null,null,null,null,null,25]
[null,null,null,null,null,null,null,26]
[null,null,null,null,null,null,null,27]
[null,null,null,null,null,null,null,28]
[null,null,null,null,null,null,null,29]
[null,null,null,null,null,null,null,30]
[null,null,null,null,null,null,null,31]
[null,null,null,null,null,null,null,32]
[null,null,null,null,null,null,null,33]
[null,null,null,null,null,null,null,34]
[null,null,null,null,null,null,null,35]
[null,null,null,null,null,null,null,36]
[null,null,null,null,null,null,null,37]
[null,null,null,null,null,null,null,38]
[null,null,null,null,null,null,null,39]
[null,null,null,null,null,null,null,40]
[null,null,null,null,null,null,null,41]
[null,null,null,null,null,null,null,42]
[null,null,null,null,null,null,null,43,null,null,null,null,null,null,null,null,null,null,null,null,null,null,null,null,null,null,null,null,null,null,null,null,null,null,null,null,null,null,null,null,null,null,null,null,null,null,null,null,null,null,null,null,null,null,null,null,null,null,null,null,null,null,null,null,null,null,null,null,null,null,null,null,null,null,null,null,null,null,null,null,null,null,null,null,null,null,null,null,null,null,null,null,null,null,null,null,null,null,null,null,null,null,null,null,null,null,null,null,null,null,null,null,null,null,null,null,null,null,null,null,null,"Page  3"]
[null,null,null,null,null,null,null,44]
[null,null,null,null,null,null,null,45]
[null,null,null,null,null,null,null,46]
[null,null,null,null,null,null,null,47]
[null,null,null,null,null,null,null,48]
[null,null,null,null,null,null,null,49]
[null,null,null,null,null,null,null,50]
[null,null,null,null,null,null,null,51]
[null,null,null,null,null,null,null,52]
[null,null,null,null,null,null,null,53]
[null,null,null,null,null,null,null,54]
[null,null,null,null,null,null,null,55]
[null,null,null,null,null,null,null,56]
[null,null,null,null,null,null,null,57]
[null,null,null,null,null,null,null,58]
[null,null,null,null,null,null,null,59]
[null,null,null,null,null,null,null,60]
[null,null,null,null,null,null,null,61]
[null,null,null,null,null,null,null,62]
[null,null,null,null,null,null,null,63]
[null,null,null,null,null,null,null,64]
[null,null,null,null,null,null,null,65]
[null,null,null,null,null,null,null,66,null,null,null,null,null,null,null,null,null,null,null,null,null,null,null,null,null,null,null,null,null,null,null,null,null,null,null,null,null,null,null,null,null,null,null,null,null,null,null,null,null,null,null,null,null,null,null,null,null,null,null,null,null,null,null,null,null,null,null,null,null,null,null,null,null,null,null,null,null,null,null,null,null,null,null,null,null,null,null,null,null,null,null,null,null,null,null,null,null,null,null,null,null,null,null,null,null,null,null,null,null,null,null,null,null,null,null,null,null,null,null,null,null,"Page  4"]
[null,null,null,null,null,null,null,67]
[null,null,null,null,null,null,null,68]
[null,null,null,null,null,null,null,69]
[null,null,null,null,null,null,null,70]
[null,null,null,null,null,null,null,71]
[null,null,null,null,null,null,null,72]
[null,null,null,null,null,null,null,73]
[null,null,null,null,null,null,null,74]
[null,null,null,null,null,null,null,75]
[null,null,null,null,null,null,null,76]
[null,null,null,null,null,null,null,77]
[null,null,null,null,null,null,null,78]
[null,null,null,null,null,null,null,79]
[null,null,null,null,null,null,null,80]
[null,null,null,null,null,null,null,81]
[null,null,null,null,null,null,null,82]
[null,null,null,null,null,null,null,83]
[null,null,null,null,null,null,null,84]
[null,null,null,null,null,null,null,85]
[null,null,null,null,null,null,null,86]
[null,null,null,null,null,null,null,87]
[null,null,null,null,null,null,null,88]
[null,null,null,null,null,null,null,89,null,null,null,null,null,null,null,null,null,null,null,null,null,null,null,null,null,null,null,null,null,null,null,null,null,null,null,null,null,null,null,null,null,null,null,null,null,null,null,null,null,null,null,null,null,null,null,null,null,null,null,null,null,null,null,null,null,null,null,null,null,null,null,null,null,null,null,null,null,null,null,null,null,null,null,null,null,null,null,null,null,null,null,null,null,null,null,null,null,null,null,null,null,null,null,null,null,null,null,null,null,null,null,null,null,null,null,null,null,null,null,null,null,"Page  5"]
[null,null,null,null,null,null,null,90]
[null,null,null,null,null,null,null,91]
[null,null,null,null,null,null,null,92]
[null,null,null,null,null,null,null,93]
[null,null,null,null,null,null,null,94]
[null,null,null,null,null,null,null,95]
[null,null,null,null,null,null,null,96]
[null,null,null,null,null,null,null,97]
[null,null,null,null,null,null,null,98]
[null,null,null,null,null,null,null,99]
[null,null,null,null,null,null,null,100]
[null,null,null,null,null,null,null,101]
[null,null,null,null,null,null,null,102]
[null,null,null,null,null,null,null,103]
[null,null,null,null,null,null,null,104]
[null,null,null,null,null,null,null,105]
[null,null,null,null,null,null,null,106]
[null,null,null,null,null,null,null,107]
[null,null,null,null,null,null,null,108]
[null,null,null,null,null,null,null,109]
[null,null,null,null,null,null,null,110]
[null,null,null,null,null,null,null,111]
[null,null,null,null,null,null,null,112,null,null,null,null,null,null,null,null,null,null,null,null,null,null,null,null,null,null,null,null,null,null,null,null,null,null,null,null,null,null,null,null,null,null,null,null,null,null,null,null,null,null,null,null,null,null,null,null,null,null,null,null,null,null,null,null,null,null,null,null,null,null,null,null,null,null,null,null,null,null,null,null,null,null,null,null,null,null,null,null,null,null,null,null,null,null,null,null,null,null,null,null,null,null,null,null,null,null,null,null,null,null,null,null,null,null,null,null,null,null,null,null,null,"Page  6"]
[null,null,null,null,null,null,null,113]
[null,null,null,null,null,null,null,114]
[null,null,null,null,null,null,null,115]
[null,null,null,null,null,null,null,116]
[null,null,null,null,null,null,null,117]
[null,null,null,null,null,null,null,118]
[null,null,null,null,null,null,null,119]
[null,null,null,null,null,null,null,120]
[null,null,null,null,null,null,null,121]
[null,null,null,null,null,null,null,122]
[null,null,null,null,null,null,null,123]
[null,null,null,null,null,null,null,124]
[null,null,null,null,null,null,null,125]
[null,null,null,null,null,null,null,126]
[null,null,null,null,null,null,null,127]
[null,null,null,null,null,null,null,128]
[null,null,null,null,null,null,null,129]
[null,null,null,null,null,null,null,130]
[null,null,null,null,null,null,null,131]
[null,null,null,null,null,null,null,132]
[null,null,null,null,null,null,null,133]
[null,null,null,null,null,null,null,134]
[null,null,null,null,null,null,null,135,null,null,null,null,null,null,null,null,null,null,null,null,null,null,null,null,null,null,null,null,null,null,null,null,null,null,null,null,null,null,null,null,null,null,null,null,null,null,null,null,null,null,null,null,null,null,null,null,null,null,null,null,null,null,null,null,null,null,null,null,null,null,null,null,null,null,null,null,null,null,null,null,null,null,null,null,null,null,null,null,null,null,null,null,null,null,null,null,null,null,null,null,null,null,null,null,null,null,null,null,null,null,null,null,null,null,null,null,null,null,null,null,null,"Page  7"]
[null,null,null,null,null,null,null,136]
[null,null,null,null,null,null,null,137]
[null,null,null,null,null,null,null,138]
[null,null,null,null,null,null,null,139]
[null,null,null,null,null,null,null,140]
[null,null,null,null,null,null,null,141]
[null,null,null,null,null,null,null,142]
[null,null,null,null,null,null,null,143]
[null,null,null,null,null,null,null,144]
[null,null,null,null,null,null,null,145]
[null,null,null,null,null,null,null,146]
[null,null,null,null,null,null,null,147]
[null,null,null,null,null,null,null,148]
[null,null,null,null,null,null,null,149]
[null,null,null,null,null,null,null,150]
[null,null,null,null,null,null,null,151]
[null,null,null,null,null,null,null,152]
[null,null,null,null,null,null,null,153]
[null,null,null,null,null,null,null,154]
[null,null,null,null,null,null,null,155]
[null,null,null,null,null,null,null,156]
[null,null,null,null,null,null,null,157]
[null,null,null,null,null,null,null,158,null,null,null,null,null,null,null,null,null,null,null,null,null,null,null,null,null,null,null,null,null,null,null,null,null,null,null,null,null,null,null,null,null,null,null,null,null,null,null,null,null,null,null,null,null,null,null,null,null,null,null,null,null,null,null,null,null,null,null,null,null,null,null,null,null,null,null,null,null,null,null,null,null,null,null,null,null,null,null,null,null,null,null,null,null,null,null,null,null,null,null,null,null,null,null,null,null,null,null,null,null,null,null,null,null,null,null,null,null,null,null,null,null,"Page  8"]
[null,null,null,null,null,null,null,159]
[null,null,null,null,null,null,null,160]
[null,null,null,null,null,null,null,161]
[null,null,null,null,null,null,null,162]
[null,null,null,null,null,null,null,163]
[null,null,null,null,null,null,null,164]
[null,null,null,null,null,null,null,165]
[null,null,null,null,null,null,null,166]
[null,null,null,null,null,null,null,167]
[null,null,null,null,null,null,null,168]
[null,null,null,null,null,null,null,169]
[null,null,null,null,null,null,null,170]
[null,null,null,null,null,null,null,171]
[null,null,null,null,null,null,null,172]
[null,null,null,null,null,null,null,173]
[null,null,null,null,null,null,null,174]
[null,null,null,null,null,null,null,175]
[null,null,null,null,null,null,null,176]
[null,null,null,null,null,null,null,177]
[null,null,null,null,null,null,null,178]
[null,null,null,null,null,null,null,179]
[null,null,null,null,null,null,null,180]
[null,null,null,null,null,null,null,181,null,null,null,null,null,null,null,null,null,null,null,null,null,null,null,null,null,null,null,null,null,null,null,null,null,null,null,null,null,null,null,null,null,null,null,null,null,null,null,null,null,null,null,null,null,null,null,null,null,null,null,null,null,null,null,null,null,null,null,null,null,null,null,null,null,null,null,null,null,null,null,null,null,null,null,null,null,null,null,null,null,null,null,null,null,null,null,null,null,null,null,null,null,null,null,null,null,null,null,null,null,null,null,null,null,null,null,null,null,null,null,null,null,"Page  9"]
[null,null,null,null,null,null,null,182]
[null,null,null,null,null,null,null,183]
[null,null,null,null,null,null,null,184]
[null,null,null,null,null,null,null,185]
[null,null,null,null,null,null,null,186]
[null,null,null,null,null,null,null,187]
[null,null,null,null,null,null,null,188]
[null,null,null,null,null,null,null,189]
[null,null,null,null,null,null,null,190]
[null,null,null,null,null,null,null,191]
[null,null,null,null,null,null,null,192]
[null,null,null,null,null,null,null,193]
[null,null,null,null,null,null,null,194]
[null,null,null,null,null,null,null,195]
[null,null,null,null,null,null,null,196]
[null,null,null,null,null,null,null,197]
[null,null,null,null,null,null,null,198]
[null,null,null,null,null,null,null,199]
[null,null,null,null,null,null,null,200]
[null,null,null,null,null,null,null,201]
[null,null,null,null,null,null,null,202]
[null,null,null,null,null,null,null,203]
[null,null,null,null,null,null,null,204,null,null,null,null,null,null,null,null,null,null,null,null,null,null,null,null,null,null,null,null,null,null,null,null,null,null,null,null,null,null,null,null,null,null,null,null,null,null,null,null,null,null,null,null,null,null,null,null,null,null,null,null,null,null,null,null,null,null,null,null,null,null,null,null,null,null,null,null,null,null,null,null,null,null,null,null,null,null,null,null,null,null,null,null,null,null,null,null,null,null,null,null,null,null,null,null,null,null,null,null,null,null,null,null,null,null,null,null,null,null,null,null,null,"Page  10"]
[null,null,null,null,null,null,null,205]
[null,null,null,null,null,null,null,206]
[null,null,null,null,null,null,null,207]
[null,null,null,null,null,null,null,208]
[null,null,null,null,null,null,null,209]
[null,null,null,null,null,null,null,210]
[null,null,null,null,null,null,null,211]
[null,null,null,null,null,null,null,212]
[null,null,null,null,null,null,null,213]
[null,null,null,null,null,null,null,214]
[null,null,null,null,null,null,null,215]
[null,null,null,null,null,null,null,216]
[null,null,null,null,null,null,null,217]
[null,null,null,null,null,null,null,218]
[null,null,null,null,null,null,null,219]
[null,null,null,null,null,null,null,220]
[null,null,null,null,null,null,null,221]
[null,null,null,null,null,null,null,222]
[null,null,null,null,null,null,null,223]
[null,null,null,null,null,null,null,224]
[null,null,null,null,null,null,null,225]
[null,null,null,null,null,null,null,226]
[null,null,null,null,null,null,null,227,null,null,null,null,null,null,null,null,null,null,null,null,null,null,null,null,null,null,null,null,null,null,null,null,null,null,null,null,null,null,null,null,null,null,null,null,null,null,null,null,null,null,null,null,null,null,null,null,null,null,null,null,null,null,null,null,null,null,null,null,null,null,null,null,null,null,null,null,null,null,null,null,null,null,null,null,null,null,null,null,null,null,null,null,null,null,null,null,null,null,null,null,null,null,null,null,null,null,null,null,null,null,null,null,null,null,null,null,null,null,null,null,null,"Page  11"]
[null,null,null,null,null,null,null,228]
[null,null,null,null,null,null,null,229]
[null,null,null,null,null,null,null,230]
[null,null,null,null,null,null,null,231]
[null,null,null,null,null,null,null,232]
[null,null,null,null,null,null,null,233]
[null,null,null,null,null,null,null,234]
[null,null,null,null,null,null,null,235]
[null,null,null,null,null,null,null,236]
[null,null,null,null,null,null,null,237]
[null,null,null,null,null,null,null,238]
[null,null,null,null,null,null,null,239]
[null,null,null,null,null,null,null,240]
[null,null,null,null,null,null,null,241]
[null,null,null,null,null,null,null,242]
[null,null,null,null,null,null,null,243]
[null,null,null,null,null,null,null,244]
[null,null,null,null,null,null,null,245]
[null,null,null,null,null,null,null,246]
[null,null,null,null,null,null,null,247]
[null,null,null,null,null,null,null,248]
[null,null,null,null,null,null,null,249]
[null,null,null,null,null,null,null,250,null,null,null,null,null,null,null,null,null,null,null,null,null,null,null,null,null,null,null,null,null,null,null,null,null,null,null,null,null,null,null,null,null,null,null,null,null,null,null,null,null,null,null,null,null,null,null,null,null,null,null,null,null,null,null,null,null,null,null,null,null,null,null,null,null,null,null,null,null,null,null,null,null,null,null,null,null,null,null,null,null,null,null,null,null,null,null,null,null,null,null,null,null,null,null,null,null,null,null,null,null,null,null,null,null,null,null,null,null,null,null,null,null,"Page  12"]
[null,null,null,null,null,null,null,251]
[null,null,null,null,null,null,null,252]
[null,null,null,null,null,null,null,253]
[null,null,null,null,null,null,null,254]
[null,null,null,null,null,null,null,255]
[null,null,null,null,null,null,null,256]
[null,null,null,null,null,null,null,257]
[null,null,null,null,null,null,null,258]
[null,null,null,null,null,null,null,259]
[null,null,null,null,null,null,null,260]
[null,null,null,null,null,null,null,261]
[null,null,null,null,null,null,null,262]
[null,null,null,null,null,null,null,263]
[null,null,null,null,null,null,null,264]
[null,null,null,null,null,null,null,265]
[null,null,null,null,null,null,null,266]
[null,null,null,null,null,null,null,267]
[null,null,null,null,null,null,null,268]
[null,null,null,null,null,null,null,269]
[null,null,null,null,null,null,null,270]
[null,null,null,null,null,null,null,271]
[null,null,null,null,null,null,null,272]
[null,null,null,null,null,null,null,273,null,null,null,null,null,null,null,null,null,null,null,null,null,null,null,null,null,null,null,null,null,null,null,null,null,null,null,null,null,null,null,null,null,null,null,null,null,null,null,null,null,null,null,null,null,null,null,null,null,null,null,null,null,null,null,null,null,null,null,null,null,null,null,null,null,null,null,null,null,null,null,null,null,null,null,null,null,null,null,null,null,null,null,null,null,null,null,null,null,null,null,null,null,null,null,null,null,null,null,null,null,null,null,null,null,null,null,null,null,null,null,null,null,"Page  13"]
[null,null,null,null,null,null,null,274]
[null,null,null,null,null,null,null,275]
[null,null,null,null,null,null,null,276]
[null,null,null,null,null,null,null,277]
[null,null,null,null,null,null,null,278]
[null,null,null,null,null,null,null,279]
[null,null,null,null,null,null,null,280]
[null,null,null,null,null,null,null,281]
[null,null,null,null,null,null,null,282]
[null,null,null,null,null,null,null,283]
[null,null,null,null,null,null,null,284]
[null,null,null,null,null,null,null,285]
[null,null,null,null,null,null,null,286]
[null,null,null,null,null,null,null,287]
[null,null,null,null,null,null,null,288]
[null,null,null,null,null,null,null,289]
[null,null,null,null,null,null,null,290]
[null,null,null,null,null,null,null,291]
[null,null,null,null,null,null,null,292]
[null,null,null,null,null,null,null,293]
[null,null,null,null,null,null,null,294]
[null,null,null,null,null,null,null,295]
[null,null,null,null,null,null,null,296,null,null,null,null,null,null,null,null,null,null,null,null,null,null,null,null,null,null,null,null,null,null,null,null,null,null,null,null,null,null,null,null,null,null,null,null,null,null,null,null,null,null,null,null,null,null,null,null,null,null,null,null,null,null,null,null,null,null,null,null,null,null,null,null,null,null,null,null,null,null,null,null,null,null,null,null,null,null,null,null,null,null,null,null,null,null,null,null,null,null,null,null,null,null,null,null,null,null,null,null,null,null,null,null,null,null,null,null,null,null,null,null,null,"Page  14"]
[null,null,null,null,null,null,null,297]
[null,null,null,null,null,null,null,298]
[null,null,null,null,null,null,null,299]
[null,null,null,null,null,null,null,300]
[null,null,null,null,null,null,null,301]
[null,null,null,null,null,null,null,302]
[null,null,null,null,null,null,null,303]
[null,null,null,null,null,null,null,304]
[null,null,null,null,null,null,null,305]
[null,null,null,null,null,null,null,306]
[null,null,null,null,null,null,null,307]
[null,null,null,null,null,null,null,308]
[null,null,null,null,null,null,null,309]
[null,null,null,null,null,null,null,310]
[null,null,null,null,null,null,null,311]
[null,null,null,null,null,null,null,312]
[null,null,null,null,null,null,null,313]
[null,null,null,null,null,null,null,314]
[null,null,null,null,null,null,null,315]
[null,null,null,null,null,null,null,316]
[null,null,null,null,null,null,null,317]
[null,null,null,null,null,null,null,318]
[null,null,null,null,null,null,null,319,null,null,null,null,null,null,null,null,null,null,null,null,null,null,null,null,null,null,null,null,null,null,null,null,null,null,null,null,null,null,null,null,null,null,null,null,null,null,null,null,null,null,null,null,null,null,null,null,null,null,null,null,null,null,null,null,null,null,null,null,null,null,null,null,null,null,null,null,null,null,null,null,null,null,null,null,null,null,null,null,null,null,null,null,null,null,null,null,null,null,null,null,null,null,null,null,null,null,null,null,null,null,null,null,null,null,null,null,null,null,null,null,null,"Page  15"]
[null,null,null,null,null,null,null,320]
[null,null,null,null,null,null,null,321]
[null,null,null,null,null,null,null,322]
[null,null,null,null,null,null,null,323]
[null,null,null,null,null,null,null,324]
[null,null,null,null,null,null,null,325]
[null,null,null,null,null,null,null,326]
[null,null,null,null,null,null,null,327]
[null,null,null,null,null,null,null,328]
[null,null,null,null,null,null,null,329]
[null,null,null,null,null,null,null,330]
[null,null,null,null,null,null,null,331]
[null,null,null,null,null,null,null,332]
[null,null,null,null,null,null,null,333]
[null,null,null,null,null,null,null,334]
[null,null,null,null,null,null,null,335]
[null,null,null,null,null,null,null,336]
[null,null,null,null,null,null,null,337]
[null,null,null,null,null,null,null,338]
[null,null,null,null,null,null,null,339]
[null,null,null,null,null,null,null,340]
[null,null,null,null,null,null,null,341]
[null,null,null,null,null,null,null,342,null,null,null,null,null,null,null,null,null,null,null,null,null,null,null,null,null,null,null,null,null,null,null,null,null,null,null,null,null,null,null,null,null,null,null,null,null,null,null,null,null,null,null,null,null,null,null,null,null,null,null,null,null,null,null,null,null,null,null,null,null,null,null,null,null,null,null,null,null,null,null,null,null,null,null,null,null,null,null,null,null,null,null,null,null,null,null,null,null,null,null,null,null,null,null,null,null,null,null,null,null,null,null,null,null,null,null,null,null,null,null,null,null,"Page  16"]
[null,null,null,null,null,null,null,343]
[null,null,null,null,null,null,null,344]
[null,null,null,null,null,null,null,345]
[null,null,null,null,null,null,null,346]
[null,null,null,null,null,null,null,347]
[null,null,null,null,null,null,null,348]
[null,null,null,null,null,null,null,349]
[null,null,null,null,null,null,null,350]
[null,null,null,null,null,null,null,351]
[null,null,null,null,null,null,null,352]
[null,null,null,null,null,null,null,353]
[null,null,null,null,null,null,null,354]
[null,null,null,null,null,null,null,355]
[null,null,null,null,null,null,null,356]
[null,null,null,null,null,null,null,357]
[null,null,null,null,null,null,null,358]
[null,null,null,null,null,null,null,359]
[null,null,null,null,null,null,null,360]
[null,null,null,null,null,null,null,361]
[null,null,null,null,null,null,null,362]
[null,null,null,null,null,null,null,363]
[null,null,null,null,null,null,null,364]
[null,null,null,null,null,null,null,365,null,null,null,null,null,null,null,null,null,null,null,null,null,null,null,null,null,null,null,null,null,null,null,null,null,null,null,null,null,null,null,null,null,null,null,null,null,null,null,null,null,null,null,null,null,null,null,null,null,null,null,null,null,null,null,null,null,null,null,null,null,null,null,null,null,null,null,null,null,null,null,null,null,null,null,null,null,null,null,null,null,null,null,null,null,null,null,null,null,null,null,null,null,null,null,null,null,null,null,null,null,null,null,null,null,null,null,null,null,null,null,null,null,"Page  17"]
[null,null,null,null,null,null,null,366]
[null,null,null,null,null,null,null,367]
[null,null,null,null,null,null,null,368]
[null,null,null,null,null,null,null,369]
[null,null,null,null,null,null,null,370]
[null,null,null,null,null,null,null,371]
[null,null,null,null,null,null,null,372]
[null,null,null,null,null,null,null,373]
[null,null,null,null,null,null,null,374]
[null,null,null,null,null,null,null,375]
[null,null,null,null,null,null,null,376]
[null,null,null,null,null,null,null,377]
[null,null,null,null,null,null,null,378]
[null,null,null,null,null,null,null,379]
[null,null,null,null,null,null,null,380]
[null,null,null,null,null,null,null,381]
[null,null,null,null,null,null,null,382]
[null,null,null,null,null,null,null,383]
[null,null,null,null,null,null,null,384]
[null,null,null,null,null,null,null,385]
[null,null,null,null,null,null,null,386]
[null,null,null,null,null,null,null,387]
[null,null,null,null,null,null,null,388,null,null,null,null,null,null,null,null,null,null,null,null,null,null,null,null,null,null,null,null,null,null,null,null,null,null,null,null,null,null,null,null,null,null,null,null,null,null,null,null,null,null,null,null,null,null,null,null,null,null,null,null,null,null,null,null,null,null,null,null,null,null,null,null,null,null,null,null,null,null,null,null,null,null,null,null,null,null,null,null,null,null,null,null,null,null,null,null,null,null,null,null,null,null,null,null,null,null,null,null,null,null,null,null,null,null,null,null,null,null,null,null,null,"Page  18"]
[null,null,null,null,null,null,null,389]
[null,null,null,null,null,null,null,390]
[null,null,null,null,null,null,null,391]
[null,null,null,null,null,null,null,392]
[null,null,null,null,null,null,null,393]
[null,null,null,null,null,null,null,394]
[null,null,null,null,null,null,null,395]
[null,null,null,null,null,null,null,396]
[null,null,null,null,null,null,null,397]
[null,null,null,null,null,null,null,398]
[null,null,null,null,null,null,null,399]
[null,null,null,null,null,null,null,400]
[null,null,null,null,null,null,null,401]
[null,null,null,null,null,null,null,402]
[null,null,null,null,null,null,null,403]
[null,null,null,null,null,null,null,404]
[null,null,null,null,null,null,null,405]
[null,null,null,null,null,null,null,406]
[null,null,null,null,null,null,null,407]
[null,null,null,null,null,null,null,408]
[null,null,null,null,null,null,null,409]
[null,null,null,null,null,null,null,410]
[null,null,null,null,null,null,null,411,null,null,null,null,null,null,null,null,null,null,null,null,null,null,null,null,null,null,null,null,null,null,null,null,null,null,null,null,null,null,null,null,null,null,null,null,null,null,null,null,null,null,null,null,null,null,null,null,null,null,null,null,null,null,null,null,null,null,null,null,null,null,null,null,null,null,null,null,null,null,null,null,null,null,null,null,null,null,null,null,null,null,null,null,null,null,null,null,null,null,null,null,null,null,null,null,null,null,null,null,null,null,null,null,null,null,null,null,null,null,null,null,null,"Page  19"]
[null,null,null,null,null,null,null,412]
[null,null,null,null,null,null,null,413]
[null,null,null,null,null,null,null,414]
[null,null,null,null,null,null,null,415]
[null,null,null,null,null,null,null,416]
[null,null,null,null,null,null,null,417]
[null,null,null,null,null,null,null,418]
[null,null,null,null,null,null,null,419]
[null,null,null,null,null,null,null,420]
[null,null,null,null,null,null,null,421]
[null,null,null,null,null,null,null,422]
[null,null,null,null,null,null,null,423]
[null,null,null,null,null,null,null,424]
[null,null,null,null,null,null,null,425]
[null,null,null,null,null,null,null,426]
[null,null,null,null,null,null,null,427]
[null,null,null,null,null,null,null,428]
[null,null,null,null,null,null,null,429]
[null,null,null,null,null,null,null,430]
[null,null,null,null,null,null,null,431]
[null,null,null,null,null,null,null,432]
[null,null,null,null,null,null,null,433]
[null,null,null,null,null,null,null,434,null,null,null,null,null,null,null,null,null,null,null,null,null,null,null,null,null,null,null,null,null,null,null,null,null,null,null,null,null,null,null,null,null,null,null,null,null,null,null,null,null,null,null,null,null,null,null,null,null,null,null,null,null,null,null,null,null,null,null,null,null,null,null,null,null,null,null,null,null,null,null,null,null,null,null,null,null,null,null,null,null,null,null,null,null,null,null,null,null,null,null,null,null,null,null,null,null,null,null,null,null,null,null,null,null,null,null,null,null,null,null,null,null,"Page  20"]
[null,null,null,null,null,null,null,435]
[null,null,null,null,null,null,null,436]
[null,null,null,null,null,null,null,437]
[null,null,null,null,null,null,null,438]
[null,null,null,null,null,null,null,439]
[null,null,null,null,null,null,null,440]
[null,null,null,null,null,null,null,441]
[null,null,null,null,null,null,null,442]
[null,null,null,null,null,null,null,443]
[null,null,null,null,null,null,null,444]
[null,null,null,null,null,null,null,445]
[null,null,null,null,null,null,null,446]
[null,null,null,null,null,null,null,447]
[null,null,null,null,null,null,null,448]
[null,null,null,null,null,null,null,449]
[null,null,null,null,null,null,null,450]
[null,null,null,null,null,null,null,451]
[null,null,null,null,null,null,null,452]
[null,null,null,null,null,null,null,453]
[null,null,null,null,null,null,null,454]
[null,null,null,null,null,null,null,455]
[null,null,null,null,null,null,null,456]
[null,null,null,null,null,null,null,457,null,null,null,null,null,null,null,null,null,null,null,null,null,null,null,null,null,null,null,null,null,null,null,null,null,null,null,null,null,null,null,null,null,null,null,null,null,null,null,null,null,null,null,null,null,null,null,null,null,null,null,null,null,null,null,null,null,null,null,null,null,null,null,null,null,null,null,null,null,null,null,null,null,null,null,null,null,null,null,null,null,null,null,null,null,null,null,null,null,null,null,null,null,null,null,null,null,null,null,null,null,null,null,null,null,null,null,null,null,null,null,null,null,"Page  21"]
[null,null,null,null,null,null,null,458]
[null,null,null,null,null,null,null,459]
[null,null,null,null,null,null,null,460]
[null,null,null,null,null,null,null,461]
[null,null,null,null,null,null,null,462]
[null,null,null,null,null,null,null,463]
[null,null,null,null,null,null,null,464]
[null,null,null,null,null,null,null,465]
[null,null,null,null,null,null,null,466]
[null,null,null,null,null,null,null,467]
[null,null,null,null,null,null,null,468]
[null,null,null,null,null,null,null,469]
[null,null,null,null,null,null,null,470]
[null,null,null,null,null,null,null,471]
[null,null,null,null,null,null,null,472]
[null,null,null,null,null,null,null,473]
[null,null,null,null,null,null,null,474]
[null,null,null,null,null,null,null,475]
[null,null,null,null,null,null,null,476]
[null,null,null,null,null,null,null,477]
[null,null,null,null,null,null,null,478]
[null,null,null,null,null,null,null,479]
[null,null,null,null,null,null,null,480,null,null,null,null,null,null,null,null,null,null,null,null,null,null,null,null,null,null,null,null,null,null,null,null,null,null,null,null,null,null,null,null,null,null,null,null,null,null,null,null,null,null,null,null,null,null,null,null,null,null,null,null,null,null,null,null,null,null,null,null,null,null,null,null,null,null,null,null,null,null,null,null,null,null,null,null,null,null,null,null,null,null,null,null,null,null,null,null,null,null,null,null,null,null,null,null,null,null,null,null,null,null,null,null,null,null,null,null,null,null,null,null,null,"Page  22"]
[null,null,null,null,null,null,null,481]
[null,null,null,null,null,null,null,482]
[null,null,null,null,null,null,null,483]
[null,null,null,null,null,null,null,484]
[null,null,null,null,null,null,null,485]
[null,null,null,null,null,null,null,486]
[null,null,null,null,null,null,null,487]
[null,null,null,null,null,null,null,488]
[null,null,null,null,null,null,null,489]
[null,null,null,null,null,null,null,490]
[null,null,null,null,null,null,null,491]
[null,null,null,null,null,null,null,492]
[null,null,null,null,null,null,null,493]
[null,null,null,null,null,null,null,494]
[null,null,null,null,null,null,null,495]
[null,null,null,null,null,null,null,496]
[null,null,null,null,null,null,null,497]
[null,null,null,null,null,null,null,498]
[null,null,null,null,null,null,null,499]
[null,null,null,null,null,null,null,500]
[null,null,null,null,null,null,null,501]
[null,null,null,null,null,null,null,502]
[null,null,null,null,null,null,null,503,null,null,null,null,null,null,null,null,null,null,null,null,null,null,null,null,null,null,null,null,null,null,null,null,null,null,null,null,null,null,null,null,null,null,null,null,null,null,null,null,null,null,null,null,null,null,null,null,null,null,null,null,null,null,null,null,null,null,null,null,null,null,null,null,null,null,null,null,null,null,null,null,null,null,null,null,null,null,null,null,null,null,null,null,null,null,null,null,null,null,null,null,null,null,null,null,null,null,null,null,null,null,null,null,null,null,null,null,null,null,null,null,null,"Page  23"]
[null,null,null,null,null,null,null,504]
[null,null,null,null,null,null,null,505]
[null,null,null,null,null,null,null,506]
[null,null,null,null,null,null,null,507]
[null,null,null,null,null,null,null,508]
[null,null,null,null,null,null,null,509]
[null,null,null,null,null,null,null,510]
[null,null,null,null,null,null,null,511]
[null,null,null,null,null,null,null,512]
[null,null,null,null,null,null,null,513]
[null,null,null,null,null,null,null,514]
[null,null,null,null,null,null,null,515]
[null,null,null,null,null,null,null,516]
[null,null,null,null,null,null,null,517]
[null,null,null,null,null,null,null,518]
[null,null,null,null,null,null,null,519]
[null,null,null,null,null,null,null,520]
[null,null,null,null,null,null,null,521]
[null,null,null,null,null,null,null,522]
[null,null,null,null,null,null,null,523]
[null,null,null,null,null,null,null,524]
[null,null,null,null,null,null,null,525]
[null,null,null,null,null,null,null,526,null,null,null,null,null,null,null,null,null,null,null,null,null,null,null,null,null,null,null,null,null,null,null,null,null,null,null,null,null,null,null,null,null,null,null,null,null,null,null,null,null,null,null,null,null,null,null,null,null,null,null,null,null,null,null,null,null,null,null,null,null,null,null,null,null,null,null,null,null,null,null,null,null,null,null,null,null,null,null,null,null,null,null,null,null,null,null,null,null,null,null,null,null,null,null,null,null,null,null,null,null,null,null,null,null,null,null,null,null,null,null,null,null,"Page  24"]
[null,null,null,null,null,null,null,527]
[null,null,null,null,null,null,null,528]
[null,null,null,null,null,null,null,529]
[null,null,null,null,null,null,null,530]
[null,null,null,null,null,null,null,531]
[null,null,null,null,null,null,null,532]
[null,null,null,null,null,null,null,533]
[null,null,null,null,null,null,null,534]
[null,null,null,null,null,null,null,535]
[null,null,null,null,null,null,null,536]
[null,null,null,null,null,null,null,537]
[null,null,null,null,null,null,null,538]
[null,null,null,null,null,null,null,539]
[null,null,null,null,null,null,null,540]
[null,null,null,null,null,null,null,541]
[null,null,null,null,null,null,null,542]
[null,null,null,null,null,null,null,543]
[null,null,null,null,null,null,null,544]
[null,null,null,null,null,null,null,545]
[null,null,null,null,null,null,null,546]
[null,null,null,null,null,null,null,547]
[null,null,null,null,null,null,null,548]
[null,null,null,null,null,null,null,549,null,null,null,null,null,null,null,null,null,null,null,null,null,null,null,null,null,null,null,null,null,null,null,null,null,null,null,null,null,null,null,null,null,null,null,null,null,null,null,null,null,null,null,null,null,null,null,null,null,null,null,null,null,null,null,null,null,null,null,null,null,null,null,null,null,null,null,null,null,null,null,null,null,null,null,null,null,null,null,null,null,null,null,null,null,null,null,null,null,null,null,null,null,null,null,null,null,null,null,null,null,null,null,null,null,null,null,null,null,null,null,null,null,"Page  25"]
[null,null,null,null,null,null,null,550]
[null,null,null,null,null,null,null,551]
[null,null,null,null,null,null,null,552]
[null,null,null,null,null,null,null,553]
[null,null,null,null,null,null,null,554]
[null,null,null,null,null,null,null,555]
[null,null,null,null,null,null,null,556]
[null,null,null,null,null,null,null,557]
[null,null,null,null,null,null,null,558]
[null,null,null,null,null,null,null,559]
[null,null,null,null,null,null,null,560]
[null,null,null,null,null,null,null,561]
[null,null,null,null,null,null,null,562]
[null,null,null,null,null,null,null,563]
[null,null,null,null,null,null,null,564]
[null,null,null,null,null,null,null,565]
[null,null,null,null,null,null,null,566]
[null,null,null,null,null,null,null,567]
[null,null,null,null,null,null,null,568]
[null,null,null,null,null,null,null,569]
[null,null,null,null,null,null,null,570]
[null,null,null,null,null,null,null,571]
[null,null,null,null,null,null,null,572,null,null,null,null,null,null,null,null,null,null,null,null,null,null,null,null,null,null,null,null,null,null,null,null,null,null,null,null,null,null,null,null,null,null,null,null,null,null,null,null,null,null,null,null,null,null,null,null,null,null,null,null,null,null,null,null,null,null,null,null,null,null,null,null,null,null,null,null,null,null,null,null,null,null,null,null,null,null,null,null,null,null,null,null,null,null,null,null,null,null,null,null,null,null,null,null,null,null,null,null,null,null,null,null,null,null,null,null,null,null,null,null,null,"Page  26"]
[null,null,null,null,null,null,null,573]
[null,null,null,null,null,null,null,574]
[null,null,null,null,null,null,null,575]
[null,null,null,null,null,null,null,576]
[null,null,null,null,null,null,null,577]
[null,null,null,null,null,null,null,578]
[null,null,null,null,null,null,null,579]
[null,null,null,null,null,null,null,580]
[null,null,null,null,null,null,null,581]
[null,null,null,null,null,null,null,582]
[null,null,null,null,null,null,null,583]
[null,null,null,null,null,null,null,584]
[null,null,null,null,null,null,null,585]
[null,null,null,null,null,null,null,586]
[null,null,null,null,null,null,null,587]
[null,null,null,null,null,null,null,588]
[null,null,null,null,null,null,null,589]
[null,null,null,null,null,null,null,590]
[null,null,null,null,null,null,null,591]
[null,null,null,null,null,null,null,592]
[null,null,null,null,null,null,null,593]
[null,null,null,null,null,null,null,594]
[null,null,null,null,null,null,null,595,null,null,null,null,null,null,null,null,null,null,null,null,null,null,null,null,null,null,null,null,null,null,null,null,null,null,null,null,null,null,null,null,null,null,null,null,null,null,null,null,null,null,null,null,null,null,null,null,null,null,null,null,null,null,null,null,null,null,null,null,null,null,null,null,null,null,null,null,null,null,null,null,null,null,null,null,null,null,null,null,null,null,null,null,null,null,null,null,null,null,null,null,null,null,null,null,null,null,null,null,null,null,null,null,null,null,null,null,null,null,null,null,null,"Page  27"]
[null,null,null,null,null,null,null,596]
[null,null,null,null,null,null,null,597]
[null,null,null,null,null,null,null,598]
[null,null,null,null,null,null,null,599]
[null,null,null,null,null,null,null,600]
[null,null,null,null,null,null,null,601]
[null,null,null,null,null,null,null,602]
[null,null,null,null,null,null,null,603]
[null,null,null,null,null,null,null,604]
[null,null,null,null,null,null,null,605]
[null,null,null,null,null,null,null,606]
[null,null,null,null,null,null,null,607]
[null,null,null,null,null,null,null,608]
[null,null,null,null,null,null,null,609]
[null,null,null,null,null,null,null,610]
[null,null,null,null,null,null,null,611]
[null,null,null,null,null,null,null,612]
[null,null,null,null,null,null,null,613]
[null,null,null,null,null,null,null,614]
[null,null,null,null,null,null,null,615]
[null,null,null,null,null,null,null,616]
[null,null,null,null,null,null,null,617]
[null,null,null,null,null,null,null,618,null,null,null,null,null,null,null,null,null,null,null,null,null,null,null,null,null,null,null,null,null,null,null,null,null,null,null,null,null,null,null,null,null,null,null,null,null,null,null,null,null,null,null,null,null,null,null,null,null,null,null,null,null,null,null,null,null,null,null,null,null,null,null,null,null,null,null,null,null,null,null,null,null,null,null,null,null,null,null,null,null,null,null,null,null,null,null,null,null,null,null,null,null,null,null,null,null,null,null,null,null,null,null,null,null,null,null,null,null,null,null,null,null,"Page  28"]
[null,null,null,null,null,null,null,619]
[null,null,null,null,null,null,null,620]
[null,null,null,null,null,null,null,621]
[null,null,null,null,null,null,null,622]
[null,null,null,null,null,null,null,623]
[null,null,null,null,null,null,null,624]
[null,null,null,null,null,null,null,625]
[null,null,null,null,null,null,null,626]
[null,null,null,null,null,null,null,627]
[null,null,null,null,null,null,null,628]
[null,null,null,null,null,null,null,629]
[null,null,null,null,null,null,null,630]
[null,null,null,null,null,null,null,631]
[null,null,null,null,null,null,null,632]
[null,null,null,null,null,null,null,633]
[null,null,null,null,null,null,null,634]
[null,null,null,null,null,null,null,635]
[null,null,null,null,null,null,null,636]
[null,null,null,null,null,null,null,637]
[null,null,null,null,null,null,null,638]
[null,null,null,null,null,null,null,639]
[null,null,null,null,null,null,null,640]
[null,null,null,null,null,null,null,641,null,null,null,null,null,null,null,null,null,null,null,null,null,null,null,null,null,null,null,null,null,null,null,null,null,null,null,null,null,null,null,null,null,null,null,null,null,null,null,null,null,null,null,null,null,null,null,null,null,null,null,null,null,null,null,null,null,null,null,null,null,null,null,null,null,null,null,null,null,null,null,null,null,null,null,null,null,null,null,null,null,null,null,null,null,null,null,null,null,null,null,null,null,null,null,null,null,null,null,null,null,null,null,null,null,null,null,null,null,null,null,null,null,"Page  29"]
[null,null,null,null,null,null,null,642]
[null,null,null,null,null,null,null,643]
[null,null,null,null,null,null,null,644]
[null,null,null,null,null,null,null,645]
[null,null,null,null,null,null,null,646]
[null,null,null,null,null,null,null,647]
[null,null,null,null,null,null,null,648]
[null,null,null,null,null,null,null,649]
[null,null,null,null,null,null,null,650]
[null,null,null,null,null,null,null,651]
[null,null,null,null,null,null,null,652]
[null,null,null,null,null,null,null,653]
[null,null,null,null,null,null,null,654]
[null,null,null,null,null,null,null,655]
[null,null,null,null,null,null,null,656]
[null,null,null,null,null,null,null,657]
[null,null,null,null,null,null,null,658]
[null,null,null,null,null,null,null,659]
[null,null,null,null,null,null,null,660]
[null,null,null,null,null,null,null,661]
[null,null,null,null,null,null,null,662]
[null,null,null,null,null,null,null,663]
[null,null,null,null,null,null,null,664,null,null,null,null,null,null,null,null,null,null,null,null,null,null,null,null,null,null,null,null,null,null,null,null,null,null,null,null,null,null,null,null,null,null,null,null,null,null,null,null,null,null,null,null,null,null,null,null,null,null,null,null,null,null,null,null,null,null,null,null,null,null,null,null,null,null,null,null,null,null,null,null,null,null,null,null,null,null,null,null,null,null,null,null,null,null,null,null,null,null,null,null,null,null,null,null,null,null,null,null,null,null,null,null,null,null,null,null,null,null,null,null,null,"Page  30"]
[null,null,null,null,null,null,null,665]
[null,null,null,null,null,null,null,666]
[null,null,null,null,null,null,null,667]
[null,null,null,null,null,null,null,668]
[null,null,null,null,null,null,null,669]
[null,null,null,null,null,null,null,670]
[null,null,null,null,null,null,null,671]
[null,null,null,null,null,null,null,672]
[null,null,null,null,null,null,null,673]
[null,null,null,null,null,null,null,674]
[null,null,null,null,null,null,null,675]
[null,null,null,null,null,null,null,676]
[null,null,null,null,null,null,null,677]
[null,null,null,null,null,null,null,678]
[null,null,null,null,null,null,null,679]
[null,null,null,null,null,null,null,680]
[null,null,null,null,null,null,null,681]
[null,null,null,null,null,null,null,682]
[null,null,null,null,null,null,null,683]
[null,null,null,null,null,null,null,684]
[null,null,null,null,null,null,null,685]
[null,null,null,null,null,null,null,686]
[null,null,null,null,null,null,null,687,null,null,null,null,null,null,null,null,null,null,null,null,null,null,null,null,null,null,null,null,null,null,null,null,null,null,null,null,null,null,null,null,null,null,null,null,null,null,null,null,null,null,null,null,null,null,null,null,null,null,null,null,null,null,null,null,null,null,null,null,null,null,null,null,null,null,null,null,null,null,null,null,null,null,null,null,null,null,null,null,null,null,null,null,null,null,null,null,null,null,null,null,null,null,null,null,null,null,null,null,null,null,null,null,null,null,null,null,null,null,null,null,null,"Page  31"]
[null,null,null,null,null,null,null,688]
[null,null,null,null,null,null,null,689]
[null,null,null,null,null,null,null,690]
[null,null,null,null,null,null,null,691]
[null,null,null,null,null,null,null,692]
[null,null,null,null,null,null,null,693]
[null,null,null,null,null,null,null,694]
[null,null,null,null,null,null,null,695]
[null,null,null,null,null,null,null,696]
[null,null,null,null,null,null,null,697]
[null,null,null,null,null,null,null,698]
[null,null,null,null,null,null,null,699]
[null,null,null,null,null,null,null,700]
[null,null,null,null,null,null,null,701]
[null,null,null,null,null,null,null,702]
[null,null,null,null,null,null,null,703]
[null,null,null,null,null,null,null,704]
[null,null,null,null,null,null,null,705]
[null,null,null,null,null,null,null,706]
[null,null,null,null,null,null,null,707]
[null,null,null,null,null,null,null,708]
[null,null,null,null,null,null,null,709]
[null,null,null,null,null,null,null,710,null,null,null,null,null,null,null,null,null,null,null,null,null,null,null,null,null,null,null,null,null,null,null,null,null,null,null,null,null,null,null,null,null,null,null,null,null,null,null,null,null,null,null,null,null,null,null,null,null,null,null,null,null,null,null,null,null,null,null,null,null,null,null,null,null,null,null,null,null,null,null,null,null,null,null,null,null,null,null,null,null,null,null,null,null,null,null,null,null,null,null,null,null,null,null,null,null,null,null,null,null,null,null,null,null,null,null,null,null,null,null,null,null,"Page  32"]
[null,null,null,null,null,null,null,711]
[null,null,null,null,null,null,null,712]
[null,null,null,null,null,null,null,713]
[null,null,null,null,null,null,null,714]
[null,null,null,null,null,null,null,715]
[null,null,null,null,null,null,null,716]
[null,null,null,null,null,null,null,717]
[null,null,null,null,null,null,null,718]
[null,null,null,null,null,null,null,719]
[null,null,null,null,null,null,null,720]
[null,null,null,null,null,null,null,721]
[null,null,null,null,null,null,null,722]
[null,null,null,null,null,null,null,723]
[null,null,null,null,null,null,null,724]
[null,null,null,null,null,null,null,725]
[null,null,null,null,null,null,null,726]
[null,null,null,null,null,null,null,727]
[null,null,null,null,null,null,null,728]
[null,null,null,null,null,null,null,729]
[null,null,null,null,null,null,null,730]
[null,null,null,null,null,null,null,731]
[null,null,null,null,null,null,null,732]
[null,null,null,null,null,null,null,733,null,null,null,null,null,null,null,null,null,null,null,null,null,null,null,null,null,null,null,null,null,null,null,null,null,null,null,null,null,null,null,null,null,null,null,null,null,null,null,null,null,null,null,null,null,null,null,null,null,null,null,null,null,null,null,null,null,null,null,null,null,null,null,null,null,null,null,null,null,null,null,null,null,null,null,null,null,null,null,null,null,null,null,null,null,null,null,null,null,null,null,null,null,null,null,null,null,null,null,null,null,null,null,null,null,null,null,null,null,null,null,null,null,"Page  33"]
[null,null,null,null,null,null,null,734]
[null,null,null,null,null,null,null,735]
[null,null,null,null,null,null,null,736]
[null,null,null,null,null,null,null,737]
[null,null,null,null,null,null,null,738]
[null,null,null,null,null,null,null,739]
[null,null,null,null,null,null,null,740]
[null,null,null,null,null,null,null,741]
[null,null,null,null,null,null,null,742]
[null,null,null,null,null,null,null,743]
[null,null,null,null,null,null,null,744]
[null,null,null,null,null,null,null,745]
[null,null,null,null,null,null,null,746]
[null,null,null,null,null,null,null,747]
[null,null,null,null,null,null,null,748]
[null,null,null,null,null,null,null,749]
[null,null,null,null,null,null,null,750]
[null,null,null,null,null,null,null,751]
[null,null,null,null,null,null,null,752]
[null,null,null,null,null,null,null,753]
[null,null,null,null,null,null,null,754]
[null,null,null,null,null,null,null,755]
[null,null,null,null,null,null,null,756,null,null,null,null,null,null,null,null,null,null,null,null,null,null,null,null,null,null,null,null,null,null,null,null,null,null,null,null,null,null,null,null,null,null,null,null,null,null,null,null,null,null,null,null,null,null,null,null,null,null,null,null,null,null,null,null,null,null,null,null,null,null,null,null,null,null,null,null,null,null,null,null,null,null,null,null,null,null,null,null,null,null,null,null,null,null,null,null,null,null,null,null,null,null,null,null,null,null,null,null,null,null,null,null,null,null,null,null,null,null,null,null,null,"Page  34"]
[null,null,null,null,null,null,null,757]
[null,null,null,null,null,null,null,758]
[null,null,null,null,null,null,null,759]
[null,null,null,null,null,null,null,760]
[null,null,null,null,null,null,null,761]
[null,null,null,null,null,null,null,762]
[null,null,null,null,null,null,null,763]
[null,null,null,null,null,null,null,764]
[null,null,null,null,null,null,null,765]
[null,null,null,null,null,null,null,766]
[null,null,null,null,null,null,null,767]
[null,null,null,null,null,null,null,768]
[null,null,null,null,null,null,null,769]
[null,null,null,null,null,null,null,770]
[null,null,null,null,null,null,null,771]
[null,null,null,null,null,null,null,772]
[null,null,null,null,null,null,null,773]
[null,null,null,null,null,null,null,774]
[null,null,null,null,null,null,null,775]
[null,null,null,null,null,null,null,776]
[null,null,null,null,null,null,null,777]
[null,null,null,null,null,null,null,778]
[null,null,null,null,null,null,null,779,null,null,null,null,null,null,null,null,null,null,null,null,null,null,null,null,null,null,null,null,null,null,null,null,null,null,null,null,null,null,null,null,null,null,null,null,null,null,null,null,null,null,null,null,null,null,null,null,null,null,null,null,null,null,null,null,null,null,null,null,null,null,null,null,null,null,null,null,null,null,null,null,null,null,null,null,null,null,null,null,null,null,null,null,null,null,null,null,null,null,null,null,null,null,null,null,null,null,null,null,null,null,null,null,null,null,null,null,null,null,null,null,null,"Page  35"]
[null,null,null,null,null,null,null,780]
[null,null,null,null,null,null,null,781]
[null,null,null,null,null,null,null,782]
[null,null,null,null,null,null,null,783]
[null,null,null,null,null,null,null,784]
[null,null,null,null,null,null,null,785]
[null,null,null,null,null,null,null,786]
[null,null,null,null,null,null,null,787]
[null,null,null,null,null,null,null,788]
[null,null,null,null,null,null,null,789]
[null,null,null,null,null,null,null,790]
[null,null,null,null,null,null,null,791]
[null,null,null,null,null,null,null,792]
[null,null,null,null,null,null,null,793]
[null,null,null,null,null,null,null,794]
[null,null,null,null,null,null,null,795]
[null,null,null,null,null,null,null,796]
[null,null,null,null,null,null,null,797]
[null,null,null,null,null,null,null,798]
[null,null,null,null,null,null,null,799]
[null,null,null,null,null,null,null,800]
[null,null,null,null,null,null,null,801]
[null,null,null,null,null,null,null,802,null,null,null,null,null,null,null,null,null,null,null,null,null,null,null,null,null,null,null,null,null,null,null,null,null,null,null,null,null,null,null,null,null,null,null,null,null,null,null,null,null,null,null,null,null,null,null,null,null,null,null,null,null,null,null,null,null,null,null,null,null,null,null,null,null,null,null,null,null,null,null,null,null,null,null,null,null,null,null,null,null,null,null,null,null,null,null,null,null,null,null,null,null,null,null,null,null,null,null,null,null,null,null,null,null,null,null,null,null,null,null,null,null,"Page  36"]
[null,null,null,null,null,null,null,803]
[null,null,null,null,null,null,null,804]
[null,null,null,null,null,null,null,805]
[null,null,null,null,null,null,null,806]
[null,null,null,null,null,null,null,807]
[null,null,null,null,null,null,null,808]
[null,null,null,null,null,null,null,809]
[null,null,null,null,null,null,null,810]
[null,null,null,null,null,null,null,811]
[null,null,null,null,null,null,null,812]
[null,null,null,null,null,null,null,813]
[null,null,null,null,null,null,null,814]
[null,null,null,null,null,null,null,815]
[null,null,null,null,null,null,null,816]
[null,null,null,null,null,null,null,817]
[null,null,null,null,null,null,null,818]
[null,null,null,null,null,null,null,819]
[null,null,null,null,null,null,null,820]
[null,null,null,null,null,null,null,821]
[null,null,null,null,null,null,null,822]
[null,null,null,null,null,null,null,823]
[null,null,null,null,null,null,null,824]
[null,null,null,null,null,null,null,825,null,null,null,null,null,null,null,null,null,null,null,null,null,null,null,null,null,null,null,null,null,null,null,null,null,null,null,null,null,null,null,null,null,null,null,null,null,null,null,null,null,null,null,null,null,null,null,null,null,null,null,null,null,null,null,null,null,null,null,null,null,null,null,null,null,null,null,null,null,null,null,null,null,null,null,null,null,null,null,null,null,null,null,null,null,null,null,null,null,null,null,null,null,null,null,null,null,null,null,null,null,null,null,null,null,null,null,null,null,null,null,null,null,"Page  37"]
[null,null,null,null,null,null,null,826]
[null,null,null,null,null,null,null,827]
[null,null,null,null,null,null,null,828]
[null,null,null,null,null,null,null,829]
[null,null,null,null,null,null,null,830]
[null,null,null,null,null,null,null,831]
[null,null,null,null,null,null,null,832]
[null,null,null,null,null,null,null,833]
[null,null,null,null,null,null,null,834]
[null,null,null,null,null,null,null,835]
[null,null,null,null,null,null,null,836]
[null,null,null,null,null,null,null,837]
[null,null,null,null,null,null,null,838]
[null,null,null,null,null,null,null,839]
[null,null,null,null,null,null,null,840]
[null,null,null,null,null,null,null,841]
[null,null,null,null,null,null,null,842]
[null,null,null,null,null,null,null,843]
[null,null,null,null,null,null,null,844]
[null,null,null,null,null,null,null,845]
[null,null,null,null,null,null,null,846]
[null,null,null,null,null,null,null,847]
[null,null,null,null,null,null,null,848,null,null,null,null,null,null,null,null,null,null,null,null,null,null,null,null,null,null,null,null,null,null,null,null,null,null,null,null,null,null,null,null,null,null,null,null,null,null,null,null,null,null,null,null,null,null,null,null,null,null,null,null,null,null,null,null,null,null,null,null,null,null,null,null,null,null,null,null,null,null,null,null,null,null,null,null,null,null,null,null,null,null,null,null,null,null,null,null,null,null,null,null,null,null,null,null,null,null,null,null,null,null,null,null,null,null,null,null,null,null,null,null,null,"Page  38"]
[null,null,null,null,null,null,null,849]
[null,null,null,null,null,null,null,850]
[null,null,null,null,null,null,null,851]
[null,null,null,null,null,null,null,852]
[null,null,null,null,null,null,null,853]
[null,null,null,null,null,null,null,854]
[null,null,null,null,null,null,null,855]
[null,null,null,null,null,null,null,856]
[null,null,null,null,null,null,null,857]
[null,null,null,null,null,null,null,858]
[null,null,null,null,null,null,null,859]
[null,null,null,null,null,null,null,860]
[null,null,null,null,null,null,null,861]
[null,null,null,null,null,null,null,862]
[null,null,null,null,null,null,null,863]
[null,null,null,null,null,null,null,864]
[null,null,null,null,null,null,null,865]
[null,null,null,null,null,null,null,866]
[null,null,null,null,null,null,null,867]
[null,null,null,null,null,null,null,868]
[null,null,null,null,null,null,null,869]
[null,null,null,null,null,null,null,870]
[null,null,null,null,null,null,null,871,null,null,null,null,null,null,null,null,null,null,null,null,null,null,null,null,null,null,null,null,null,null,null,null,null,null,null,null,null,null,null,null,null,null,null,null,null,null,null,null,null,null,null,null,null,null,null,null,null,null,null,null,null,null,null,null,null,null,null,null,null,null,null,null,null,null,null,null,null,null,null,null,null,null,null,null,null,null,null,null,null,null,null,null,null,null,null,null,null,null,null,null,null,null,null,null,null,null,null,null,null,null,null,null,null,null,null,null,null,null,null,null,null,"Page  39"]
[null,null,null,null,null,null,null,872]
[null,null,null,null,null,null,null,873]
[null,null,null,null,null,null,null,874]
[null,null,null,null,null,null,null,875]
[null,null,null,null,null,null,null,876]
[null,null,null,null,null,null,null,877]
[null,null,null,null,null,null,null,878]
[null,null,null,null,null,null,null,879]
[null,null,null,null,null,null,null,880]
[null,null,null,null,null,null,null,881]
[null,null,null,null,null,null,null,882]
[null,null,null,null,null,null,null,883]
[null,null,null,null,null,null,null,884]
[null,null,null,null,null,null,null,885]
[null,null,null,null,null,null,null,886]
[null,null,null,null,null,null,null,887]
[null,null,null,null,null,null,null,888]
[null,null,null,null,null,null,null,889]
[null,null,null,null,null,null,null,890]
[null,null,null,null,null,null,null,891]
[null,null,null,null,null,null,null,892]
[null,null,null,null,null,null,null,893]
[null,null,null,null,null,null,null,894,null,null,null,null,null,null,null,null,null,null,null,null,null,null,null,null,null,null,null,null,null,null,null,null,null,null,null,null,null,null,null,null,null,null,null,null,null,null,null,null,null,null,null,null,null,null,null,null,null,null,null,null,null,null,null,null,null,null,null,null,null,null,null,null,null,null,null,null,null,null,null,null,null,null,null,null,null,null,null,null,null,null,null,null,null,null,null,null,null,null,null,null,null,null,null,null,null,null,null,null,null,null,null,null,null,null,null,null,null,null,null,null,null,"Page  40"]
[null,null,null,null,null,null,null,895]
[null,null,null,null,null,null,null,896]
[null,null,null,null,null,null,null,897]
[null,null,null,null,null,null,null,898]
[null,null,null,null,null,null,null,899]
[null,null,null,null,null,null,null,900]
[null,null,null,null,null,null,null,901]
[null,null,null,null,null,null,null,902]
[null,null,null,null,null,null,null,903]
[null,null,null,null,null,null,null,904]
[null,null,null,null,null,null,null,905]
[null,null,null,null,null,null,null,906]
[null,null,null,null,null,null,null,907]
[null,null,null,null,null,null,null,908]
[null,null,null,null,null,null,null,909]
[null,null,null,null,null,null,null,910]
[null,null,null,null,null,null,null,911]
[null,null,null,null,null,null,null,912]
[null,null,null,null,null,null,null,913]
[null,null,null,null,null,null,null,914]
[null,null,null,null,null,null,null,915]
[null,null,null,null,null,null,null,916]
[null,null,null,null,null,null,null,917,null,null,null,null,null,null,null,null,null,null,null,null,null,null,null,null,null,null,null,null,null,null,null,null,null,null,null,null,null,null,null,null,null,null,null,null,null,null,null,null,null,null,null,null,null,null,null,null,null,null,null,null,null,null,null,null,null,null,null,null,null,null,null,null,null,null,null,null,null,null,null,null,null,null,null,null,null,null,null,null,null,null,null,null,null,null,null,null,null,null,null,null,null,null,null,null,null,null,null,null,null,null,null,null,null,null,null,null,null,null,null,null,null,"Page  41"]
[null,null,null,null,null,null,null,918]
[null,null,null,null,null,null,null,919]
[null,null,null,null,null,null,null,920]
[null,null,null,null,null,null,null,921]
[null,null,null,null,null,null,null,922]
[null,null,null,null,null,null,null,923]
[null,null,null,null,null,null,null,924]
[null,null,null,null,null,null,null,925]
[null,null,null,null,null,null,null,926]
[null,null,null,null,null,null,null,927]
[null,null,null,null,null,null,null,928]
[null,null,null,null,null,null,null,929]
[null,null,null,null,null,null,null,930]
[null,null,null,null,null,null,null,931]
[null,null,null,null,null,null,null,932]
[null,null,null,null,null,null,null,933]
[null,null,null,null,null,null,null,934]
[null,null,null,null,null,null,null,935]
[null,null,null,null,null,null,null,936]
[null,null,null,null,null,null,null,937]
[null,null,null,null,null,null,null,938]
[null,null,null,null,null,null,null,939]
[null,null,null,null,null,null,null,940,null,null,null,null,null,null,null,null,null,null,null,null,null,null,null,null,null,null,null,null,null,null,null,null,null,null,null,null,null,null,null,null,null,null,null,null,null,null,null,null,null,null,null,null,null,null,null,null,null,null,null,null,null,null,null,null,null,null,null,null,null,null,null,null,null,null,null,null,null,null,null,null,null,null,null,null,null,null,null,null,null,null,null,null,null,null,null,null,null,null,null,null,null,null,null,null,null,null,null,null,null,null,null,null,null,null,null,null,null,null,null,null,null,"Page  42"]
[null,null,null,null,null,null,null,941]
[null,null,null,null,null,null,null,942]
[null,null,null,null,null,null,null,943]
[null,null,null,null,null,null,null,944]
[null,null,null,null,null,null,null,945]
[null,null,null,null,null,null,null,946]
[null,null,null,null,null,null,null,947]
[null,null,null,null,null,null,null,948]
[null,null,null,null,null,null,null,949]
[null,null,null,null,null,null,null,950]
[null,null,null,null,null,null,null,951]
[null,null,null,null,null,null,null,952]
[null,null,null,null,null,null,null,953]
[null,null,null,null,null,null,null,954]
[null,null,null,null,null,null,null,955]
[null,null,null,null,null,null,null,956]
[null,null,null,null,null,null,null,957]
[null,null,null,null,null,null,null,958]
[null,null,null,null,null,null,null,959]
[null,null,null,null,null,null,null,960]
[null,null,null,null,null,null,null,961]
[null,null,null,null,null,null,null,962]
[null,null,null,null,null,null,null,963,null,null,null,null,null,null,null,null,null,null,null,null,null,null,null,null,null,null,null,null,null,null,null,null,null,null,null,null,null,null,null,null,null,null,null,null,null,null,null,null,null,null,null,null,null,null,null,null,null,null,null,null,null,null,null,null,null,null,null,null,null,null,null,null,null,null,null,null,null,null,null,null,null,null,null,null,null,null,null,null,null,null,null,null,null,null,null,null,null,null,null,null,null,null,null,null,null,null,null,null,null,null,null,null,null,null,null,null,null,null,null,null,null,"Page  43"]
[null,null,null,null,null,null,null,964]
[null,null,null,null,null,null,null,965]
[null,null,null,null,null,null,null,966]
[null,null,null,null,null,null,null,967]
[null,null,null,null,null,null,null,968]
[null,null,null,null,null,null,null,969]
[null,null,null,null,null,null,null,970]
[null,null,null,null,null,null,null,971]
[null,null,null,null,null,null,null,972]
[null,null,null,null,null,null,null,973]
[null,null,null,null,null,null,null,974]
[null,null,null,null,null,null,null,975]
[null,null,null,null,null,null,null,976]
[null,null,null,null,null,null,null,977]
[null,null,null,null,null,null,null,978]
[null,null,null,null,null,null,null,979]
[null,null,null,null,null,null,null,980]
[null,null,null,null,null,null,null,981]
[null,null,null,null,null,null,null,982]
[null,null,null,null,null,null,null,983]
[null,null,null,null,null,null,null,984]
[null,null,null,null,null,null,null,985]
[null,null,null,null,null,null,null,986,null,null,null,null,null,null,null,null,null,null,null,null,null,null,null,null,null,null,null,null,null,null,null,null,null,null,null,null,null,null,null,null,null,null,null,null,null,null,null,null,null,null,null,null,null,null,null,null,null,null,null,null,null,null,null,null,null,null,null,null,null,null,null,null,null,null,null,null,null,null,null,null,null,null,null,null,null,null,null,null,null,null,null,null,null,null,null,null,null,null,null,null,null,null,null,null,null,null,null,null,null,null,null,null,null,null,null,null,null,null,null,null,null,"Page  44"]
[null,null,null,null,null,null,null,987]
[null,null,null,null,null,null,null,988]
[null,null,null,null,null,null,null,989]
[null,null,null,null,null,null,null,990]
[null,null,null,null,null,null,null,991]
[null,null,null,null,null,null,null,992]
[null,null,null,null,null,null,null,993]
[null,null,null,null,null,null,null,994]
[null,null,null,null,null,null,null,995]
[null,null,null,null,null,null,null,996]
[null,null,null,null,null,null,null,997]
[null,null,null,null,null,null,null,998]
[null,null,null,null,null,null,null,999]
[null,null,null,null,null,null,null,1000]
[null,null,null,null,null,null,null,1001]
[null,null,null,null,null,null,null,1002]
[null,null,null,null,null,null,null,1003]
[null,null,null,null,null,null,null,1004]
[null,null,null,null,null,null,null,1005]
[null,null,null,null,null,null,null,1006]
[null,null,null,null,null,null,null,1007]
[null,null,null,null,null,null,null,1008]
[null,null,null,null,null,null,null,1009,null,null,null,null,null,null,null,null,null,null,null,null,null,null,null,null,null,null,null,null,null,null,null,null,null,null,null,null,null,null,null,null,null,null,null,null,null,null,null,null,null,null,null,null,null,null,null,null,null,null,null,null,null,null,null,null,null,null,null,null,null,null,null,null,null,null,null,null,null,null,null,null,null,null,null,null,null,null,null,null,null,null,null,null,null,null,null,null,null,null,null,null,null,null,null,null,null,null,null,null,null,null,null,null,null,null,null,null,null,null,null,null,null,"Page  45"]
[null,null,null,null,null,null,null,1010]
[null,null,null,null,null,null,null,1011]
[null,null,null,null,null,null,null,1012]
[null,null,null,null,null,null,null,1013]
[null,null,null,null,null,null,null,1014]
[null,null,null,null,null,null,null,1015]
[null,null,null,null,null,null,null,1016]
[null,null,null,null,null,null,null,1017]
[null,null,null,null,null,null,null,1018]
[null,null,null,null,null,null,null,1019]
[null,null,null,null,null,null,null,1020]
[null,null,null,null,null,null,null,1021]
[null,null,null,null,null,null,null,1022]
[null,null,null,null,null,null,null,1023]
[null,null,null,null,null,null,null,1024]
[null,null,null,null,null,null,null,1025]
[null,null,null,null,null,null,null,1026]
[null,null,null,null,null,null,null,1027]
[null,null,null,null,null,null,null,1028]
[null,null,null,null,null,null,null,1029]
[null,null,null,null,null,null,null,1030]
[null,null,null,null,null,null,null,1031]
[null,null,null,null,null,null,null,1032,null,null,null,null,null,null,null,null,null,null,null,null,null,null,null,null,null,null,null,null,null,null,null,null,null,null,null,null,null,null,null,null,null,null,null,null,null,null,null,null,null,null,null,null,null,null,null,null,null,null,null,null,null,null,null,null,null,null,null,null,null,null,null,null,null,null,null,null,null,null,null,null,null,null,null,null,null,null,null,null,null,null,null,null,null,null,null,null,null,null,null,null,null,null,null,null,null,null,null,null,null,null,null,null,null,null,null,null,null,null,null,null,null,"Page  46"]
[null,null,null,null,null,null,null,1033]
[null,null,null,null,null,null,null,1034]
[null,null,null,null,null,null,null,1035]
[null,null,null,null,null,null,null,1036]
[null,null,null,null,null,null,null,1037]
[null,null,null,null,null,null,null,1038]
[null,null,null,null,null,null,null,1039]
[null,null,null,null,null,null,null,1040]
[null,null,null,null,null,null,null,1041]
[null,null,null,null,null,null,null,1042]
[null,null,null,null,null,null,null,1043]
[null,null,null,null,null,null,null,1044]
[null,null,null,null,null,null,null,1045]
[null,null,null,null,null,null,null,1046]
[null,null,null,null,null,null,null,1047]
[null,null,null,null,null,null,null,1048]
[null,null,null,null,null,null,null,1049]
[null,null,null,null,null,null,null,1050]
[null,null,null,null,null,null,null,1051]
[null,null,null,null,null,null,null,1052]
[null,null,null,null,null,null,null,1053]
[null,null,null,null,null,null,null,1054]
[null,null,null,null,null,null,null,1055,null,null,null,null,null,null,null,null,null,null,null,null,null,null,null,null,null,null,null,null,null,null,null,null,null,null,null,null,null,null,null,null,null,null,null,null,null,null,null,null,null,null,null,null,null,null,null,null,null,null,null,null,null,null,null,null,null,null,null,null,null,null,null,null,null,null,null,null,null,null,null,null,null,null,null,null,null,null,null,null,null,null,null,null,null,null,null,null,null,null,null,null,null,null,null,null,null,null,null,null,null,null,null,null,null,null,null,null,null,null,null,null,null,"Page  47"]
[null,null,null,null,null,null,null,1056]
[null,null,null,null,null,null,null,1057]
[null,null,null,null,null,null,null,1058]
[null,null,null,null,null,null,null,1059]
[null,null,null,null,null,null,null,1060]
[null,null,null,null,null,null,null,1061]
[null,null,null,null,null,null,null,1062]
[null,null,null,null,null,null,null,1063]
[null,null,null,null,null,null,null,1064]
[null,null,null,null,null,null,null,1065]
[null,null,null,null,null,null,null,1066]
[null,null,null,null,null,null,null,1067]
[null,null,null,null,null,null,null,1068]
[null,null,null,null,null,null,null,1069]
[null,null,null,null,null,null,null,1070]
[null,null,null,null,null,null,null,1071]
[null,null,null,null,null,null,null,1072]
[null,null,null,null,null,null,null,1073]
[null,null,null,null,null,null,null,1074]
[null,null,null,null,null,null,null,1075]
[null,null,null,null,null,null,null,1076]
[null,null,null,null,null,null,null,1077]
[null,null,null,null,null,null,null,1078,null,null,null,null,null,null,null,null,null,null,null,null,null,null,null,null,null,null,null,null,null,null,null,null,null,null,null,null,null,null,null,null,null,null,null,null,null,null,null,null,null,null,null,null,null,null,null,null,null,null,null,null,null,null,null,null,null,null,null,null,null,null,null,null,null,null,null,null,null,null,null,null,null,null,null,null,null,null,null,null,null,null,null,null,null,null,null,null,null,null,null,null,null,null,null,null,null,null,null,null,null,null,null,null,null,null,null,null,null,null,null,null,null,"Page  48"]
[null,null,null,null,null,null,null,1079]
[null,null,null,null,null,null,null,1080]
[null,null,null,null,null,null,null,1081]
[null,null,null,null,null,null,null,1082]
[null,null,null,null,null,null,null,1083]
[null,null,null,null,null,null,null,1084]
[null,null,null,null,null,null,null,1085]
[null,null,null,null,null,null,null,1086]
[null,null,null,null,null,null,null,1087]
[null,null,null,null,null,null,null,1088]
[null,null,null,null,null,null,null,1089]
[null,null,null,null,null,null,null,1090]
[null,null,null,null,null,null,null,1091]
[null,null,null,null,null,null,null,1092]
[null,null,null,null,null,null,null,1093]
[null,null,null,null,null,null,null,1094]
[null,null,null,null,null,null,null,1095]
[null,null,null,null,null,null,null,1096]
[null,null,null,null,null,null,null,1097]
[null,null,null,null,null,null,null,1098]
[null,null,null,null,null,null,null,1099]
[null,null,null,null,null,null,null,1100]
[null,null,null,null,null,null,null,1101,null,null,null,null,null,null,null,null,null,null,null,null,null,null,null,null,null,null,null,null,null,null,null,null,null,null,null,null,null,null,null,null,null,null,null,null,null,null,null,null,null,null,null,null,null,null,null,null,null,null,null,null,null,null,null,null,null,null,null,null,null,null,null,null,null,null,null,null,null,null,null,null,null,null,null,null,null,null,null,null,null,null,null,null,null,null,null,null,null,null,null,null,null,null,null,null,null,null,null,null,null,null,null,null,null,null,null,null,null,null,null,null,null,"Page  49"]
[null,null,null,null,null,null,null,1102]
[null,null,null,null,null,null,null,1103]
[null,null,null,null,null,null,null,1104]
[null,null,null,null,null,null,null,1105]
[null,null,null,null,null,null,null,1106]
[null,null,null,null,null,null,null,1107]
[null,null,null,null,null,null,null,1108]
[null,null,null,null,null,null,null,1109]
[null,null,null,null,null,null,null,1110]
[null,null,null,null,null,null,null,1111]
[null,null,null,null,null,null,null,1112]
[null,null,null,null,null,null,null,1113]
[null,null,null,null,null,null,null,1114]
[null,null,null,null,null,null,null,1115]
[null,null,null,null,null,null,null,1116]
[null,null,null,null,null,null,null,1117]
[null,null,null,null,null,null,null,1118]
[null,null,null,null,null,null,null,1119]
[null,null,null,null,null,null,null,1120]
[null,null,null,null,null,null,null,1121]
[null,null,null,null,null,null,null,1122]
[null,null,null,null,null,null,null,1123]
[null,null,null,null,null,null,null,1124,null,null,null,null,null,null,null,null,null,null,null,null,null,null,null,null,null,null,null,null,null,null,null,null,null,null,null,null,null,null,null,null,null,null,null,null,null,null,null,null,null,null,null,null,null,null,null,null,null,null,null,null,null,null,null,null,null,null,null,null,null,null,null,null,null,null,null,null,null,null,null,null,null,null,null,null,null,null,null,null,null,null,null,null,null,null,null,null,null,null,null,null,null,null,null,null,null,null,null,null,null,null,null,null,null,null,null,null,null,null,null,null,null,"Page  50"]
[null,null,null,null,null,null,null,1125]
[null,null,null,null,null,null,null,1126]
[null,null,null,null,null,null,null,1127]
[null,null,null,null,null,null,null,1128]
[null,null,null,null,null,null,null,1129]
[null,null,null,null,null,null,null,1130]
[null,null,null,null,null,null,null,1131]
[null,null,null,null,null,null,null,1132]
[null,null,null,null,null,null,null,1133]
[null,null,null,null,null,null,null,1134]
[null,null,null,null,null,null,null,1135]
[null,null,null,null,null,null,null,1136]
[null,null,null,null,null,null,null,1137]
[null,null,null,null,null,null,null,1138]
[null,null,null,null,null,null,null,1139]
[null,null,null,null,null,null,null,1140]
[null,null,null,null,null,null,null,1141]
[null,null,null,null,null,null,null,1142]
[null,null,null,null,null,null,null,1143]
[null,null,null,null,null,null,null,1144]
[null,null,null,null,null,null,null,1145]
[null,null,null,null,null,null,null,1146]
[null,null,null,null,null,null,null,1147,null,null,null,null,null,null,null,null,null,null,null,null,null,null,null,null,null,null,null,null,null,null,null,null,null,null,null,null,null,null,null,null,null,null,null,null,null,null,null,null,null,null,null,null,null,null,null,null,null,null,null,null,null,null,null,null,null,null,null,null,null,null,null,null,null,null,null,null,null,null,null,null,null,null,null,null,null,null,null,null,null,null,null,null,null,null,null,null,null,null,null,null,null,null,null,null,null,null,null,null,null,null,null,null,null,null,null,null,null,null,null,null,null,"Page  51"]
[null,null,null,null,null,null,null,1148]
[null,null,null,null,null,null,null,1149]
[null,null,null,null,null,null,null,1150]
[null,null,null,null,null,null,null,1151]
[null,null,null,null,null,null,null,1152]
[null,null,null,null,null,null,null,1153]
[null,null,null,null,null,null,null,1154]
[null,null,null,null,null,null,null,1155]
[null,null,null,null,null,null,null,1156]
[null,null,null,null,null,null,null,1157]
[null,null,null,null,null,null,null,1158]
[null,null,null,null,null,null,null,1159]
[null,null,null,null,null,null,null,1160]
[null,null,null,null,null,null,null,1161]
[null,null,null,null,null,null,null,1162]
[null,null,null,null,null,null,null,1163]
[null,null,null,null,null,null,null,1164]
[null,null,null,null,null,null,null,1165]
[null,null,null,null,null,null,null,1166]
[null,null,null,null,null,null,null,1167]
[null,null,null,null,null,null,null,1168]
[null,null,null,null,null,null,null,1169]
[null,null,null,null,null,null,null,1170,null,null,null,null,null,null,null,null,null,null,null,null,null,null,null,null,null,null,null,null,null,null,null,null,null,null,null,null,null,null,null,null,null,null,null,null,null,null,null,null,null,null,null,null,null,null,null,null,null,null,null,null,null,null,null,null,null,null,null,null,null,null,null,null,null,null,null,null,null,null,null,null,null,null,null,null,null,null,null,null,null,null,null,null,null,null,null,null,null,null,null,null,null,null,null,null,null,null,null,null,null,null,null,null,null,null,null,null,null,null,null,null,null,"Page  52"]
[null,null,null,null,null,null,null,1171]
[null,null,null,null,null,null,null,1172]
[null,null,null,null,null,null,null,1173]
[null,null,null,null,null,null,null,1174]
[null,null,null,null,null,null,null,1175]
[null,null,null,null,null,null,null,1176]
[null,null,null,null,null,null,null,1177]
[null,null,null,null,null,null,null,1178]
[null,null,null,null,null,null,null,1179]
[null,null,null,null,null,null,null,1180]
[null,null,null,null,null,null,null,1181]
[null,null,null,null,null,null,null,1182]
[null,null,null,null,null,null,null,1183]
[null,null,null,null,null,null,null,1184]
[null,null,null,null,null,null,null,1185]
[null,null,null,null,null,null,null,1186]
[null,null,null,null,null,null,null,1187]
[null,null,null,null,null,null,null,1188]
[null,null,null,null,null,null,null,1189]
[null,null,null,null,null,null,null,1190]
[null,null,null,null,null,null,null,1191]
[null,null,null,null,null,null,null,1192]
[null,null,null,null,null,null,null,1193,null,null,null,null,null,null,null,null,null,null,null,null,null,null,null,null,null,null,null,null,null,null,null,null,null,null,null,null,null,null,null,null,null,null,null,null,null,null,null,null,null,null,null,null,null,null,null,null,null,null,null,null,null,null,null,null,null,null,null,null,null,null,null,null,null,null,null,null,null,null,null,null,null,null,null,null,null,null,null,null,null,null,null,null,null,null,null,null,null,null,null,null,null,null,null,null,null,null,null,null,null,null,null,null,null,null,null,null,null,null,null,null,null,"Page  53"]
[null,null,null,null,null,null,null,1194]
[null,null,null,null,null,null,null,1195]
[null,null,null,null,null,null,null,1196]
[null,null,null,null,null,null,null,1197]
[null,null,null,null,null,null,null,1198]
[null,null,null,null,null,null,null,1199]
[null,null,null,null,null,null,null,1200]
[null,null,null,null,null,null,null,1201]
[null,null,null,null,null,null,null,1202]
[null,null,null,null,null,null,null,1203]
[null,null,null,null,null,null,null,1204]
[null,null,null,null,null,null,null,1205]
[null,null,null,null,null,null,null,1206]
[null,null,null,null,null,null,null,1207]
[null,null,null,null,null,null,null,1208]
[null,null,null,null,null,null,null,1209]
[null,null,null,null,null,null,null,1210]
[null,null,null,null,null,null,null,1211]
[null,null,null,null,null,null,null,1212]
[null,null,null,null,null,null,null,1213]
[null,null,null,null,null,null,null,1214]
[null,null,null,null,null,null,null,1215]
[null,null,null,null,null,null,null,1216,null,null,null,null,null,null,null,null,null,null,null,null,null,null,null,null,null,null,null,null,null,null,null,null,null,null,null,null,null,null,null,null,null,null,null,null,null,null,null,null,null,null,null,null,null,null,null,null,null,null,null,null,null,null,null,null,null,null,null,null,null,null,null,null,null,null,null,null,null,null,null,null,null,null,null,null,null,null,null,null,null,null,null,null,null,null,null,null,null,null,null,null,null,null,null,null,null,null,null,null,null,null,null,null,null,null,null,null,null,null,null,null,null,"Page  54"]
[null,null,null,null,null,null,null,1217]
[null,null,null,null,null,null,null,1218]
[null,null,null,null,null,null,null,1219]
[null,null,null,null,null,null,null,1220]
[null,null,null,null,null,null,null,1221]
[null,null,null,null,null,null,null,1222]
[null,null,null,null,null,null,null,1223]
[null,null,null,null,null,null,null,1224]
[null,null,null,null,null,null,null,1225]
[null,null,null,null,null,null,null,1226]
[null,null,null,null,null,null,null,1227]
[null,null,null,null,null,null,null,1228]
[null,null,null,null,null,null,null,1229]
[null,null,null,null,null,null,null,1230]
[null,null,null,null,null,null,null,1231]
[null,null,null,null,null,null,null,1232]
[null,null,null,null,null,null,null,1233]
[null,null,null,null,null,null,null,1234]
[null,null,null,null,null,null,null,1235]
[null,null,null,null,null,null,null,1236]
[null,null,null,null,null,null,null,1237]
[null,null,null,null,null,null,null,1238]
[null,null,null,null,null,null,null,1239,null,null,null,null,null,null,null,null,null,null,null,null,null,null,null,null,null,null,null,null,null,null,null,null,null,null,null,null,null,null,null,null,null,null,null,null,null,null,null,null,null,null,null,null,null,null,null,null,null,null,null,null,null,null,null,null,null,null,null,null,null,null,null,null,null,null,null,null,null,null,null,null,null,null,null,null,null,null,null,null,null,null,null,null,null,null,null,null,null,null,null,null,null,null,null,null,null,null,null,null,null,null,null,null,null,null,null,null,null,null,null,null,null,"Page  55"]
[null,null,null,null,null,null,null,1240]
[null,null,null,null,null,null,null,1241]
[null,null,null,null,null,null,null,1242]
[null,null,null,null,null,null,null,1243]
[null,null,null,null,null,null,null,1244]
[null,null,null,null,null,null,null,1245]
[null,null,null,null,null,null,null,1246]
[null,null,null,null,null,null,null,1247]
[null,null,null,null,null,null,null,1248]
[null,null,null,null,null,null,null,1249]
[null,null,null,null,null,null,null,1250]
[null,null,null,null,null,null,null,1251]
[null,null,null,null,null,null,null,1252]
[null,null,null,null,null,null,null,1253]
[null,null,null,null,null,null,null,1254]
[null,null,null,null,null,null,null,1255]
[null,null,null,null,null,null,null,1256]
[null,null,null,null,null,null,null,1257]
[null,null,null,null,null,null,null,1258]
[null,null,null,null,null,null,null,1259]
[null,null,null,null,null,null,null,1260]
[null,null,null,null,null,null,null,1261]
[null,null,null,null,null,null,null,1262,null,null,null,null,null,null,null,null,null,null,null,null,null,null,null,null,null,null,null,null,null,null,null,null,null,null,null,null,null,null,null,null,null,null,null,null,null,null,null,null,null,null,null,null,null,null,null,null,null,null,null,null,null,null,null,null,null,null,null,null,null,null,null,null,null,null,null,null,null,null,null,null,null,null,null,null,null,null,null,null,null,null,null,null,null,null,null,null,null,null,null,null,null,null,null,null,null,null,null,null,null,null,null,null,null,null,null,null,null,null,null,null,null,"Page  56"]
[null,null,null,null,null,null,null,1263]
[null,null,null,null,null,null,null,1264]
[null,null,null,null,null,null,null,1265]
[null,null,null,null,null,null,null,1266]
[null,null,null,null,null,null,null,1267]
[null,null,null,null,null,null,null,1268]
[null,null,null,null,null,null,null,1269]
[null,null,null,null,null,null,null,1270]
[null,null,null,null,null,null,null,1271]
[null,null,null,null,null,null,null,1272]
[null,null,null,null,null,null,null,1273]
[null,null,null,null,null,null,null,1274]
[null,null,null,null,null,null,null,1275]
[null,null,null,null,null,null,null,1276]
[null,null,null,null,null,null,null,1277]
[null,null,null,null,null,null,null,1278]
[null,null,null,null,null,null,null,1279]
[null,null,null,null,null,null,null,1280]
[null,null,null,null,null,null,null,1281]
[null,null,null,null,null,null,null,1282]
[null,null,null,null,null,null,null,1283]
[null,null,null,null,null,null,null,1284]
[null,null,null,null,null,null,null,1285,null,null,null,null,null,null,null,null,null,null,null,null,null,null,null,null,null,null,null,null,null,null,null,null,null,null,null,null,null,null,null,null,null,null,null,null,null,null,null,null,null,null,null,null,null,null,null,null,null,null,null,null,null,null,null,null,null,null,null,null,null,null,null,null,null,null,null,null,null,null,null,null,null,null,null,null,null,null,null,null,null,null,null,null,null,null,null,null,null,null,null,null,null,null,null,null,null,null,null,null,null,null,null,null,null,null,null,null,null,null,null,null,null,"Page  57"]
[null,null,null,null,null,null,null,1286]
[null,null,null,null,null,null,null,1287]
[null,null,null,null,null,null,null,1288]
[null,null,null,null,null,null,null,1289]
[null,null,null,null,null,null,null,1290]
[null,null,null,null,null,null,null,1291]
[null,null,null,null,null,null,null,1292]
[null,null,null,null,null,null,null,1293]
[null,null,null,null,null,null,null,1294]
[null,null,null,null,null,null,null,1295]
[null,null,null,null,null,null,null,1296]
[null,null,null,null,null,null,null,1297]
[null,null,null,null,null,null,null,1298]
[null,null,null,null,null,null,null,1299]
[null,null,null,null,null,null,null,1300]
[null,null,null,null,null,null,null,1301]
[null,null,null,null,null,null,null,1302]
[null,null,null,null,null,null,null,1303]
[null,null,null,null,null,null,null,1304]
[null,null,null,null,null,null,null,1305]
[null,null,null,null,null,null,null,1306]
[null,null,null,null,null,null,null,1307]
[null,null,null,null,null,null,null,1308,null,null,null,null,null,null,null,null,null,null,null,null,null,null,null,null,null,null,null,null,null,null,null,null,null,null,null,null,null,null,null,null,null,null,null,null,null,null,null,null,null,null,null,null,null,null,null,null,null,null,null,null,null,null,null,null,null,null,null,null,null,null,null,null,null,null,null,null,null,null,null,null,null,null,null,null,null,null,null,null,null,null,null,null,null,null,null,null,null,null,null,null,null,null,null,null,null,null,null,null,null,null,null,null,null,null,null,null,null,null,null,null,null,"Page  58"]
[null,null,null,null,null,null,null,1309]
[null,null,null,null,null,null,null,1310]
[null,null,null,null,null,null,null,1311]
[null,null,null,null,null,null,null,1312]
[null,null,null,null,null,null,null,1313]
[null,null,null,null,null,null,null,1314]
[null,null,null,null,null,null,null,1315]
[null,null,null,null,null,null,null,1316]
[null,null,null,null,null,null,null,1317]
[null,null,null,null,null,null,null,1318]
[null,null,null,null,null,null,null,1319]
[null,null,null,null,null,null,null,1320]
[null,null,null,null,null,null,null,1321]
[null,null,null,null,null,null,null,1322]
[null,null,null,null,null,null,null,1323]
[null,null,null,null,null,null,null,1324]
[null,null,null,null,null,null,null,1325]
[null,null,null,null,null,null,null,1326]
[null,null,null,null,null,null,null,1327]
[null,null,null,null,null,null,null,1328]
[null,null,null,null,null,null,null,1329]
[null,null,null,null,null,null,null,1330]
[null,null,null,null,null,null,null,1331,null,null,null,null,null,null,null,null,null,null,null,null,null,null,null,null,null,null,null,null,null,null,null,null,null,null,null,null,null,null,null,null,null,null,null,null,null,null,null,null,null,null,null,null,null,null,null,null,null,null,null,null,null,null,null,null,null,null,null,null,null,null,null,null,null,null,null,null,null,null,null,null,null,null,null,null,null,null,null,null,null,null,null,null,null,null,null,null,null,null,null,null,null,null,null,null,null,null,null,null,null,null,null,null,null,null,null,null,null,null,null,null,null,"Page  59"]
[null,null,null,null,null,null,null,1332]
[null,null,null,null,null,null,null,1333]
[null,null,null,null,null,null,null,1334]
[null,null,null,null,null,null,null,1335]
[null,null,null,null,null,null,null,1336]
[null,null,null,null,null,null,null,1337]
[null,null,null,null,null,null,null,1338]
[null,null,null,null,null,null,null,1339]
[null,null,null,null,null,null,null,1340]
[null,null,null,null,null,null,null,1341]
[null,null,null,null,null,null,null,1342]
[null,null,null,null,null,null,null,1343]
[null,null,null,null,null,null,null,1344]
[null,null,null,null,null,null,null,1345]
[null,null,null,null,null,null,null,1346]
[null,null,null,null,null,null,null,1347]
[null,null,null,null,null,null,null,1348]
[null,null,null,null,null,null,null,1349]
[null,null,null,null,null,null,null,1350]
[null,null,null,null,null,null,null,1351]
[null,null,null,null,null,null,null,1352]
[null,null,null,null,null,null,null,1353]
[null,null,null,null,null,null,null,1354,null,null,null,null,null,null,null,null,null,null,null,null,null,null,null,null,null,null,null,null,null,null,null,null,null,null,null,null,null,null,null,null,null,null,null,null,null,null,null,null,null,null,null,null,null,null,null,null,null,null,null,null,null,null,null,null,null,null,null,null,null,null,null,null,null,null,null,null,null,null,null,null,null,null,null,null,null,null,null,null,null,null,null,null,null,null,null,null,null,null,null,null,null,null,null,null,null,null,null,null,null,null,null,null,null,null,null,null,null,null,null,null,null,"Page  60"]
[null,null,null,null,null,null,null,1355]
[null,null,null,null,null,null,null,1356]
[null,null,null,null,null,null,null,1357]
[null,null,null,null,null,null,null,1358]
[null,null,null,null,null,null,null,1359]
[null,null,null,null,null,null,null,1360]
[null,null,null,null,null,null,null,1361]
[null,null,null,null,null,null,null,1362]
[null,null,null,null,null,null,null,1363]
[null,null,null,null,null,null,null,1364]
[null,null,null,null,null,null,null,1365]
[null,null,null,null,null,null,null,1366]
[null,null,null,null,null,null,null,1367]
[null,null,null,null,null,null,null,1368]
[null,null,null,null,null,null,null,1369]
[null,null,null,null,null,null,null,1370]
[null,null,null,null,null,null,null,1371]
[null,null,null,null,null,null,null,1372]
[null,null,null,null,null,null,null,1373]
[null,null,null,null,null,null,null,1374]
[null,null,null,null,null,null,null,1375]
[null,null,null,null,null,null,null,1376]
[null,null,null,null,null,null,null,1377,null,null,null,null,null,null,null,null,null,null,null,null,null,null,null,null,null,null,null,null,null,null,null,null,null,null,null,null,null,null,null,null,null,null,null,null,null,null,null,null,null,null,null,null,null,null,null,null,null,null,null,null,null,null,null,null,null,null,null,null,null,null,null,null,null,null,null,null,null,null,null,null,null,null,null,null,null,null,null,null,null,null,null,null,null,null,null,null,null,null,null,null,null,null,null,null,null,null,null,null,null,null,null,null,null,null,null,null,null,null,null,null,null,"Page  61"]
[null,null,null,null,null,null,null,1378]
[null,null,null,null,null,null,null,1379]
[null,null,null,null,null,null,null,1380]
[null,null,null,null,null,null,null,1381]
[null,null,null,null,null,null,null,1382]
[null,null,null,null,null,null,null,1383]
[null,null,null,null,null,null,null,1384]
[null,null,null,null,null,null,null,1385]
[null,null,null,null,null,null,null,1386]
[null,null,null,null,null,null,null,1387]
[null,null,null,null,null,null,null,1388]
[null,null,null,null,null,null,null,1389]
[null,null,null,null,null,null,null,1390]
[null,null,null,null,null,null,null,1391]
[null,null,null,null,null,null,null,1392]
[null,null,null,null,null,null,null,1393]
[null,null,null,null,null,null,null,1394]
[null,null,null,null,null,null,null,1395]
[null,null,null,null,null,null,null,1396]
[null,null,null,null,null,null,null,1397]
[null,null,null,null,null,null,null,1398]
[null,null,null,null,null,null,null,1399]
[null,null,null,null,null,null,null,1400,null,null,null,null,null,null,null,null,null,null,null,null,null,null,null,null,null,null,null,null,null,null,null,null,null,null,null,null,null,null,null,null,null,null,null,null,null,null,null,null,null,null,null,null,null,null,null,null,null,null,null,null,null,null,null,null,null,null,null,null,null,null,null,null,null,null,null,null,null,null,null,null,null,null,null,null,null,null,null,null,null,null,null,null,null,null,null,null,null,null,null,null,null,null,null,null,null,null,null,null,null,null,null,null,null,null,null,null,null,null,null,null,null,"Page  62"]
[null,null,null,null,null,null,null,1401]
[null,null,null,null,null,null,null,1402]
[null,null,null,null,null,null,null,1403]
[null,null,null,null,null,null,null,1404]
[null,null,null,null,null,null,null,1405]
[null,null,null,null,null,null,null,1406]
[null,null,null,null,null,null,null,1407]
[null,null,null,null,null,null,null,1408]
[null,null,null,null,null,null,null,1409]
[null,null,null,null,null,null,null,1410]
[null,null,null,null,null,null,null,1411]
[null,null,null,null,null,null,null,1412]
[null,null,null,null,null,null,null,1413]
[null,null,null,null,null,null,null,1414]
[null,null,null,null,null,null,null,1415]
[null,null,null,null,null,null,null,1416]
[null,null,null,null,null,null,null,1417]
[null,null,null,null,null,null,null,1418]
[null,null,null,null,null,null,null,1419]
[null,null,null,null,null,null,null,1420]
[null,null,null,null,null,null,null,1421]
[null,null,null,null,null,null,null,1422]
[null,null,null,null,null,null,null,1423,null,null,null,null,null,null,null,null,null,null,null,null,null,null,null,null,null,null,null,null,null,null,null,null,null,null,null,null,null,null,null,null,null,null,null,null,null,null,null,null,null,null,null,null,null,null,null,null,null,null,null,null,null,null,null,null,null,null,null,null,null,null,null,null,null,null,null,null,null,null,null,null,null,null,null,null,null,null,null,null,null,null,null,null,null,null,null,null,null,null,null,null,null,null,null,null,null,null,null,null,null,null,null,null,null,null,null,null,null,null,null,null,null,"Page  63"]
[null,null,null,null,null,null,null,1424]
[null,null,null,null,null,null,null,1425]
[null,null,null,null,null,null,null,1426]
[null,null,null,null,null,null,null,1427]
[null,null,null,null,null,null,null,1428]
[null,null,null,null,null,null,null,1429]
[null,null,null,null,null,null,null,1430]
[null,null,null,null,null,null,null,1431]
[null,null,null,null,null,null,null,1432]
[null,null,null,null,null,null,null,1433]
[null,null,null,null,null,null,null,1434]
[null,null,null,null,null,null,null,1435]
[null,null,null,null,null,null,null,1436]
[null,null,null,null,null,null,null,1437]
[null,null,null,null,null,null,null,1438]
[null,null,null,null,null,null,null,1439]
[null,null,null,null,null,null,null,1440]
[null,null,null,null,null,null,null,1441]
[null,null,null,null,null,null,null,1442]
[null,null,null,null,null,null,null,1443]
[null,null,null,null,null,null,null,1444]
[null,null,null,null,null,null,null,1445]
[null,null,null,null,null,null,null,1446,null,null,null,null,null,null,null,null,null,null,null,null,null,null,null,null,null,null,null,null,null,null,null,null,null,null,null,null,null,null,null,null,null,null,null,null,null,null,null,null,null,null,null,null,null,null,null,null,null,null,null,null,null,null,null,null,null,null,null,null,null,null,null,null,null,null,null,null,null,null,null,null,null,null,null,null,null,null,null,null,null,null,null,null,null,null,null,null,null,null,null,null,null,null,null,null,null,null,null,null,null,null,null,null,null,null,null,null,null,null,null,null,null,"Page  64"]
[null,null,null,null,null,null,null,1447]
[null,null,null,null,null,null,null,1448]
[null,null,null,null,null,null,null,1449]
[null,null,null,null,null,null,null,1450]
[null,null,null,null,null,null,null,1451]
[null,null,null,null,null,null,null,1452]
[null,null,null,null,null,null,null,1453]
[null,null,null,null,null,null,null,1454]
[null,null,null,null,null,null,null,1455]
[null,null,null,null,null,null,null,1456]
[null,null,null,null,null,null,null,1457]
[null,null,null,null,null,null,null,1458]
[null,null,null,null,null,null,null,1459]
[null,null,null,null,null,null,null,1460]
[null,null,null,null,null,null,null,1461]
[null,null,null,null,null,null,null,1462]
[null,null,null,null,null,null,null,1463]
[null,null,null,null,null,null,null,1464]
[null,null,null,null,null,null,null,1465]
[null,null,null,null,null,null,null,1466]
[null,null,null,null,null,null,null,1467]
[null,null,null,null,null,null,null,1468]
[null,null,null,null,null,null,null,1469,null,null,null,null,null,null,null,null,null,null,null,null,null,null,null,null,null,null,null,null,null,null,null,null,null,null,null,null,null,null,null,null,null,null,null,null,null,null,null,null,null,null,null,null,null,null,null,null,null,null,null,null,null,null,null,null,null,null,null,null,null,null,null,null,null,null,null,null,null,null,null,null,null,null,null,null,null,null,null,null,null,null,null,null,null,null,null,null,null,null,null,null,null,null,null,null,null,null,null,null,null,null,null,null,null,null,null,null,null,null,null,null,null,"Page  65"]
[null,null,null,null,null,null,null,1470]
[null,null,null,null,null,null,null,1471]
[null,null,null,null,null,null,null,1472]
[null,null,null,null,null,null,null,1473]
[null,null,null,null,null,null,null,1474]
[null,null,null,null,null,null,null,1475]
[null,null,null,null,null,null,null,1476]
[null,null,null,null,null,null,null,1477]
[null,null,null,null,null,null,null,1478]
[null,null,null,null,null,null,null,1479]
[null,null,null,null,null,null,null,1480]
[null,null,null,null,null,null,null,1481]
[null,null,null,null,null,null,null,1482]
[null,null,null,null,null,null,null,1483]
[null,null,null,null,null,null,null,1484]
[null,null,null,null,null,null,null,1485]
[null,null,null,null,null,null,null,1486]
[null,null,null,null,null,null,null,1487]
[null,null,null,null,null,null,null,1488]
[null,null,null,null,null,null,null,1489]
[null,null,null,null,null,null,null,1490]
[null,null,null,null,null,null,null,1491]
[null,null,null,null,null,null,null,1492,null,null,null,null,null,null,null,null,null,null,null,null,null,null,null,null,null,null,null,null,null,null,null,null,null,null,null,null,null,null,null,null,null,null,null,null,null,null,null,null,null,null,null,null,null,null,null,null,null,null,null,null,null,null,null,null,null,null,null,null,null,null,null,null,null,null,null,null,null,null,null,null,null,null,null,null,null,null,null,null,null,null,null,null,null,null,null,null,null,null,null,null,null,null,null,null,null,null,null,null,null,null,null,null,null,null,null,null,null,null,null,null,null,"Page  66"]
[null,null,null,null,null,null,null,1493]
[null,null,null,null,null,null,null,1494]
[null,null,null,null,null,null,null,1495]
[null,null,null,null,null,null,null,1496]
[null,null,null,null,null,null,null,1497]
[null,null,null,null,null,null,null,1498]
[null,null,null,null,null,null,null,1499]
[null,null,null,null,null,null,null,1500]
[]
[null,null,null,null,null,null,null,null,"END OF DOCUMENT"]

{"sheet":"Year 2","index":3,"n_rows":1514,"n_cols":122,"rows_kept":1514,"cut":false,"hidden":false,"merged":[[11,112,11,115],[11,116,11,119],[12,8,12,17],[12,18,12,23],[12,24,12,29],[12,30,12,33],[12,34,12,39],[12,40,12,48],[12,49,12,54],[12,55,12,58],[11,87,11,91],[11,92,11,95],[11,96,11,99],[11,100,11,103],[11,104,11,107],[11,108,11,111],[11,55,11,58],[11,59,11,69],[11,70,11,73],[11,74,11,77],[11,78,11,81],[11,82,11,86],[10,82,10,91],[10,96,10,107],[10,108,10,119],[11,8,11,17],[11,18,11,23],[11,24,11,29],[11,30,11,33],[11,34,11,39],[11,40,11,48],[11,49,11,54],[0,8,0,123],[1,8,3,19],[1,20,3,49],[1,51,3,57],[1,58,3,73],[1,121,30,123],[5,8,7,73],[5,74,7,103],[9,92,10,95],[13,96,13,99],[13,100,13,103],[13,104,13,107],[13,108,13,111],[13,112,13,115],[13,116,13,119],[13,70,13,73],[13,74,13,77],[13,78,13,81],[13,82,13,86],[13,87,13,91],[13,92,13,95],[12,116,12,119],[13,8,13,17],[13,18,13,23],[13,24,13,29],[13,30,13,33],[13,34,13,39],[13,40,13,48],[13,49,13,54],[13,55,13,58],[13,59,13,69],[12,92,12,95],[12,96,12,99],[12,100,12,103],[12,104,12,107],[12,108,12,111],[12,112,12,115],[12,59,12,69],[12,70,12,73],[12,74,12,77],[12,78,12,81],[12,82,12,86],[12,87,12,91],[15,112,15,115],[15,116,15,119],[16,8,16,17],[16,18,16,23],[16,24,16,29],[16,30,16,33],[16,34,16,39],[16,40,16,48],[16,49,16,54],[16,55,16,58],[15,87,15,91],[15,92,15,95],[15,96,15,99],[15,100,15,103],[15,104,15,107],[15,108,15,111],[15,55,15,58],[15,59,15,69],[15,70,15,73],[15,74,15,77],[15,78,15,81],[15,82,15,86],[14,108,14,111],[14,112,14,115],[14,116,14,119],[15,8,15,17],[15,18,15,23],[15,24,15,29],[15,30,15,33],[15,34,15,39],[15,40,15,48],[15,49,15,54],[14,82,14,86],[14,87,14,91],[14,92,14,95],[14,96,14,99],[14,100,14,103],[14,104,14,107],[14,49,14,54],[14,55,14,58],[14,59,14,69],[14,70,14,73],[14,74,14,77],[14,78,14,81],[14,8,14,17],[14,18,14,23],[14,24,14,29],[14,30,14,33],[14,34,14,39],[14,40,14,48],[17,96,17,99],[17,100,17,103],[17,104,17,107],[17,108,17,111],[17,112,17,115],[17,116,17,119],[17,70,17,73],[17,74,17,77],[17,78,17,81],[17,82,17,86],[17,87,17,91],[17,92,17,95],[16,116,16,119],[17,8,17,17],[17,18,17,23],[17,24,17,29],[17,30,17,33],[17,34,17,39],[17,40,17,48],[17,49,17,54],[17,55,17,58],[17,59,17,69],[16,92,16,95],[16,96,16,99],[16,100,16,103],[16,104,16,107],[16,108,16,111],[16,112,16,115],[16,59,16,69],[16,70,16,73],[16,74,16,77],[16,78,16,81],[16,82,16,86],[16,87,16,91],[19,112,19,115],[19,116,19,119],[20,8,20,17],[20,18,20,23],[20,24,20,29],[20,30,20,33],[20,34,20,39],[20,40,20,48],[20,49,20,54],[20,55,20,58],[19,87,19,91],[19,92,19,95],[19,96,19,99],[19,100,19,103],[19,104,19,107],[19,108,19,111],[19,55,19,58],[19,59,19,69],[19,70,19,73],[19,74,19,77],[19,78,19,81],[19,82,19,86],[18,108,18,111],[18,112,18,115],[18,116,18,119],[19,8,19,17],[19,18,19,23],[19,24,19,29],[19,30,19,33],[19,34,19,39],[19,40,19,48],[19,49,19,54],[18,82,18,86],[18,87,18,91],[18,92,18,95],[18,96,18,99],[18,100,18,103],[18,104,18,107],[18,49,18,54],[18,55,18,58],[18,59,18,69],[18,70,18,73],[18,74,18,77],[18,78,18,81],[18,8,18,17],[18,18,18,23],[18,24,18,29],[18,30,18,33],[18,34,18,39],[18,40,18,48],[21,96,21,99],[21,100,21,103],[21,104,21,107],[21,108,21,111],[21,112,21,115],[21,116,21,119],[21,70,21,73],[21,74,21,77],[21,78,21,81],[21,82,21,86],[21,87,21,91],[21,92,21,95],[20,116,20,119],[21,8,21,17],[21,18,21,23],[21,24,21,29],[21,30,21,33],[21,34,21,39],[21,40,21,48],[21,49,21,54],[21,55,21,58],[21,59,21,69],[20,92,20,95],[20,96,20,99],[20,100,20,103],[20,104,20,107],[20,108,20,111],[20,112,20,115],[20,59,20,69],[20,70,20,73],[20,74,20,77],[20,78,20,81],[20,82,20,86],[20,87,20,91],[23,112,23,115],[23,116,23,119],[24,8,24,17],[24,18,24,23],[24,24,24,29],[24,30,24,33],[24,34,24,39],[24,40,24,48],[24,49,24,54],[24,55,24,58],[23,87,23,91],[23,92,23,95],[23,96,23,99],[23,100,23,103],[23,104,23,107],[23,108,23,111],[23,55,23,58],[23,59,23,69],[23,70,23,73],[23,74,23,77],[23,78,23,81],[23,82,23,86],[22,108,22,111],[22,112,22,115],[22,116,22,119],[23,8,23,17],[23,18,23,23],[23,24,23,29],[23,30,23,33],[23,34,23,39],[23,40,23,48],[23,49,23,54],[22,82,22,86],[22,87,22,91],[22,92,22,95],[22,96,22,99],[22,100,22,103],[22,104,22,107],[22,49,22,54],[22,55,22,58],[22,59,22,69],[22,70,22,73],[22,74,22,77],[22,78,22,81],[22,8,22,17],[22,18,22,23],[22,24,22,29],[22,30,22,33],[22,34,22,39],[22,40,22,48],[25,96,25,99],[25,100,25,103],[25,104,25,107],[25,108,25,111],[25,112,25,115],[25,116,25,119],[25,70,25,73],[25,74,25,77],[25,78,25,81],[25,82,25,86],[25,87,25,91],[25,92,25,95],[24,116,24,119],[25,8,25,17],[25,18,25,23],[25,24,25,29],[25,30,25,33],[25,34,25,39],[25,40,25,48],[25,49,25,54],[25,55,25,58],[25,59,25,69],[24,92,24,95],[24,96,24,99],[24,100,24,103],[24,104,24,107],[24,108,24,111],[24,112,24,115],[24,59,24,69],[24,70,24,73],[24,74,24,77],[24,78,24,81],[24,82,24,86],[24,87,24,91],[27,112,27,115],[27,116,27,119],[28,8,28,17],[28,18,28,23],[28,24,28,29],[28,30,28,33],[28,34,28,39],[28,40,28,48],[28,49,28,54],[28,55,28,58],[27,87,27,91],[27,92,27,95],[27,96,27,99],[27,100,27,103],[27,104,27,107],[27,108,27,111],[27,55,27,58],[27,59,27,69],[27,70,27,73],[27,74,27,77],[27,78,27,81],[27,82,27,86],[26,108,26,111],[26,112,26,115],[26,116,26,119],[27,8,27,17],[27,18,27,23],[27,24,27,29],[27,30,27,33],[27,34,27,39],[27,40,27,48],[27,49,27,54],[26,82,26,86],[26,87,26,91],[26,92,26,95],[26,96,26,99],[26,100,26,103],[26,104,26,107],[26,49,26,54],[26,55,26,58],[26,59,26,69],[26,70,26,73],[26,74,26,77],[26,78,26,81],[26,8,26,17],[26,18,26,23],[26,24,26,29],[26,30,26,33],[26,34,26,39],[26,40,26,48],[29,96,29,99],[29,100,29,103],[29,104,29,107],[29,108,29,111],[29,112,29,115],[29,116,29,119],[29,70,29,73],[29,74,29,77],[29,78,29,81],[29,82,29,86],[29,87,29,91],[29,92,29,95],[28,116,28,119],[29,8,29,17],[29,18,29,23],[29,24,29,29],[29,30,29,33],[29,34,29,39],[29,40,29,48],[29,49,29,54],[29,55,29,58],[29,59,29,69],[28,92,28,95],[28,96,28,99],[28,100,28,103],[28,104,28,107],[28,108,28,111],[28,112,28,115],[28,59,28,69],[28,70,28,73],[28,74,28,77],[28,78,28,81],[28,82,28,86],[28,87,28,91],[30,108,30,111],[30,112,30,115],[30,116,30,119],[31,8,31,17],[31,18,31,23],[31,24,31,29],[31,30,31,33],[31,34,31,39],[31,40,31,48],[31,49,31,54],[30,82,30,86],[30,87,30,91],[30,92,30,95],[30,96,30,99],[30,100,30,103],[30,104,30,107],[30,49,30,54],[30,55,30,58],[30,59,30,69],[30,70,30,73],[30,74,30,77],[30,78,30,81],[30,8,30,17],[30,18,30,23],[30,24,30,29],[30,30,30,33],[30,34,30,39],[30,40,30,48],[33,116,33,119],[34,8,34,17],[34,18,34,23],[34,24,34,29],[34,30,34,33],[34,34,34,39],[34,40,34,48],[34,49,34,54],[34,55,34,58],[34,59,34,69],[33,92,33,95],[33,96,33,99],[33,100,33,103],[33,104,33,107],[32,112,32,115],[32,116,32,119],[33,8,33,17],[33,18,33,23],[33,24,33,29],[33,30,33,33],[33,34,33,39],[33,40,33,48],[33,49,33,54],[33,55,33,58],[32,87,32,91],[32,92,32,95],[32,96,32,99],[32,100,32,103],[32,104,32,107],[32,108,32,111],[32,55,32,58],[32,59,32,69],[32,70,32,73],[32,74,32,77],[32,78,32,81],[32,82,32,86],[35,108,35,111],[35,112,35,115],[35,116,35,119],[31,112,31,115],[31,116,31,119],[31,121,53,123],[32,8,32,17],[32,18,32,23],[32,24,32,29],[32,30,32,33],[32,34,32,39],[32,40,32,48],[32,49,32,54],[31,87,31,91],[31,92,31,95],[31,96,31,99],[31,100,31,103],[31,104,31,107],[31,108,31,111],[31,55,31,58],[31,59,31,69],[31,70,31,73],[31,74,31,77],[31,78,31,81],[31,82,31,86],[35,82,35,86],[35,87,35,91],[35,92,35,95],[35,96,35,99],[35,100,35,103],[35,104,35,107],[35,49,35,54],[35,55,35,58],[35,59,35,69],[35,70,35,73],[35,74,35,77],[35,78,35,81],[35,8,35,17],[35,18,35,23],[35,24,35,29],[35,30,35,33],[35,34,35,39],[35,40,35,48],[34,96,34,99],[34,100,34,103],[34,104,34,107],[34,108,34,111],[34,112,34,115],[34,116,34,119],[34,70,34,73],[34,74,34,77],[34,78,34,81],[34,82,34,86],[34,87,34,91],[34,92,34,95],[33,108,33,111],[33,112,33,115],[33,59,33,69],[33,70,33,73],[33,74,33,77],[33,78,33,81],[33,82,33,86],[33,87,33,91],[37,116,37,119],[37,92,37,95],[37,96,37,99],[37,100,37,103],[37,104,37,107],[37,108,37,111],[37,112,37,115],[37,59,37,69],[37,70,37,73],[37,74,37,77],[37,78,37,81],[37,82,37,86],[37,87,37,91],[36,112,36,115],[36,116,36,119],[37,8,37,17],[37,18,37,23],[37,24,37,29],[37,30,37,33],[37,34,37,39],[37,40,37,48],[37,49,37,54],[37,55,37,58],[36,87,36,91],[36,92,36,95],[36,96,36,99],[36,100,36,103],[36,104,36,107],[36,108,36,111],[36,55,36,58],[36,59,36,69],[36,70,36,73],[36,74,36,77],[36,78,36,81],[36,82,36,86],[36,8,36,17],[36,18,36,23],[36,24,36,29],[36,30,36,33],[36,34,36,39],[36,40,36,48],[36,49,36,54],[39,108,39,111],[39,112,39,115],[39,116,39,119],[40,8,40,17],[40,18,40,23],[40,24,40,29],[40,30,40,33],[40,34,40,39],[40,40,40,48],[40,49,40,54],[39,82,39,86],[39,87,39,91],[39,92,39,95],[39,96,39,99],[39,100,39,103],[39,104,39,107],[39,49,39,54],[39,55,39,58],[39,59,39,69],[39,70,39,73],[39,74,39,77],[39,78,39,81],[39,8,39,17],[39,18,39,23],[39,24,39,29],[39,30,39,33],[39,34,39,39],[39,40,39,48],[38,96,38,99],[38,100,38,103],[38,104,38,107],[38,108,38,111],[38,112,38,115],[38,116,38,119],[38,70,38,73],[38,74,38,77],[38,78,38,81],[38,82,38,86],[38,87,38,91],[38,92,38,95],[38,8,38,17],[38,18,38,23],[38,24,38,29],[38,30,38,33],[38,34,38,39],[38,40,38,48],[38,49,38,54],[38,55,38,58],[38,59,38,69],[41,116,41,119],[42,8,42,17],[42,18,42,23],[42,24,42,29],[42,30,42,33],[42,34,42,39],[42,40,42,48],[42,49,42,54],[42,55,42,58],[42,59,42,69],[41,92,41,95],[41,96,41,99],[41,100,41,103],[41,104,41,107],[41,108,41,111],[41,112,41,115],[41,59,41,69],[41,70,41,73],[41,74,41,77],[41,78,41,81],[41,82,41,86],[41,87,41,91],[40,112,40,115],[40,116,40,119],[41,8,41,17],[41,18,41,23],[41,24,41,29],[41,30,41,33],[41,34,41,39],[41,40,41,48],[41,49,41,54],[41,55,41,58],[40,87,40,91],[40,92,40,95],[40,96,40,99],[40,100,40,103],[40,104,40,107],[40,108,40,111],[40,55,40,58],[40,59,40,69],[40,70,40,73],[40,74,40,77],[40,78,40,81],[40,82,40,86],[43,108,43,111],[43,112,43,115],[43,116,43,119],[44,8,44,17],[44,18,44,23],[44,24,44,29],[44,30,44,33],[44,34,44,39],[44,40,44,48],[44,49,44,54],[43,82,43,86],[43,87,43,91],[43,92,43,95],[43,96,43,99],[43,100,43,103],[43,104,43,107],[43,49,43,54],[43,55,43,58],[43,59,43,69],[43,70,43,73],[43,74,43,77],[43,78,43,81],[43,8,43,17],[43,18,43,23],[43,24,43,29],[43,30,43,33],[43,34,43,39],[43,40,43,48],[42,96,42,99],[42,100,42,103],[42,104,42,107],[42,108,42,111],[42,112,42,115],[42,116,42,119],[42,70,42,73],[42,74,42,77],[42,78,42,81],[42,82,42,86],[42,87,42,91],[42,92,42,95],[45,116,45,119],[46,8,46,17],[46,18,46,23],[46,24,46,29],[46,30,46,33],[46,34,46,39],[46,40,46,48],[46,49,46,54],[46,55,46,58],[46,59,46,69],[45,92,45,95],[45,96,45,99],[45,100,45,103],[45,104,45,107],[45,108,45,111],[45,112,45,115],[45,59,45,69],[45,70,45,73],[45,74,45,77],[45,78,45,81],[45,82,45,86],[45,87,45,91],[44,112,44,115],[44,116,44,119],[45,8,45,17],[45,18,45,23],[45,24,45,29],[45,30,45,33],[45,34,45,39],[45,40,45,48],[45,49,45,54],[45,55,45,58],[44,87,44,91],[44,92,44,95],[44,96,44,99],[44,100,44,103],[44,104,44,107],[44,108,44,111],[44,55,44,58],[44,59,44,69],[44,70,44,73],[44,74,44,77],[44,78,44,81],[44,82,44,86],[47,108,47,111],[47,112,47,115],[47,116,47,119],[48,8,48,17],[48,18,48,23],[48,24,48,29],[48,30,48,33],[48,34,48,39],[48,40,48,48],[48,49,48,54],[47,82,47,86],[47,87,47,91],[47,92,47,95],[47,96,47,99],[47,100,47,103],[47,104,47,107],[47,49,47,54],[47,55,47,58],[47,59,47,69],[47,70,47,73],[47,74,47,77],[47,78,47,81],[47,8,47,17],[47,18,47,23],[47,24,47,29],[47,30,47,33],[47,34,47,39],[47,40,47,48],[46,96,46,99],[46,100,46,103],[46,104,46,107],[46,108,46,111],[46,112,46,115],[46,116,46,119],[46,70,46,73],[46,74,46,77],[46,78,46,81],[46,82,46,86],[46,87,46,91],[46,92,46,95],[49,116,49,119],[50,8,50,17],[50,18,50,23],[50,24,50,29],[50,30,50,33],[50,34,50,39],[50,40,50,48],[50,49,50,54],[50,55,50,58],[50,59,50,69],[49,92,49,95],[49,96,49,99],[49,100,49,103],[49,104,49,107],[49,108,49,111],[49,112,49,115],[49,59,49,69],[49,70,49,73],[49,74,49,77],[49,78,49,81],[49,82,49,86],[49,87,49,91],[48,112,48,115],[48,116,48,119],[49,8,49,17],[49,18,49,23],[49,24,49,29],[49,30,49,33],[49,34,49,39],[49,40,49,48],[49,49,49,54],[49,55,49,58],[48,87,48,91],[48,92,48,95],[48,96,48,99],[48,100,48,103],[48,104,48,107],[48,108,48,111],[48,55,48,58],[48,59,48,69],[48,70,48,73],[48,74,48,77],[48,78,48,81],[48,82,48,86],[51,108,51,111],[51,112,51,115],[51,116,51,119],[52,8,52,17],[52,18,52,23],[52,24,52,29],[52,30,52,33],[52,34,52,39],[52,40,52,48],[52,49,52,54],[51,82,51,86],[51,87,51,91],[51,92,51,95],[51,96,51,99],[51,100,51,103],[51,104,51,107],[51,49,51,54],[51,55,51,58],[51,59,51,69],[51,70,51,73],[51,74,51,77],[51,78,51,81],[51,8,51,17],[51,18,51,23],[51,24,51,29],[51,30,51,33],[51,34,51,39],[51,40,51,48],[50,96,50,99],[50,100,50,103],[50,104,50,107],[50,108,50,111],[50,112,50,115],[50,116,50,119],[50,70,50,73],[50,74,50,77],[50,78,50,81],[50,82,50,86],[50,87,50,91],[50,92,50,95],[53,116,53,119],[54,8,54,17],[54,18,54,23],[54,24,54,29],[54,30,54,33],[54,34,54,39],[54,40,54,48],[54,49,54,54],[54,55,54,58],[54,59,54,69],[53,92,53,95],[53,96,53,99],[53,100,53,103],[53,104,53,107],[53,108,53,111],[53,112,53,115],[53,59,53,69],[53,70,53,73],[53,74,53,77],[53,78,53,81],[53,82,53,86],[53,87,53,91],[52,112,52,115],[52,116,52,119],[53,8,53,17],[53,18,53,23],[53,24,53,29],[53,30,53,33],[53,34,53,39],[53,40,53,48],[53,49,53,54],[53,55,53,58],[52,87,52,91],[52,92,52,95],[52,96,52,99],[52,100,52,103],[52,104,52,107],[52,108,52,111],[52,55,52,58],[52,59,52,69],[52,70,52,73],[52,74,52,77],[52,78,52,81],[52,82,52,86],[55,96,55,99],[55,100,55,103],[55,104,55,107],[55,108,55,111],[55,112,55,115],[55,116,55,119],[55,70,55,73],[55,74,55,77],[55,78,55,81],[55,82,55,86],[55,87,55,91],[55,92,55,95],[54,121,76,123],[55,8,55,17],[55,18,55,23],[55,24,55,29],[55,30,55,33],[55,34,55,39],[55,40,55,48],[55,49,55,54],[55,55,55,58],[55,59,55,69],[54,96,54,99],[54,100,54,103],[54,104,54,107],[54,108,54,111],[54,112,54,115],[54,116,54,119],[54,70,54,73],[54,74,54,77],[54,78,54,81],[54,82,54,86],[54,87,54,91],[54,92,54,95],[57,112,57,115],[57,116,57,119],[58,8,58,17],[58,18,58,23],[58,24,58,29],[58,30,58,33],[58,34,58,39],[58,40,58,48],[58,49,58,54],[58,55,58,58],[57,87,57,91],[57,92,57,95],[57,96,57,99],[57,100,57,103],[57,104,57,107],[57,108,57,111],[57,55,57,58],[57,59,57,69],[57,70,57,73],[57,74,57,77],[57,78,57,81],[57,82,57,86],[56,108,56,111],[56,112,56,115],[56,116,56,119],[57,8,57,17],[57,18,57,23],[57,24,57,29],[57,30,57,33],[57,34,57,39],[57,40,57,48],[57,49,57,54],[56,82,56,86],[56,87,56,91],[56,92,56,95],[56,96,56,99],[56,100,56,103],[56,104,56,107],[56,49,56,54],[56,55,56,58],[56,59,56,69]],"merged_total":31601,"flags":["merged_cut"]}
[null,null,null,null,null,null,null,null,"Only two pages are unhidden, if you need additional pages to input data, press button(s) on the right to unhide additional pages. Please, only unhide pages as needed."]
[null,null,null,null,null,null,null,null,"Jurisdiction Name:",null,null,null,null,null,null,null,null,null,null,null,{"$f":"IF('Public Service COMPLETION'!AB2>0,'Public Service COMPLETION'!AB2,\"\")","v":""},null,null,null,null,null,null,null,null,null,null,null,null,null,null,null,null,null,null,null,null,null,null,null,null,null,null,null,null,null,null,"Contract #",null,null,null,null,null,null,{"$f":"IF('Public Service COMPLETION'!BN2>0,'Public Service COMPLETION'!BN2,\"\")","v":""},null,null,null,null,null,null,null,null,null,null,null,null,null,null,null,null,null,null,null,null,null,null,null,null,null,null,null,null,null,null,null,null,null,null,null,null,null,null,null,null,null,null,null,null,null,null,null,null,null,null,null,null,null,null,null,null,null,null,null,null,null,null,"Page  1"]
[]
[]
[]
[null,null,null,null,null,null,null,null,"DIRECT BENEFIT DATA BY PARTICIPANT (Fill in ALL fields for every participant added below (LMC & LMH)",null,null,null,null,null,null,null,null,null,null,null,null,null,null,null,null,null,null,null,null,null,null,null,null,null,null,null,null,null,null,null,null,null,null,null,null,null,null,null,null,null,null,null,null,null,null,null,null,null,null,null,null,null,null,null,null,null,null,null,null,null,null,null,null,null,{"$f":"IF('Public Service SET UP'!N85=\"LMC - Low/Mod limited clientele benefit\",\"REQUIRED\",IF('Public Service SET UP'!N85='Public Service SET UP'!CM70,\"REQUIRED\",\"NOT REQUIRED\"))","v":"NOT REQUIRED"}]
[]
[]
[]
[null,null,null,null,null,null,null,null,null,null,null,null,null,null,null,null,null,null,null,null,null,null,null,null,null,null,null,null,null,null,null,null,null,null,null,null,null,null,null,null,null,null,null,null,null,null,null,null,null,null,null,null,null,null,null,null,null,null,null,null,null,null,null,null,null,null,null,null,null,null,null,null,null,null,null,null,null,null,null,null,null,null,null,null,null,null,null,null,null,null,null,null,{"$f":"IF(AND('Public Service SET UP'!N85='Public Service SET UP'!CM81,'Public Service SET UP'!AK85='Public Service SET UP'!CM84),\"REQUIRED\",\"NOT REQUIRED\")","v":"NOT REQUIRED"}]
[null,null,null,null,null,null,null,null,{"$f":"IF('Public Service SET UP'!N85='Public Service SET UP'!CM81,\"REQUIRED\",IF('Public Service SET UP'!N85='Public Service SET UP'!CM70,\"REQUIRED\",\"NOT REQUIRED\"))","v":"NOT REQUIRED"},null,null,null,null,null,null,null,null,null,null,null,null,null,null,null,null,null,null,null,null,null,null,null,null,null,null,null,null,null,null,null,null,null,null,null,null,null,null,null,null,null,null,null,null,null,null,null,null,null,null,null,null,null,null,null,null,null,null,null,null,null,null,null,null,null,null,null,null,null,null,null,null,null,{"$f":"IF(AND('Public Service SET UP'!N85='Public Service SET UP'!CM81,'Public Service SET UP'!AK85='Public Service SET UP'!CM80),\"REQUIRED\",\"NOT REQUIRED\")","v":"NOT REQUIRED"},null,null,null,null,null,null,null,null,null,null,null,null,null,{"$f":"IF(AND('Public Service SET UP'!N85='Public Service SET UP'!CM70,'Public Service SET UP'!AK85='Public Service SET UP'!CM85),\"REQUIRED\",\"NOT REQUIRED\")","v":"NOT REQUIRED"},null,null,null,null,null,null,null,null,null,null,null,{"$f":"IF(AND('Public Service SET UP'!N85='Public Service SET UP'!CM70,'Public Service SET UP'!AK85='Public Service SET UP'!CM87),\"REQUIRED\",\"NOT REQUIRED\")","v":"NOT REQUIRED"}]
[null,null,null,null,null,null,null,null,"Participant Name or Code",null,null,null,null,null,null,null,null,null,"Home Address within Service Area?",null,null,null,null,null,"Participant Type",null,null,null,null,null,"Total Household Size",null,null,null,"Annual Gross Income for HH - All",null,null,null,null,null,"% of Area Median Income",null,null,null,null,null,null,null,null,"Access to a Service or Benefit",null,null,null,null,null,"Hispanic",null,null,null,"Race / Ethnicity",null,null,null,null,null,null,null,null,null,null,"Veteran",null,null,null,"Is beneficiary disable?",null,null,null,"Is head of houseld female?",null,null,null,"Homeless Person given overnight shelter?",null,null,null,null,"Bed created for overnight shelter?",null,null,null,null,"Person placed in a job?",null,null,null,"First Time Homebuyer?",null,null,null,"Receiving Housing Counseling?",null,null,null,"Down Payment Assistance?",null,null,null,"Short-term Rental Assistance?",null,null,null,"Previously Homeless?",null,null,null," Chronically homeless?"]
[null,null,null,null,null,null,null,1,null,null,null,null,null,null,null,null,null,null,"Select Option",null,null,null,null,null,"Select Option",null,null,null,null,null,null,null,null,null,null,null,null,null,null,null,"Select Option",null,null,null,null,null,null,null,null,"Select Option",null,null,null,null,null,"Select Option",null,null,null,"Select Option",null,null,null,null,null,null,null,null,null,null,"Select Option",null,null,null,"Select Option",null,null,null,"Select Option",null,null,null,"Select Option",null,null,null,null,"Select Option",null,null,null,null,"Select Option",null,null,null,"Select Option",null,null,null,"Select Option",null,null,null,"Select Option",null,null,null,"Select Option",null,null,null,"Select Option",null,null,null,"Select Option"]
[null,null,null,null,null,null,null,2]
[null,null,null,null,null,null,null,3]
[null,null,null,null,null,null,null,4]
[null,null,null,null,null,null,null,5]
[null,null,null,null,null,null,null,6]
[null,null,null,null,null,null,null,7]
[null,null,null,null,null,null,null,8]
[null,null,null,null,null,null,null,9]
[null,null,null,null,null,null,null,10]
[null,null,null,null,null,null,null,11]
[null,null,null,null,null,null,null,12]
[null,null,null,null,null,null,null,13]
[null,null,null,null,null,null,null,14]
[null,null,null,null,null,null,null,15]
[null,null,null,null,null,null,null,16]
[null,null,null,null,null,null,null,17]
[null,null,null,null,null,null,null,18]
[null,null,null,null,null,null,null,19]
[null,null,null,null,null,null,null,20,null,null,null,null,null,null,null,null,null,null,null,null,null,null,null,null,null,null,null,null,null,null,null,null,null,null,null,null,null,null,null,null,null,null,null,null,null,null,null,null,null,null,null,null,null,null,null,null,null,null,null,null,null,null,null,null,null,null,null,null,null,null,null,null,null,null,null,null,null,null,null,null,null,null,null,null,null,null,null,null,null,null,null,null,null,null,null,null,null,null,null,null,null,null,null,null,null,null,null,null,null,null,null,null,null,null,null,null,null,null,null,null,null,"Page  2"]
[null,null,null,null,null,null,null,21]
[null,null,null,null,null,null,null,22]
[null,null,null,null,null,null,null,23]
[null,null,null,null,null,null,null,24]
[null,null,null,null,null,null,null,25]
[null,null,null,null,null,null,null,26]
[null,null,null,null,null,null,null,27]
[null,null,null,null,null,null,null,28]
[null,null,null,null,null,null,null,29]
[null,null,null,null,null,null,null,30]
[null,null,null,null,null,null,null,31]
[null,null,null,null,null,null,null,32]
[null,null,null,null,null,null,null,33]
[null,null,null,null,null,null,null,34]
[null,null,null,null,null,null,null,35]
[null,null,null,null,null,null,null,36]
[null,null,null,null,null,null,null,37]
[null,null,null,null,null,null,null,38]
[null,null,null,null,null,null,null,39]
[null,null,null,null,null,null,null,40]
[null,null,null,null,null,null,null,41]
[null,null,null,null,null,null,null,42]
[null,null,null,null,null,null,null,43,null,null,null,null,null,null,null,null,null,null,null,null,null,null,null,null,null,null,null,null,null,null,null,null,null,null,null,null,null,null,null,null,null,null,null,null,null,null,null,null,null,null,null,null,null,null,null,null,null,null,null,null,null,null,null,null,null,null,null,null,null,null,null,null,null,null,null,null,null,null,null,null,null,null,null,null,null,null,null,null,null,null,null,null,null,null,null,null,null,null,null,null,null,null,null,null,null,null,null,null,null,null,null,null,null,null,null,null,null,null,null,null,null,"Page  3"]
[null,null,null,null,null,null,null,44]
[null,null,null,null,null,null,null,45]
[null,null,null,null,null,null,null,46]
[null,null,null,null,null,null,null,47]
[null,null,null,null,null,null,null,48]
[null,null,null,null,null,null,null,49]
[null,null,null,null,null,null,null,50]
[null,null,null,null,null,null,null,51]
[null,null,null,null,null,null,null,52]
[null,null,null,null,null,null,null,53]
[null,null,null,null,null,null,null,54]
[null,null,null,null,null,null,null,55]
[null,null,null,null,null,null,null,56]
[null,null,null,null,null,null,null,57]
[null,null,null,null,null,null,null,58]
[null,null,null,null,null,null,null,59]
[null,null,null,null,null,null,null,60]
[null,null,null,null,null,null,null,61]
[null,null,null,null,null,null,null,62]
[null,null,null,null,null,null,null,63]
[null,null,null,null,null,null,null,64]
[null,null,null,null,null,null,null,65]
[null,null,null,null,null,null,null,66,null,null,null,null,null,null,null,null,null,null,null,null,null,null,null,null,null,null,null,null,null,null,null,null,null,null,null,null,null,null,null,null,null,null,null,null,null,null,null,null,null,null,null,null,null,null,null,null,null,null,null,null,null,null,null,null,null,null,null,null,null,null,null,null,null,null,null,null,null,null,null,null,null,null,null,null,null,null,null,null,null,null,null,null,null,null,null,null,null,null,null,null,null,null,null,null,null,null,null,null,null,null,null,null,null,null,null,null,null,null,null,null,null,"Page  4"]
[null,null,null,null,null,null,null,67]
[null,null,null,null,null,null,null,68]
[null,null,null,null,null,null,null,69]
[null,null,null,null,null,null,null,70]
[null,null,null,null,null,null,null,71]
[null,null,null,null,null,null,null,72]
[null,null,null,null,null,null,null,73]
[null,null,null,null,null,null,null,74]
[null,null,null,null,null,null,null,75]
[null,null,null,null,null,null,null,76]
[null,null,null,null,null,null,null,77]
[null,null,null,null,null,null,null,78]
[null,null,null,null,null,null,null,79]
[null,null,null,null,null,null,null,80]
[null,null,null,null,null,null,null,81]
[null,null,null,null,null,null,null,82]
[null,null,null,null,null,null,null,83]
[null,null,null,null,null,null,null,84]
[null,null,null,null,null,null,null,85]
[null,null,null,null,null,null,null,86]
[null,null,null,null,null,null,null,87]
[null,null,null,null,null,null,null,88]
[null,null,null,null,null,null,null,89,null,null,null,null,null,null,null,null,null,null,null,null,null,null,null,null,null,null,null,null,null,null,null,null,null,null,null,null,null,null,null,null,null,null,null,null,null,null,null,null,null,null,null,null,null,null,null,null,null,null,null,null,null,null,null,null,null,null,null,null,null,null,null,null,null,null,null,null,null,null,null,null,null,null,null,null,null,null,null,null,null,null,null,null,null,null,null,null,null,null,null,null,null,null,null,null,null,null,null,null,null,null,null,null,null,null,null,null,null,null,null,null,null,"Page  5"]
[null,null,null,null,null,null,null,90]
[null,null,null,null,null,null,null,91]
[null,null,null,null,null,null,null,92]
[null,null,null,null,null,null,null,93]
[null,null,null,null,null,null,null,94]
[null,null,null,null,null,null,null,95]
[null,null,null,null,null,null,null,96]
[null,null,null,null,null,null,null,97]
[null,null,null,null,null,null,null,98]
[null,null,null,null,null,null,null,99]
[null,null,null,null,null,null,null,100]
[null,null,null,null,null,null,null,101]
[null,null,null,null,null,null,null,102]
[null,null,null,null,null,null,null,103]
[null,null,null,null,null,null,null,104]
[null,null,null,null,null,null,null,105]
[null,null,null,null,null,null,null,106]
[null,null,null,null,null,null,null,107]
[null,null,null,null,null,null,null,108]
[null,null,null,null,null,null,null,109]
[null,null,null,null,null,null,null,110]
[null,null,null,null,null,null,null,111]
[null,null,null,null,null,null,null,112,null,null,null,null,null,null,null,null,null,null,null,null,null,null,null,null,null,null,null,null,null,null,null,null,null,null,null,null,null,null,null,null,null,null,null,null,null,null,null,null,null,null,null,null,null,null,null,null,null,null,null,null,null,null,null,null,null,null,null,null,null,null,null,null,null,null,null,null,null,null,null,null,null,null,null,null,null,null,null,null,null,null,null,null,null,null,null,null,null,null,null,null,null,null,null,null,null,null,null,null,null,null,null,null,null,null,null,null,null,null,null,null,null,"Page  6"]
[null,null,null,null,null,null,null,113]
[null,null,null,null,null,null,null,114]
[null,null,null,null,null,null,null,115]
[null,null,null,null,null,null,null,116]
[null,null,null,null,null,null,null,117]
[null,null,null,null,null,null,null,118]
[null,null,null,null,null,null,null,119]
[null,null,null,null,null,null,null,120]
[null,null,null,null,null,null,null,121]
[null,null,null,null,null,null,null,122]
[null,null,null,null,null,null,null,123]
[null,null,null,null,null,null,null,124]
[null,null,null,null,null,null,null,125]
[null,null,null,null,null,null,null,126]
[null,null,null,null,null,null,null,127]
[null,null,null,null,null,null,null,128]
[null,null,null,null,null,null,null,129]
[null,null,null,null,null,null,null,130]
[null,null,null,null,null,null,null,131]
[null,null,null,null,null,null,null,132]
[null,null,null,null,null,null,null,133]
[null,null,null,null,null,null,null,134]
[null,null,null,null,null,null,null,135,null,null,null,null,null,null,null,null,null,null,null,null,null,null,null,null,null,null,null,null,null,null,null,null,null,null,null,null,null,null,null,null,null,null,null,null,null,null,null,null,null,null,null,null,null,null,null,null,null,null,null,null,null,null,null,null,null,null,null,null,null,null,null,null,null,null,null,null,null,null,null,null,null,null,null,null,null,null,null,null,null,null,null,null,null,null,null,null,null,null,null,null,null,null,null,null,null,null,null,null,null,null,null,null,null,null,null,null,null,null,null,null,null,"Page  7"]
[null,null,null,null,null,null,null,136]
[null,null,null,null,null,null,null,137]
[null,null,null,null,null,null,null,138]
[null,null,null,null,null,null,null,139]
[null,null,null,null,null,null,null,140]
[null,null,null,null,null,null,null,141]
[null,null,null,null,null,null,null,142]
[null,null,null,null,null,null,null,143]
[null,null,null,null,null,null,null,144]
[null,null,null,null,null,null,null,145]
[null,null,null,null,null,null,null,146]
[null,null,null,null,null,null,null,147]
[null,null,null,null,null,null,null,148]
[null,null,null,null,null,null,null,149]
[null,null,null,null,null,null,null,150]
[null,null,null,null,null,null,null,151]
[null,null,null,null,null,null,null,152]
[null,null,null,null,null,null,null,153]
[null,null,null,null,null,null,null,154]
[null,null,null,null,null,null,null,155]
[null,null,null,null,null,null,null,156]
[null,null,null,null,null,null,null,157]
[null,null,null,null,null,null,null,158,null,null,null,null,null,null,null,null,null,null,null,null,null,null,null,null,null,null,null,null,null,null,null,null,null,null,null,null,null,null,null,null,null,null,null,null,null,null,null,null,null,null,null,null,null,null,null,null,null,null,null,null,null,null,null,null,null,null,null,null,null,null,null,null,null,null,null,null,null,null,null,null,null,null,null,null,null,null,null,null,null,null,null,null,null,null,null,null,null,null,null,null,null,null,null,null,null,null,null,null,null,null,null,null,null,null,null,null,null,null,null,null,null,"Page  8"]
[null,null,null,null,null,null,null,159]
[null,null,null,null,null,null,null,160]
[null,null,null,null,null,null,null,161]
[null,null,null,null,null,null,null,162]
[null,null,null,null,null,null,null,163]
[null,null,null,null,null,null,null,164]
[null,null,null,null,null,null,null,165]
[null,null,null,null,null,null,null,166]
[null,null,null,null,null,null,null,167]
[null,null,null,null,null,null,null,168]
[null,null,null,null,null,null,null,169]
[null,null,null,null,null,null,null,170]
[null,null,null,null,null,null,null,171]
[null,null,null,null,null,null,null,172]
[null,null,null,null,null,null,null,173]
[null,null,null,null,null,null,null,174]
[null,null,null,null,null,null,null,175]
[null,null,null,null,null,null,null,176]
[null,null,null,null,null,null,null,177]
[null,null,null,null,null,null,null,178]
[null,null,null,null,null,null,null,179]
[null,null,null,null,null,null,null,180]
[null,null,null,null,null,null,null,181,null,null,null,null,null,null,null,null,null,null,null,null,null,null,null,null,null,null,null,null,null,null,null,null,null,null,null,null,null,null,null,null,null,null,null,null,null,null,null,null,null,null,null,null,null,null,null,null,null,null,null,null,null,null,null,null,null,null,null,null,null,null,null,null,null,null,null,null,null,null,null,null,null,null,null,null,null,null,null,null,null,null,null,null,null,null,null,null,null,null,null,null,null,null,null,null,null,null,null,null,null,null,null,null,null,null,null,null,null,null,null,null,null,"Page  9"]
[null,null,null,null,null,null,null,182]
[null,null,null,null,null,null,null,183]
[null,null,null,null,null,null,null,184]
[null,null,null,null,null,null,null,185]
[null,null,null,null,null,null,null,186]
[null,null,null,null,null,null,null,187]
[null,null,null,null,null,null,null,188]
[null,null,null,null,null,null,null,189]
[null,null,null,null,null,null,null,190]
[null,null,null,null,null,null,null,191]
[null,null,null,null,null,null,null,192]
[null,null,null,null,null,null,null,193]
[null,null,null,null,null,null,null,194]
[null,null,null,null,null,null,null,195]
[null,null,null,null,null,null,null,196]
[null,null,null,null,null,null,null,197]
[null,null,null,null,null,null,null,198]
[null,null,null,null,null,null,null,199]
[null,null,null,null,null,null,null,200]
[null,null,null,null,null,null,null,201]
[null,null,null,null,null,null,null,202]
[null,null,null,null,null,null,null,203]
[null,null,null,null,null,null,null,204,null,null,null,null,null,null,null,null,null,null,null,null,null,null,null,null,null,null,null,null,null,null,null,null,null,null,null,null,null,null,null,null,null,null,null,null,null,null,null,null,null,null,null,null,null,null,null,null,null,null,null,null,null,null,null,null,null,null,null,null,null,null,null,null,null,null,null,null,null,null,null,null,null,null,null,null,null,null,null,null,null,null,null,null,null,null,null,null,null,null,null,null,null,null,null,null,null,null,null,null,null,null,null,null,null,null,null,null,null,null,null,null,null,"Page  10"]
[null,null,null,null,null,null,null,205]
[null,null,null,null,null,null,null,206]
[null,null,null,null,null,null,null,207]
[null,null,null,null,null,null,null,208]
[null,null,null,null,null,null,null,209]
[null,null,null,null,null,null,null,210]
[null,null,null,null,null,null,null,211]
[null,null,null,null,null,null,null,212]
[null,null,null,null,null,null,null,213]
[null,null,null,null,null,null,null,214]
[null,null,null,null,null,null,null,215]
[null,null,null,null,null,null,null,216]
[null,null,null,null,null,null,null,217]
[null,null,null,null,null,null,null,218]
[null,null,null,null,null,null,null,219]
[null,null,null,null,null,null,null,220]
[null,null,null,null,null,null,null,221]
[null,null,null,null,null,null,null,222]
[null,null,null,null,null,null,null,223]
[null,null,null,null,null,null,null,224]
[null,null,null,null,null,null,null,225]
[null,null,null,null,null,null,null,226]
[null,null,null,null,null,null,null,227,null,null,null,null,null,null,null,null,null,null,null,null,null,null,null,null,null,null,null,null,null,null,null,null,null,null,null,null,null,null,null,null,null,null,null,null,null,null,null,null,null,null,null,null,null,null,null,null,null,null,null,null,null,null,null,null,null,null,null,null,null,null,null,null,null,null,null,null,null,null,null,null,null,null,null,null,null,null,null,null,null,null,null,null,null,null,null,null,null,null,null,null,null,null,null,null,null,null,null,null,null,null,null,null,null,null,null,null,null,null,null,null,null,"Page  11"]
[null,null,null,null,null,null,null,228]
[null,null,null,null,null,null,null,229]
[null,null,null,null,null,null,null,230]
[null,null,null,null,null,null,null,231]
[null,null,null,null,null,null,null,232]
[null,null,null,null,null,null,null,233]
[null,null,null,null,null,null,null,234]
[null,null,null,null,null,null,null,235]
[null,null,null,null,null,null,null,236]
[null,null,null,null,null,null,null,237]
[null,null,null,null,null,null,null,238]
[null,null,null,null,null,null,null,239]
[null,null,null,null,null,null,null,240]
[null,null,null,null,null,null,null,241]
[null,null,null,null,null,null,null,242]
[null,null,null,null,null,null,null,243]
[null,null,null,null,null,null,null,244]
[null,null,null,null,null,null,null,245]
[null,null,null,null,null,null,null,246]
[null,null,null,null,null,null,null,247]
[null,null,null,null,null,null,null,248]
[null,null,null,null,null,null,null,249]
[null,null,null,null,null,null,null,250,null,null,null,null,null,null,null,null,null,null,null,null,null,null,null,null,null,null,null,null,null,null,null,null,null,null,null,null,null,null,null,null,null,null,null,null,null,null,null,null,null,null,null,null,null,null,null,null,null,null,null,null,null,null,null,null,null,null,null,null,null,null,null,null,null,null,null,null,null,null,null,null,null,null,null,null,null,null,null,null,null,null,null,null,null,null,null,null,null,null,null,null,null,null,null,null,null,null,null,null,null,null,null,null,null,null,null,null,null,null,null,null,null,"Page  12"]
[null,null,null,null,null,null,null,251]
[null,null,null,null,null,null,null,252]
[null,null,null,null,null,null,null,253]
[null,null,null,null,null,null,null,254]
[null,null,null,null,null,null,null,255]
[null,null,null,null,null,null,null,256]
[null,null,null,null,null,null,null,257]
[null,null,null,null,null,null,null,258]
[null,null,null,null,null,null,null,259]
[null,null,null,null,null,null,null,260]
[null,null,null,null,null,null,null,261]
[null,null,null,null,null,null,null,262]
[null,null,null,null,null,null,null,263]
[null,null,null,null,null,null,null,264]
[null,null,null,null,null,null,null,265]
[null,null,null,null,null,null,null,266]
[null,null,null,null,null,null,null,267]
[null,null,null,null,null,null,null,268]
[null,null,null,null,null,null,null,269]
[null,null,null,null,null,null,null,270]
[null,null,null,null,null,null,null,271]
[null,null,null,null,null,null,null,272]
[null,null,null,null,null,null,null,273,null,null,null,null,null,null,null,null,null,null,null,null,null,null,null,null,null,null,null,null,null,null,null,null,null,null,null,null,null,null,null,null,null,null,null,null,null,null,null,null,null,null,null,null,null,null,null,null,null,null,null,null,null,null,null,null,null,null,null,null,null,null,null,null,null,null,null,null,null,null,null,null,null,null,null,null,null,null,null,null,null,null,null,null,null,null,null,null,null,null,null,null,null,null,null,null,null,null,null,null,null,null,null,null,null,null,null,null,null,null,null,null,null,"Page  13"]
[null,null,null,null,null,null,null,274]
[null,null,null,null,null,null,null,275]
[null,null,null,null,null,null,null,276]
[null,null,null,null,null,null,null,277]
[null,null,null,null,null,null,null,278]
[null,null,null,null,null,null,null,279]
[null,null,null,null,null,null,null,280]
[null,null,null,null,null,null,null,281]
[null,null,null,null,null,null,null,282]
[null,null,null,null,null,null,null,283]
[null,null,null,null,null,null,null,284]
[null,null,null,null,null,null,null,285]
[null,null,null,null,null,null,null,286]
[null,null,null,null,null,null,null,287]
[null,null,null,null,null,null,null,288]
[null,null,null,null,null,null,null,289]
[null,null,null,null,null,null,null,290]
[null,null,null,null,null,null,null,291]
[null,null,null,null,null,null,null,292]
[null,null,null,null,null,null,null,293]
[null,null,null,null,null,null,null,294]
[null,null,null,null,null,null,null,295]
[null,null,null,null,null,null,null,296,null,null,null,null,null,null,null,null,null,null,null,null,null,null,null,null,null,null,null,null,null,null,null,null,null,null,null,null,null,null,null,null,null,null,null,null,null,null,null,null,null,null,null,null,null,null,null,null,null,null,null,null,null,null,null,null,null,null,null,null,null,null,null,null,null,null,null,null,null,null,null,null,null,null,null,null,null,null,null,null,null,null,null,null,null,null,null,null,null,null,null,null,null,null,null,null,null,null,null,null,null,null,null,null,null,null,null,null,null,null,null,null,null,"Page  14"]
[null,null,null,null,null,null,null,297]
[null,null,null,null,null,null,null,298]
[null,null,null,null,null,null,null,299]
[null,null,null,null,null,null,null,300]
[null,null,null,null,null,null,null,301]
[null,null,null,null,null,null,null,302]
[null,null,null,null,null,null,null,303]
[null,null,null,null,null,null,null,304]
[null,null,null,null,null,null,null,305]
[null,null,null,null,null,null,null,306]
[null,null,null,null,null,null,null,307]
[null,null,null,null,null,null,null,308]
[null,null,null,null,null,null,null,309]
[null,null,null,null,null,null,null,310]
[null,null,null,null,null,null,null,311]
[null,null,null,null,null,null,null,312]
[null,null,null,null,null,null,null,313]
[null,null,null,null,null,null,null,314]
[null,null,null,null,null,null,null,315]
[null,null,null,null,null,null,null,316]
[null,null,null,null,null,null,null,317]
[null,null,null,null,null,null,null,318]
[null,null,null,null,null,null,null,319,null,null,null,null,null,null,null,null,null,null,null,null,null,null,null,null,null,null,null,null,null,null,null,null,null,null,null,null,null,null,null,null,null,null,null,null,null,null,null,null,null,null,null,null,null,null,null,null,null,null,null,null,null,null,null,null,null,null,null,null,null,null,null,null,null,null,null,null,null,null,null,null,null,null,null,null,null,null,null,null,null,null,null,null,null,null,null,null,null,null,null,null,null,null,null,null,null,null,null,null,null,null,null,null,null,null,null,null,null,null,null,null,null,"Page  15"]
[null,null,null,null,null,null,null,320]
[null,null,null,null,null,null,null,321]
[null,null,null,null,null,null,null,322]
[null,null,null,null,null,null,null,323]
[null,null,null,null,null,null,null,324]
[null,null,null,null,null,null,null,325]
[null,null,null,null,null,null,null,326]
[null,null,null,null,null,null,null,327]
[null,null,null,null,null,null,null,328]
[null,null,null,null,null,null,null,329]
[null,null,null,null,null,null,null,330]
[null,null,null,null,null,null,null,331]
[null,null,null,null,null,null,null,332]
[null,null,null,null,null,null,null,333]
[null,null,null,null,null,null,null,334]
[null,null,null,null,null,null,null,335]
[null,null,null,null,null,null,null,336]
[null,null,null,null,null,null,null,337]
[null,null,null,null,null,null,null,338]
[null,null,null,null,null,null,null,339]
[null,null,null,null,null,null,null,340]
[null,null,null,null,null,null,null,341]
[null,null,null,null,null,null,null,342,null,null,null,null,null,null,null,null,null,null,null,null,null,null,null,null,null,null,null,null,null,null,null,null,null,null,null,null,null,null,null,null,null,null,null,null,null,null,null,null,null,null,null,null,null,null,null,null,null,null,null,null,null,null,null,null,null,null,null,null,null,null,null,null,null,null,null,null,null,null,null,null,null,null,null,null,null,null,null,null,null,null,null,null,null,null,null,null,null,null,null,null,null,null,null,null,null,null,null,null,null,null,null,null,null,null,null,null,null,null,null,null,null,"Page  16"]
[null,null,null,null,null,null,null,343]
[null,null,null,null,null,null,null,344]
[null,null,null,null,null,null,null,345]
[null,null,null,null,null,null,null,346]
[null,null,null,null,null,null,null,347]
[null,null,null,null,null,null,null,348]
[null,null,null,null,null,null,null,349]
[null,null,null,null,null,null,null,350]
[null,null,null,null,null,null,null,351]
[null,null,null,null,null,null,null,352]
[null,null,null,null,null,null,null,353]
[null,null,null,null,null,null,null,354]
[null,null,null,null,null,null,null,355]
[null,null,null,null,null,null,null,356]
[null,null,null,null,null,null,null,357]
[null,null,null,null,null,null,null,358]
[null,null,null,null,null,null,null,359]
[null,null,null,null,null,null,null,360]
[null,null,null,null,null,null,null,361]
[null,null,null,null,null,null,null,362]
[null,null,null,null,null,null,null,363]
[null,null,null,null,null,null,null,364]
[null,null,null,null,null,null,null,365,null,null,null,null,null,null,null,null,null,null,null,null,null,null,null,null,null,null,null,null,null,null,null,null,null,null,null,null,null,null,null,null,null,null,null,null,null,null,null,null,null,null,null,null,null,null,null,null,null,null,null,null,null,null,null,null,null,null,null,null,null,null,null,null,null,null,null,null,null,null,null,null,null,null,null,null,null,null,null,null,null,null,null,null,null,null,null,null,null,null,null,null,null,null,null,null,null,null,null,null,null,null,null,null,null,null,null,null,null,null,null,null,null,"Page  17"]
[null,null,null,null,null,null,null,366]
[null,null,null,null,null,null,null,367]
[null,null,null,null,null,null,null,368]
[null,null,null,null,null,null,null,369]
[null,null,null,null,null,null,null,370]
[null,null,null,null,null,null,null,371]
[null,null,null,null,null,null,null,372]
[null,null,null,null,null,null,null,373]
[null,null,null,null,null,null,null,374]
[null,null,null,null,null,null,null,375]
[null,null,null,null,null,null,null,376]
[null,null,null,null,null,null,null,377]
[null,null,null,null,null,null,null,378]
[null,null,null,null,null,null,null,379]
[null,null,null,null,null,null,null,380]
[null,null,null,null,null,null,null,381]
[null,null,null,null,null,null,null,382]
[null,null,null,null,null,null,null,383]
[null,null,null,null,null,null,null,384]
[null,null,null,null,null,null,null,385]
[null,null,null,null,null,null,null,386]
[null,null,null,null,null,null,null,387]
[null,null,null,null,null,null,null,388,null,null,null,null,null,null,null,null,null,null,null,null,null,null,null,null,null,null,null,null,null,null,null,null,null,null,null,null,null,null,null,null,null,null,null,null,null,null,null,null,null,null,null,null,null,null,null,null,null,null,null,null,null,null,null,null,null,null,null,null,null,null,null,null,null,null,null,null,null,null,null,null,null,null,null,null,null,null,null,null,null,null,null,null,null,null,null,null,null,null,null,null,null,null,null,null,null,null,null,null,null,null,null,null,null,null,null,null,null,null,null,null,null,"Page  18"]
[null,null,null,null,null,null,null,389]
[null,null,null,null,null,null,null,390]
[null,null,null,null,null,null,null,391]
[null,null,null,null,null,null,null,392]
[null,null,null,null,null,null,null,393]
[null,null,null,null,null,null,null,394]
[null,null,null,null,null,null,null,395]
[null,null,null,null,null,null,null,396]
[null,null,null,null,null,null,null,397]
[null,null,null,null,null,null,null,398]
[null,null,null,null,null,null,null,399]
[null,null,null,null,null,null,null,400]
[null,null,null,null,null,null,null,401]
[null,null,null,null,null,null,null,402]
[null,null,null,null,null,null,null,403]
[null,null,null,null,null,null,null,404]
[null,null,null,null,null,null,null,405]
[null,null,null,null,null,null,null,406]
[null,null,null,null,null,null,null,407]
[null,null,null,null,null,null,null,408]
[null,null,null,null,null,null,null,409]
[null,null,null,null,null,null,null,410]
[null,null,null,null,null,null,null,411,null,null,null,null,null,null,null,null,null,null,null,null,null,null,null,null,null,null,null,null,null,null,null,null,null,null,null,null,null,null,null,null,null,null,null,null,null,null,null,null,null,null,null,null,null,null,null,null,null,null,null,null,null,null,null,null,null,null,null,null,null,null,null,null,null,null,null,null,null,null,null,null,null,null,null,null,null,null,null,null,null,null,null,null,null,null,null,null,null,null,null,null,null,null,null,null,null,null,null,null,null,null,null,null,null,null,null,null,null,null,null,null,null,"Page  19"]
[null,null,null,null,null,null,null,412]
[null,null,null,null,null,null,null,413]
[null,null,null,null,null,null,null,414]
[null,null,null,null,null,null,null,415]
[null,null,null,null,null,null,null,416]
[null,null,null,null,null,null,null,417]
[null,null,null,null,null,null,null,418]
[null,null,null,null,null,null,null,419]
[null,null,null,null,null,null,null,420]
[null,null,null,null,null,null,null,421]
[null,null,null,null,null,null,null,422]
[null,null,null,null,null,null,null,423]
[null,null,null,null,null,null,null,424]
[null,null,null,null,null,null,null,425]
[null,null,null,null,null,null,null,426]
[null,null,null,null,null,null,null,427]
[null,null,null,null,null,null,null,428]
[null,null,null,null,null,null,null,429]
[null,null,null,null,null,null,null,430]
[null,null,null,null,null,null,null,431]
[null,null,null,null,null,null,null,432]
[null,null,null,null,null,null,null,433]
[null,null,null,null,null,null,null,434,null,null,null,null,null,null,null,null,null,null,null,null,null,null,null,null,null,null,null,null,null,null,null,null,null,null,null,null,null,null,null,null,null,null,null,null,null,null,null,null,null,null,null,null,null,null,null,null,null,null,null,null,null,null,null,null,null,null,null,null,null,null,null,null,null,null,null,null,null,null,null,null,null,null,null,null,null,null,null,null,null,null,null,null,null,null,null,null,null,null,null,null,null,null,null,null,null,null,null,null,null,null,null,null,null,null,null,null,null,null,null,null,null,"Page  20"]
[null,null,null,null,null,null,null,435]
[null,null,null,null,null,null,null,436]
[null,null,null,null,null,null,null,437]
[null,null,null,null,null,null,null,438]
[null,null,null,null,null,null,null,439]
[null,null,null,null,null,null,null,440]
[null,null,null,null,null,null,null,441]
[null,null,null,null,null,null,null,442]
[null,null,null,null,null,null,null,443]
[null,null,null,null,null,null,null,444]
[null,null,null,null,null,null,null,445]
[null,null,null,null,null,null,null,446]
[null,null,null,null,null,null,null,447]
[null,null,null,null,null,null,null,448]
[null,null,null,null,null,null,null,449]
[null,null,null,null,null,null,null,450]
[null,null,null,null,null,null,null,451]
[null,null,null,null,null,null,null,452]
[null,null,null,null,null,null,null,453]
[null,null,null,null,null,null,null,454]
[null,null,null,null,null,null,null,455]
[null,null,null,null,null,null,null,456]
[null,null,null,null,null,null,null,457,null,null,null,null,null,null,null,null,null,null,null,null,null,null,null,null,null,null,null,null,null,null,null,null,null,null,null,null,null,null,null,null,null,null,null,null,null,null,null,null,null,null,null,null,null,null,null,null,null,null,null,null,null,null,null,null,null,null,null,null,null,null,null,null,null,null,null,null,null,null,null,null,null,null,null,null,null,null,null,null,null,null,null,null,null,null,null,null,null,null,null,null,null,null,null,null,null,null,null,null,null,null,null,null,null,null,null,null,null,null,null,null,null,"Page  21"]
[null,null,null,null,null,null,null,458]
[null,null,null,null,null,null,null,459]
[null,null,null,null,null,null,null,460]
[null,null,null,null,null,null,null,461]
[null,null,null,null,null,null,null,462]
[null,null,null,null,null,null,null,463]
[null,null,null,null,null,null,null,464]
[null,null,null,null,null,null,null,465]
[null,null,null,null,null,null,null,466]
[null,null,null,null,null,null,null,467]
[null,null,null,null,null,null,null,468]
[null,null,null,null,null,null,null,469]
[null,null,null,null,null,null,null,470]
[null,null,null,null,null,null,null,471]
[null,null,null,null,null,null,null,472]
[null,null,null,null,null,null,null,473]
[null,null,null,null,null,null,null,474]
[null,null,null,null,null,null,null,475]
[null,null,null,null,null,null,null,476]
[null,null,null,null,null,null,null,477]
[null,null,null,null,null,null,null,478]
[null,null,null,null,null,null,null,479]
[null,null,null,null,null,null,null,480,null,null,null,null,null,null,null,null,null,null,null,null,null,null,null,null,null,null,null,null,null,null,null,null,null,null,null,null,null,null,null,null,null,null,null,null,null,null,null,null,null,null,null,null,null,null,null,null,null,null,null,null,null,null,null,null,null,null,null,null,null,null,null,null,null,null,null,null,null,null,null,null,null,null,null,null,null,null,null,null,null,null,null,null,null,null,null,null,null,null,null,null,null,null,null,null,null,null,null,null,null,null,null,null,null,null,null,null,null,null,null,null,null,"Page  22"]
[null,null,null,null,null,null,null,481]
[null,null,null,null,null,null,null,482]
[null,null,null,null,null,null,null,483]
[null,null,null,null,null,null,null,484]
[null,null,null,null,null,null,null,485]
[null,null,null,null,null,null,null,486]
[null,null,null,null,null,null,null,487]
[null,null,null,null,null,null,null,488]
[null,null,null,null,null,null,null,489]
[null,null,null,null,null,null,null,490]
[null,null,null,null,null,null,null,491]
[null,null,null,null,null,null,null,492]
[null,null,null,null,null,null,null,493]
[null,null,null,null,null,null,null,494]
[null,null,null,null,null,null,null,495]
[null,null,null,null,null,null,null,496]
[null,null,null,null,null,null,null,497]
[null,null,null,null,null,null,null,498]
[null,null,null,null,null,null,null,499]
[null,null,null,null,null,null,null,500]
[null,null,null,null,null,null,null,501]
[null,null,null,null,null,null,null,502]
[null,null,null,null,null,null,null,503,null,null,null,null,null,null,null,null,null,null,null,null,null,null,null,null,null,null,null,null,null,null,null,null,null,null,null,null,null,null,null,null,null,null,null,null,null,null,null,null,null,null,null,null,null,null,null,null,null,null,null,null,null,null,null,null,null,null,null,null,null,null,null,null,null,null,null,null,null,null,null,null,null,null,null,null,null,null,null,null,null,null,null,null,null,null,null,null,null,null,null,null,null,null,null,null,null,null,null,null,null,null,null,null,null,null,null,null,null,null,null,null,null,"Page  23"]
[null,null,null,null,null,null,null,504]
[null,null,null,null,null,null,null,505]
[null,null,null,null,null,null,null,506]
[null,null,null,null,null,null,null,507]
[null,null,null,null,null,null,null,508]
[null,null,null,null,null,null,null,509]
[null,null,null,null,null,null,null,510]
[null,null,null,null,null,null,null,511]
[null,null,null,null,null,null,null,512]
[null,null,null,null,null,null,null,513]
[null,null,null,null,null,null,null,514]
[null,null,null,null,null,null,null,515]
[null,null,null,null,null,null,null,516]
[null,null,null,null,null,null,null,517]
[null,null,null,null,null,null,null,518]
[null,null,null,null,null,null,null,519]
[null,null,null,null,null,null,null,520]
[null,null,null,null,null,null,null,521]
[null,null,null,null,null,null,null,522]
[null,null,null,null,null,null,null,523]
[null,null,null,null,null,null,null,524]
[null,null,null,null,null,null,null,525]
[null,null,null,null,null,null,null,526,null,null,null,null,null,null,null,null,null,null,null,null,null,null,null,null,null,null,null,null,null,null,null,null,null,null,null,null,null,null,null,null,null,null,null,null,null,null,null,null,null,null,null,null,null,null,null,null,null,null,null,null,null,null,null,null,null,null,null,null,null,null,null,null,null,null,null,null,null,null,null,null,null,null,null,null,null,null,null,null,null,null,null,null,null,null,null,null,null,null,null,null,null,null,null,null,null,null,null,null,null,null,null,null,null,null,null,null,null,null,null,null,null,"Page  24"]
[null,null,null,null,null,null,null,527]
[null,null,null,null,null,null,null,528]
[null,null,null,null,null,null,null,529]
[null,null,null,null,null,null,null,530]
[null,null,null,null,null,null,null,531]
[null,null,null,null,null,null,null,532]
[null,null,null,null,null,null,null,533]
[null,null,null,null,null,null,null,534]
[null,null,null,null,null,null,null,535]
[null,null,null,null,null,null,null,536]
[null,null,null,null,null,null,null,537]
[null,null,null,null,null,null,null,538]
[null,null,null,null,null,null,null,539]
[null,null,null,null,null,null,null,540]
[null,null,null,null,null,null,null,541]
[null,null,null,null,null,null,null,542]
[null,null,null,null,null,null,null,543]
[null,null,null,null,null,null,null,544]
[null,null,null,null,null,null,null,545]
[null,null,null,null,null,null,null,546]
[null,null,null,null,null,null,null,547]
[null,null,null,null,null,null,null,548]
[null,null,null,null,null,null,null,549,null,null,null,null,null,null,null,null,null,null,null,null,null,null,null,null,null,null,null,null,null,null,null,null,null,null,null,null,null,null,null,null,null,null,null,null,null,null,null,null,null,null,null,null,null,null,null,null,null,null,null,null,null,null,null,null,null,null,null,null,null,null,null,null,null,null,null,null,null,null,null,null,null,null,null,null,null,null,null,null,null,null,null,null,null,null,null,null,null,null,null,null,null,null,null,null,null,null,null,null,null,null,null,null,null,null,null,null,null,null,null,null,null,"Page  25"]
[null,null,null,null,null,null,null,550]
[null,null,null,null,null,null,null,551]
[null,null,null,null,null,null,null,552]
[null,null,null,null,null,null,null,553]
[null,null,null,null,null,null,null,554]
[null,null,null,null,null,null,null,555]
[null,null,null,null,null,null,null,556]
[null,null,null,null,null,null,null,557]
[null,null,null,null,null,null,null,558]
[null,null,null,null,null,null,null,559]
[null,null,null,null,null,null,null,560]
[null,null,null,null,null,null,null,561]
[null,null,null,null,null,null,null,562]
[null,null,null,null,null,null,null,563]
[null,null,null,null,null,null,null,564]
[null,null,null,null,null,null,null,565]
[null,null,null,null,null,null,null,566]
[null,null,null,null,null,null,null,567]
[null,null,null,null,null,null,null,568]
[null,null,null,null,null,null,null,569]
[null,null,null,null,null,null,null,570]
[null,null,null,null,null,null,null,571]
[null,null,null,null,null,null,null,572,null,null,null,null,null,null,null,null,null,null,null,null,null,null,null,null,null,null,null,null,null,null,null,null,null,null,null,null,null,null,null,null,null,null,null,null,null,null,null,null,null,null,null,null,null,null,null,null,null,null,null,null,null,null,null,null,null,null,null,null,null,null,null,null,null,null,null,null,null,null,null,null,null,null,null,null,null,null,null,null,null,null,null,null,null,null,null,null,null,null,null,null,null,null,null,null,null,null,null,null,null,null,null,null,null,null,null,null,null,null,null,null,null,"Page  26"]
[null,null,null,null,null,null,null,573]
[null,null,null,null,null,null,null,574]
[null,null,null,null,null,null,null,575]
[null,null,null,null,null,null,null,576]
[null,null,null,null,null,null,null,577]
[null,null,null,null,null,null,null,578]
[null,null,null,null,null,null,null,579]
[null,null,null,null,null,null,null,580]
[null,null,null,null,null,null,null,581]
[null,null,null,null,null,null,null,582]
[null,null,null,null,null,null,null,583]
[null,null,null,null,null,null,null,584]
[null,null,null,null,null,null,null,585]
[null,null,null,null,null,null,null,586]
[null,null,null,null,null,null,null,587]
[null,null,null,null,null,null,null,588]
[null,null,null,null,null,null,null,589]
[null,null,null,null,null,null,null,590]
[null,null,null,null,null,null,null,591]
[null,null,null,null,null,null,null,592]
[null,null,null,null,null,null,null,593]
[null,null,null,null,null,null,null,594]
[null,null,null,null,null,null,null,595,null,null,null,null,null,null,null,null,null,null,null,null,null,null,null,null,null,null,null,null,null,null,null,null,null,null,null,null,null,null,null,null,null,null,null,null,null,null,null,null,null,null,null,null,null,null,null,null,null,null,null,null,null,null,null,null,null,null,null,null,null,null,null,null,null,null,null,null,null,null,null,null,null,null,null,null,null,null,null,null,null,null,null,null,null,null,null,null,null,null,null,null,null,null,null,null,null,null,null,null,null,null,null,null,null,null,null,null,null,null,null,null,null,"Page  27"]
[null,null,null,null,null,null,null,596]
[null,null,null,null,null,null,null,597]
[null,null,null,null,null,null,null,598]
[null,null,null,null,null,null,null,599]
[null,null,null,null,null,null,null,600]
[null,null,null,null,null,null,null,601]
[null,null,null,null,null,null,null,602]
[null,null,null,null,null,null,null,603]
[null,null,null,null,null,null,null,604]
[null,null,null,null,null,null,null,605]
[null,null,null,null,null,null,null,606]
[null,null,null,null,null,null,null,607]
[null,null,null,null,null,null,null,608]
[null,null,null,null,null,null,null,609]
[null,null,null,null,null,null,null,610]
[null,null,null,null,null,null,null,611]
[null,null,null,null,null,null,null,612]
[null,null,null,null,null,null,null,613]
[null,null,null,null,null,null,null,614]
[null,null,null,null,null,null,null,615]
[null,null,null,null,null,null,null,616]
[null,null,null,null,null,null,null,617]
[null,null,null,null,null,null,null,618,null,null,null,null,null,null,null,null,null,null,null,null,null,null,null,null,null,null,null,null,null,null,null,null,null,null,null,null,null,null,null,null,null,null,null,null,null,null,null,null,null,null,null,null,null,null,null,null,null,null,null,null,null,null,null,null,null,null,null,null,null,null,null,null,null,null,null,null,null,null,null,null,null,null,null,null,null,null,null,null,null,null,null,null,null,null,null,null,null,null,null,null,null,null,null,null,null,null,null,null,null,null,null,null,null,null,null,null,null,null,null,null,null,"Page  28"]
[null,null,null,null,null,null,null,619]
[null,null,null,null,null,null,null,620]
[null,null,null,null,null,null,null,621]
[null,null,null,null,null,null,null,622]
[null,null,null,null,null,null,null,623]
[null,null,null,null,null,null,null,624]
[null,null,null,null,null,null,null,625]
[null,null,null,null,null,null,null,626]
[null,null,null,null,null,null,null,627]
[null,null,null,null,null,null,null,628]
[null,null,null,null,null,null,null,629]
[null,null,null,null,null,null,null,630]
[null,null,null,null,null,null,null,631]
[null,null,null,null,null,null,null,632]
[null,null,null,null,null,null,null,633]
[null,null,null,null,null,null,null,634]
[null,null,null,null,null,null,null,635]
[null,null,null,null,null,null,null,636]
[null,null,null,null,null,null,null,637]
[null,null,null,null,null,null,null,638]
[null,null,null,null,null,null,null,639]
[null,null,null,null,null,null,null,640]
[null,null,null,null,null,null,null,641,null,null,null,null,null,null,null,null,null,null,null,null,null,null,null,null,null,null,null,null,null,null,null,null,null,null,null,null,null,null,null,null,null,null,null,null,null,null,null,null,null,null,null,null,null,null,null,null,null,null,null,null,null,null,null,null,null,null,null,null,null,null,null,null,null,null,null,null,null,null,null,null,null,null,null,null,null,null,null,null,null,null,null,null,null,null,null,null,null,null,null,null,null,null,null,null,null,null,null,null,null,null,null,null,null,null,null,null,null,null,null,null,null,"Page  29"]
[null,null,null,null,null,null,null,642]
[null,null,null,null,null,null,null,643]
[null,null,null,null,null,null,null,644]
[null,null,null,null,null,null,null,645]
[null,null,null,null,null,null,null,646]
[null,null,null,null,null,null,null,647]
[null,null,null,null,null,null,null,648]
[null,null,null,null,null,null,null,649]
[null,null,null,null,null,null,null,650]
[null,null,null,null,null,null,null,651]
[null,null,null,null,null,null,null,652]
[null,null,null,null,null,null,null,653]
[null,null,null,null,null,null,null,654]
[null,null,null,null,null,null,null,655]
[null,null,null,null,null,null,null,656]
[null,null,null,null,null,null,null,657]
[null,null,null,null,null,null,null,658]
[null,null,null,null,null,null,null,659]
[null,null,null,null,null,null,null,660]
[null,null,null,null,null,null,null,661]
[null,null,null,null,null,null,null,662]
[null,null,null,null,null,null,null,663]
[null,null,null,null,null,null,null,664,null,null,null,null,null,null,null,null,null,null,null,null,null,null,null,null,null,null,null,null,null,null,null,null,null,null,null,null,null,null,null,null,null,null,null,null,null,null,null,null,null,null,null,null,null,null,null,null,null,null,null,null,null,null,null,null,null,null,null,null,null,null,null,null,null,null,null,null,null,null,null,null,null,null,null,null,null,null,null,null,null,null,null,null,null,null,null,null,null,null,null,null,null,null,null,null,null,null,null,null,null,null,null,null,null,null,null,null,null,null,null,null,null,"Page  30"]
[null,null,null,null,null,null,null,665]
[null,null,null,null,null,null,null,666]
[null,null,null,null,null,null,null,667]
[null,null,null,null,null,null,null,668]
[null,null,null,null,null,null,null,669]
[null,null,null,null,null,null,null,670]
[null,null,null,null,null,null,null,671]
[null,null,null,null,null,null,null,672]
[null,null,null,null,null,null,null,673]
[null,null,null,null,null,null,null,674]
[null,null,null,null,null,null,null,675]
[null,null,null,null,null,null,null,676]
[null,null,null,null,null,null,null,677]
[null,null,null,null,null,null,null,678]
[null,null,null,null,null,null,null,679]
[null,null,null,null,null,null,null,680]
[null,null,null,null,null,null,null,681]
[null,null,null,null,null,null,null,682]
[null,null,null,null,null,null,null,683]
[null,null,null,null,null,null,null,684]
[null,null,null,null,null,null,null,685]
[null,null,null,null,null,null,null,686]
[null,null,null,null,null,null,null,687,null,null,null,null,null,null,null,null,null,null,null,null,null,null,null,null,null,null,null,null,null,null,null,null,null,null,null,null,null,null,null,null,null,null,null,null,null,null,null,null,null,null,null,null,null,null,null,null,null,null,null,null,null,null,null,null,null,null,null,null,null,null,null,null,null,null,null,null,null,null,null,null,null,null,null,null,null,null,null,null,null,null,null,null,null,null,null,null,null,null,null,null,null,null,null,null,null,null,null,null,null,null,null,null,null,null,null,null,null,null,null,null,null,"Page  31"]
[null,null,null,null,null,null,null,688]
[null,null,null,null,null,null,null,689]
[null,null,null,null,null,null,null,690]
[null,null,null,null,null,null,null,691]
[null,null,null,null,null,null,null,692]
[null,null,null,null,null,null,null,693]
[null,null,null,null,null,null,null,694]
[null,null,null,null,null,null,null,695]
[null,null,null,null,null,null,null,696]
[null,null,null,null,null,null,null,697]
[null,null,null,null,null,null,null,698]
[null,null,null,null,null,null,null,699]
[null,null,null,null,null,null,null,700]
[null,null,null,null,null,null,null,701]
[null,null,null,null,null,null,null,702]
[null,null,null,null,null,null,null,703]
[null,null,null,null,null,null,null,704]
[null,null,null,null,null,null,null,705]
[null,null,null,null,null,null,null,706]
[null,null,null,null,null,null,null,707]
[null,null,null,null,null,null,null,708]
[null,null,null,null,null,null,null,709]
[null,null,null,null,null,null,null,710,null,null,null,null,null,null,null,null,null,null,null,null,null,null,null,null,null,null,null,null,null,null,null,null,null,null,null,null,null,null,null,null,null,null,null,null,null,null,null,null,null,null,null,null,null,null,null,null,null,null,null,null,null,null,null,null,null,null,null,null,null,null,null,null,null,null,null,null,null,null,null,null,null,null,null,null,null,null,null,null,null,null,null,null,null,null,null,null,null,null,null,null,null,null,null,null,null,null,null,null,null,null,null,null,null,null,null,null,null,null,null,null,null,"Page  32"]
[null,null,null,null,null,null,null,711]
[null,null,null,null,null,null,null,712]
[null,null,null,null,null,null,null,713]
[null,null,null,null,null,null,null,714]
[null,null,null,null,null,null,null,715]
[null,null,null,null,null,null,null,716]
[null,null,null,null,null,null,null,717]
[null,null,null,null,null,null,null,718]
[null,null,null,null,null,null,null,719]
[null,null,null,null,null,null,null,720]
[null,null,null,null,null,null,null,721]
[null,null,null,null,null,null,null,722]
[null,null,null,null,null,null,null,723]
[null,null,null,null,null,null,null,724]
[null,null,null,null,null,null,null,725]
[null,null,null,null,null,null,null,726]
[null,null,null,null,null,null,null,727]
[null,null,null,null,null,null,null,728]
[null,null,null,null,null,null,null,729]
[null,null,null,null,null,null,null,730]
[null,null,null,null,null,null,null,731]
[null,null,null,null,null,null,null,732]
[null,null,null,null,null,null,null,733,null,null,null,null,null,null,null,null,null,null,null,null,null,null,null,null,null,null,null,null,null,null,null,null,null,null,null,null,null,null,null,null,null,null,null,null,null,null,null,null,null,null,null,null,null,null,null,null,null,null,null,null,null,null,null,null,null,null,null,null,null,null,null,null,null,null,null,null,null,null,null,null,null,null,null,null,null,null,null,null,null,null,null,null,null,null,null,null,null,null,null,null,null,null,null,null,null,null,null,null,null,null,null,null,null,null,null,null,null,null,null,null,null,"Page  33"]
[null,null,null,null,null,null,null,734]
[null,null,null,null,null,null,null,735]
[null,null,null,null,null,null,null,736]
[null,null,null,null,null,null,null,737]
[null,null,null,null,null,null,null,738]
[null,null,null,null,null,null,null,739]
[null,null,null,null,null,null,null,740]
[null,null,null,null,null,null,null,741]
[null,null,null,null,null,null,null,742]
[null,null,null,null,null,null,null,743]
[null,null,null,null,null,null,null,744]
[null,null,null,null,null,null,null,745]
[null,null,null,null,null,null,null,746]
[null,null,null,null,null,null,null,747]
[null,null,null,null,null,null,null,748]
[null,null,null,null,null,null,null,749]
[null,null,null,null,null,null,null,750]
[null,null,null,null,null,null,null,751]
[null,null,null,null,null,null,null,752]
[null,null,null,null,null,null,null,753]
[null,null,null,null,null,null,null,754]
[null,null,null,null,null,null,null,755]
[null,null,null,null,null,null,null,756,null,null,null,null,null,null,null,null,null,null,null,null,null,null,null,null,null,null,null,null,null,null,null,null,null,null,null,null,null,null,null,null,null,null,null,null,null,null,null,null,null,null,null,null,null,null,null,null,null,null,null,null,null,null,null,null,null,null,null,null,null,null,null,null,null,null,null,null,null,null,null,null,null,null,null,null,null,null,null,null,null,null,null,null,null,null,null,null,null,null,null,null,null,null,null,null,null,null,null,null,null,null,null,null,null,null,null,null,null,null,null,null,null,"Page  34"]
[null,null,null,null,null,null,null,757]
[null,null,null,null,null,null,null,758]
[null,null,null,null,null,null,null,759]
[null,null,null,null,null,null,null,760]
[null,null,null,null,null,null,null,761]
[null,null,null,null,null,null,null,762]
[null,null,null,null,null,null,null,763]
[null,null,null,null,null,null,null,764]
[null,null,null,null,null,null,null,765]
[null,null,null,null,null,null,null,766]
[null,null,null,null,null,null,null,767]
[null,null,null,null,null,null,null,768]
[null,null,null,null,null,null,null,769]
[null,null,null,null,null,null,null,770]
[null,null,null,null,null,null,null,771]
[null,null,null,null,null,null,null,772]
[null,null,null,null,null,null,null,773]
[null,null,null,null,null,null,null,774]
[null,null,null,null,null,null,null,775]
[null,null,null,null,null,null,null,776]
[null,null,null,null,null,null,null,777]
[null,null,null,null,null,null,null,778]
[null,null,null,null,null,null,null,779,null,null,null,null,null,null,null,null,null,null,null,null,null,null,null,null,null,null,null,null,null,null,null,null,null,null,null,null,null,null,null,null,null,null,null,null,null,null,null,null,null,null,null,null,null,null,null,null,null,null,null,null,null,null,null,null,null,null,null,null,null,null,null,null,null,null,null,null,null,null,null,null,null,null,null,null,null,null,null,null,null,null,null,null,null,null,null,null,null,null,null,null,null,null,null,null,null,null,null,null,null,null,null,null,null,null,null,null,null,null,null,null,null,"Page  35"]
[null,null,null,null,null,null,null,780]
[null,null,null,null,null,null,null,781]
[null,null,null,null,null,null,null,782]
[null,null,null,null,null,null,null,783]
[null,null,null,null,null,null,null,784]
[null,null,null,null,null,null,null,785]
[null,null,null,null,null,null,null,786]
[null,null,null,null,null,null,null,787]
[null,null,null,null,null,null,null,788]
[null,null,null,null,null,null,null,789]
[null,null,null,null,null,null,null,790]
[null,null,null,null,null,null,null,791]
[null,null,null,null,null,null,null,792]
[null,null,null,null,null,null,null,793]
[null,null,null,null,null,null,null,794]
[null,null,null,null,null,null,null,795]
[null,null,null,null,null,null,null,796]
[null,null,null,null,null,null,null,797]
[null,null,null,null,null,null,null,798]
[null,null,null,null,null,null,null,799]
[null,null,null,null,null,null,null,800]
[null,null,null,null,null,null,null,801]
[null,null,null,null,null,null,null,802,null,null,null,null,null,null,null,null,null,null,null,null,null,null,null,null,null,null,null,null,null,null,null,null,null,null,null,null,null,null,null,null,null,null,null,null,null,null,null,null,null,null,null,null,null,null,null,null,null,null,null,null,null,null,null,null,null,null,null,null,null,null,null,null,null,null,null,null,null,null,null,null,null,null,null,null,null,null,null,null,null,null,null,null,null,null,null,null,null,null,null,null,null,null,null,null,null,null,null,null,null,null,null,null,null,null,null,null,null,null,null,null,null,"Page  36"]
[null,null,null,null,null,null,null,803]
[null,null,null,null,null,null,null,804]
[null,null,null,null,null,null,null,805]
[null,null,null,null,null,null,null,806]
[null,null,null,null,null,null,null,807]
[null,null,null,null,null,null,null,808]
[null,null,null,null,null,null,null,809]
[null,null,null,null,null,null,null,810]
[null,null,null,null,null,null,null,811]
[null,null,null,null,null,null,null,812]
[null,null,null,null,null,null,null,813]
[null,null,null,null,null,null,null,814]
[null,null,null,null,null,null,null,815]
[null,null,null,null,null,null,null,816]
[null,null,null,null,null,null,null,817]
[null,null,null,null,null,null,null,818]
[null,null,null,null,null,null,null,819]
[null,null,null,null,null,null,null,820]
[null,null,null,null,null,null,null,821]
[null,null,null,null,null,null,null,822]
[null,null,null,null,null,null,null,823]
[null,null,null,null,null,null,null,824]
[null,null,null,null,null,null,null,825,null,null,null,null,null,null,null,null,null,null,null,null,null,null,null,null,null,null,null,null,null,null,null,null,null,null,null,null,null,null,null,null,null,null,null,null,null,null,null,null,null,null,null,null,null,null,null,null,null,null,null,null,null,null,null,null,null,null,null,null,null,null,null,null,null,null,null,null,null,null,null,null,null,null,null,null,null,null,null,null,null,null,null,null,null,null,null,null,null,null,null,null,null,null,null,null,null,null,null,null,null,null,null,null,null,null,null,null,null,null,null,null,null,"Page  37"]
[null,null,null,null,null,null,null,826]
[null,null,null,null,null,null,null,827]
[null,null,null,null,null,null,null,828]
[null,null,null,null,null,null,null,829]
[null,null,null,null,null,null,null,830]
[null,null,null,null,null,null,null,831]
[null,null,null,null,null,null,null,832]
[null,null,null,null,null,null,null,833]
[null,null,null,null,null,null,null,834]
[null,null,null,null,null,null,null,835]
[null,null,null,null,null,null,null,836]
[null,null,null,null,null,null,null,837]
[null,null,null,null,null,null,null,838]
[null,null,null,null,null,null,null,839]
[null,null,null,null,null,null,null,840]
[null,null,null,null,null,null,null,841]
[null,null,null,null,null,null,null,842]
[null,null,null,null,null,null,null,843]
[null,null,null,null,null,null,null,844]
[null,null,null,null,null,null,null,845]
[null,null,null,null,null,null,null,846]
[null,null,null,null,null,null,null,847]
[null,null,null,null,null,null,null,848,null,null,null,null,null,null,null,null,null,null,null,null,null,null,null,null,null,null,null,null,null,null,null,null,null,null,null,null,null,null,null,null,null,null,null,null,null,null,null,null,null,null,null,null,null,null,null,null,null,null,null,null,null,null,null,null,null,null,null,null,null,null,null,null,null,null,null,null,null,null,null,null,null,null,null,null,null,null,null,null,null,null,null,null,null,null,null,null,null,null,null,null,null,null,null,null,null,null,null,null,null,null,null,null,null,null,null,null,null,null,null,null,null,"Page  38"]
[null,null,null,null,null,null,null,849]
[null,null,null,null,null,null,null,850]
[null,null,null,null,null,null,null,851]
[null,null,null,null,null,null,null,852]
[null,null,null,null,null,null,null,853]
[null,null,null,null,null,null,null,854]
[null,null,null,null,null,null,null,855]
[null,null,null,null,null,null,null,856]
[null,null,null,null,null,null,null,857]
[null,null,null,null,null,null,null,858]
[null,null,null,null,null,null,null,859]
[null,null,null,null,null,null,null,860]
[null,null,null,null,null,null,null,861]
[null,null,null,null,null,null,null,862]
[null,null,null,null,null,null,null,863]
[null,null,null,null,null,null,null,864]
[null,null,null,null,null,null,null,865]
[null,null,null,null,null,null,null,866]
[null,null,null,null,null,null,null,867]
[null,null,null,null,null,null,null,868]
[null,null,null,null,null,null,null,869]
[null,null,null,null,null,null,null,870]
[null,null,null,null,null,null,null,871,null,null,null,null,null,null,null,null,null,null,null,null,null,null,null,null,null,null,null,null,null,null,null,null,null,null,null,null,null,null,null,null,null,null,null,null,null,null,null,null,null,null,null,null,null,null,null,null,null,null,null,null,null,null,null,null,null,null,null,null,null,null,null,null,null,null,null,null,null,null,null,null,null,null,null,null,null,null,null,null,null,null,null,null,null,null,null,null,null,null,null,null,null,null,null,null,null,null,null,null,null,null,null,null,null,null,null,null,null,null,null,null,null,"Page  39"]
[null,null,null,null,null,null,null,872]
[null,null,null,null,null,null,null,873]
[null,null,null,null,null,null,null,874]
[null,null,null,null,null,null,null,875]
[null,null,null,null,null,null,null,876]
[null,null,null,null,null,null,null,877]
[null,null,null,null,null,null,null,878]
[null,null,null,null,null,null,null,879]
[null,null,null,null,null,null,null,880]
[null,null,null,null,null,null,null,881]
[null,null,null,null,null,null,null,882]
[null,null,null,null,null,null,null,883]
[null,null,null,null,null,null,null,884]
[null,null,null,null,null,null,null,885]
[null,null,null,null,null,null,null,886]
[null,null,null,null,null,null,null,887]
[null,null,null,null,null,null,null,888]
[null,null,null,null,null,null,null,889]
[null,null,null,null,null,null,null,890]
[null,null,null,null,null,null,null,891]
[null,null,null,null,null,null,null,892]
[null,null,null,null,null,null,null,893]
[null,null,null,null,null,null,null,894,null,null,null,null,null,null,null,null,null,null,null,null,null,null,null,null,null,null,null,null,null,null,null,null,null,null,null,null,null,null,null,null,null,null,null,null,null,null,null,null,null,null,null,null,null,null,null,null,null,null,null,null,null,null,null,null,null,null,null,null,null,null,null,null,null,null,null,null,null,null,null,null,null,null,null,null,null,null,null,null,null,null,null,null,null,null,null,null,null,null,null,null,null,null,null,null,null,null,null,null,null,null,null,null,null,null,null,null,null,null,null,null,null,"Page  40"]
[null,null,null,null,null,null,null,895]
[null,null,null,null,null,null,null,896]
[null,null,null,null,null,null,null,897]
[null,null,null,null,null,null,null,898]
[null,null,null,null,null,null,null,899]
[null,null,null,null,null,null,null,900]
[null,null,null,null,null,null,null,901]
[null,null,null,null,null,null,null,902]
[null,null,null,null,null,null,null,903]
[null,null,null,null,null,null,null,904]
[null,null,null,null,null,null,null,905]
[null,null,null,null,null,null,null,906]
[null,null,null,null,null,null,null,907]
[null,null,null,null,null,null,null,908]
[null,null,null,null,null,null,null,909]
[null,null,null,null,null,null,null,910]
[null,null,null,null,null,null,null,911]
[null,null,null,null,null,null,null,912]
[null,null,null,null,null,null,null,913]
[null,null,null,null,null,null,null,914]
[null,null,null,null,null,null,null,915]
[null,null,null,null,null,null,null,916]
[null,null,null,null,null,null,null,917,null,null,null,null,null,null,null,null,null,null,null,null,null,null,null,null,null,null,null,null,null,null,null,null,null,null,null,null,null,null,null,null,null,null,null,null,null,null,null,null,null,null,null,null,null,null,null,null,null,null,null,null,null,null,null,null,null,null,null,null,null,null,null,null,null,null,null,null,null,null,null,null,null,null,null,null,null,null,null,null,null,null,null,null,null,null,null,null,null,null,null,null,null,null,null,null,null,null,null,null,null,null,null,null,null,null,null,null,null,null,null,null,null,"Page  41"]
[null,null,null,null,null,null,null,918]
[null,null,null,null,null,null,null,919]
[null,null,null,null,null,null,null,920]
[null,null,null,null,null,null,null,921]
[null,null,null,null,null,null,null,922]
[null,null,null,null,null,null,null,923]
[null,null,null,null,null,null,null,924]
[null,null,null,null,null,null,null,925]
[null,null,null,null,null,null,null,926]
[null,null,null,null,null,null,null,927]
[null,null,null,null,null,null,null,928]
[null,null,null,null,null,null,null,929]
[null,null,null,null,null,null,null,930]
[null,null,null,null,null,null,null,931]
[null,null,null,null,null,null,null,932]
[null,null,null,null,null,null,null,933]
[null,null,null,null,null,null,null,934]
[null,null,null,null,null,null,null,935]
[null,null,null,null,null,null,null,936]
[null,null,null,null,null,null,null,937]
[null,null,null,null,null,null,null,938]
[null,null,null,null,null,null,null,939]
[null,null,null,null,null,null,null,940,null,null,null,null,null,null,null,null,null,null,null,null,null,null,null,null,null,null,null,null,null,null,null,null,null,null,null,null,null,null,null,null,null,null,null,null,null,null,null,null,null,null,null,null,null,null,null,null,null,null,null,null,null,null,null,null,null,null,null,null,null,null,null,null,null,null,null,null,null,null,null,null,null,null,null,null,null,null,null,null,null,null,null,null,null,null,null,null,null,null,null,null,null,null,null,null,null,null,null,null,null,null,null,null,null,null,null,null,null,null,null,null,null,"Page  42"]
[null,null,null,null,null,null,null,941]
[null,null,null,null,null,null,null,942]
[null,null,null,null,null,null,null,943]
[null,null,null,null,null,null,null,944]
[null,null,null,null,null,null,null,945]
[null,null,null,null,null,null,null,946]
[null,null,null,null,null,null,null,947]
[null,null,null,null,null,null,null,948]
[null,null,null,null,null,null,null,949]
[null,null,null,null,null,null,null,950]
[null,null,null,null,null,null,null,951]
[null,null,null,null,null,null,null,952]
[null,null,null,null,null,null,null,953]
[null,null,null,null,null,null,null,954]
[null,null,null,null,null,null,null,955]
[null,null,null,null,null,null,null,956]
[null,null,null,null,null,null,null,957]
[null,null,null,null,null,null,null,958]
[null,null,null,null,null,null,null,959]
[null,null,null,null,null,null,null,960]
[null,null,null,null,null,null,null,961]
[null,null,null,null,null,null,null,962]
[null,null,null,null,null,null,null,963,null,null,null,null,null,null,null,null,null,null,null,null,null,null,null,null,null,null,null,null,null,null,null,null,null,null,null,null,null,null,null,null,null,null,null,null,null,null,null,null,null,null,null,null,null,null,null,null,null,null,null,null,null,null,null,null,null,null,null,null,null,null,null,null,null,null,null,null,null,null,null,null,null,null,null,null,null,null,null,null,null,null,null,null,null,null,null,null,null,null,null,null,null,null,null,null,null,null,null,null,null,null,null,null,null,null,null,null,null,null,null,null,null,"Page  43"]
[null,null,null,null,null,null,null,964]
[null,null,null,null,null,null,null,965]
[null,null,null,null,null,null,null,966]
[null,null,null,null,null,null,null,967]
[null,null,null,null,null,null,null,968]
[null,null,null,null,null,null,null,969]
[null,null,null,null,null,null,null,970]
[null,null,null,null,null,null,null,971]
[null,null,null,null,null,null,null,972]
[null,null,null,null,null,null,null,973]
[null,null,null,null,null,null,null,974]
[null,null,null,null,null,null,null,975]
[null,null,null,null,null,null,null,976]
[null,null,null,null,null,null,null,977]
[null,null,null,null,null,null,null,978]
[null,null,null,null,null,null,null,979]
[null,null,null,null,null,null,null,980]
[null,null,null,null,null,null,null,981]
[null,null,null,null,null,null,null,982]
[null,null,null,null,null,null,null,983]
[null,null,null,null,null,null,null,984]
[null,null,null,null,null,null,null,985]
[null,null,null,null,null,null,null,986,null,null,null,null,null,null,null,null,null,null,null,null,null,null,null,null,null,null,null,null,null,null,null,null,null,null,null,null,null,null,null,null,null,null,null,null,null,null,null,null,null,null,null,null,null,null,null,null,null,null,null,null,null,null,null,null,null,null,null,null,null,null,null,null,null,null,null,null,null,null,null,null,null,null,null,null,null,null,null,null,null,null,null,null,null,null,null,null,null,null,null,null,null,null,null,null,null,null,null,null,null,null,null,null,null,null,null,null,null,null,null,null,null,"Page  44"]
[null,null,null,null,null,null,null,987]
[null,null,null,null,null,null,null,988]
[null,null,null,null,null,null,null,989]
[null,null,null,null,null,null,null,990]
[null,null,null,null,null,null,null,991]
[null,null,null,null,null,null,null,992]
[null,null,null,null,null,null,null,993]
[null,null,null,null,null,null,null,994]
[null,null,null,null,null,null,null,995]
[null,null,null,null,null,null,null,996]
[null,null,null,null,null,null,null,997]
[null,null,null,null,null,null,null,998]
[null,null,null,null,null,null,null,999]
[null,null,null,null,null,null,null,1000]
[null,null,null,null,null,null,null,1001]
[null,null,null,null,null,null,null,1002]
[null,null,null,null,null,null,null,1003]
[null,null,null,null,null,null,null,1004]
[null,null,null,null,null,null,null,1005]
[null,null,null,null,null,null,null,1006]
[null,null,null,null,null,null,null,1007]
[null,null,null,null,null,null,null,1008]
[null,null,null,null,null,null,null,1009,null,null,null,null,null,null,null,null,null,null,null,null,null,null,null,null,null,null,null,null,null,null,null,null,null,null,null,null,null,null,null,null,null,null,null,null,null,null,null,null,null,null,null,null,null,null,null,null,null,null,null,null,null,null,null,null,null,null,null,null,null,null,null,null,null,null,null,null,null,null,null,null,null,null,null,null,null,null,null,null,null,null,null,null,null,null,null,null,null,null,null,null,null,null,null,null,null,null,null,null,null,null,null,null,null,null,null,null,null,null,null,null,null,"Page  45"]
[null,null,null,null,null,null,null,1010]
[null,null,null,null,null,null,null,1011]
[null,null,null,null,null,null,null,1012]
[null,null,null,null,null,null,null,1013]
[null,null,null,null,null,null,null,1014]
[null,null,null,null,null,null,null,1015]
[null,null,null,null,null,null,null,1016]
[null,null,null,null,null,null,null,1017]
[null,null,null,null,null,null,null,1018]
[null,null,null,null,null,null,null,1019]
[null,null,null,null,null,null,null,1020]
[null,null,null,null,null,null,null,1021]
[null,null,null,null,null,null,null,1022]
[null,null,null,null,null,null,null,1023]
[null,null,null,null,null,null,null,1024]
[null,null,null,null,null,null,null,1025]
[null,null,null,null,null,null,null,1026]
[null,null,null,null,null,null,null,1027]
[null,null,null,null,null,null,null,1028]
[null,null,null,null,null,null,null,1029]
[null,null,null,null,null,null,null,1030]
[null,null,null,null,null,null,null,1031]
[null,null,null,null,null,null,null,1032,null,null,null,null,null,null,null,null,null,null,null,null,null,null,null,null,null,null,null,null,null,null,null,null,null,null,null,null,null,null,null,null,null,null,null,null,null,null,null,null,null,null,null,null,null,null,null,null,null,null,null,null,null,null,null,null,null,null,null,null,null,null,null,null,null,null,null,null,null,null,null,null,null,null,null,null,null,null,null,null,null,null,null,null,null,null,null,null,null,null,null,null,null,null,null,null,null,null,null,null,null,null,null,null,null,null,null,null,null,null,null,null,null,"Page  46"]
[null,null,null,null,null,null,null,1033]
[null,null,null,null,null,null,null,1034]
[null,null,null,null,null,null,null,1035]
[null,null,null,null,null,null,null,1036]
[null,null,null,null,null,null,null,1037]
[null,null,null,null,null,null,null,1038]
[null,null,null,null,null,null,null,1039]
[null,null,null,null,null,null,null,1040]
[null,null,null,null,null,null,null,1041]
[null,null,null,null,null,null,null,1042]
[null,null,null,null,null,null,null,1043]
[null,null,null,null,null,null,null,1044]
[null,null,null,null,null,null,null,1045]
[null,null,null,null,null,null,null,1046]
[null,null,null,null,null,null,null,1047]
[null,null,null,null,null,null,null,1048]
[null,null,null,null,null,null,null,1049]
[null,null,null,null,null,null,null,1050]
[null,null,null,null,null,null,null,1051]
[null,null,null,null,null,null,null,1052]
[null,null,null,null,null,null,null,1053]
[null,null,null,null,null,null,null,1054]
[null,null,null,null,null,null,null,1055,null,null,null,null,null,null,null,null,null,null,null,null,null,null,null,null,null,null,null,null,null,null,null,null,null,null,null,null,null,null,null,null,null,null,null,null,null,null,null,null,null,null,null,null,null,null,null,null,null,null,null,null,null,null,null,null,null,null,null,null,null,null,null,null,null,null,null,null,null,null,null,null,null,null,null,null,null,null,null,null,null,null,null,null,null,null,null,null,null,null,null,null,null,null,null,null,null,null,null,null,null,null,null,null,null,null,null,null,null,null,null,null,null,"Page  47"]
[null,null,null,null,null,null,null,1056]
[null,null,null,null,null,null,null,1057]
[null,null,null,null,null,null,null,1058]
[null,null,null,null,null,null,null,1059]
[null,null,null,null,null,null,null,1060]
[null,null,null,null,null,null,null,1061]
[null,null,null,null,null,null,null,1062]
[null,null,null,null,null,null,null,1063]
[null,null,null,null,null,null,null,1064]
[null,null,null,null,null,null,null,1065]
[null,null,null,null,null,null,null,1066]
[null,null,null,null,null,null,null,1067]
[null,null,null,null,null,null,null,1068]
[null,null,null,null,null,null,null,1069]
[null,null,null,null,null,null,null,1070]
[null,null,null,null,null,null,null,1071]
[null,null,null,null,null,null,null,1072]
[null,null,null,null,null,null,null,1073]
[null,null,null,null,null,null,null,1074]
[null,null,null,null,null,null,null,1075]
[null,null,null,null,null,null,null,1076]
[null,null,null,null,null,null,null,1077]
[null,null,null,null,null,null,null,1078,null,null,null,null,null,null,null,null,null,null,null,null,null,null,null,null,null,null,null,null,null,null,null,null,null,null,null,null,null,null,null,null,null,null,null,null,null,null,null,null,null,null,null,null,null,null,null,null,null,null,null,null,null,null,null,null,null,null,null,null,null,null,null,null,null,null,null,null,null,null,null,null,null,null,null,null,null,null,null,null,null,null,null,null,null,null,null,null,null,null,null,null,null,null,null,null,null,null,null,null,null,null,null,null,null,null,null,null,null,null,null,null,null,"Page  48"]
[null,null,null,null,null,null,null,1079]
[null,null,null,null,null,null,null,1080]
[null,null,null,null,null,null,null,1081]
[null,null,null,null,null,null,null,1082]
[null,null,null,null,null,null,null,1083]
[null,null,null,null,null,null,null,1084]
[null,null,null,null,null,null,null,1085]
[null,null,null,null,null,null,null,1086]
[null,null,null,null,null,null,null,1087]
[null,null,null,null,null,null,null,1088]
[null,null,null,null,null,null,null,1089]
[null,null,null,null,null,null,null,1090]
[null,null,null,null,null,null,null,1091]
[null,null,null,null,null,null,null,1092]
[null,null,null,null,null,null,null,1093]
[null,null,null,null,null,null,null,1094]
[null,null,null,null,null,null,null,1095]
[null,null,null,null,null,null,null,1096]
[null,null,null,null,null,null,null,1097]
[null,null,null,null,null,null,null,1098]
[null,null,null,null,null,null,null,1099]
[null,null,null,null,null,null,null,1100]
[null,null,null,null,null,null,null,1101,null,null,null,null,null,null,null,null,null,null,null,null,null,null,null,null,null,null,null,null,null,null,null,null,null,null,null,null,null,null,null,null,null,null,null,null,null,null,null,null,null,null,null,null,null,null,null,null,null,null,null,null,null,null,null,null,null,null,null,null,null,null,null,null,null,null,null,null,null,null,null,null,null,null,null,null,null,null,null,null,null,null,null,null,null,null,null,null,null,null,null,null,null,null,null,null,null,null,null,null,null,null,null,null,null,null,null,null,null,null,null,null,null,"Page  49"]
[null,null,null,null,null,null,null,1102]
[null,null,null,null,null,null,null,1103]
[null,null,null,null,null,null,null,1104]
[null,null,null,null,null,null,null,1105]
[null,null,null,null,null,null,null,1106]
[null,null,null,null,null,null,null,1107]
[null,null,null,null,null,null,null,1108]
[null,null,null,null,null,null,null,1109]
[null,null,null,null,null,null,null,1110]
[null,null,null,null,null,null,null,1111]
[null,null,null,null,null,null,null,1112]
[null,null,null,null,null,null,null,1113]
[null,null,null,null,null,null,null,1114]
[null,null,null,null,null,null,null,1115]
[null,null,null,null,null,null,null,1116]
[null,null,null,null,null,null,null,1117]
[null,null,null,null,null,null,null,1118]
[null,null,null,null,null,null,null,1119]
[null,null,null,null,null,null,null,1120]
[null,null,null,null,null,null,null,1121]
[null,null,null,null,null,null,null,1122]
[null,null,null,null,null,null,null,1123]
[null,null,null,null,null,null,null,1124,null,null,null,null,null,null,null,null,null,null,null,null,null,null,null,null,null,null,null,null,null,null,null,null,null,null,null,null,null,null,null,null,null,null,null,null,null,null,null,null,null,null,null,null,null,null,null,null,null,null,null,null,null,null,null,null,null,null,null,null,null,null,null,null,null,null,null,null,null,null,null,null,null,null,null,null,null,null,null,null,null,null,null,null,null,null,null,null,null,null,null,null,null,null,null,null,null,null,null,null,null,null,null,null,null,null,null,null,null,null,null,null,null,"Page  50"]
[null,null,null,null,null,null,null,1125]
[null,null,null,null,null,null,null,1126]
[null,null,null,null,null,null,null,1127]
[null,null,null,null,null,null,null,1128]
[null,null,null,null,null,null,null,1129]
[null,null,null,null,null,null,null,1130]
[null,null,null,null,null,null,null,1131]
[null,null,null,null,null,null,null,1132]
[null,null,null,null,null,null,null,1133]
[null,null,null,null,null,null,null,1134]
[null,null,null,null,null,null,null,1135]
[null,null,null,null,null,null,null,1136]
[null,null,null,null,null,null,null,1137]
[null,null,null,null,null,null,null,1138]
[null,null,null,null,null,null,null,1139]
[null,null,null,null,null,null,null,1140]
[null,null,null,null,null,null,null,1141]
[null,null,null,null,null,null,null,1142]
[null,null,null,null,null,null,null,1143]
[null,null,null,null,null,null,null,1144]
[null,null,null,null,null,null,null,1145]
[null,null,null,null,null,null,null,1146]
[null,null,null,null,null,null,null,1147,null,null,null,null,null,null,null,null,null,null,null,null,null,null,null,null,null,null,null,null,null,null,null,null,null,null,null,null,null,null,null,null,null,null,null,null,null,null,null,null,null,null,null,null,null,null,null,null,null,null,null,null,null,null,null,null,null,null,null,null,null,null,null,null,null,null,null,null,null,null,null,null,null,null,null,null,null,null,null,null,null,null,null,null,null,null,null,null,null,null,null,null,null,null,null,null,null,null,null,null,null,null,null,null,null,null,null,null,null,null,null,null,null,"Page  51"]
[null,null,null,null,null,null,null,1148]
[null,null,null,null,null,null,null,1149]
[null,null,null,null,null,null,null,1150]
[null,null,null,null,null,null,null,1151]
[null,null,null,null,null,null,null,1152]
[null,null,null,null,null,null,null,1153]
[null,null,null,null,null,null,null,1154]
[null,null,null,null,null,null,null,1155]
[null,null,null,null,null,null,null,1156]
[null,null,null,null,null,null,null,1157]
[null,null,null,null,null,null,null,1158]
[null,null,null,null,null,null,null,1159]
[null,null,null,null,null,null,null,1160]
[null,null,null,null,null,null,null,1161]
[null,null,null,null,null,null,null,1162]
[null,null,null,null,null,null,null,1163]
[null,null,null,null,null,null,null,1164]
[null,null,null,null,null,null,null,1165]
[null,null,null,null,null,null,null,1166]
[null,null,null,null,null,null,null,1167]
[null,null,null,null,null,null,null,1168]
[null,null,null,null,null,null,null,1169]
[null,null,null,null,null,null,null,1170,null,null,null,null,null,null,null,null,null,null,null,null,null,null,null,null,null,null,null,null,null,null,null,null,null,null,null,null,null,null,null,null,null,null,null,null,null,null,null,null,null,null,null,null,null,null,null,null,null,null,null,null,null,null,null,null,null,null,null,null,null,null,null,null,null,null,null,null,null,null,null,null,null,null,null,null,null,null,null,null,null,null,null,null,null,null,null,null,null,null,null,null,null,null,null,null,null,null,null,null,null,null,null,null,null,null,null,null,null,null,null,null,null,"Page  52"]
[null,null,null,null,null,null,null,1171]
[null,null,null,null,null,null,null,1172]
[null,null,null,null,null,null,null,1173]
[null,null,null,null,null,null,null,1174]
[null,null,null,null,null,null,null,1175]
[null,null,null,null,null,null,null,1176]
[null,null,null,null,null,null,null,1177]
[null,null,null,null,null,null,null,1178]
[null,null,null,null,null,null,null,1179]
[null,null,null,null,null,null,null,1180]
[null,null,null,null,null,null,null,1181]
[null,null,null,null,null,null,null,1182]
[null,null,null,null,null,null,null,1183]
[null,null,null,null,null,null,null,1184]
[null,null,null,null,null,null,null,1185]
[null,null,null,null,null,null,null,1186]
[null,null,null,null,null,null,null,1187]
[null,null,null,null,null,null,null,1188]
[null,null,null,null,null,null,null,1189]
[null,null,null,null,null,null,null,1190]
[null,null,null,null,null,null,null,1191]
[null,null,null,null,null,null,null,1192]
[null,null,null,null,null,null,null,1193,null,null,null,null,null,null,null,null,null,null,null,null,null,null,null,null,null,null,null,null,null,null,null,null,null,null,null,null,null,null,null,null,null,null,null,null,null,null,null,null,null,null,null,null,null,null,null,null,null,null,null,null,null,null,null,null,null,null,null,null,null,null,null,null,null,null,null,null,null,null,null,null,null,null,null,null,null,null,null,null,null,null,null,null,null,null,null,null,null,null,null,null,null,null,null,null,null,null,null,null,null,null,null,null,null,null,null,null,null,null,null,null,null,"Page  53"]
[null,null,null,null,null,null,null,1194]
[null,null,null,null,null,null,null,1195]
[null,null,null,null,null,null,null,1196]
[null,null,null,null,null,null,null,1197]
[null,null,null,null,null,null,null,1198]
[null,null,null,null,null,null,null,1199]
[null,null,null,null,null,null,null,1200]
[null,null,null,null,null,null,null,1201]
[null,null,null,null,null,null,null,1202]
[null,null,null,null,null,null,null,1203]
[null,null,null,null,null,null,null,1204]
[null,null,null,null,null,null,null,1205]
[null,null,null,null,null,null,null,1206]
[null,null,null,null,null,null,null,1207]
[null,null,null,null,null,null,null,1208]
[null,null,null,null,null,null,null,1209]
[null,null,null,null,null,null,null,1210]
[null,null,null,null,null,null,null,1211]
[null,null,null,null,null,null,null,1212]
[null,null,null,null,null,null,null,1213]
[null,null,null,null,null,null,null,1214]
[null,null,null,null,null,null,null,1215]
[null,null,null,null,null,null,null,1216,null,null,null,null,null,null,null,null,null,null,null,null,null,null,null,null,null,null,null,null,null,null,null,null,null,null,null,null,null,null,null,null,null,null,null,null,null,null,null,null,null,null,null,null,null,null,null,null,null,null,null,null,null,null,null,null,null,null,null,null,null,null,null,null,null,null,null,null,null,null,null,null,null,null,null,null,null,null,null,null,null,null,null,null,null,null,null,null,null,null,null,null,null,null,null,null,null,null,null,null,null,null,null,null,null,null,null,null,null,null,null,null,null,"Page  54"]
[null,null,null,null,null,null,null,1217]
[null,null,null,null,null,null,null,1218]
[null,null,null,null,null,null,null,1219]
[null,null,null,null,null,null,null,1220]
[null,null,null,null,null,null,null,1221]
[null,null,null,null,null,null,null,1222]
[null,null,null,null,null,null,null,1223]
[null,null,null,null,null,null,null,1224]
[null,null,null,null,null,null,null,1225]
[null,null,null,null,null,null,null,1226]
[null,null,null,null,null,null,null,1227]
[null,null,null,null,null,null,null,1228]
[null,null,null,null,null,null,null,1229]
[null,null,null,null,null,null,null,1230]
[null,null,null,null,null,null,null,1231]
[null,null,null,null,null,null,null,1232]
[null,null,null,null,null,null,null,1233]
[null,null,null,null,null,null,null,1234]
[null,null,null,null,null,null,null,1235]
[null,null,null,null,null,null,null,1236]
[null,null,null,null,null,null,null,1237]
[null,null,null,null,null,null,null,1238]
[null,null,null,null,null,null,null,1239,null,null,null,null,null,null,null,null,null,null,null,null,null,null,null,null,null,null,null,null,null,null,null,null,null,null,null,null,null,null,null,null,null,null,null,null,null,null,null,null,null,null,null,null,null,null,null,null,null,null,null,null,null,null,null,null,null,null,null,null,null,null,null,null,null,null,null,null,null,null,null,null,null,null,null,null,null,null,null,null,null,null,null,null,null,null,null,null,null,null,null,null,null,null,null,null,null,null,null,null,null,null,null,null,null,null,null,null,null,null,null,null,null,"Page  55"]
[null,null,null,null,null,null,null,1240]
[null,null,null,null,null,null,null,1241]
[null,null,null,null,null,null,null,1242]
[null,null,null,null,null,null,null,1243]
[null,null,null,null,null,null,null,1244]
[null,null,null,null,null,null,null,1245]
[null,null,null,null,null,null,null,1246]
[null,null,null,null,null,null,null,1247]
[null,null,null,null,null,null,null,1248]
[null,null,null,null,null,null,null,1249]
[null,null,null,null,null,null,null,1250]
[null,null,null,null,null,null,null,1251]
[null,null,null,null,null,null,null,1252]
[null,null,null,null,null,null,null,1253]
[null,null,null,null,null,null,null,1254]
[null,null,null,null,null,null,null,1255]
[null,null,null,null,null,null,null,1256]
[null,null,null,null,null,null,null,1257]
[null,null,null,null,null,null,null,1258]
[null,null,null,null,null,null,null,1259]
[null,null,null,null,null,null,null,1260]
[null,null,null,null,null,null,null,1261]
[null,null,null,null,null,null,null,1262,null,null,null,null,null,null,null,null,null,null,null,null,null,null,null,null,null,null,null,null,null,null,null,null,null,null,null,null,null,null,null,null,null,null,null,null,null,null,null,null,null,null,null,null,null,null,null,null,null,null,null,null,null,null,null,null,null,null,null,null,null,null,null,null,null,null,null,null,null,null,null,null,null,null,null,null,null,null,null,null,null,null,null,null,null,null,null,null,null,null,null,null,null,null,null,null,null,null,null,null,null,null,null,null,null,null,null,null,null,null,null,null,null,"Page  56"]
[null,null,null,null,null,null,null,1263]
[null,null,null,null,null,null,null,1264]
[null,null,null,null,null,null,null,1265]
[null,null,null,null,null,null,null,1266]
[null,null,null,null,null,null,null,1267]
[null,null,null,null,null,null,null,1268]
[null,null,null,null,null,null,null,1269]
[null,null,null,null,null,null,null,1270]
[null,null,null,null,null,null,null,1271]
[null,null,null,null,null,null,null,1272]
[null,null,null,null,null,null,null,1273]
[null,null,null,null,null,null,null,1274]
[null,null,null,null,null,null,null,1275]
[null,null,null,null,null,null,null,1276]
[null,null,null,null,null,null,null,1277]
[null,null,null,null,null,null,null,1278]
[null,null,null,null,null,null,null,1279]
[null,null,null,null,null,null,null,1280]
[null,null,null,null,null,null,null,1281]
[null,null,null,null,null,null,null,1282]
[null,null,null,null,null,null,null,1283]
[null,null,null,null,null,null,null,1284]
[null,null,null,null,null,null,null,1285,null,null,null,null,null,null,null,null,null,null,null,null,null,null,null,null,null,null,null,null,null,null,null,null,null,null,null,null,null,null,null,null,null,null,null,null,null,null,null,null,null,null,null,null,null,null,null,null,null,null,null,null,null,null,null,null,null,null,null,null,null,null,null,null,null,null,null,null,null,null,null,null,null,null,null,null,null,null,null,null,null,null,null,null,null,null,null,null,null,null,null,null,null,null,null,null,null,null,null,null,null,null,null,null,null,null,null,null,null,null,null,null,null,"Page  57"]
[null,null,null,null,null,null,null,1286]
[null,null,null,null,null,null,null,1287]
[null,null,null,null,null,null,null,1288]
[null,null,null,null,null,null,null,1289]
[null,null,null,null,null,null,null,1290]
[null,null,null,null,null,null,null,1291]
[null,null,null,null,null,null,null,1292]
[null,null,null,null,null,null,null,1293]
[null,null,null,null,null,null,null,1294]
[null,null,null,null,null,null,null,1295]
[null,null,null,null,null,null,null,1296]
[null,null,null,null,null,null,null,1297]
[null,null,null,null,null,null,null,1298]
[null,null,null,null,null,null,null,1299]
[null,null,null,null,null,null,null,1300]
[null,null,null,null,null,null,null,1301]
[null,null,null,null,null,null,null,1302]
[null,null,null,null,null,null,null,1303]
[null,null,null,null,null,null,null,1304]
[null,null,null,null,null,null,null,1305]
[null,null,null,null,null,null,null,1306]
[null,null,null,null,null,null,null,1307]
[null,null,null,null,null,null,null,1308,null,null,null,null,null,null,null,null,null,null,null,null,null,null,null,null,null,null,null,null,null,null,null,null,null,null,null,null,null,null,null,null,null,null,null,null,null,null,null,null,null,null,null,null,null,null,null,null,null,null,null,null,null,null,null,null,null,null,null,null,null,null,null,null,null,null,null,null,null,null,null,null,null,null,null,null,null,null,null,null,null,null,null,null,null,null,null,null,null,null,null,null,null,null,null,null,null,null,null,null,null,null,null,null,null,null,null,null,null,null,null,null,null,"Page  58"]
[null,null,null,null,null,null,null,1309]
[null,null,null,null,null,null,null,1310]
[null,null,null,null,null,null,null,1311]
[null,null,null,null,null,null,null,1312]
[null,null,null,null,null,null,null,1313]
[null,null,null,null,null,null,null,1314]
[null,null,null,null,null,null,null,1315]
[null,null,null,null,null,null,null,1316]
[null,null,null,null,null,null,null,1317]
[null,null,null,null,null,null,null,1318]
[null,null,null,null,null,null,null,1319]
[null,null,null,null,null,null,null,1320]
[null,null,null,null,null,null,null,1321]
[null,null,null,null,null,null,null,1322]
[null,null,null,null,null,null,null,1323]
[null,null,null,null,null,null,null,1324]
[null,null,null,null,null,null,null,1325]
[null,null,null,null,null,null,null,1326]
[null,null,null,null,null,null,null,1327]
[null,null,null,null,null,null,null,1328]
[null,null,null,null,null,null,null,1329]
[null,null,null,null,null,null,null,1330]
[null,null,null,null,null,null,null,1331,null,null,null,null,null,null,null,null,null,null,null,null,null,null,null,null,null,null,null,null,null,null,null,null,null,null,null,null,null,null,null,null,null,null,null,null,null,null,null,null,null,null,null,null,null,null,null,null,null,null,null,null,null,null,null,null,null,null,null,null,null,null,null,null,null,null,null,null,null,null,null,null,null,null,null,null,null,null,null,null,null,null,null,null,null,null,null,null,null,null,null,null,null,null,null,null,null,null,null,null,null,null,null,null,null,null,null,null,null,null,null,null,null,"Page  59"]
[null,null,null,null,null,null,null,1332]
[null,null,null,null,null,null,null,1333]
[null,null,null,null,null,null,null,1334]
[null,null,null,null,null,null,null,1335]
[null,null,null,null,null,null,null,1336]
[null,null,null,null,null,null,null,1337]
[null,null,null,null,null,null,null,1338]
[null,null,null,null,null,null,null,1339]
[null,null,null,null,null,null,null,1340]
[null,null,null,null,null,null,null,1341]
[null,null,null,null,null,null,null,1342]
[null,null,null,null,null,null,null,1343]
[null,null,null,null,null,null,null,1344]
[null,null,null,null,null,null,null,1345]
[null,null,null,null,null,null,null,1346]
[null,null,null,null,null,null,null,1347]
[null,null,null,null,null,null,null,1348]
[null,null,null,null,null,null,null,1349]
[null,null,null,null,null,null,null,1350]
[null,null,null,null,null,null,null,1351]
[null,null,null,null,null,null,null,1352]
[null,null,null,null,null,null,null,1353]
[null,null,null,null,null,null,null,1354,null,null,null,null,null,null,null,null,null,null,null,null,null,null,null,null,null,null,null,null,null,null,null,null,null,null,null,null,null,null,null,null,null,null,null,null,null,null,null,null,null,null,null,null,null,null,null,null,null,null,null,null,null,null,null,null,null,null,null,null,null,null,null,null,null,null,null,null,null,null,null,null,null,null,null,null,null,null,null,null,null,null,null,null,null,null,null,null,null,null,null,null,null,null,null,null,null,null,null,null,null,null,null,null,null,null,null,null,null,null,null,null,null,"Page  60"]
[null,null,null,null,null,null,null,1355]
[null,null,null,null,null,null,null,1356]
[null,null,null,null,null,null,null,1357]
[null,null,null,null,null,null,null,1358]
[null,null,null,null,null,null,null,1359]
[null,null,null,null,null,null,null,1360]
[null,null,null,null,null,null,null,1361]
[null,null,null,null,null,null,null,1362]
[null,null,null,null,null,null,null,1363]
[null,null,null,null,null,null,null,1364]
[null,null,null,null,null,null,null,1365]
[null,null,null,null,null,null,null,1366]
[null,null,null,null,null,null,null,1367]
[null,null,null,null,null,null,null,1368]
[null,null,null,null,null,null,null,1369]
[null,null,null,null,null,null,null,1370]
[null,null,null,null,null,null,null,1371]
[null,null,null,null,null,null,null,1372]
[null,null,null,null,null,null,null,1373]
[null,null,null,null,null,null,null,1374]
[null,null,null,null,null,null,null,1375]
[null,null,null,null,null,null,null,1376]
[null,null,null,null,null,null,null,1377,null,null,null,null,null,null,null,null,null,null,null,null,null,null,null,null,null,null,null,null,null,null,null,null,null,null,null,null,null,null,null,null,null,null,null,null,null,null,null,null,null,null,null,null,null,null,null,null,null,null,null,null,null,null,null,null,null,null,null,null,null,null,null,null,null,null,null,null,null,null,null,null,null,null,null,null,null,null,null,null,null,null,null,null,null,null,null,null,null,null,null,null,null,null,null,null,null,null,null,null,null,null,null,null,null,null,null,null,null,null,null,null,null,"Page  61"]
[null,null,null,null,null,null,null,1378]
[null,null,null,null,null,null,null,1379]
[null,null,null,null,null,null,null,1380]
[null,null,null,null,null,null,null,1381]
[null,null,null,null,null,null,null,1382]
[null,null,null,null,null,null,null,1383]
[null,null,null,null,null,null,null,1384]
[null,null,null,null,null,null,null,1385]
[null,null,null,null,null,null,null,1386]
[null,null,null,null,null,null,null,1387]
[null,null,null,null,null,null,null,1388]
[null,null,null,null,null,null,null,1389]
[null,null,null,null,null,null,null,1390]
[null,null,null,null,null,null,null,1391]
[null,null,null,null,null,null,null,1392]
[null,null,null,null,null,null,null,1393]
[null,null,null,null,null,null,null,1394]
[null,null,null,null,null,null,null,1395]
[null,null,null,null,null,null,null,1396]
[null,null,null,null,null,null,null,1397]
[null,null,null,null,null,null,null,1398]
[null,null,null,null,null,null,null,1399]
[null,null,null,null,null,null,null,1400,null,null,null,null,null,null,null,null,null,null,null,null,null,null,null,null,null,null,null,null,null,null,null,null,null,null,null,null,null,null,null,null,null,null,null,null,null,null,null,null,null,null,null,null,null,null,null,null,null,null,null,null,null,null,null,null,null,null,null,null,null,null,null,null,null,null,null,null,null,null,null,null,null,null,null,null,null,null,null,null,null,null,null,null,null,null,null,null,null,null,null,null,null,null,null,null,null,null,null,null,null,null,null,null,null,null,null,null,null,null,null,null,null,"Page  62"]
[null,null,null,null,null,null,null,1401]
[null,null,null,null,null,null,null,1402]
[null,null,null,null,null,null,null,1403]
[null,null,null,null,null,null,null,1404]
[null,null,null,null,null,null,null,1405]
[null,null,null,null,null,null,null,1406]
[null,null,null,null,null,null,null,1407]
[null,null,null,null,null,null,null,1408]
[null,null,null,null,null,null,null,1409]
[null,null,null,null,null,null,null,1410]
[null,null,null,null,null,null,null,1411]
[null,null,null,null,null,null,null,1412]
[null,null,null,null,null,null,null,1413]
[null,null,null,null,null,null,null,1414]
[null,null,null,null,null,null,null,1415]
[null,null,null,null,null,null,null,1416]
[null,null,null,null,null,null,null,1417]
[null,null,null,null,null,null,null,1418]
[null,null,null,null,null,null,null,1419]
[null,null,null,null,null,null,null,1420]
[null,null,null,null,null,null,null,1421]
[null,null,null,null,null,null,null,1422]
[null,null,null,null,null,null,null,1423,null,null,null,null,null,null,null,null,null,null,null,null,null,null,null,null,null,null,null,null,null,null,null,null,null,null,null,null,null,null,null,null,null,null,null,null,null,null,null,null,null,null,null,null,null,null,null,null,null,null,null,null,null,null,null,null,null,null,null,null,null,null,null,null,null,null,null,null,null,null,null,null,null,null,null,null,null,null,null,null,null,null,null,null,null,null,null,null,null,null,null,null,null,null,null,null,null,null,null,null,null,null,null,null,null,null,null,null,null,null,null,null,null,"Page  63"]
[null,null,null,null,null,null,null,1424]
[null,null,null,null,null,null,null,1425]
[null,null,null,null,null,null,null,1426]
[null,null,null,null,null,null,null,1427]
[null,null,null,null,null,null,null,1428]
[null,null,null,null,null,null,null,1429]
[null,null,null,null,null,null,null,1430]
[null,null,null,null,null,null,null,1431]
[null,null,null,null,null,null,null,1432]
[null,null,null,null,null,null,null,1433]
[null,null,null,null,null,null,null,1434]
[null,null,null,null,null,null,null,1435]
[null,null,null,null,null,null,null,1436]
[null,null,null,null,null,null,null,1437]
[null,null,null,null,null,null,null,1438]
[null,null,null,null,null,null,null,1439]
[null,null,null,null,null,null,null,1440]
[null,null,null,null,null,null,null,1441]
[null,null,null,null,null,null,null,1442]
[null,null,null,null,null,null,null,1443]
[null,null,null,null,null,null,null,1444]
[null,null,null,null,null,null,null,1445]
[null,null,null,null,null,null,null,1446,null,null,null,null,null,null,null,null,null,null,null,null,null,null,null,null,null,null,null,null,null,null,null,null,null,null,null,null,null,null,null,null,null,null,null,null,null,null,null,null,null,null,null,null,null,null,null,null,null,null,null,null,null,null,null,null,null,null,null,null,null,null,null,null,null,null,null,null,null,null,null,null,null,null,null,null,null,null,null,null,null,null,null,null,null,null,null,null,null,null,null,null,null,null,null,null,null,null,null,null,null,null,null,null,null,null,null,null,null,null,null,null,null,"Page  64"]
[null,null,null,null,null,null,null,1447]
[null,null,null,null,null,null,null,1448]
[null,null,null,null,null,null,null,1449]
[null,null,null,null,null,null,null,1450]
[null,null,null,null,null,null,null,1451]
[null,null,null,null,null,null,null,1452]
[null,null,null,null,null,null,null,1453]
[null,null,null,null,null,null,null,1454]
[null,null,null,null,null,null,null,1455]
[null,null,null,null,null,null,null,1456]
[null,null,null,null,null,null,null,1457]
[null,null,null,null,null,null,null,1458]
[null,null,null,null,null,null,null,1459]
[null,null,null,null,null,null,null,1460]
[null,null,null,null,null,null,null,1461]
[null,null,null,null,null,null,null,1462]
[null,null,null,null,null,null,null,1463]
[null,null,null,null,null,null,null,1464]
[null,null,null,null,null,null,null,1465]
[null,null,null,null,null,null,null,1466]
[null,null,null,null,null,null,null,1467]
[null,null,null,null,null,null,null,1468]
[null,null,null,null,null,null,null,1469,null,null,null,null,null,null,null,null,null,null,null,null,null,null,null,null,null,null,null,null,null,null,null,null,null,null,null,null,null,null,null,null,null,null,null,null,null,null,null,null,null,null,null,null,null,null,null,null,null,null,null,null,null,null,null,null,null,null,null,null,null,null,null,null,null,null,null,null,null,null,null,null,null,null,null,null,null,null,null,null,null,null,null,null,null,null,null,null,null,null,null,null,null,null,null,null,null,null,null,null,null,null,null,null,null,null,null,null,null,null,null,null,null,"Page  65"]
[null,null,null,null,null,null,null,1470]
[null,null,null,null,null,null,null,1471]
[null,null,null,null,null,null,null,1472]
[null,null,null,null,null,null,null,1473]
[null,null,null,null,null,null,null,1474]
[null,null,null,null,null,null,null,1475]
[null,null,null,null,null,null,null,1476]
[null,null,null,null,null,null,null,1477]
[null,null,null,null,null,null,null,1478]
[null,null,null,null,null,null,null,1479]
[null,null,null,null,null,null,null,1480]
[null,null,null,null,null,null,null,1481]
[null,null,null,null,null,null,null,1482]
[null,null,null,null,null,null,null,1483]
[null,null,null,null,null,null,null,1484]
[null,null,null,null,null,null,null,1485]
[null,null,null,null,null,null,null,1486]
[null,null,null,null,null,null,null,1487]
[null,null,null,null,null,null,null,1488]
[null,null,null,null,null,null,null,1489]
[null,null,null,null,null,null,null,1490]
[null,null,null,null,null,null,null,1491]
[null,null,null,null,null,null,null,1492,null,null,null,null,null,null,null,null,null,null,null,null,null,null,null,null,null,null,null,null,null,null,null,null,null,null,null,null,null,null,null,null,null,null,null,null,null,null,null,null,null,null,null,null,null,null,null,null,null,null,null,null,null,null,null,null,null,null,null,null,null,null,null,null,null,null,null,null,null,null,null,null,null,null,null,null,null,null,null,null,null,null,null,null,null,null,null,null,null,null,null,null,null,null,null,null,null,null,null,null,null,null,null,null,null,null,null,null,null,null,null,null,null,"Page  66"]
[null,null,null,null,null,null,null,1493]
[null,null,null,null,null,null,null,1494]
[null,null,null,null,null,null,null,1495]
[null,null,null,null,null,null,null,1496]
[null,null,null,null,null,null,null,1497]
[null,null,null,null,null,null,null,1498]
[null,null,null,null,null,null,null,1499]
[null,null,null,null,null,null,null,1500]
[]
[null,null,null,null,null,null,null,null,"END OF DOCUMENT"]

{"sheet":"Year 3","index":4,"n_rows":1514,"n_cols":122,"rows_kept":1514,"cut":false,"hidden":false,"merged":[[11,112,11,115],[11,116,11,119],[12,8,12,17],[12,18,12,23],[12,24,12,29],[12,30,12,33],[12,34,12,39],[12,40,12,48],[12,49,12,54],[12,55,12,58],[11,87,11,91],[11,92,11,95],[11,96,11,99],[11,100,11,103],[11,104,11,107],[11,108,11,111],[11,55,11,58],[11,59,11,69],[11,70,11,73],[11,74,11,77],[11,78,11,81],[11,82,11,86],[10,82,10,91],[10,96,10,107],[10,108,10,119],[11,8,11,17],[11,18,11,23],[11,24,11,29],[11,30,11,33],[11,34,11,39],[11,40,11,48],[11,49,11,54],[0,8,0,123],[1,8,3,19],[1,20,3,49],[1,51,3,57],[1,58,3,73],[1,121,30,123],[5,8,7,73],[5,74,7,103],[9,92,10,95],[13,96,13,99],[13,100,13,103],[13,104,13,107],[13,108,13,111],[13,112,13,115],[13,116,13,119],[13,70,13,73],[13,74,13,77],[13,78,13,81],[13,82,13,86],[13,87,13,91],[13,92,13,95],[12,116,12,119],[13,8,13,17],[13,18,13,23],[13,24,13,29],[13,30,13,33],[13,34,13,39],[13,40,13,48],[13,49,13,54],[13,55,13,58],[13,59,13,69],[12,92,12,95],[12,96,12,99],[12,100,12,103],[12,104,12,107],[12,108,12,111],[12,112,12,115],[12,59,12,69],[12,70,12,73],[12,74,12,77],[12,78,12,81],[12,82,12,86],[12,87,12,91],[15,112,15,115],[15,116,15,119],[16,8,16,17],[16,18,16,23],[16,24,16,29],[16,30,16,33],[16,34,16,39],[16,40,16,48],[16,49,16,54],[16,55,16,58],[15,87,15,91],[15,92,15,95],[15,96,15,99],[15,100,15,103],[15,104,15,107],[15,108,15,111],[15,55,15,58],[15,59,15,69],[15,70,15,73],[15,74,15,77],[15,78,15,81],[15,82,15,86],[14,108,14,111],[14,112,14,115],[14,116,14,119],[15,8,15,17],[15,18,15,23],[15,24,15,29],[15,30,15,33],[15,34,15,39],[15,40,15,48],[15,49,15,54],[14,82,14,86],[14,87,14,91],[14,92,14,95],[14,96,14,99],[14,100,14,103],[14,104,14,107],[14,49,14,54],[14,55,14,58],[14,59,14,69],[14,70,14,73],[14,74,14,77],[14,78,14,81],[14,8,14,17],[14,18,14,23],[14,24,14,29],[14,30,14,33],[14,34,14,39],[14,40,14,48],[17,96,17,99],[17,100,17,103],[17,104,17,107],[17,108,17,111],[17,112,17,115],[17,116,17,119],[17,70,17,73],[17,74,17,77],[17,78,17,81],[17,82,17,86],[17,87,17,91],[17,92,17,95],[16,116,16,119],[17,8,17,17],[17,18,17,23],[17,24,17,29],[17,30,17,33],[17,34,17,39],[17,40,17,48],[17,49,17,54],[17,55,17,58],[17,59,17,69],[16,92,16,95],[16,96,16,99],[16,100,16,103],[16,104,16,107],[16,108,16,111],[16,112,16,115],[16,59,16,69],[16,70,16,73],[16,74,16,77],[16,78,16,81],[16,82,16,86],[16,87,16,91],[19,112,19,115],[19,116,19,119],[20,8,20,17],[20,18,20,23],[20,24,20,29],[20,30,20,33],[20,34,20,39],[20,40,20,48],[20,49,20,54],[20,55,20,58],[19,87,19,91],[19,92,19,95],[19,96,19,99],[19,100,19,103],[19,104,19,107],[19,108,19,111],[19,55,19,58],[19,59,19,69],[19,70,19,73],[19,74,19,77],[19,78,19,81],[19,82,19,86],[18,108,18,111],[18,112,18,115],[18,116,18,119],[19,8,19,17],[19,18,19,23],[19,24,19,29],[19,30,19,33],[19,34,19,39],[19,40,19,48],[19,49,19,54],[18,82,18,86],[18,87,18,91],[18,92,18,95],[18,96,18,99],[18,100,18,103],[18,104,18,107],[18,49,18,54],[18,55,18,58],[18,59,18,69],[18,70,18,73],[18,74,18,77],[18,78,18,81],[18,8,18,17],[18,18,18,23],[18,24,18,29],[18,30,18,33],[18,34,18,39],[18,40,18,48],[21,96,21,99],[21,100,21,103],[21,104,21,107],[21,108,21,111],[21,112,21,115],[21,116,21,119],[21,70,21,73],[21,74,21,77],[21,78,21,81],[21,82,21,86],[21,87,21,91],[21,92,21,95],[20,116,20,119],[21,8,21,17],[21,18,21,23],[21,24,21,29],[21,30,21,33],[21,34,21,39],[21,40,21,48],[21,49,21,54],[21,55,21,58],[21,59,21,69],[20,92,20,95],[20,96,20,99],[20,100,20,103],[20,104,20,107],[20,108,20,111],[20,112,20,115],[20,59,20,69],[20,70,20,73],[20,74,20,77],[20,78,20,81],[20,82,20,86],[20,87,20,91],[23,112,23,115],[23,116,23,119],[24,8,24,17],[24,18,24,23],[24,24,24,29],[24,30,24,33],[24,34,24,39],[24,40,24,48],[24,49,24,54],[24,55,24,58],[23,87,23,91],[23,92,23,95],[23,96,23,99],[23,100,23,103],[23,104,23,107],[23,108,23,111],[23,55,23,58],[23,59,23,69],[23,70,23,73],[23,74,23,77],[23,78,23,81],[23,82,23,86],[22,108,22,111],[22,112,22,115],[22,116,22,119],[23,8,23,17],[23,18,23,23],[23,24,23,29],[23,30,23,33],[23,34,23,39],[23,40,23,48],[23,49,23,54],[22,82,22,86],[22,87,22,91],[22,92,22,95],[22,96,22,99],[22,100,22,103],[22,104,22,107],[22,49,22,54],[22,55,22,58],[22,59,22,69],[22,70,22,73],[22,74,22,77],[22,78,22,81],[22,8,22,17],[22,18,22,23],[22,24,22,29],[22,30,22,33],[22,34,22,39],[22,40,22,48],[25,96,25,99],[25,100,25,103],[25,104,25,107],[25,108,25,111],[25,112,25,115],[25,116,25,119],[25,70,25,73],[25,74,25,77],[25,78,25,81],[25,82,25,86],[25,87,25,91],[25,92,25,95],[24,116,24,119],[25,8,25,17],[25,18,25,23],[25,24,25,29],[25,30,25,33],[25,34,25,39],[25,40,25,48],[25,49,25,54],[25,55,25,58],[25,59,25,69],[24,92,24,95],[24,96,24,99],[24,100,24,103],[24,104,24,107],[24,108,24,111],[24,112,24,115],[24,59,24,69],[24,70,24,73],[24,74,24,77],[24,78,24,81],[24,82,24,86],[24,87,24,91],[27,112,27,115],[27,116,27,119],[28,8,28,17],[28,18,28,23],[28,24,28,29],[28,30,28,33],[28,34,28,39],[28,40,28,48],[28,49,28,54],[28,55,28,58],[27,87,27,91],[27,92,27,95],[27,96,27,99],[27,100,27,103],[27,104,27,107],[27,108,27,111],[27,55,27,58],[27,59,27,69],[27,70,27,73],[27,74,27,77],[27,78,27,81],[27,82,27,86],[26,108,26,111],[26,112,26,115],[26,116,26,119],[27,8,27,17],[27,18,27,23],[27,24,27,29],[27,30,27,33],[27,34,27,39],[27,40,27,48],[27,49,27,54],[26,82,26,86],[26,87,26,91],[26,92,26,95],[26,96,26,99],[26,100,26,103],[26,104,26,107],[26,49,26,54],[26,55,26,58],[26,59,26,69],[26,70,26,73],[26,74,26,77],[26,78,26,81],[26,8,26,17],[26,18,26,23],[26,24,26,29],[26,30,26,33],[26,34,26,39],[26,40,26,48],[29,96,29,99],[29,100,29,103],[29,104,29,107],[29,108,29,111],[29,112,29,115],[29,116,29,119],[29,70,29,73],[29,74,29,77],[29,78,29,81],[29,82,29,86],[29,87,29,91],[29,92,29,95],[28,116,28,119],[29,8,29,17],[29,18,29,23],[29,24,29,29],[29,30,29,33],[29,34,29,39],[29,40,29,48],[29,49,29,54],[29,55,29,58],[29,59,29,69],[28,92,28,95],[28,96,28,99],[28,100,28,103],[28,104,28,107],[28,108,28,111],[28,112,28,115],[28,59,28,69],[28,70,28,73],[28,74,28,77],[28,78,28,81],[28,82,28,86],[28,87,28,91],[30,108,30,111],[30,112,30,115],[30,116,30,119],[31,8,31,17],[31,18,31,23],[31,24,31,29],[31,30,31,33],[31,34,31,39],[31,40,31,48],[31,49,31,54],[30,82,30,86],[30,87,30,91],[30,92,30,95],[30,96,30,99],[30,100,30,103],[30,104,30,107],[30,49,30,54],[30,55,30,58],[30,59,30,69],[30,70,30,73],[30,74,30,77],[30,78,30,81],[30,8,30,17],[30,18,30,23],[30,24,30,29],[30,30,30,33],[30,34,30,39],[30,40,30,48],[33,116,33,119],[34,8,34,17],[34,18,34,23],[34,24,34,29],[34,30,34,33],[34,34,34,39],[34,40,34,48],[34,49,34,54],[34,55,34,58],[34,59,34,69],[33,92,33,95],[33,96,33,99],[33,100,33,103],[33,104,33,107],[32,112,32,115],[32,116,32,119],[33,8,33,17],[33,18,33,23],[33,24,33,29],[33,30,33,33],[33,34,33,39],[33,40,33,48],[33,49,33,54],[33,55,33,58],[32,87,32,91],[32,92,32,95],[32,96,32,99],[32,100,32,103],[32,104,32,107],[32,108,32,111],[32,55,32,58],[32,59,32,69],[32,70,32,73],[32,74,32,77],[32,78,32,81],[32,82,32,86],[35,108,35,111],[35,112,35,115],[35,116,35,119],[31,112,31,115],[31,116,31,119],[31,121,53,123],[32,8,32,17],[32,18,32,23],[32,24,32,29],[32,30,32,33],[32,34,32,39],[32,40,32,48],[32,49,32,54],[31,87,31,91],[31,92,31,95],[31,96,31,99],[31,100,31,103],[31,104,31,107],[31,108,31,111],[31,55,31,58],[31,59,31,69],[31,70,31,73],[31,74,31,77],[31,78,31,81],[31,82,31,86],[35,82,35,86],[35,87,35,91],[35,92,35,95],[35,96,35,99],[35,100,35,103],[35,104,35,107],[35,49,35,54],[35,55,35,58],[35,59,35,69],[35,70,35,73],[35,74,35,77],[35,78,35,81],[35,8,35,17],[35,18,35,23],[35,24,35,29],[35,30,35,33],[35,34,35,39],[35,40,35,48],[34,96,34,99],[34,100,34,103],[34,104,34,107],[34,108,34,111],[34,112,34,115],[34,116,34,119],[34,70,34,73],[34,74,34,77],[34,78,34,81],[34,82,34,86],[34,87,34,91],[34,92,34,95],[33,108,33,111],[33,112,33,115],[33,59,33,69],[33,70,33,73],[33,74,33,77],[33,78,33,81],[33,82,33,86],[33,87,33,91],[37,116,37,119],[37,92,37,95],[37,96,37,99],[37,100,37,103],[37,104,37,107],[37,108,37,111],[37,112,37,115],[37,59,37,69],[37,70,37,73],[37,74,37,77],[37,78,37,81],[37,82,37,86],[37,87,37,91],[36,112,36,115],[36,116,36,119],[37,8,37,17],[37,18,37,23],[37,24,37,29],[37,30,37,33],[37,34,37,39],[37,40,37,48],[37,49,37,54],[37,55,37,58],[36,87,36,91],[36,92,36,95],[36,96,36,99],[36,100,36,103],[36,104,36,107],[36,108,36,111],[36,55,36,58],[36,59,36,69],[36,70,36,73],[36,74,36,77],[36,78,36,81],[36,82,36,86],[36,8,36,17],[36,18,36,23],[36,24,36,29],[36,30,36,33],[36,34,36,39],[36,40,36,48],[36,49,36,54],[39,108,39,111],[39,112,39,115],[39,116,39,119],[40,8,40,17],[40,18,40,23],[40,24,40,29],[40,30,40,33],[40,34,40,39],[40,40,40,48],[40,49,40,54],[39,82,39,86],[39,87,39,91],[39,92,39,95],[39,96,39,99],[39,100,39,103],[39,104,39,107],[39,49,39,54],[39,55,39,58],[39,59,39,69],[39,70,39,73],[39,74,39,77],[39,78,39,81],[39,8,39,17],[39,18,39,23],[39,24,39,29],[39,30,39,33],[39,34,39,39],[39,40,39,48],[38,96,38,99],[38,100,38,103],[38,104,38,107],[38,108,38,111],[38,112,38,115],[38,116,38,119],[38,70,38,73],[38,74,38,77],[38,78,38,81],[38,82,38,86],[38,87,38,91],[38,92,38,95],[38,8,38,17],[38,18,38,23],[38,24,38,29],[38,30,38,33],[38,34,38,39],[38,40,38,48],[38,49,38,54],[38,55,38,58],[38,59,38,69],[41,116,41,119],[42,8,42,17],[42,18,42,23],[42,24,42,29],[42,30,42,33],[42,34,42,39],[42,40,42,48],[42,49,42,54],[42,55,42,58],[42,59,42,69],[41,92,41,95],[41,96,41,99],[41,100,41,103],[41,104,41,107],[41,108,41,111],[41,112,41,115],[41,59,41,69],[41,70,41,73],[41,74,41,77],[41,78,41,81],[41,82,41,86],[41,87,41,91],[40,112,40,115],[40,116,40,119],[41,8,41,17],[41,18,41,23],[41,24,41,29],[41,30,41,33],[41,34,41,39],[41,40,41,48],[41,49,41,54],[41,55,41,58],[40,87,40,91],[40,92,40,95],[40,96,40,99],[40,100,40,103],[40,104,40,107],[40,108,40,111],[40,55,40,58],[40,59,40,69],[40,70,40,73],[40,74,40,77],[40,78,40,81],[40,82,40,86],[43,108,43,111],[43,112,43,115],[43,116,43,119],[44,8,44,17],[44,18,44,23],[44,24,44,29],[44,30,44,33],[44,34,44,39],[44,40,44,48],[44,49,44,54],[43,82,43,86],[43,87,43,91],[43,92,43,95],[43,96,43,99],[43,100,43,103],[43,104,43,107],[43,49,43,54],[43,55,43,58],[43,59,43,69],[43,70,43,73],[43,74,43,77],[43,78,43,81],[43,8,43,17],[43,18,43,23],[43,24,43,29],[43,30,43,33],[43,34,43,39],[43,40,43,48],[42,96,42,99],[42,100,42,103],[42,104,42,107],[42,108,42,111],[42,112,42,115],[42,116,42,119],[42,70,42,73],[42,74,42,77],[42,78,42,81],[42,82,42,86],[42,87,42,91],[42,92,42,95],[45,116,45,119],[46,8,46,17],[46,18,46,23],[46,24,46,29],[46,30,46,33],[46,34,46,39],[46,40,46,48],[46,49,46,54],[46,55,46,58],[46,59,46,69],[45,92,45,95],[45,96,45,99],[45,100,45,103],[45,104,45,107],[45,108,45,111],[45,112,45,115],[45,59,45,69],[45,70,45,73],[45,74,45,77],[45,78,45,81],[45,82,45,86],[45,87,45,91],[44,112,44,115],[44,116,44,119],[45,8,45,17],[45,18,45,23],[45,24,45,29],[45,30,45,33],[45,34,45,39],[45,40,45,48],[45,49,45,54],[45,55,45,58],[44,87,44,91],[44,92,44,95],[44,96,44,99],[44,100,44,103],[44,104,44,107],[44,108,44,111],[44,55,44,58],[44,59,44,69],[44,70,44,73],[44,74,44,77],[44,78,44,81],[44,82,44,86],[47,108,47,111],[47,112,47,115],[47,116,47,119],[48,8,48,17],[48,18,48,23],[48,24,48,29],[48,30,48,33],[48,34,48,39],[48,40,48,48],[48,49,48,54],[47,82,47,86],[47,87,47,91],[47,92,47,95],[47,96,47,99],[47,100,47,103],[47,104,47,107],[47,49,47,54],[47,55,47,58],[47,59,47,69],[47,70,47,73],[47,74,47,77],[47,78,47,81],[47,8,47,17],[47,18,47,23],[47,24,47,29],[47,30,47,33],[47,34,47,39],[47,40,47,48],[46,96,46,99],[46,100,46,103],[46,104,46,107],[46,108,46,111],[46,112,46,115],[46,116,46,119],[46,70,46,73],[46,74,46,77],[46,78,46,81],[46,82,46,86],[46,87,46,91],[46,92,46,95],[49,116,49,119],[50,8,50,17],[50,18,50,23],[50,24,50,29],[50,30,50,33],[50,34,50,39],[50,40,50,48],[50,49,50,54],[50,55,50,58],[50,59,50,69],[49,92,49,95],[49,96,49,99],[49,100,49,103],[49,104,49,107],[49,108,49,111],[49,112,49,115],[49,59,49,69],[49,70,49,73],[49,74,49,77],[49,78,49,81],[49,82,49,86],[49,87,49,91],[48,112,48,115],[48,116,48,119],[49,8,49,17],[49,18,49,23],[49,24,49,29],[49,30,49,33],[49,34,49,39],[49,40,49,48],[49,49,49,54],[49,55,49,58],[48,87,48,91],[48,92,48,95],[48,96,48,99],[48,100,48,103],[48,104,48,107],[48,108,48,111],[48,55,48,58],[48,59,48,69],[48,70,48,73],[48,74,48,77],[48,78,48,81],[48,82,48,86],[51,108,51,111],[51,112,51,115],[51,116,51,119],[52,8,52,17],[52,18,52,23],[52,24,52,29],[52,30,52,33],[52,34,52,39],[52,40,52,48],[52,49,52,54],[51,82,51,86],[51,87,51,91],[51,92,51,95],[51,96,51,99],[51,100,51,103],[51,104,51,107],[51,49,51,54],[51,55,51,58],[51,59,51,69],[51,70,51,73],[51,74,51,77],[51,78,51,81],[51,8,51,17],[51,18,51,23],[51,24,51,29],[51,30,51,33],[51,34,51,39],[51,40,51,48],[50,96,50,99],[50,100,50,103],[50,104,50,107],[50,108,50,111],[50,112,50,115],[50,116,50,119],[50,70,50,73],[50,74,50,77],[50,78,50,81],[50,82,50,86],[50,87,50,91],[50,92,50,95],[53,116,53,119],[54,8,54,17],[54,18,54,23],[54,24,54,29],[54,30,54,33],[54,34,54,39],[54,40,54,48],[54,49,54,54],[54,55,54,58],[54,59,54,69],[53,92,53,95],[53,96,53,99],[53,100,53,103],[53,104,53,107],[53,108,53,111],[53,112,53,115],[53,59,53,69],[53,70,53,73],[53,74,53,77],[53,78,53,81],[53,82,53,86],[53,87,53,91],[52,112,52,115],[52,116,52,119],[53,8,53,17],[53,18,53,23],[53,24,53,29],[53,30,53,33],[53,34,53,39],[53,40,53,48],[53,49,53,54],[53,55,53,58],[52,87,52,91],[52,92,52,95],[52,96,52,99],[52,100,52,103],[52,104,52,107],[52,108,52,111],[52,55,52,58],[52,59,52,69],[52,70,52,73],[52,74,52,77],[52,78,52,81],[52,82,52,86],[55,96,55,99],[55,100,55,103],[55,104,55,107],[55,108,55,111],[55,112,55,115],[55,116,55,119],[55,70,55,73],[55,74,55,77],[55,78,55,81],[55,82,55,86],[55,87,55,91],[55,92,55,95],[54,121,76,123],[55,8,55,17],[55,18,55,23],[55,24,55,29],[55,30,55,33],[55,34,55,39],[55,40,55,48],[55,49,55,54],[55,55,55,58],[55,59,55,69],[54,96,54,99],[54,100,54,103],[54,104,54,107],[54,108,54,111],[54,112,54,115],[54,116,54,119],[54,70,54,73],[54,74,54,77],[54,78,54,81],[54,82,54,86],[54,87,54,91],[54,92,54,95],[57,112,57,115],[57,116,57,119],[58,8,58,17],[58,18,58,23],[58,24,58,29],[58,30,58,33],[58,34,58,39],[58,40,58,48],[58,49,58,54],[58,55,58,58],[57,87,57,91],[57,92,57,95],[57,96,57,99],[57,100,57,103],[57,104,57,107],[57,108,57,111],[57,55,57,58],[57,59,57,69],[57,70,57,73],[57,74,57,77],[57,78,57,81],[57,82,57,86],[56,108,56,111],[56,112,56,115],[56,116,56,119],[57,8,57,17],[57,18,57,23],[57,24,57,29],[57,30,57,33],[57,34,57,39],[57,40,57,48],[57,49,57,54],[56,82,56,86],[56,87,56,91],[56,92,56,95],[56,96,56,99],[56,100,56,103],[56,104,56,107],[56,49,56,54],[56,55,56,58],[56,59,56,69]],"merged_total":31601,"flags":["merged_cut"]}
[null,null,null,null,null,null,null,null,"Only two pages are unhidden, if you need additional pages to input data, press button(s) on the right to unhide additional pages. Please, only unhide pages as needed."]
[null,null,null,null,null,null,null,null,"Jurisdiction Name:",null,null,null,null,null,null,null,null,null,null,null,{"$f":"IF('Public Service COMPLETION'!AB2>0,'Public Service COMPLETION'!AB2,\"\")","v":""},null,null,null,null,null,null,null,null,null,null,null,null,null,null,null,null,null,null,null,null,null,null,null,null,null,null,null,null,null,null,"Contract #",null,null,null,null,null,null,{"$f":"IF('Public Service COMPLETION'!BN2>0,'Public Service COMPLETION'!BN2,\"\")","v":""},null,null,null,null,null,null,null,null,null,null,null,null,null,null,null,null,null,null,null,null,null,null,null,null,null,null,null,null,null,null,null,null,null,null,null,null,null,null,null,null,null,null,null,null,null,null,null,null,null,null,null,null,null,null,null,null,null,null,null,null,null,null,"Page  1"]
[]
[]
[]
[null,null,null,null,null,null,null,null,"DIRECT BENEFIT DATA BY PARTICIPANT (Fill in ALL fields for every participant added below (LMC & LMH)",null,null,null,null,null,null,null,null,null,null,null,null,null,null,null,null,null,null,null,null,null,null,null,null,null,null,null,null,null,null,null,null,null,null,null,null,null,null,null,null,null,null,null,null,null,null,null,null,null,null,null,null,null,null,null,null,null,null,null,null,null,null,null,null,null,{"$f":"IF('Public Service SET UP'!N85=\"LMC - Low/Mod limited clientele benefit\",\"REQUIRED\",IF('Public Service SET UP'!N85='Public Service SET UP'!CM70,\"REQUIRED\",\"NOT REQUIRED\"))","v":"NOT REQUIRED"}]
[]
[]
[]
[null,null,null,null,null,null,null,null,null,null,null,null,null,null,null,null,null,null,null,null,null,null,null,null,null,null,null,null,null,null,null,null,null,null,null,null,null,null,null,null,null,null,null,null,null,null,null,null,null,null,null,null,null,null,null,null,null,null,null,null,null,null,null,null,null,null,null,null,null,null,null,null,null,null,null,null,null,null,null,null,null,null,null,null,null,null,null,null,null,null,null,null,{"$f":"IF(AND('Public Service SET UP'!N85='Public Service SET UP'!CM81,'Public Service SET UP'!AK85='Public Service SET UP'!CM84),\"REQUIRED\",\"NOT REQUIRED\")","v":"NOT REQUIRED"}]
[null,null,null,null,null,null,null,null,{"$f":"IF('Public Service SET UP'!N85='Public Service SET UP'!CM81,\"REQUIRED\",IF('Public Service SET UP'!N85='Public Service SET UP'!CM70,\"REQUIRED\",\"NOT REQUIRED\"))","v":"NOT REQUIRED"},null,null,null,null,null,null,null,null,null,null,null,null,null,null,null,null,null,null,null,null,null,null,null,null,null,null,null,null,null,null,null,null,null,null,null,null,null,null,null,null,null,null,null,null,null,null,null,null,null,null,null,null,null,null,null,null,null,null,null,null,null,null,null,null,null,null,null,null,null,null,null,null,null,{"$f":"IF(AND('Public Service SET UP'!N85='Public Service SET UP'!CM81,'Public Service SET UP'!AK85='Public Service SET UP'!CM80),\"REQUIRED\",\"NOT REQUIRED\")","v":"NOT REQUIRED"},null,null,null,null,null,null,null,null,null,null,null,null,null,{"$f":"IF(AND('Public Service SET UP'!N85='Public Service SET UP'!CM70,'Public Service SET UP'!AK85='Public Service SET UP'!CM85),\"REQUIRED\",\"NOT REQUIRED\")","v":"NOT REQUIRED"},null,null,null,null,null,null,null,null,null,null,null,{"$f":"IF(AND('Public Service SET UP'!N85='Public Service SET UP'!CM70,'Public Service SET UP'!AK85='Public Service SET UP'!CM87),\"REQUIRED\",\"NOT REQUIRED\")","v":"NOT REQUIRED"}]
[null,null,null,null,null,null,null,null,"Participant Name or Code",null,null,null,null,null,null,null,null,null,"Home Address within Service Area?",null,null,null,null,null,"Participant Type",null,null,null,null,null,"Total Household Size",null,null,null,"Annual Gross Income for HH - All",null,null,null,null,null,"% of Area Median Income",null,null,null,null,null,null,null,null,"Access to a Service or Benefit",null,null,null,null,null,"Hispanic",null,null,null,"Race / Ethnicity",null,null,null,null,null,null,null,null,null,null,"Veteran",null,null,null,"Is beneficiary disable?",null,null,null,"Is head of houseld female?",null,null,null,"Homeless Person given overnight shelter?",null,null,null,null,"Bed created for overnight shelter?",null,null,null,null,"Person placed in a job?",null,null,null,"First Time Homebuyer?",null,null,null,"Receiving Housing Counseling?",null,null,null,"Down Payment Assistance?",null,null,null,"Short-term Rental Assistance?",null,null,null,"Previously Homeless?",null,null,null," Chronically homeless?"]
[null,null,null,null,null,null,null,1,null,null,null,null,null,null,null,null,null,null,"Select Option",null,null,null,null,null,"Select Option",null,null,null,null,null,null,null,null,null,null,null,null,null,null,null,"Select Option",null,null,null,null,null,null,null,null,"Select Option",null,null,null,null,null,"Select Option",null,null,null,"Select Option",null,null,null,null,null,null,null,null,null,null,"Select Option",null,null,null,"Select Option",null,null,null,"Select Option",null,null,null,"Select Option",null,null,null,null,"Select Option",null,null,null,null,"Select Option",null,null,null,"Select Option",null,null,null,"Select Option",null,null,null,"Select Option",null,null,null,"Select Option",null,null,null,"Select Option",null,null,null,"Select Option"]
[null,null,null,null,null,null,null,2]
[null,null,null,null,null,null,null,3]
[null,null,null,null,null,null,null,4]
[null,null,null,null,null,null,null,5]
[null,null,null,null,null,null,null,6]
[null,null,null,null,null,null,null,7]
[null,null,null,null,null,null,null,8]
[null,null,null,null,null,null,null,9]
[null,null,null,null,null,null,null,10]
[null,null,null,null,null,null,null,11]
[null,null,null,null,null,null,null,12]
[null,null,null,null,null,null,null,13]
[null,null,null,null,null,null,null,14]
[null,null,null,null,null,null,null,15]
[null,null,null,null,null,null,null,16]
[null,null,null,null,null,null,null,17]
[null,null,null,null,null,null,null,18]
[null,null,null,null,null,null,null,19]
[null,null,null,null,null,null,null,20,null,null,null,null,null,null,null,null,null,null,null,null,null,null,null,null,null,null,null,null,null,null,null,null,null,null,null,null,null,null,null,null,null,null,null,null,null,null,null,null,null,null,null,null,null,null,null,null,null,null,null,null,null,null,null,null,null,null,null,null,null,null,null,null,null,null,null,null,null,null,null,null,null,null,null,null,null,null,null,null,null,null,null,null,null,null,null,null,null,null,null,null,null,null,null,null,null,null,null,null,null,null,null,null,null,null,null,null,null,null,null,null,null,"Page  2"]
[null,null,null,null,null,null,null,21]
[null,null,null,null,null,null,null,22]
[null,null,null,null,null,null,null,23]
[null,null,null,null,null,null,null,24]
[null,null,null,null,null,null,null,25]
[null,null,null,null,null,null,null,26]
[null,null,null,null,null,null,null,27]
[null,null,null,null,null,null,null,28]
[null,null,null,null,null,null,null,29]
[null,null,null,null,null,null,null,30]
[null,null,null,null,null,null,null,31]
[null,null,null,null,null,null,null,32]
[null,null,null,null,null,null,null,33]
[null,null,null,null,null,null,null,34]
[null,null,null,null,null,null,null,35]
[null,null,null,null,null,null,null,36]
[null,null,null,null,null,null,null,37]
[null,null,null,null,null,null,null,38]
[null,null,null,null,null,null,null,39]
[null,null,null,null,null,null,null,40]
[null,null,null,null,null,null,null,41]
[null,null,null,null,null,null,null,42]
[null,null,null,null,null,null,null,43,null,null,null,null,null,null,null,null,null,null,null,null,null,null,null,null,null,null,null,null,null,null,null,null,null,null,null,null,null,null,null,null,null,null,null,null,null,null,null,null,null,null,null,null,null,null,null,null,null,null,null,null,null,null,null,null,null,null,null,null,null,null,null,null,null,null,null,null,null,null,null,null,null,null,null,null,null,null,null,null,null,null,null,null,null,null,null,null,null,null,null,null,null,null,null,null,null,null,null,null,null,null,null,null,null,null,null,null,null,null,null,null,null,"Page  3"]
[null,null,null,null,null,null,null,44]
[null,null,null,null,null,null,null,45]
[null,null,null,null,null,null,null,46]
[null,null,null,null,null,null,null,47]
[null,null,null,null,null,null,null,48]
[null,null,null,null,null,null,null,49]
[null,null,null,null,null,null,null,50]
[null,null,null,null,null,null,null,51]
[null,null,null,null,null,null,null,52]
[null,null,null,null,null,null,null,53]
[null,null,null,null,null,null,null,54]
[null,null,null,null,null,null,null,55]
[null,null,null,null,null,null,null,56]
[null,null,null,null,null,null,null,57]
[null,null,null,null,null,null,null,58]
[null,null,null,null,null,null,null,59]
[null,null,null,null,null,null,null,60]
[null,null,null,null,null,null,null,61]
[null,null,null,null,null,null,null,62]
[null,null,null,null,null,null,null,63]
[null,null,null,null,null,null,null,64]
[null,null,null,null,null,null,null,65]
[null,null,null,null,null,null,null,66,null,null,null,null,null,null,null,null,null,null,null,null,null,null,null,null,null,null,null,null,null,null,null,null,null,null,null,null,null,null,null,null,null,null,null,null,null,null,null,null,null,null,null,null,null,null,null,null,null,null,null,null,null,null,null,null,null,null,null,null,null,null,null,null,null,null,null,null,null,null,null,null,null,null,null,null,null,null,null,null,null,null,null,null,null,null,null,null,null,null,null,null,null,null,null,null,null,null,null,null,null,null,null,null,null,null,null,null,null,null,null,null,null,"Page  4"]
[null,null,null,null,null,null,null,67]
[null,null,null,null,null,null,null,68]
[null,null,null,null,null,null,null,69]
[null,null,null,null,null,null,null,70]
[null,null,null,null,null,null,null,71]
[null,null,null,null,null,null,null,72]
[null,null,null,null,null,null,null,73]
[null,null,null,null,null,null,null,74]
[null,null,null,null,null,null,null,75]
[null,null,null,null,null,null,null,76]
[null,null,null,null,null,null,null,77]
[null,null,null,null,null,null,null,78]
[null,null,null,null,null,null,null,79]
[null,null,null,null,null,null,null,80]
[null,null,null,null,null,null,null,81]
[null,null,null,null,null,null,null,82]
[null,null,null,null,null,null,null,83]
[null,null,null,null,null,null,null,84]
[null,null,null,null,null,null,null,85]
[null,null,null,null,null,null,null,86]
[null,null,null,null,null,null,null,87]
[null,null,null,null,null,null,null,88]
[null,null,null,null,null,null,null,89,null,null,null,null,null,null,null,null,null,null,null,null,null,null,null,null,null,null,null,null,null,null,null,null,null,null,null,null,null,null,null,null,null,null,null,null,null,null,null,null,null,null,null,null,null,null,null,null,null,null,null,null,null,null,null,null,null,null,null,null,null,null,null,null,null,null,null,null,null,null,null,null,null,null,null,null,null,null,null,null,null,null,null,null,null,null,null,null,null,null,null,null,null,null,null,null,null,null,null,null,null,null,null,null,null,null,null,null,null,null,null,null,null,"Page  5"]
[null,null,null,null,null,null,null,90]
[null,null,null,null,null,null,null,91]
[null,null,null,null,null,null,null,92]
[null,null,null,null,null,null,null,93]
[null,null,null,null,null,null,null,94]
[null,null,null,null,null,null,null,95]
[null,null,null,null,null,null,null,96]
[null,null,null,null,null,null,null,97]
[null,null,null,null,null,null,null,98]
[null,null,null,null,null,null,null,99]
[null,null,null,null,null,null,null,100]
[null,null,null,null,null,null,null,101]
[null,null,null,null,null,null,null,102]
[null,null,null,null,null,null,null,103]
[null,null,null,null,null,null,null,104]
[null,null,null,null,null,null,null,105]
[null,null,null,null,null,null,null,106]
[null,null,null,null,null,null,null,107]
[null,null,null,null,null,null,null,108]
[null,null,null,null,null,null,null,109]
[null,null,null,null,null,null,null,110]
[null,null,null,null,null,null,null,111]
[null,null,null,null,null,null,null,112,null,null,null,null,null,null,null,null,null,null,null,null,null,null,null,null,null,null,null,null,null,null,null,null,null,null,null,null,null,null,null,null,null,null,null,null,null,null,null,null,null,null,null,null,null,null,null,null,null,null,null,null,null,null,null,null,null,null,null,null,null,null,null,null,null,null,null,null,null,null,null,null,null,null,null,null,null,null,null,null,null,null,null,null,null,null,null,null,null,null,null,null,null,null,null,null,null,null,null,null,null,null,null,null,null,null,null,null,null,null,null,null,null,"Page  6"]
[null,null,null,null,null,null,null,113]
[null,null,null,null,null,null,null,114]
[null,null,null,null,null,null,null,115]
[null,null,null,null,null,null,null,116]
[null,null,null,null,null,null,null,117]
[null,null,null,null,null,null,null,118]
[null,null,null,null,null,null,null,119]
[null,null,null,null,null,null,null,120]
[null,null,null,null,null,null,null,121]
[null,null,null,null,null,null,null,122]
[null,null,null,null,null,null,null,123]
[null,null,null,null,null,null,null,124]
[null,null,null,null,null,null,null,125]
[null,null,null,null,null,null,null,126]
[null,null,null,null,null,null,null,127]
[null,null,null,null,null,null,null,128]
[null,null,null,null,null,null,null,129]
[null,null,null,null,null,null,null,130]
[null,null,null,null,null,null,null,131]
[null,null,null,null,null,null,null,132]
[null,null,null,null,null,null,null,133]
[null,null,null,null,null,null,null,134]
[null,null,null,null,null,null,null,135,null,null,null,null,null,null,null,null,null,null,null,null,null,null,null,null,null,null,null,null,null,null,null,null,null,null,null,null,null,null,null,null,null,null,null,null,null,null,null,null,null,null,null,null,null,null,null,null,null,null,null,null,null,null,null,null,null,null,null,null,null,null,null,null,null,null,null,null,null,null,null,null,null,null,null,null,null,null,null,null,null,null,null,null,null,null,null,null,null,null,null,null,null,null,null,null,null,null,null,null,null,null,null,null,null,null,null,null,null,null,null,null,null,"Page  7"]
[null,null,null,null,null,null,null,136]
[null,null,null,null,null,null,null,137]
[null,null,null,null,null,null,null,138]
[null,null,null,null,null,null,null,139]
[null,null,null,null,null,null,null,140]
[null,null,null,null,null,null,null,141]
[null,null,null,null,null,null,null,142]
[null,null,null,null,null,null,null,143]
[null,null,null,null,null,null,null,144]
[null,null,null,null,null,null,null,145]
[null,null,null,null,null,null,null,146]
[null,null,null,null,null,null,null,147]
[null,null,null,null,null,null,null,148]
[null,null,null,null,null,null,null,149]
[null,null,null,null,null,null,null,150]
[null,null,null,null,null,null,null,151]
[null,null,null,null,null,null,null,152]
[null,null,null,null,null,null,null,153]
[null,null,null,null,null,null,null,154]
[null,null,null,null,null,null,null,155]
[null,null,null,null,null,null,null,156]
[null,null,null,null,null,null,null,157]
[null,null,null,null,null,null,null,158,null,null,null,null,null,null,null,null,null,null,null,null,null,null,null,null,null,null,null,null,null,null,null,null,null,null,null,null,null,null,null,null,null,null,null,null,null,null,null,null,null,null,null,null,null,null,null,null,null,null,null,null,null,null,null,null,null,null,null,null,null,null,null,null,null,null,null,null,null,null,null,null,null,null,null,null,null,null,null,null,null,null,null,null,null,null,null,null,null,null,null,null,null,null,null,null,null,null,null,null,null,null,null,null,null,null,null,null,null,null,null,null,null,"Page  8"]
[null,null,null,null,null,null,null,159]
[null,null,null,null,null,null,null,160]
[null,null,null,null,null,null,null,161]
[null,null,null,null,null,null,null,162]
[null,null,null,null,null,null,null,163]
[null,null,null,null,null,null,null,164]
[null,null,null,null,null,null,null,165]
[null,null,null,null,null,null,null,166]
[null,null,null,null,null,null,null,167]
[null,null,null,null,null,null,null,168]
[null,null,null,null,null,null,null,169]
[null,null,null,null,null,null,null,170]
[null,null,null,null,null,null,null,171]
[null,null,null,null,null,null,null,172]
[null,null,null,null,null,null,null,173]
[null,null,null,null,null,null,null,174]
[null,null,null,null,null,null,null,175]
[null,null,null,null,null,null,null,176]
[null,null,null,null,null,null,null,177]
[null,null,null,null,null,null,null,178]
[null,null,null,null,null,null,null,179]
[null,null,null,null,null,null,null,180]
[null,null,null,null,null,null,null,181,null,null,null,null,null,null,null,null,null,null,null,null,null,null,null,null,null,null,null,null,null,null,null,null,null,null,null,null,null,null,null,null,null,null,null,null,null,null,null,null,null,null,null,null,null,null,null,null,null,null,null,null,null,null,null,null,null,null,null,null,null,null,null,null,null,null,null,null,null,null,null,null,null,null,null,null,null,null,null,null,null,null,null,null,null,null,null,null,null,null,null,null,null,null,null,null,null,null,null,null,null,null,null,null,null,null,null,null,null,null,null,null,null,"Page  9"]
[null,null,null,null,null,null,null,182]
[null,null,null,null,null,null,null,183]
[null,null,null,null,null,null,null,184]
[null,null,null,null,null,null,null,185]
[null,null,null,null,null,null,null,186]
[null,null,null,null,null,null,null,187]
[null,null,null,null,null,null,null,188]
[null,null,null,null,null,null,null,189]
[null,null,null,null,null,null,null,190]
[null,null,null,null,null,null,null,191]
[null,null,null,null,null,null,null,192]
[null,null,null,null,null,null,null,193]
[null,null,null,null,null,null,null,194]
[null,null,null,null,null,null,null,195]
[null,null,null,null,null,null,null,196]
[null,null,null,null,null,null,null,197]
[null,null,null,null,null,null,null,198]
[null,null,null,null,null,null,null,199]
[null,null,null,null,null,null,null,200]
[null,null,null,null,null,null,null,201]
[null,null,null,null,null,null,null,202]
[null,null,null,null,null,null,null,203]
[null,null,null,null,null,null,null,204,null,null,null,null,null,null,null,null,null,null,null,null,null,null,null,null,null,null,null,null,null,null,null,null,null,null,null,null,null,null,null,null,null,null,null,null,null,null,null,null,null,null,null,null,null,null,null,null,null,null,null,null,null,null,null,null,null,null,null,null,null,null,null,null,null,null,null,null,null,null,null,null,null,null,null,null,null,null,null,null,null,null,null,null,null,null,null,null,null,null,null,null,null,null,null,null,null,null,null,null,null,null,null,null,null,null,null,null,null,null,null,null,null,"Page  10"]
[null,null,null,null,null,null,null,205]
[null,null,null,null,null,null,null,206]
[null,null,null,null,null,null,null,207]
[null,null,null,null,null,null,null,208]
[null,null,null,null,null,null,null,209]
[null,null,null,null,null,null,null,210]
[null,null,null,null,null,null,null,211]
[null,null,null,null,null,null,null,212]
[null,null,null,null,null,null,null,213]
[null,null,null,null,null,null,null,214]
[null,null,null,null,null,null,null,215]
[null,null,null,null,null,null,null,216]
[null,null,null,null,null,null,null,217]
[null,null,null,null,null,null,null,218]
[null,null,null,null,null,null,null,219]
[null,null,null,null,null,null,null,220]
[null,null,null,null,null,null,null,221]
[null,null,null,null,null,null,null,222]
[null,null,null,null,null,null,null,223]
[null,null,null,null,null,null,null,224]
[null,null,null,null,null,null,null,225]
[null,null,null,null,null,null,null,226]
[null,null,null,null,null,null,null,227,null,null,null,null,null,null,null,null,null,null,null,null,null,null,null,null,null,null,null,null,null,null,null,null,null,null,null,null,null,null,null,null,null,null,null,null,null,null,null,null,null,null,null,null,null,null,null,null,null,null,null,null,null,null,null,null,null,null,null,null,null,null,null,null,null,null,null,null,null,null,null,null,null,null,null,null,null,null,null,null,null,null,null,null,null,null,null,null,null,null,null,null,null,null,null,null,null,null,null,null,null,null,null,null,null,null,null,null,null,null,null,null,null,"Page  11"]
[null,null,null,null,null,null,null,228]
[null,null,null,null,null,null,null,229]
[null,null,null,null,null,null,null,230]
[null,null,null,null,null,null,null,231]
[null,null,null,null,null,null,null,232]
[null,null,null,null,null,null,null,233]
[null,null,null,null,null,null,null,234]
[null,null,null,null,null,null,null,235]
[null,null,null,null,null,null,null,236]
[null,null,null,null,null,null,null,237]
[null,null,null,null,null,null,null,238]
[null,null,null,null,null,null,null,239]
[null,null,null,null,null,null,null,240]
[null,null,null,null,null,null,null,241]
[null,null,null,null,null,null,null,242]
[null,null,null,null,null,null,null,243]
[null,null,null,null,null,null,null,244]
[null,null,null,null,null,null,null,245]
[null,null,null,null,null,null,null,246]
[null,null,null,null,null,null,null,247]
[null,null,null,null,null,null,null,248]
[null,null,null,null,null,null,null,249]
[null,null,null,null,null,null,null,250,null,null,null,null,null,null,null,null,null,null,null,null,null,null,null,null,null,null,null,null,null,null,null,null,null,null,null,null,null,null,null,null,null,null,null,null,null,null,null,null,null,null,null,null,null,null,null,null,null,null,null,null,null,null,null,null,null,null,null,null,null,null,null,null,null,null,null,null,null,null,null,null,null,null,null,null,null,null,null,null,null,null,null,null,null,null,null,null,null,null,null,null,null,null,null,null,null,null,null,null,null,null,null,null,null,null,null,null,null,null,null,null,null,"Page  12"]
[null,null,null,null,null,null,null,251]
[null,null,null,null,null,null,null,252]
[null,null,null,null,null,null,null,253]
[null,null,null,null,null,null,null,254]
[null,null,null,null,null,null,null,255]
[null,null,null,null,null,null,null,256]
[null,null,null,null,null,null,null,257]
[null,null,null,null,null,null,null,258]
[null,null,null,null,null,null,null,259]
[null,null,null,null,null,null,null,260]
[null,null,null,null,null,null,null,261]
[null,null,null,null,null,null,null,262]
[null,null,null,null,null,null,null,263]
[null,null,null,null,null,null,null,264]
[null,null,null,null,null,null,null,265]
[null,null,null,null,null,null,null,266]
[null,null,null,null,null,null,null,267]
[null,null,null,null,null,null,null,268]
[null,null,null,null,null,null,null,269]
[null,null,null,null,null,null,null,270]
[null,null,null,null,null,null,null,271]
[null,null,null,null,null,null,null,272]
[null,null,null,null,null,null,null,273,null,null,null,null,null,null,null,null,null,null,null,null,null,null,null,null,null,null,null,null,null,null,null,null,null,null,null,null,null,null,null,null,null,null,null,null,null,null,null,null,null,null,null,null,null,null,null,null,null,null,null,null,null,null,null,null,null,null,null,null,null,null,null,null,null,null,null,null,null,null,null,null,null,null,null,null,null,null,null,null,null,null,null,null,null,null,null,null,null,null,null,null,null,null,null,null,null,null,null,null,null,null,null,null,null,null,null,null,null,null,null,null,null,"Page  13"]
[null,null,null,null,null,null,null,274]
[null,null,null,null,null,null,null,275]
[null,null,null,null,null,null,null,276]
[null,null,null,null,null,null,null,277]
[null,null,null,null,null,null,null,278]
[null,null,null,null,null,null,null,279]
[null,null,null,null,null,null,null,280]
[null,null,null,null,null,null,null,281]
[null,null,null,null,null,null,null,282]
[null,null,null,null,null,null,null,283]
[null,null,null,null,null,null,null,284]
[null,null,null,null,null,null,null,285]
[null,null,null,null,null,null,null,286]
[null,null,null,null,null,null,null,287]
[null,null,null,null,null,null,null,288]
[null,null,null,null,null,null,null,289]
[null,null,null,null,null,null,null,290]
[null,null,null,null,null,null,null,291]
[null,null,null,null,null,null,null,292]
[null,null,null,null,null,null,null,293]
[null,null,null,null,null,null,null,294]
[null,null,null,null,null,null,null,295]
[null,null,null,null,null,null,null,296,null,null,null,null,null,null,null,null,null,null,null,null,null,null,null,null,null,null,null,null,null,null,null,null,null,null,null,null,null,null,null,null,null,null,null,null,null,null,null,null,null,null,null,null,null,null,null,null,null,null,null,null,null,null,null,null,null,null,null,null,null,null,null,null,null,null,null,null,null,null,null,null,null,null,null,null,null,null,null,null,null,null,null,null,null,null,null,null,null,null,null,null,null,null,null,null,null,null,null,null,null,null,null,null,null,null,null,null,null,null,null,null,null,"Page  14"]
[null,null,null,null,null,null,null,297]
[null,null,null,null,null,null,null,298]
[null,null,null,null,null,null,null,299]
[null,null,null,null,null,null,null,300]
[null,null,null,null,null,null,null,301]
[null,null,null,null,null,null,null,302]
[null,null,null,null,null,null,null,303]
[null,null,null,null,null,null,null,304]
[null,null,null,null,null,null,null,305]
[null,null,null,null,null,null,null,306]
[null,null,null,null,null,null,null,307]
[null,null,null,null,null,null,null,308]
[null,null,null,null,null,null,null,309]
[null,null,null,null,null,null,null,310]
[null,null,null,null,null,null,null,311]
[null,null,null,null,null,null,null,312]
[null,null,null,null,null,null,null,313]
[null,null,null,null,null,null,null,314]
[null,null,null,null,null,null,null,315]
[null,null,null,null,null,null,null,316]
[null,null,null,null,null,null,null,317]
[null,null,null,null,null,null,null,318]
[null,null,null,null,null,null,null,319,null,null,null,null,null,null,null,null,null,null,null,null,null,null,null,null,null,null,null,null,null,null,null,null,null,null,null,null,null,null,null,null,null,null,null,null,null,null,null,null,null,null,null,null,null,null,null,null,null,null,null,null,null,null,null,null,null,null,null,null,null,null,null,null,null,null,null,null,null,null,null,null,null,null,null,null,null,null,null,null,null,null,null,null,null,null,null,null,null,null,null,null,null,null,null,null,null,null,null,null,null,null,null,null,null,null,null,null,null,null,null,null,null,"Page  15"]
[null,null,null,null,null,null,null,320]
[null,null,null,null,null,null,null,321]
[null,null,null,null,null,null,null,322]
[null,null,null,null,null,null,null,323]
[null,null,null,null,null,null,null,324]
[null,null,null,null,null,null,null,325]
[null,null,null,null,null,null,null,326]
[null,null,null,null,null,null,null,327]
[null,null,null,null,null,null,null,328]
[null,null,null,null,null,null,null,329]
[null,null,null,null,null,null,null,330]
[null,null,null,null,null,null,null,331]
[null,null,null,null,null,null,null,332]
[null,null,null,null,null,null,null,333]
[null,null,null,null,null,null,null,334]
[null,null,null,null,null,null,null,335]
[null,null,null,null,null,null,null,336]
[null,null,null,null,null,null,null,337]
[null,null,null,null,null,null,null,338]
[null,null,null,null,null,null,null,339]
[null,null,null,null,null,null,null,340]
[null,null,null,null,null,null,null,341]
[null,null,null,null,null,null,null,342,null,null,null,null,null,null,null,null,null,null,null,null,null,null,null,null,null,null,null,null,null,null,null,null,null,null,null,null,null,null,null,null,null,null,null,null,null,null,null,null,null,null,null,null,null,null,null,null,null,null,null,null,null,null,null,null,null,null,null,null,null,null,null,null,null,null,null,null,null,null,null,null,null,null,null,null,null,null,null,null,null,null,null,null,null,null,null,null,null,null,null,null,null,null,null,null,null,null,null,null,null,null,null,null,null,null,null,null,null,null,null,null,null,"Page  16"]
[null,null,null,null,null,null,null,343]
[null,null,null,null,null,null,null,344]
[null,null,null,null,null,null,null,345]
[null,null,null,null,null,null,null,346]
[null,null,null,null,null,null,null,347]
[null,null,null,null,null,null,null,348]
[null,null,null,null,null,null,null,349]
[null,null,null,null,null,null,null,350]
[null,null,null,null,null,null,null,351]
[null,null,null,null,null,null,null,352]
[null,null,null,null,null,null,null,353]
[null,null,null,null,null,null,null,354]
[null,null,null,null,null,null,null,355]
[null,null,null,null,null,null,null,356]
[null,null,null,null,null,null,null,357]
[null,null,null,null,null,null,null,358]
[null,null,null,null,null,null,null,359]
[null,null,null,null,null,null,null,360]
[null,null,null,null,null,null,null,361]
[null,null,null,null,null,null,null,362]
[null,null,null,null,null,null,null,363]
[null,null,null,null,null,null,null,364]
[null,null,null,null,null,null,null,365,null,null,null,null,null,null,null,null,null,null,null,null,null,null,null,null,null,null,null,null,null,null,null,null,null,null,null,null,null,null,null,null,null,null,null,null,null,null,null,null,null,null,null,null,null,null,null,null,null,null,null,null,null,null,null,null,null,null,null,null,null,null,null,null,null,null,null,null,null,null,null,null,null,null,null,null,null,null,null,null,null,null,null,null,null,null,null,null,null,null,null,null,null,null,null,null,null,null,null,null,null,null,null,null,null,null,null,null,null,null,null,null,null,"Page  17"]
[null,null,null,null,null,null,null,366]
[null,null,null,null,null,null,null,367]
[null,null,null,null,null,null,null,368]
[null,null,null,null,null,null,null,369]
[null,null,null,null,null,null,null,370]
[null,null,null,null,null,null,null,371]
[null,null,null,null,null,null,null,372]
[null,null,null,null,null,null,null,373]
[null,null,null,null,null,null,null,374]
[null,null,null,null,null,null,null,375]
[null,null,null,null,null,null,null,376]
[null,null,null,null,null,null,null,377]
[null,null,null,null,null,null,null,378]
[null,null,null,null,null,null,null,379]
[null,null,null,null,null,null,null,380]
[null,null,null,null,null,null,null,381]
[null,null,null,null,null,null,null,382]
[null,null,null,null,null,null,null,383]
[null,null,null,null,null,null,null,384]
[null,null,null,null,null,null,null,385]
[null,null,null,null,null,null,null,386]
[null,null,null,null,null,null,null,387]
[null,null,null,null,null,null,null,388,null,null,null,null,null,null,null,null,null,null,null,null,null,null,null,null,null,null,null,null,null,null,null,null,null,null,null,null,null,null,null,null,null,null,null,null,null,null,null,null,null,null,null,null,null,null,null,null,null,null,null,null,null,null,null,null,null,null,null,null,null,null,null,null,null,null,null,null,null,null,null,null,null,null,null,null,null,null,null,null,null,null,null,null,null,null,null,null,null,null,null,null,null,null,null,null,null,null,null,null,null,null,null,null,null,null,null,null,null,null,null,null,null,"Page  18"]
[null,null,null,null,null,null,null,389]
[null,null,null,null,null,null,null,390]
[null,null,null,null,null,null,null,391]
[null,null,null,null,null,null,null,392]
[null,null,null,null,null,null,null,393]
[null,null,null,null,null,null,null,394]
[null,null,null,null,null,null,null,395]
[null,null,null,null,null,null,null,396]
[null,null,null,null,null,null,null,397]
[null,null,null,null,null,null,null,398]
[null,null,null,null,null,null,null,399]
[null,null,null,null,null,null,null,400]
[null,null,null,null,null,null,null,401]
[null,null,null,null,null,null,null,402]
[null,null,null,null,null,null,null,403]
[null,null,null,null,null,null,null,404]
[null,null,null,null,null,null,null,405]
[null,null,null,null,null,null,null,406]
[null,null,null,null,null,null,null,407]
[null,null,null,null,null,null,null,408]
[null,null,null,null,null,null,null,409]
[null,null,null,null,null,null,null,410]
[null,null,null,null,null,null,null,411,null,null,null,null,null,null,null,null,null,null,null,null,null,null,null,null,null,null,null,null,null,null,null,null,null,null,null,null,null,null,null,null,null,null,null,null,null,null,null,null,null,null,null,null,null,null,null,null,null,null,null,null,null,null,null,null,null,null,null,null,null,null,null,null,null,null,null,null,null,null,null,null,null,null,null,null,null,null,null,null,null,null,null,null,null,null,null,null,null,null,null,null,null,null,null,null,null,null,null,null,null,null,null,null,null,null,null,null,null,null,null,null,null,"Page  19"]
[null,null,null,null,null,null,null,412]
[null,null,null,null,null,null,null,413]
[null,null,null,null,null,null,null,414]
[null,null,null,null,null,null,null,415]
[null,null,null,null,null,null,null,416]
[null,null,null,null,null,null,null,417]
[null,null,null,null,null,null,null,418]
[null,null,null,null,null,null,null,419]
[null,null,null,null,null,null,null,420]
[null,null,null,null,null,null,null,421]
[null,null,null,null,null,null,null,422]
[null,null,null,null,null,null,null,423]
[null,null,null,null,null,null,null,424]
[null,null,null,null,null,null,null,425]
[null,null,null,null,null,null,null,426]
[null,null,null,null,null,null,null,427]
[null,null,null,null,null,null,null,428]
[null,null,null,null,null,null,null,429]
[null,null,null,null,null,null,null,430]
[null,null,null,null,null,null,null,431]
[null,null,null,null,null,null,null,432]
[null,null,null,null,null,null,null,433]
[null,null,null,null,null,null,null,434,null,null,null,null,null,null,null,null,null,null,null,null,null,null,null,null,null,null,null,null,null,null,null,null,null,null,null,null,null,null,null,null,null,null,null,null,null,null,null,null,null,null,null,null,null,null,null,null,null,null,null,null,null,null,null,null,null,null,null,null,null,null,null,null,null,null,null,null,null,null,null,null,null,null,null,null,null,null,null,null,null,null,null,null,null,null,null,null,null,null,null,null,null,null,null,null,null,null,null,null,null,null,null,null,null,null,null,null,null,null,null,null,null,"Page  20"]
[null,null,null,null,null,null,null,435]
[null,null,null,null,null,null,null,436]
[null,null,null,null,null,null,null,437]
[null,null,null,null,null,null,null,438]
[null,null,null,null,null,null,null,439]
[null,null,null,null,null,null,null,440]
[null,null,null,null,null,null,null,441]
[null,null,null,null,null,null,null,442]
[null,null,null,null,null,null,null,443]
[null,null,null,null,null,null,null,444]
[null,null,null,null,null,null,null,445]
[null,null,null,null,null,null,null,446]
[null,null,null,null,null,null,null,447]
[null,null,null,null,null,null,null,448]
[null,null,null,null,null,null,null,449]
[null,null,null,null,null,null,null,450]
[null,null,null,null,null,null,null,451]
[null,null,null,null,null,null,null,452]
[null,null,null,null,null,null,null,453]
[null,null,null,null,null,null,null,454]
[null,null,null,null,null,null,null,455]
[null,null,null,null,null,null,null,456]
[null,null,null,null,null,null,null,457,null,null,null,null,null,null,null,null,null,null,null,null,null,null,null,null,null,null,null,null,null,null,null,null,null,null,null,null,null,null,null,null,null,null,null,null,null,null,null,null,null,null,null,null,null,null,null,null,null,null,null,null,null,null,null,null,null,null,null,null,null,null,null,null,null,null,null,null,null,null,null,null,null,null,null,null,null,null,null,null,null,null,null,null,null,null,null,null,null,null,null,null,null,null,null,null,null,null,null,null,null,null,null,null,null,null,null,null,null,null,null,null,null,"Page  21"]
[null,null,null,null,null,null,null,458]
[null,null,null,null,null,null,null,459]
[null,null,null,null,null,null,null,460]
[null,null,null,null,null,null,null,461]
[null,null,null,null,null,null,null,462]
[null,null,null,null,null,null,null,463]
[null,null,null,null,null,null,null,464]
[null,null,null,null,null,null,null,465]
[null,null,null,null,null,null,null,466]
[null,null,null,null,null,null,null,467]
[null,null,null,null,null,null,null,468]
[null,null,null,null,null,null,null,469]
[null,null,null,null,null,null,null,470]
[null,null,null,null,null,null,null,471]
[null,null,null,null,null,null,null,472]
[null,null,null,null,null,null,null,473]
[null,null,null,null,null,null,null,474]
[null,null,null,null,null,null,null,475]
[null,null,null,null,null,null,null,476]
[null,null,null,null,null,null,null,477]
[null,null,null,null,null,null,null,478]
[null,null,null,null,null,null,null,479]
[null,null,null,null,null,null,null,480,null,null,null,null,null,null,null,null,null,null,null,null,null,null,null,null,null,null,null,null,null,null,null,null,null,null,null,null,null,null,null,null,null,null,null,null,null,null,null,null,null,null,null,null,null,null,null,null,null,null,null,null,null,null,null,null,null,null,null,null,null,null,null,null,null,null,null,null,null,null,null,null,null,null,null,null,null,null,null,null,null,null,null,null,null,null,null,null,null,null,null,null,null,null,null,null,null,null,null,null,null,null,null,null,null,null,null,null,null,null,null,null,null,"Page  22"]
[null,null,null,null,null,null,null,481]
[null,null,null,null,null,null,null,482]
[null,null,null,null,null,null,null,483]
[null,null,null,null,null,null,null,484]
[null,null,null,null,null,null,null,485]
[null,null,null,null,null,null,null,486]
[null,null,null,null,null,null,null,487]
[null,null,null,null,null,null,null,488]
[null,null,null,null,null,null,null,489]
[null,null,null,null,null,null,null,490]
[null,null,null,null,null,null,null,491]
[null,null,null,null,null,null,null,492]
[null,null,null,null,null,null,null,493]
[null,null,null,null,null,null,null,494]
[null,null,null,null,null,null,null,495]
[null,null,null,null,null,null,null,496]
[null,null,null,null,null,null,null,497]
[null,null,null,null,null,null,null,498]
[null,null,null,null,null,null,null,499]
[null,null,null,null,null,null,null,500]
[null,null,null,null,null,null,null,501]
[null,null,null,null,null,null,null,502]
[null,null,null,null,null,null,null,503,null,null,null,null,null,null,null,null,null,null,null,null,null,null,null,null,null,null,null,null,null,null,null,null,null,null,null,null,null,null,null,null,null,null,null,null,null,null,null,null,null,null,null,null,null,null,null,null,null,null,null,null,null,null,null,null,null,null,null,null,null,null,null,null,null,null,null,null,null,null,null,null,null,null,null,null,null,null,null,null,null,null,null,null,null,null,null,null,null,null,null,null,null,null,null,null,null,null,null,null,null,null,null,null,null,null,null,null,null,null,null,null,null,"Page  23"]
[null,null,null,null,null,null,null,504]
[null,null,null,null,null,null,null,505]
[null,null,null,null,null,null,null,506]
[null,null,null,null,null,null,null,507]
[null,null,null,null,null,null,null,508]
[null,null,null,null,null,null,null,509]
[null,null,null,null,null,null,null,510]
[null,null,null,null,null,null,null,511]
[null,null,null,null,null,null,null,512]
[null,null,null,null,null,null,null,513]
[null,null,null,null,null,null,null,514]
[null,null,null,null,null,null,null,515]
[null,null,null,null,null,null,null,516]
[null,null,null,null,null,null,null,517]
[null,null,null,null,null,null,null,518]
[null,null,null,null,null,null,null,519]
[null,null,null,null,null,null,null,520]
[null,null,null,null,null,null,null,521]
[null,null,null,null,null,null,null,522]
[null,null,null,null,null,null,null,523]
[null,null,null,null,null,null,null,524]
[null,null,null,null,null,null,null,525]
[null,null,null,null,null,null,null,526,null,null,null,null,null,null,null,null,null,null,null,null,null,null,null,null,null,null,null,null,null,null,null,null,null,null,null,null,null,null,null,null,null,null,null,null,null,null,null,null,null,null,null,null,null,null,null,null,null,null,null,null,null,null,null,null,null,null,null,null,null,null,null,null,null,null,null,null,null,null,null,null,null,null,null,null,null,null,null,null,null,null,null,null,null,null,null,null,null,null,null,null,null,null,null,null,null,null,null,null,null,null,null,null,null,null,null,null,null,null,null,null,null,"Page  24"]
[null,null,null,null,null,null,null,527]
[null,null,null,null,null,null,null,528]
[null,null,null,null,null,null,null,529]
[null,null,null,null,null,null,null,530]
[null,null,null,null,null,null,null,531]
[null,null,null,null,null,null,null,532]
[null,null,null,null,null,null,null,533]
[null,null,null,null,null,null,null,534]
[null,null,null,null,null,null,null,535]
[null,null,null,null,null,null,null,536]
[null,null,null,null,null,null,null,537]
[null,null,null,null,null,null,null,538]
[null,null,null,null,null,null,null,539]
[null,null,null,null,null,null,null,540]
[null,null,null,null,null,null,null,541]
[null,null,null,null,null,null,null,542]
[null,null,null,null,null,null,null,543]
[null,null,null,null,null,null,null,544]
[null,null,null,null,null,null,null,545]
[null,null,null,null,null,null,null,546]
[null,null,null,null,null,null,null,547]
[null,null,null,null,null,null,null,548]
[null,null,null,null,null,null,null,549,null,null,null,null,null,null,null,null,null,null,null,null,null,null,null,null,null,null,null,null,null,null,null,null,null,null,null,null,null,null,null,null,null,null,null,null,null,null,null,null,null,null,null,null,null,null,null,null,null,null,null,null,null,null,null,null,null,null,null,null,null,null,null,null,null,null,null,null,null,null,null,null,null,null,null,null,null,null,null,null,null,null,null,null,null,null,null,null,null,null,null,null,null,null,null,null,null,null,null,null,null,null,null,null,null,null,null,null,null,null,null,null,null,"Page  25"]
[null,null,null,null,null,null,null,550]
[null,null,null,null,null,null,null,551]
[null,null,null,null,null,null,null,552]
[null,null,null,null,null,null,null,553]
[null,null,null,null,null,null,null,554]
[null,null,null,null,null,null,null,555]
[null,null,null,null,null,null,null,556]
[null,null,null,null,null,null,null,557]
[null,null,null,null,null,null,null,558]
[null,null,null,null,null,null,null,559]
[null,null,null,null,null,null,null,560]
[null,null,null,null,null,null,null,561]
[null,null,null,null,null,null,null,562]
[null,null,null,null,null,null,null,563]
[null,null,null,null,null,null,null,564]
[null,null,null,null,null,null,null,565]
[null,null,null,null,null,null,null,566]
[null,null,null,null,null,null,null,567]
[null,null,null,null,null,null,null,568]
[null,null,null,null,null,null,null,569]
[null,null,null,null,null,null,null,570]
[null,null,null,null,null,null,null,571]
[null,null,null,null,null,null,null,572,null,null,null,null,null,null,null,null,null,null,null,null,null,null,null,null,null,null,null,null,null,null,null,null,null,null,null,null,null,null,null,null,null,null,null,null,null,null,null,null,null,null,null,null,null,null,null,null,null,null,null,null,null,null,null,null,null,null,null,null,null,null,null,null,null,null,null,null,null,null,null,null,null,null,null,null,null,null,null,null,null,null,null,null,null,null,null,null,null,null,null,null,null,null,null,null,null,null,null,null,null,null,null,null,null,null,null,null,null,null,null,null,null,"Page  26"]
[null,null,null,null,null,null,null,573]
[null,null,null,null,null,null,null,574]
[null,null,null,null,null,null,null,575]
[null,null,null,null,null,null,null,576]
[null,null,null,null,null,null,null,577]
[null,null,null,null,null,null,null,578]
[null,null,null,null,null,null,null,579]
[null,null,null,null,null,null,null,580]
[null,null,null,null,null,null,null,581]
[null,null,null,null,null,null,null,582]
[null,null,null,null,null,null,null,583]
[null,null,null,null,null,null,null,584]
[null,null,null,null,null,null,null,585]
[null,null,null,null,null,null,null,586]
[null,null,null,null,null,null,null,587]
[null,null,null,null,null,null,null,588]
[null,null,null,null,null,null,null,589]
[null,null,null,null,null,null,null,590]
[null,null,null,null,null,null,null,591]
[null,null,null,null,null,null,null,592]
[null,null,null,null,null,null,null,593]
[null,null,null,null,null,null,null,594]
[null,null,null,null,null,null,null,595,null,null,null,null,null,null,null,null,null,null,null,null,null,null,null,null,null,null,null,null,null,null,null,null,null,null,null,null,null,null,null,null,null,null,null,null,null,null,null,null,null,null,null,null,null,null,null,null,null,null,null,null,null,null,null,null,null,null,null,null,null,null,null,null,null,null,null,null,null,null,null,null,null,null,null,null,null,null,null,null,null,null,null,null,null,null,null,null,null,null,null,null,null,null,null,null,null,null,null,null,null,null,null,null,null,null,null,null,null,null,null,null,null,"Page  27"]
[null,null,null,null,null,null,null,596]
[null,null,null,null,null,null,null,597]
[null,null,null,null,null,null,null,598]
[null,null,null,null,null,null,null,599]
[null,null,null,null,null,null,null,600]
[null,null,null,null,null,null,null,601]
[null,null,null,null,null,null,null,602]
[null,null,null,null,null,null,null,603]
[null,null,null,null,null,null,null,604]
[null,null,null,null,null,null,null,605]
[null,null,null,null,null,null,null,606]
[null,null,null,null,null,null,null,607]
[null,null,null,null,null,null,null,608]
[null,null,null,null,null,null,null,609]
[null,null,null,null,null,null,null,610]
[null,null,null,null,null,null,null,611]
[null,null,null,null,null,null,null,612]
[null,null,null,null,null,null,null,613]
[null,null,null,null,null,null,null,614]
[null,null,null,null,null,null,null,615]
[null,null,null,null,null,null,null,616]
[null,null,null,null,null,null,null,617]
[null,null,null,null,null,null,null,618,null,null,null,null,null,null,null,null,null,null,null,null,null,null,null,null,null,null,null,null,null,null,null,null,null,null,null,null,null,null,null,null,null,null,null,null,null,null,null,null,null,null,null,null,null,null,null,null,null,null,null,null,null,null,null,null,null,null,null,null,null,null,null,null,null,null,null,null,null,null,null,null,null,null,null,null,null,null,null,null,null,null,null,null,null,null,null,null,null,null,null,null,null,null,null,null,null,null,null,null,null,null,null,null,null,null,null,null,null,null,null,null,null,"Page  28"]
[null,null,null,null,null,null,null,619]
[null,null,null,null,null,null,null,620]
[null,null,null,null,null,null,null,621]
[null,null,null,null,null,null,null,622]
[null,null,null,null,null,null,null,623]
[null,null,null,null,null,null,null,624]
[null,null,null,null,null,null,null,625]
[null,null,null,null,null,null,null,626]
[null,null,null,null,null,null,null,627]
[null,null,null,null,null,null,null,628]
[null,null,null,null,null,null,null,629]
[null,null,null,null,null,null,null,630]
[null,null,null,null,null,null,null,631]
[null,null,null,null,null,null,null,632]
[null,null,null,null,null,null,null,633]
[null,null,null,null,null,null,null,634]
[null,null,null,null,null,null,null,635]
[null,null,null,null,null,null,null,636]
[null,null,null,null,null,null,null,637]
[null,null,null,null,null,null,null,638]
[null,null,null,null,null,null,null,639]
[null,null,null,null,null,null,null,640]
[null,null,null,null,null,null,null,641,null,null,null,null,null,null,null,null,null,null,null,null,null,null,null,null,null,null,null,null,null,null,null,null,null,null,null,null,null,null,null,null,null,null,null,null,null,null,null,null,null,null,null,null,null,null,null,null,null,null,null,null,null,null,null,null,null,null,null,null,null,null,null,null,null,null,null,null,null,null,null,null,null,null,null,null,null,null,null,null,null,null,null,null,null,null,null,null,null,null,null,null,null,null,null,null,null,null,null,null,null,null,null,null,null,null,null,null,null,null,null,null,null,"Page  29"]
[null,null,null,null,null,null,null,642]
[null,null,null,null,null,null,null,643]
[null,null,null,null,null,null,null,644]
[null,null,null,null,null,null,null,645]
[null,null,null,null,null,null,null,646]
[null,null,null,null,null,null,null,647]
[null,null,null,null,null,null,null,648]
[null,null,null,null,null,null,null,649]
[null,null,null,null,null,null,null,650]
[null,null,null,null,null,null,null,651]
[null,null,null,null,null,null,null,652]
[null,null,null,null,null,null,null,653]
[null,null,null,null,null,null,null,654]
[null,null,null,null,null,null,null,655]
[null,null,null,null,null,null,null,656]
[null,null,null,null,null,null,null,657]
[null,null,null,null,null,null,null,658]
[null,null,null,null,null,null,null,659]
[null,null,null,null,null,null,null,660]
[null,null,null,null,null,null,null,661]
[null,null,null,null,null,null,null,662]
[null,null,null,null,null,null,null,663]
[null,null,null,null,null,null,null,664,null,null,null,null,null,null,null,null,null,null,null,null,null,null,null,null,null,null,null,null,null,null,null,null,null,null,null,null,null,null,null,null,null,null,null,null,null,null,null,null,null,null,null,null,null,null,null,null,null,null,null,null,null,null,null,null,null,null,null,null,null,null,null,null,null,null,null,null,null,null,null,null,null,null,null,null,null,null,null,null,null,null,null,null,null,null,null,null,null,null,null,null,null,null,null,null,null,null,null,null,null,null,null,null,null,null,null,null,null,null,null,null,null,"Page  30"]
[null,null,null,null,null,null,null,665]
[null,null,null,null,null,null,null,666]
[null,null,null,null,null,null,null,667]
[null,null,null,null,null,null,null,668]
[null,null,null,null,null,null,null,669]
[null,null,null,null,null,null,null,670]
[null,null,null,null,null,null,null,671]
[null,null,null,null,null,null,null,672]
[null,null,null,null,null,null,null,673]
[null,null,null,null,null,null,null,674]
[null,null,null,null,null,null,null,675]
[null,null,null,null,null,null,null,676]
[null,null,null,null,null,null,null,677]
[null,null,null,null,null,null,null,678]
[null,null,null,null,null,null,null,679]
[null,null,null,null,null,null,null,680]
[null,null,null,null,null,null,null,681]
[null,null,null,null,null,null,null,682]
[null,null,null,null,null,null,null,683]
[null,null,null,null,null,null,null,684]
[null,null,null,null,null,null,null,685]
[null,null,null,null,null,null,null,686]
[null,null,null,null,null,null,null,687,null,null,null,null,null,null,null,null,null,null,null,null,null,null,null,null,null,null,null,null,null,null,null,null,null,null,null,null,null,null,null,null,null,null,null,null,null,null,null,null,null,null,null,null,null,null,null,null,null,null,null,null,null,null,null,null,null,null,null,null,null,null,null,null,null,null,null,null,null,null,null,null,null,null,null,null,null,null,null,null,null,null,null,null,null,null,null,null,null,null,null,null,null,null,null,null,null,null,null,null,null,null,null,null,null,null,null,null,null,null,null,null,null,"Page  31"]
[null,null,null,null,null,null,null,688]
[null,null,null,null,null,null,null,689]
[null,null,null,null,null,null,null,690]
[null,null,null,null,null,null,null,691]
[null,null,null,null,null,null,null,692]
[null,null,null,null,null,null,null,693]
[null,null,null,null,null,null,null,694]
[null,null,null,null,null,null,null,695]
[null,null,null,null,null,null,null,696]
[null,null,null,null,null,null,null,697]
[null,null,null,null,null,null,null,698]
[null,null,null,null,null,null,null,699]
[null,null,null,null,null,null,null,700]
[null,null,null,null,null,null,null,701]
[null,null,null,null,null,null,null,702]
[null,null,null,null,null,null,null,703]
[null,null,null,null,null,null,null,704]
[null,null,null,null,null,null,null,705]
[null,null,null,null,null,null,null,706]
[null,null,null,null,null,null,null,707]
[null,null,null,null,null,null,null,708]
[null,null,null,null,null,null,null,709]
[null,null,null,null,null,null,null,710,null,null,null,null,null,null,null,null,null,null,null,null,null,null,null,null,null,null,null,null,null,null,null,null,null,null,null,null,null,null,null,null,null,null,null,null,null,null,null,null,null,null,null,null,null,null,null,null,null,null,null,null,null,null,null,null,null,null,null,null,null,null,null,null,null,null,null,null,null,null,null,null,null,null,null,null,null,null,null,null,null,null,null,null,null,null,null,null,null,null,null,null,null,null,null,null,null,null,null,null,null,null,null,null,null,null,null,null,null,null,null,null,null,"Page  32"]
[null,null,null,null,null,null,null,711]
[null,null,null,null,null,null,null,712]
[null,null,null,null,null,null,null,713]
[null,null,null,null,null,null,null,714]
[null,null,null,null,null,null,null,715]
[null,null,null,null,null,null,null,716]
[null,null,null,null,null,null,null,717]
[null,null,null,null,null,null,null,718]
[null,null,null,null,null,null,null,719]
[null,null,null,null,null,null,null,720]
[null,null,null,null,null,null,null,721]
[null,null,null,null,null,null,null,722]
[null,null,null,null,null,null,null,723]
[null,null,null,null,null,null,null,724]
[null,null,null,null,null,null,null,725]
[null,null,null,null,null,null,null,726]
[null,null,null,null,null,null,null,727]
[null,null,null,null,null,null,null,728]
[null,null,null,null,null,null,null,729]
[null,null,null,null,null,null,null,730]
[null,null,null,null,null,null,null,731]
[null,null,null,null,null,null,null,732]
[null,null,null,null,null,null,null,733,null,null,null,null,null,null,null,null,null,null,null,null,null,null,null,null,null,null,null,null,null,null,null,null,null,null,null,null,null,null,null,null,null,null,null,null,null,null,null,null,null,null,null,null,null,null,null,null,null,null,null,null,null,null,null,null,null,null,null,null,null,null,null,null,null,null,null,null,null,null,null,null,null,null,null,null,null,null,null,null,null,null,null,null,null,null,null,null,null,null,null,null,null,null,null,null,null,null,null,null,null,null,null,null,null,null,null,null,null,null,null,null,null,"Page  33"]
[null,null,null,null,null,null,null,734]
[null,null,null,null,null,null,null,735]
[null,null,null,null,null,null,null,736]
[null,null,null,null,null,null,null,737]
[null,null,null,null,null,null,null,738]
[null,null,null,null,null,null,null,739]
[null,null,null,null,null,null,null,740]
[null,null,null,null,null,null,null,741]
[null,null,null,null,null,null,null,742]
[null,null,null,null,null,null,null,743]
[null,null,null,null,null,null,null,744]
[null,null,null,null,null,null,null,745]
[null,null,null,null,null,null,null,746]
[null,null,null,null,null,null,null,747]
[null,null,null,null,null,null,null,748]
[null,null,null,null,null,null,null,749]
[null,null,null,null,null,null,null,750]
[null,null,null,null,null,null,null,751]
[null,null,null,null,null,null,null,752]
[null,null,null,null,null,null,null,753]
[null,null,null,null,null,null,null,754]
[null,null,null,null,null,null,null,755]
[null,null,null,null,null,null,null,756,null,null,null,null,null,null,null,null,null,null,null,null,null,null,null,null,null,null,null,null,null,null,null,null,null,null,null,null,null,null,null,null,null,null,null,null,null,null,null,null,null,null,null,null,null,null,null,null,null,null,null,null,null,null,null,null,null,null,null,null,null,null,null,null,null,null,null,null,null,null,null,null,null,null,null,null,null,null,null,null,null,null,null,null,null,null,null,null,null,null,null,null,null,null,null,null,null,null,null,null,null,null,null,null,null,null,null,null,null,null,null,null,null,"Page  34"]
[null,null,null,null,null,null,null,757]
[null,null,null,null,null,null,null,758]
[null,null,null,null,null,null,null,759]
[null,null,null,null,null,null,null,760]
[null,null,null,null,null,null,null,761]
[null,null,null,null,null,null,null,762]
[null,null,null,null,null,null,null,763]
[null,null,null,null,null,null,null,764]
[null,null,null,null,null,null,null,765]
[null,null,null,null,null,null,null,766]
[null,null,null,null,null,null,null,767]
[null,null,null,null,null,null,null,768]
[null,null,null,null,null,null,null,769]
[null,null,null,null,null,null,null,770]
[null,null,null,null,null,null,null,771]
[null,null,null,null,null,null,null,772]
[null,null,null,null,null,null,null,773]
[null,null,null,null,null,null,null,774]
[null,null,null,null,null,null,null,775]
[null,null,null,null,null,null,null,776]
[null,null,null,null,null,null,null,777]
[null,null,null,null,null,null,null,778]
[null,null,null,null,null,null,null,779,null,null,null,null,null,null,null,null,null,null,null,null,null,null,null,null,null,null,null,null,null,null,null,null,null,null,null,null,null,null,null,null,null,null,null,null,null,null,null,null,null,null,null,null,null,null,null,null,null,null,null,null,null,null,null,null,null,null,null,null,null,null,null,null,null,null,null,null,null,null,null,null,null,null,null,null,null,null,null,null,null,null,null,null,null,null,null,null,null,null,null,null,null,null,null,null,null,null,null,null,null,null,null,null,null,null,null,null,null,null,null,null,null,"Page  35"]
[null,null,null,null,null,null,null,780]
[null,null,null,null,null,null,null,781]
[null,null,null,null,null,null,null,782]
[null,null,null,null,null,null,null,783]
[null,null,null,null,null,null,null,784]
[null,null,null,null,null,null,null,785]
[null,null,null,null,null,null,null,786]
[null,null,null,null,null,null,null,787]
[null,null,null,null,null,null,null,788]
[null,null,null,null,null,null,null,789]
[null,null,null,null,null,null,null,790]
[null,null,null,null,null,null,null,791]
[null,null,null,null,null,null,null,792]
[null,null,null,null,null,null,null,793]
[null,null,null,null,null,null,null,794]
[null,null,null,null,null,null,null,795]
[null,null,null,null,null,null,null,796]
[null,null,null,null,null,null,null,797]
[null,null,null,null,null,null,null,798]
[null,null,null,null,null,null,null,799]
[null,null,null,null,null,null,null,800]
[null,null,null,null,null,null,null,801]
[null,null,null,null,null,null,null,802,null,null,null,null,null,null,null,null,null,null,null,null,null,null,null,null,null,null,null,null,null,null,null,null,null,null,null,null,null,null,null,null,null,null,null,null,null,null,null,null,null,null,null,null,null,null,null,null,null,null,null,null,null,null,null,null,null,null,null,null,null,null,null,null,null,null,null,null,null,null,null,null,null,null,null,null,null,null,null,null,null,null,null,null,null,null,null,null,null,null,null,null,null,null,null,null,null,null,null,null,null,null,null,null,null,null,null,null,null,null,null,null,null,"Page  36"]
[null,null,null,null,null,null,null,803]
[null,null,null,null,null,null,null,804]
[null,null,null,null,null,null,null,805]
[null,null,null,null,null,null,null,806]
[null,null,null,null,null,null,null,807]
[null,null,null,null,null,null,null,808]
[null,null,null,null,null,null,null,809]
[null,null,null,null,null,null,null,810]
[null,null,null,null,null,null,null,811]
[null,null,null,null,null,null,null,812]
[null,null,null,null,null,null,null,813]
[null,null,null,null,null,null,null,814]
[null,null,null,null,null,null,null,815]
[null,null,null,null,null,null,null,816]
[null,null,null,null,null,null,null,817]
[null,null,null,null,null,null,null,818]
[null,null,null,null,null,null,null,819]
[null,null,null,null,null,null,null,820]
[null,null,null,null,null,null,null,821]
[null,null,null,null,null,null,null,822]
[null,null,null,null,null,null,null,823]
[null,null,null,null,null,null,null,824]
[null,null,null,null,null,null,null,825,null,null,null,null,null,null,null,null,null,null,null,null,null,null,null,null,null,null,null,null,null,null,null,null,null,null,null,null,null,null,null,null,null,null,null,null,null,null,null,null,null,null,null,null,null,null,null,null,null,null,null,null,null,null,null,null,null,null,null,null,null,null,null,null,null,null,null,null,null,null,null,null,null,null,null,null,null,null,null,null,null,null,null,null,null,null,null,null,null,null,null,null,null,null,null,null,null,null,null,null,null,null,null,null,null,null,null,null,null,null,null,null,null,"Page  37"]
[null,null,null,null,null,null,null,826]
[null,null,null,null,null,null,null,827]
[null,null,null,null,null,null,null,828]
[null,null,null,null,null,null,null,829]
[null,null,null,null,null,null,null,830]
[null,null,null,null,null,null,null,831]
[null,null,null,null,null,null,null,832]
[null,null,null,null,null,null,null,833]
[null,null,null,null,null,null,null,834]
[null,null,null,null,null,null,null,835]
[null,null,null,null,null,null,null,836]
[null,null,null,null,null,null,null,837]
[null,null,null,null,null,null,null,838]
[null,null,null,null,null,null,null,839]
[null,null,null,null,null,null,null,840]
[null,null,null,null,null,null,null,841]
[null,null,null,null,null,null,null,842]
[null,null,null,null,null,null,null,843]
[null,null,null,null,null,null,null,844]
[null,null,null,null,null,null,null,845]
[null,null,null,null,null,null,null,846]
[null,null,null,null,null,null,null,847]
[null,null,null,null,null,null,null,848,null,null,null,null,null,null,null,null,null,null,null,null,null,null,null,null,null,null,null,null,null,null,null,null,null,null,null,null,null,null,null,null,null,null,null,null,null,null,null,null,null,null,null,null,null,null,null,null,null,null,null,null,null,null,null,null,null,null,null,null,null,null,null,null,null,null,null,null,null,null,null,null,null,null,null,null,null,null,null,null,null,null,null,null,null,null,null,null,null,null,null,null,null,null,null,null,null,null,null,null,null,null,null,null,null,null,null,null,null,null,null,null,null,"Page  38"]
[null,null,null,null,null,null,null,849]
[null,null,null,null,null,null,null,850]
[null,null,null,null,null,null,null,851]
[null,null,null,null,null,null,null,852]
[null,null,null,null,null,null,null,853]
[null,null,null,null,null,null,null,854]
[null,null,null,null,null,null,null,855]
[null,null,null,null,null,null,null,856]
[null,null,null,null,null,null,null,857]
[null,null,null,null,null,null,null,858]
[null,null,null,null,null,null,null,859]
[null,null,null,null,null,null,null,860]
[null,null,null,null,null,null,null,861]
[null,null,null,null,null,null,null,862]
[null,null,null,null,null,null,null,863]
[null,null,null,null,null,null,null,864]
[null,null,null,null,null,null,null,865]
[null,null,null,null,null,null,null,866]
[null,null,null,null,null,null,null,867]
[null,null,null,null,null,null,null,868]
[null,null,null,null,null,null,null,869]
[null,null,null,null,null,null,null,870]
[null,null,null,null,null,null,null,871,null,null,null,null,null,null,null,null,null,null,null,null,null,null,null,null,null,null,null,null,null,null,null,null,null,null,null,null,null,null,null,null,null,null,null,null,null,null,null,null,null,null,null,null,null,null,null,null,null,null,null,null,null,null,null,null,null,null,null,null,null,null,null,null,null,null,null,null,null,null,null,null,null,null,null,null,null,null,null,null,null,null,null,null,null,null,null,null,null,null,null,null,null,null,null,null,null,null,null,null,null,null,null,null,null,null,null,null,null,null,null,null,null,"Page  39"]
[null,null,null,null,null,null,null,872]
[null,null,null,null,null,null,null,873]
[null,null,null,null,null,null,null,874]
[null,null,null,null,null,null,null,875]
[null,null,null,null,null,null,null,876]
[null,null,null,null,null,null,null,877]
[null,null,null,null,null,null,null,878]
[null,null,null,null,null,null,null,879]
[null,null,null,null,null,null,null,880]
[null,null,null,null,null,null,null,881]
[null,null,null,null,null,null,null,882]
[null,null,null,null,null,null,null,883]
[null,null,null,null,null,null,null,884]
[null,null,null,null,null,null,null,885]
[null,null,null,null,null,null,null,886]
[null,null,null,null,null,null,null,887]
[null,null,null,null,null,null,null,888]
[null,null,null,null,null,null,null,889]
[null,null,null,null,null,null,null,890]
[null,null,null,null,null,null,null,891]
[null,null,null,null,null,null,null,892]
[null,null,null,null,null,null,null,893]
[null,null,null,null,null,null,null,894,null,null,null,null,null,null,null,null,null,null,null,null,null,null,null,null,null,null,null,null,null,null,null,null,null,null,null,null,null,null,null,null,null,null,null,null,null,null,null,null,null,null,null,null,null,null,null,null,null,null,null,null,null,null,null,null,null,null,null,null,null,null,null,null,null,null,null,null,null,null,null,null,null,null,null,null,null,null,null,null,null,null,null,null,null,null,null,null,null,null,null,null,null,null,null,null,null,null,null,null,null,null,null,null,null,null,null,null,null,null,null,null,null,"Page  40"]
[null,null,null,null,null,null,null,895]
[null,null,null,null,null,null,null,896]
[null,null,null,null,null,null,null,897]
[null,null,null,null,null,null,null,898]
[null,null,null,null,null,null,null,899]
[null,null,null,null,null,null,null,900]
[null,null,null,null,null,null,null,901]
[null,null,null,null,null,null,null,902]
[null,null,null,null,null,null,null,903]
[null,null,null,null,null,null,null,904]
[null,null,null,null,null,null,null,905]
[null,null,null,null,null,null,null,906]
[null,null,null,null,null,null,null,907]
[null,null,null,null,null,null,null,908]
[null,null,null,null,null,null,null,909]
[null,null,null,null,null,null,null,910]
[null,null,null,null,null,null,null,911]
[null,null,null,null,null,null,null,912]
[null,null,null,null,null,null,null,913]
[null,null,null,null,null,null,null,914]
[null,null,null,null,null,null,null,915]
[null,null,null,null,null,null,null,916]
[null,null,null,null,null,null,null,917,null,null,null,null,null,null,null,null,null,null,null,null,null,null,null,null,null,null,null,null,null,null,null,null,null,null,null,null,null,null,null,null,null,null,null,null,null,null,null,null,null,null,null,null,null,null,null,null,null,null,null,null,null,null,null,null,null,null,null,null,null,null,null,null,null,null,null,null,null,null,null,null,null,null,null,null,null,null,null,null,null,null,null,null,null,null,null,null,null,null,null,null,null,null,null,null,null,null,null,null,null,null,null,null,null,null,null,null,null,null,null,null,null,"Page  41"]
[null,null,null,null,null,null,null,918]
[null,null,null,null,null,null,null,919]
[null,null,null,null,null,null,null,920]
[null,null,null,null,null,null,null,921]
[null,null,null,null,null,null,null,922]
[null,null,null,null,null,null,null,923]
[null,null,null,null,null,null,null,924]
[null,null,null,null,null,null,null,925]
[null,null,null,null,null,null,null,926]
[null,null,null,null,null,null,null,927]
[null,null,null,null,null,null,null,928]
[null,null,null,null,null,null,null,929]
[null,null,null,null,null,null,null,930]
[null,null,null,null,null,null,null,931]
[null,null,null,null,null,null,null,932]
[null,null,null,null,null,null,null,933]
[null,null,null,null,null,null,null,934]
[null,null,null,null,null,null,null,935]
[null,null,null,null,null,null,null,936]
[null,null,null,null,null,null,null,937]
[null,null,null,null,null,null,null,938]
[null,null,null,null,null,null,null,939]
[null,null,null,null,null,null,null,940,null,null,null,null,null,null,null,null,null,null,null,null,null,null,null,null,null,null,null,null,null,null,null,null,null,null,null,null,null,null,null,null,null,null,null,null,null,null,null,null,null,null,null,null,null,null,null,null,null,null,null,null,null,null,null,null,null,null,null,null,null,null,null,null,null,null,null,null,null,null,null,null,null,null,null,null,null,null,null,null,null,null,null,null,null,null,null,null,null,null,null,null,null,null,null,null,null,null,null,null,null,null,null,null,null,null,null,null,null,null,null,null,null,"Page  42"]
[null,null,null,null,null,null,null,941]
[null,null,null,null,null,null,null,942]
[null,null,null,null,null,null,null,943]
[null,null,null,null,null,null,null,944]
[null,null,null,null,null,null,null,945]
[null,null,null,null,null,null,null,946]
[null,null,null,null,null,null,null,947]
[null,null,null,null,null,null,null,948]
[null,null,null,null,null,null,null,949]
[null,null,null,null,null,null,null,950]
[null,null,null,null,null,null,null,951]
[null,null,null,null,null,null,null,952]
[null,null,null,null,null,null,null,953]
[null,null,null,null,null,null,null,954]
[null,null,null,null,null,null,null,955]
[null,null,null,null,null,null,null,956]
[null,null,null,null,null,null,null,957]
[null,null,null,null,null,null,null,958]
[null,null,null,null,null,null,null,959]
[null,null,null,null,null,null,null,960]
[null,null,null,null,null,null,null,961]
[null,null,null,null,null,null,null,962]
[null,null,null,null,null,null,null,963,null,null,null,null,null,null,null,null,null,null,null,null,null,null,null,null,null,null,null,null,null,null,null,null,null,null,null,null,null,null,null,null,null,null,null,null,null,null,null,null,null,null,null,null,null,null,null,null,null,null,null,null,null,null,null,null,null,null,null,null,null,null,null,null,null,null,null,null,null,null,null,null,null,null,null,null,null,null,null,null,null,null,null,null,null,null,null,null,null,null,null,null,null,null,null,null,null,null,null,null,null,null,null,null,null,null,null,null,null,null,null,null,null,"Page  43"]
[null,null,null,null,null,null,null,964]
[null,null,null,null,null,null,null,965]
[null,null,null,null,null,null,null,966]
[null,null,null,null,null,null,null,967]
[null,null,null,null,null,null,null,968]
[null,null,null,null,null,null,null,969]
[null,null,null,null,null,null,null,970]
[null,null,null,null,null,null,null,971]
[null,null,null,null,null,null,null,972]
[null,null,null,null,null,null,null,973]
[null,null,null,null,null,null,null,974]
[null,null,null,null,null,null,null,975]
[null,null,null,null,null,null,null,976]
[null,null,null,null,null,null,null,977]
[null,null,null,null,null,null,null,978]
[null,null,null,null,null,null,null,979]
[null,null,null,null,null,null,null,980]
[null,null,null,null,null,null,null,981]
[null,null,null,null,null,null,null,982]
[null,null,null,null,null,null,null,983]
[null,null,null,null,null,null,null,984]
[null,null,null,null,null,null,null,985]
[null,null,null,null,null,null,null,986,null,null,null,null,null,null,null,null,null,null,null,null,null,null,null,null,null,null,null,null,null,null,null,null,null,null,null,null,null,null,null,null,null,null,null,null,null,null,null,null,null,null,null,null,null,null,null,null,null,null,null,null,null,null,null,null,null,null,null,null,null,null,null,null,null,null,null,null,null,null,null,null,null,null,null,null,null,null,null,null,null,null,null,null,null,null,null,null,null,null,null,null,null,null,null,null,null,null,null,null,null,null,null,null,null,null,null,null,null,null,null,null,null,"Page  44"]
[null,null,null,null,null,null,null,987]
[null,null,null,null,null,null,null,988]
[null,null,null,null,null,null,null,989]
[null,null,null,null,null,null,null,990]
[null,null,null,null,null,null,null,991]
[null,null,null,null,null,null,null,992]
[null,null,null,null,null,null,null,993]
[null,null,null,null,null,null,null,994]
[null,null,null,null,null,null,null,995]
[null,null,null,null,null,null,null,996]
[null,null,null,null,null,null,null,997]
[null,null,null,null,null,null,null,998]
[null,null,null,null,null,null,null,999]
[null,null,null,null,null,null,null,1000]
[null,null,null,null,null,null,null,1001]
[null,null,null,null,null,null,null,1002]
[null,null,null,null,null,null,null,1003]
[null,null,null,null,null,null,null,1004]
[null,null,null,null,null,null,null,1005]
[null,null,null,null,null,null,null,1006]
[null,null,null,null,null,null,null,1007]
[null,null,null,null,null,null,null,1008]
[null,null,null,null,null,null,null,1009,null,null,null,null,null,null,null,null,null,null,null,null,null,null,null,null,null,null,null,null,null,null,null,null,null,null,null,null,null,null,null,null,null,null,null,null,null,null,null,null,null,null,null,null,null,null,null,null,null,null,null,null,null,null,null,null,null,null,null,null,null,null,null,null,null,null,null,null,null,null,null,null,null,null,null,null,null,null,null,null,null,null,null,null,null,null,null,null,null,null,null,null,null,null,null,null,null,null,null,null,null,null,null,null,null,null,null,null,null,null,null,null,null,"Page  45"]
[null,null,null,null,null,null,null,1010]
[null,null,null,null,null,null,null,1011]
[null,null,null,null,null,null,null,1012]
[null,null,null,null,null,null,null,1013]
[null,null,null,null,null,null,null,1014]
[null,null,null,null,null,null,null,1015]
[null,null,null,null,null,null,null,1016]
[null,null,null,null,null,null,null,1017]
[null,null,null,null,null,null,null,1018]
[null,null,null,null,null,null,null,1019]
[null,null,null,null,null,null,null,1020]
[null,null,null,null,null,null,null,1021]
[null,null,null,null,null,null,null,1022]
[null,null,null,null,null,null,null,1023]
[null,null,null,null,null,null,null,1024]
[null,null,null,null,null,null,null,1025]
[null,null,null,null,null,null,null,1026]
[null,null,null,null,null,null,null,1027]
[null,null,null,null,null,null,null,1028]
[null,null,null,null,null,null,null,1029]
[null,null,null,null,null,null,null,1030]
[null,null,null,null,null,null,null,1031]
[null,null,null,null,null,null,null,1032,null,null,null,null,null,null,null,null,null,null,null,null,null,null,null,null,null,null,null,null,null,null,null,null,null,null,null,null,null,null,null,null,null,null,null,null,null,null,null,null,null,null,null,null,null,null,null,null,null,null,null,null,null,null,null,null,null,null,null,null,null,null,null,null,null,null,null,null,null,null,null,null,null,null,null,null,null,null,null,null,null,null,null,null,null,null,null,null,null,null,null,null,null,null,null,null,null,null,null,null,null,null,null,null,null,null,null,null,null,null,null,null,null,"Page  46"]
[null,null,null,null,null,null,null,1033]
[null,null,null,null,null,null,null,1034]
[null,null,null,null,null,null,null,1035]
[null,null,null,null,null,null,null,1036]
[null,null,null,null,null,null,null,1037]
[null,null,null,null,null,null,null,1038]
[null,null,null,null,null,null,null,1039]
[null,null,null,null,null,null,null,1040]
[null,null,null,null,null,null,null,1041]
[null,null,null,null,null,null,null,1042]
[null,null,null,null,null,null,null,1043]
[null,null,null,null,null,null,null,1044]
[null,null,null,null,null,null,null,1045]
[null,null,null,null,null,null,null,1046]
[null,null,null,null,null,null,null,1047]
[null,null,null,null,null,null,null,1048]
[null,null,null,null,null,null,null,1049]
[null,null,null,null,null,null,null,1050]
[null,null,null,null,null,null,null,1051]
[null,null,null,null,null,null,null,1052]
[null,null,null,null,null,null,null,1053]
[null,null,null,null,null,null,null,1054]
[null,null,null,null,null,null,null,1055,null,null,null,null,null,null,null,null,null,null,null,null,null,null,null,null,null,null,null,null,null,null,null,null,null,null,null,null,null,null,null,null,null,null,null,null,null,null,null,null,null,null,null,null,null,null,null,null,null,null,null,null,null,null,null,null,null,null,null,null,null,null,null,null,null,null,null,null,null,null,null,null,null,null,null,null,null,null,null,null,null,null,null,null,null,null,null,null,null,null,null,null,null,null,null,null,null,null,null,null,null,null,null,null,null,null,null,null,null,null,null,null,null,"Page  47"]
[null,null,null,null,null,null,null,1056]
[null,null,null,null,null,null,null,1057]
[null,null,null,null,null,null,null,1058]
[null,null,null,null,null,null,null,1059]
[null,null,null,null,null,null,null,1060]
[null,null,null,null,null,null,null,1061]
[null,null,null,null,null,null,null,1062]
[null,null,null,null,null,null,null,1063]
[null,null,null,null,null,null,null,1064]
[null,null,null,null,null,null,null,1065]
[null,null,null,null,null,null,null,1066]
[null,null,null,null,null,null,null,1067]
[null,null,null,null,null,null,null,1068]
[null,null,null,null,null,null,null,1069]
[null,null,null,null,null,null,null,1070]
[null,null,null,null,null,null,null,1071]
[null,null,null,null,null,null,null,1072]
[null,null,null,null,null,null,null,1073]
[null,null,null,null,null,null,null,1074]
[null,null,null,null,null,null,null,1075]
[null,null,null,null,null,null,null,1076]
[null,null,null,null,null,null,null,1077]
[null,null,null,null,null,null,null,1078,null,null,null,null,null,null,null,null,null,null,null,null,null,null,null,null,null,null,null,null,null,null,null,null,null,null,null,null,null,null,null,null,null,null,null,null,null,null,null,null,null,null,null,null,null,null,null,null,null,null,null,null,null,null,null,null,null,null,null,null,null,null,null,null,null,null,null,null,null,null,null,null,null,null,null,null,null,null,null,null,null,null,null,null,null,null,null,null,null,null,null,null,null,null,null,null,null,null,null,null,null,null,null,null,null,null,null,null,null,null,null,null,null,"Page  48"]
[null,null,null,null,null,null,null,1079]
[null,null,null,null,null,null,null,1080]
[null,null,null,null,null,null,null,1081]
[null,null,null,null,null,null,null,1082]
[null,null,null,null,null,null,null,1083]
[null,null,null,null,null,null,null,1084]
[null,null,null,null,null,null,null,1085]
[null,null,null,null,null,null,null,1086]
[null,null,null,null,null,null,null,1087]
[null,null,null,null,null,null,null,1088]
[null,null,null,null,null,null,null,1089]
[null,null,null,null,null,null,null,1090]
[null,null,null,null,null,null,null,1091]
[null,null,null,null,null,null,null,1092]
[null,null,null,null,null,null,null,1093]
[null,null,null,null,null,null,null,1094]
[null,null,null,null,null,null,null,1095]
[null,null,null,null,null,null,null,1096]
[null,null,null,null,null,null,null,1097]
[null,null,null,null,null,null,null,1098]
[null,null,null,null,null,null,null,1099]
[null,null,null,null,null,null,null,1100]
[null,null,null,null,null,null,null,1101,null,null,null,null,null,null,null,null,null,null,null,null,null,null,null,null,null,null,null,null,null,null,null,null,null,null,null,null,null,null,null,null,null,null,null,null,null,null,null,null,null,null,null,null,null,null,null,null,null,null,null,null,null,null,null,null,null,null,null,null,null,null,null,null,null,null,null,null,null,null,null,null,null,null,null,null,null,null,null,null,null,null,null,null,null,null,null,null,null,null,null,null,null,null,null,null,null,null,null,null,null,null,null,null,null,null,null,null,null,null,null,null,null,"Page  49"]
[null,null,null,null,null,null,null,1102]
[null,null,null,null,null,null,null,1103]
[null,null,null,null,null,null,null,1104]
[null,null,null,null,null,null,null,1105]
[null,null,null,null,null,null,null,1106]
[null,null,null,null,null,null,null,1107]
[null,null,null,null,null,null,null,1108]
[null,null,null,null,null,null,null,1109]
[null,null,null,null,null,null,null,1110]
[null,null,null,null,null,null,null,1111]
[null,null,null,null,null,null,null,1112]
[null,null,null,null,null,null,null,1113]
[null,null,null,null,null,null,null,1114]
[null,null,null,null,null,null,null,1115]
[null,null,null,null,null,null,null,1116]
[null,null,null,null,null,null,null,1117]
[null,null,null,null,null,null,null,1118]
[null,null,null,null,null,null,null,1119]
[null,null,null,null,null,null,null,1120]
[null,null,null,null,null,null,null,1121]
[null,null,null,null,null,null,null,1122]
[null,null,null,null,null,null,null,1123]
[null,null,null,null,null,null,null,1124,null,null,null,null,null,null,null,null,null,null,null,null,null,null,null,null,null,null,null,null,null,null,null,null,null,null,null,null,null,null,null,null,null,null,null,null,null,null,null,null,null,null,null,null,null,null,null,null,null,null,null,null,null,null,null,null,null,null,null,null,null,null,null,null,null,null,null,null,null,null,null,null,null,null,null,null,null,null,null,null,null,null,null,null,null,null,null,null,null,null,null,null,null,null,null,null,null,null,null,null,null,null,null,null,null,null,null,null,null,null,null,null,null,"Page  50"]
[null,null,null,null,null,null,null,1125]
[null,null,null,null,null,null,null,1126]
[null,null,null,null,null,null,null,1127]
[null,null,null,null,null,null,null,1128]
[null,null,null,null,null,null,null,1129]
[null,null,null,null,null,null,null,1130]
[null,null,null,null,null,null,null,1131]
[null,null,null,null,null,null,null,1132]
[null,null,null,null,null,null,null,1133]
[null,null,null,null,null,null,null,1134]
[null,null,null,null,null,null,null,1135]
[null,null,null,null,null,null,null,1136]
[null,null,null,null,null,null,null,1137]
[null,null,null,null,null,null,null,1138]
[null,null,null,null,null,null,null,1139]
[null,null,null,null,null,null,null,1140]
[null,null,null,null,null,null,null,1141]
[null,null,null,null,null,null,null,1142]
[null,null,null,null,null,null,null,1143]
[null,null,null,null,null,null,null,1144]
[null,null,null,null,null,null,null,1145]
[null,null,null,null,null,null,null,1146]
[null,null,null,null,null,null,null,1147,null,null,null,null,null,null,null,null,null,null,null,null,null,null,null,null,null,null,null,null,null,null,null,null,null,null,null,null,null,null,null,null,null,null,null,null,null,null,null,null,null,null,null,null,null,null,null,null,null,null,null,null,null,null,null,null,null,null,null,null,null,null,null,null,null,null,null,null,null,null,null,null,null,null,null,null,null,null,null,null,null,null,null,null,null,null,null,null,null,null,null,null,null,null,null,null,null,null,null,null,null,null,null,null,null,null,null,null,null,null,null,null,null,"Page  51"]
[null,null,null,null,null,null,null,1148]
[null,null,null,null,null,null,null,1149]
[null,null,null,null,null,null,null,1150]
[null,null,null,null,null,null,null,1151]
[null,null,null,null,null,null,null,1152]
[null,null,null,null,null,null,null,1153]
[null,null,null,null,null,null,null,1154]
[null,null,null,null,null,null,null,1155]
[null,null,null,null,null,null,null,1156]
[null,null,null,null,null,null,null,1157]
[null,null,null,null,null,null,null,1158]
[null,null,null,null,null,null,null,1159]
[null,null,null,null,null,null,null,1160]
[null,null,null,null,null,null,null,1161]
[null,null,null,null,null,null,null,1162]
[null,null,null,null,null,null,null,1163]
[null,null,null,null,null,null,null,1164]
[null,null,null,null,null,null,null,1165]
[null,null,null,null,null,null,null,1166]
[null,null,null,null,null,null,null,1167]
[null,null,null,null,null,null,null,1168]
[null,null,null,null,null,null,null,1169]
[null,null,null,null,null,null,null,1170,null,null,null,null,null,null,null,null,null,null,null,null,null,null,null,null,null,null,null,null,null,null,null,null,null,null,null,null,null,null,null,null,null,null,null,null,null,null,null,null,null,null,null,null,null,null,null,null,null,null,null,null,null,null,null,null,null,null,null,null,null,null,null,null,null,null,null,null,null,null,null,null,null,null,null,null,null,null,null,null,null,null,null,null,null,null,null,null,null,null,null,null,null,null,null,null,null,null,null,null,null,null,null,null,null,null,null,null,null,null,null,null,null,"Page  52"]
[null,null,null,null,null,null,null,1171]
[null,null,null,null,null,null,null,1172]
[null,null,null,null,null,null,null,1173]
[null,null,null,null,null,null,null,1174]
[null,null,null,null,null,null,null,1175]
[null,null,null,null,null,null,null,1176]
[null,null,null,null,null,null,null,1177]
[null,null,null,null,null,null,null,1178]
[null,null,null,null,null,null,null,1179]
[null,null,null,null,null,null,null,1180]
[null,null,null,null,null,null,null,1181]
[null,null,null,null,null,null,null,1182]
[null,null,null,null,null,null,null,1183]
[null,null,null,null,null,null,null,1184]
[null,null,null,null,null,null,null,1185]
[null,null,null,null,null,null,null,1186]
[null,null,null,null,null,null,null,1187]
[null,null,null,null,null,null,null,1188]
[null,null,null,null,null,null,null,1189]
[null,null,null,null,null,null,null,1190]
[null,null,null,null,null,null,null,1191]
[null,null,null,null,null,null,null,1192]
[null,null,null,null,null,null,null,1193,null,null,null,null,null,null,null,null,null,null,null,null,null,null,null,null,null,null,null,null,null,null,null,null,null,null,null,null,null,null,null,null,null,null,null,null,null,null,null,null,null,null,null,null,null,null,null,null,null,null,null,null,null,null,null,null,null,null,null,null,null,null,null,null,null,null,null,null,null,null,null,null,null,null,null,null,null,null,null,null,null,null,null,null,null,null,null,null,null,null,null,null,null,null,null,null,null,null,null,null,null,null,null,null,null,null,null,null,null,null,null,null,null,"Page  53"]
[null,null,null,null,null,null,null,1194]
[null,null,null,null,null,null,null,1195]
[null,null,null,null,null,null,null,1196]
[null,null,null,null,null,null,null,1197]
[null,null,null,null,null,null,null,1198]
[null,null,null,null,null,null,null,1199]
[null,null,null,null,null,null,null,1200]
[null,null,null,null,null,null,null,1201]
[null,null,null,null,null,null,null,1202]
[null,null,null,null,null,null,null,1203]
[null,null,null,null,null,null,null,1204]
[null,null,null,null,null,null,null,1205]
[null,null,null,null,null,null,null,1206]
[null,null,null,null,null,null,null,1207]
[null,null,null,null,null,null,null,1208]
[null,null,null,null,null,null,null,1209]
[null,null,null,null,null,null,null,1210]
[null,null,null,null,null,null,null,1211]
[null,null,null,null,null,null,null,1212]
[null,null,null,null,null,null,null,1213]
[null,null,null,null,null,null,null,1214]
[null,null,null,null,null,null,null,1215]
[null,null,null,null,null,null,null,1216,null,null,null,null,null,null,null,null,null,null,null,null,null,null,null,null,null,null,null,null,null,null,null,null,null,null,null,null,null,null,null,null,null,null,null,null,null,null,null,null,null,null,null,null,null,null,null,null,null,null,null,null,null,null,null,null,null,null,null,null,null,null,null,null,null,null,null,null,null,null,null,null,null,null,null,null,null,null,null,null,null,null,null,null,null,null,null,null,null,null,null,null,null,null,null,null,null,null,null,null,null,null,null,null,null,null,null,null,null,null,null,null,null,"Page  54"]
[null,null,null,null,null,null,null,1217]
[null,null,null,null,null,null,null,1218]
[null,null,null,null,null,null,null,1219]
[null,null,null,null,null,null,null,1220]
[null,null,null,null,null,null,null,1221]
[null,null,null,null,null,null,null,1222]
[null,null,null,null,null,null,null,1223]
[null,null,null,null,null,null,null,1224]
[null,null,null,null,null,null,null,1225]
[null,null,null,null,null,null,null,1226]
[null,null,null,null,null,null,null,1227]
[null,null,null,null,null,null,null,1228]
[null,null,null,null,null,null,null,1229]
[null,null,null,null,null,null,null,1230]
[null,null,null,null,null,null,null,1231]
[null,null,null,null,null,null,null,1232]
[null,null,null,null,null,null,null,1233]
[null,null,null,null,null,null,null,1234]
[null,null,null,null,null,null,null,1235]
[null,null,null,null,null,null,null,1236]
[null,null,null,null,null,null,null,1237]
[null,null,null,null,null,null,null,1238]
[null,null,null,null,null,null,null,1239,null,null,null,null,null,null,null,null,null,null,null,null,null,null,null,null,null,null,null,null,null,null,null,null,null,null,null,null,null,null,null,null,null,null,null,null,null,null,null,null,null,null,null,null,null,null,null,null,null,null,null,null,null,null,null,null,null,null,null,null,null,null,null,null,null,null,null,null,null,null,null,null,null,null,null,null,null,null,null,null,null,null,null,null,null,null,null,null,null,null,null,null,null,null,null,null,null,null,null,null,null,null,null,null,null,null,null,null,null,null,null,null,null,"Page  55"]
[null,null,null,null,null,null,null,1240]
[null,null,null,null,null,null,null,1241]
[null,null,null,null,null,null,null,1242]
[null,null,null,null,null,null,null,1243]
[null,null,null,null,null,null,null,1244]
[null,null,null,null,null,null,null,1245]
[null,null,null,null,null,null,null,1246]
[null,null,null,null,null,null,null,1247]
[null,null,null,null,null,null,null,1248]
[null,null,null,null,null,null,null,1249]
[null,null,null,null,null,null,null,1250]
[null,null,null,null,null,null,null,1251]
[null,null,null,null,null,null,null,1252]
[null,null,null,null,null,null,null,1253]
[null,null,null,null,null,null,null,1254]
[null,null,null,null,null,null,null,1255]
[null,null,null,null,null,null,null,1256]
[null,null,null,null,null,null,null,1257]
[null,null,null,null,null,null,null,1258]
[null,null,null,null,null,null,null,1259]
[null,null,null,null,null,null,null,1260]
[null,null,null,null,null,null,null,1261]
[null,null,null,null,null,null,null,1262,null,null,null,null,null,null,null,null,null,null,null,null,null,null,null,null,null,null,null,null,null,null,null,null,null,null,null,null,null,null,null,null,null,null,null,null,null,null,null,null,null,null,null,null,null,null,null,null,null,null,null,null,null,null,null,null,null,null,null,null,null,null,null,null,null,null,null,null,null,null,null,null,null,null,null,null,null,null,null,null,null,null,null,null,null,null,null,null,null,null,null,null,null,null,null,null,null,null,null,null,null,null,null,null,null,null,null,null,null,null,null,null,null,"Page  56"]
[null,null,null,null,null,null,null,1263]
[null,null,null,null,null,null,null,1264]
[null,null,null,null,null,null,null,1265]
[null,null,null,null,null,null,null,1266]
[null,null,null,null,null,null,null,1267]
[null,null,null,null,null,null,null,1268]
[null,null,null,null,null,null,null,1269]
[null,null,null,null,null,null,null,1270]
[null,null,null,null,null,null,null,1271]
[null,null,null,null,null,null,null,1272]
[null,null,null,null,null,null,null,1273]
[null,null,null,null,null,null,null,1274]
[null,null,null,null,null,null,null,1275]
[null,null,null,null,null,null,null,1276]
[null,null,null,null,null,null,null,1277]
[null,null,null,null,null,null,null,1278]
[null,null,null,null,null,null,null,1279]
[null,null,null,null,null,null,null,1280]
[null,null,null,null,null,null,null,1281]
[null,null,null,null,null,null,null,1282]
[null,null,null,null,null,null,null,1283]
[null,null,null,null,null,null,null,1284]
[null,null,null,null,null,null,null,1285,null,null,null,null,null,null,null,null,null,null,null,null,null,null,null,null,null,null,null,null,null,null,null,null,null,null,null,null,null,null,null,null,null,null,null,null,null,null,null,null,null,null,null,null,null,null,null,null,null,null,null,null,null,null,null,null,null,null,null,null,null,null,null,null,null,null,null,null,null,null,null,null,null,null,null,null,null,null,null,null,null,null,null,null,null,null,null,null,null,null,null,null,null,null,null,null,null,null,null,null,null,null,null,null,null,null,null,null,null,null,null,null,null,"Page  57"]
[null,null,null,null,null,null,null,1286]
[null,null,null,null,null,null,null,1287]
[null,null,null,null,null,null,null,1288]
[null,null,null,null,null,null,null,1289]
[null,null,null,null,null,null,null,1290]
[null,null,null,null,null,null,null,1291]
[null,null,null,null,null,null,null,1292]
[null,null,null,null,null,null,null,1293]
[null,null,null,null,null,null,null,1294]
[null,null,null,null,null,null,null,1295]
[null,null,null,null,null,null,null,1296]
[null,null,null,null,null,null,null,1297]
[null,null,null,null,null,null,null,1298]
[null,null,null,null,null,null,null,1299]
[null,null,null,null,null,null,null,1300]
[null,null,null,null,null,null,null,1301]
[null,null,null,null,null,null,null,1302]
[null,null,null,null,null,null,null,1303]
[null,null,null,null,null,null,null,1304]
[null,null,null,null,null,null,null,1305]
[null,null,null,null,null,null,null,1306]
[null,null,null,null,null,null,null,1307]
[null,null,null,null,null,null,null,1308,null,null,null,null,null,null,null,null,null,null,null,null,null,null,null,null,null,null,null,null,null,null,null,null,null,null,null,null,null,null,null,null,null,null,null,null,null,null,null,null,null,null,null,null,null,null,null,null,null,null,null,null,null,null,null,null,null,null,null,null,null,null,null,null,null,null,null,null,null,null,null,null,null,null,null,null,null,null,null,null,null,null,null,null,null,null,null,null,null,null,null,null,null,null,null,null,null,null,null,null,null,null,null,null,null,null,null,null,null,null,null,null,null,"Page  58"]
[null,null,null,null,null,null,null,1309]
[null,null,null,null,null,null,null,1310]
[null,null,null,null,null,null,null,1311]
[null,null,null,null,null,null,null,1312]
[null,null,null,null,null,null,null,1313]
[null,null,null,null,null,null,null,1314]
[null,null,null,null,null,null,null,1315]
[null,null,null,null,null,null,null,1316]
[null,null,null,null,null,null,null,1317]
[null,null,null,null,null,null,null,1318]
[null,null,null,null,null,null,null,1319]
[null,null,null,null,null,null,null,1320]
[null,null,null,null,null,null,null,1321]
[null,null,null,null,null,null,null,1322]
[null,null,null,null,null,null,null,1323]
[null,null,null,null,null,null,null,1324]
[null,null,null,null,null,null,null,1325]
[null,null,null,null,null,null,null,1326]
[null,null,null,null,null,null,null,1327]
[null,null,null,null,null,null,null,1328]
[null,null,null,null,null,null,null,1329]
[null,null,null,null,null,null,null,1330]
[null,null,null,null,null,null,null,1331,null,null,null,null,null,null,null,null,null,null,null,null,null,null,null,null,null,null,null,null,null,null,null,null,null,null,null,null,null,null,null,null,null,null,null,null,null,null,null,null,null,null,null,null,null,null,null,null,null,null,null,null,null,null,null,null,null,null,null,null,null,null,null,null,null,null,null,null,null,null,null,null,null,null,null,null,null,null,null,null,null,null,null,null,null,null,null,null,null,null,null,null,null,null,null,null,null,null,null,null,null,null,null,null,null,null,null,null,null,null,null,null,null,"Page  59"]
[null,null,null,null,null,null,null,1332]
[null,null,null,null,null,null,null,1333]
[null,null,null,null,null,null,null,1334]
[null,null,null,null,null,null,null,1335]
[null,null,null,null,null,null,null,1336]
[null,null,null,null,null,null,null,1337]
[null,null,null,null,null,null,null,1338]
[null,null,null,null,null,null,null,1339]
[null,null,null,null,null,null,null,1340]
[null,null,null,null,null,null,null,1341]
[null,null,null,null,null,null,null,1342]
[null,null,null,null,null,null,null,1343]
[null,null,null,null,null,null,null,1344]
[null,null,null,null,null,null,null,1345]
[null,null,null,null,null,null,null,1346]
[null,null,null,null,null,null,null,1347]
[null,null,null,null,null,null,null,1348]
[null,null,null,null,null,null,null,1349]
[null,null,null,null,null,null,null,1350]
[null,null,null,null,null,null,null,1351]
[null,null,null,null,null,null,null,1352]
[null,null,null,null,null,null,null,1353]
[null,null,null,null,null,null,null,1354,null,null,null,null,null,null,null,null,null,null,null,null,null,null,null,null,null,null,null,null,null,null,null,null,null,null,null,null,null,null,null,null,null,null,null,null,null,null,null,null,null,null,null,null,null,null,null,null,null,null,null,null,null,null,null,null,null,null,null,null,null,null,null,null,null,null,null,null,null,null,null,null,null,null,null,null,null,null,null,null,null,null,null,null,null,null,null,null,null,null,null,null,null,null,null,null,null,null,null,null,null,null,null,null,null,null,null,null,null,null,null,null,null,"Page  60"]
[null,null,null,null,null,null,null,1355]
[null,null,null,null,null,null,null,1356]
[null,null,null,null,null,null,null,1357]
[null,null,null,null,null,null,null,1358]
[null,null,null,null,null,null,null,1359]
[null,null,null,null,null,null,null,1360]
[null,null,null,null,null,null,null,1361]
[null,null,null,null,null,null,null,1362]
[null,null,null,null,null,null,null,1363]
[null,null,null,null,null,null,null,1364]
[null,null,null,null,null,null,null,1365]
[null,null,null,null,null,null,null,1366]
[null,null,null,null,null,null,null,1367]
[null,null,null,null,null,null,null,1368]
[null,null,null,null,null,null,null,1369]
[null,null,null,null,null,null,null,1370]
[null,null,null,null,null,null,null,1371]
[null,null,null,null,null,null,null,1372]
[null,null,null,null,null,null,null,1373]
[null,null,null,null,null,null,null,1374]
[null,null,null,null,null,null,null,1375]
[null,null,null,null,null,null,null,1376]
[null,null,null,null,null,null,null,1377,null,null,null,null,null,null,null,null,null,null,null,null,null,null,null,null,null,null,null,null,null,null,null,null,null,null,null,null,null,null,null,null,null,null,null,null,null,null,null,null,null,null,null,null,null,null,null,null,null,null,null,null,null,null,null,null,null,null,null,null,null,null,null,null,null,null,null,null,null,null,null,null,null,null,null,null,null,null,null,null,null,null,null,null,null,null,null,null,null,null,null,null,null,null,null,null,null,null,null,null,null,null,null,null,null,null,null,null,null,null,null,null,null,"Page  61"]
[null,null,null,null,null,null,null,1378]
[null,null,null,null,null,null,null,1379]
[null,null,null,null,null,null,null,1380]
[null,null,null,null,null,null,null,1381]
[null,null,null,null,null,null,null,1382]
[null,null,null,null,null,null,null,1383]
[null,null,null,null,null,null,null,1384]
[null,null,null,null,null,null,null,1385]
[null,null,null,null,null,null,null,1386]
[null,null,null,null,null,null,null,1387]
[null,null,null,null,null,null,null,1388]
[null,null,null,null,null,null,null,1389]
[null,null,null,null,null,null,null,1390]
[null,null,null,null,null,null,null,1391]
[null,null,null,null,null,null,null,1392]
[null,null,null,null,null,null,null,1393]
[null,null,null,null,null,null,null,1394]
[null,null,null,null,null,null,null,1395]
[null,null,null,null,null,null,null,1396]
[null,null,null,null,null,null,null,1397]
[null,null,null,null,null,null,null,1398]
[null,null,null,null,null,null,null,1399]
[null,null,null,null,null,null,null,1400,null,null,null,null,null,null,null,null,null,null,null,null,null,null,null,null,null,null,null,null,null,null,null,null,null,null,null,null,null,null,null,null,null,null,null,null,null,null,null,null,null,null,null,null,null,null,null,null,null,null,null,null,null,null,null,null,null,null,null,null,null,null,null,null,null,null,null,null,null,null,null,null,null,null,null,null,null,null,null,null,null,null,null,null,null,null,null,null,null,null,null,null,null,null,null,null,null,null,null,null,null,null,null,null,null,null,null,null,null,null,null,null,null,"Page  62"]
[null,null,null,null,null,null,null,1401]
[null,null,null,null,null,null,null,1402]
[null,null,null,null,null,null,null,1403]
[null,null,null,null,null,null,null,1404]
[null,null,null,null,null,null,null,1405]
[null,null,null,null,null,null,null,1406]
[null,null,null,null,null,null,null,1407]
[null,null,null,null,null,null,null,1408]
[null,null,null,null,null,null,null,1409]
[null,null,null,null,null,null,null,1410]
[null,null,null,null,null,null,null,1411]
[null,null,null,null,null,null,null,1412]
[null,null,null,null,null,null,null,1413]
[null,null,null,null,null,null,null,1414]
[null,null,null,null,null,null,null,1415]
[null,null,null,null,null,null,null,1416]
[null,null,null,null,null,null,null,1417]
[null,null,null,null,null,null,null,1418]
[null,null,null,null,null,null,null,1419]
[null,null,null,null,null,null,null,1420]
[null,null,null,null,null,null,null,1421]
[null,null,null,null,null,null,null,1422]
[null,null,null,null,null,null,null,1423,null,null,null,null,null,null,null,null,null,null,null,null,null,null,null,null,null,null,null,null,null,null,null,null,null,null,null,null,null,null,null,null,null,null,null,null,null,null,null,null,null,null,null,null,null,null,null,null,null,null,null,null,null,null,null,null,null,null,null,null,null,null,null,null,null,null,null,null,null,null,null,null,null,null,null,null,null,null,null,null,null,null,null,null,null,null,null,null,null,null,null,null,null,null,null,null,null,null,null,null,null,null,null,null,null,null,null,null,null,null,null,null,null,"Page  63"]
[null,null,null,null,null,null,null,1424]
[null,null,null,null,null,null,null,1425]
[null,null,null,null,null,null,null,1426]
[null,null,null,null,null,null,null,1427]
[null,null,null,null,null,null,null,1428]
[null,null,null,null,null,null,null,1429]
[null,null,null,null,null,null,null,1430]
[null,null,null,null,null,null,null,1431]
[null,null,null,null,null,null,null,1432]
[null,null,null,null,null,null,null,1433]
[null,null,null,null,null,null,null,1434]
[null,null,null,null,null,null,null,1435]
[null,null,null,null,null,null,null,1436]
[null,null,null,null,null,null,null,1437]
[null,null,null,null,null,null,null,1438]
[null,null,null,null,null,null,null,1439]
[null,null,null,null,null,null,null,1440]
[null,null,null,null,null,null,null,1441]
[null,null,null,null,null,null,null,1442]
[null,null,null,null,null,null,null,1443]
[null,null,null,null,null,null,null,1444]
[null,null,null,null,null,null,null,1445]
[null,null,null,null,null,null,null,1446,null,null,null,null,null,null,null,null,null,null,null,null,null,null,null,null,null,null,null,null,null,null,null,null,null,null,null,null,null,null,null,null,null,null,null,null,null,null,null,null,null,null,null,null,null,null,null,null,null,null,null,null,null,null,null,null,null,null,null,null,null,null,null,null,null,null,null,null,null,null,null,null,null,null,null,null,null,null,null,null,null,null,null,null,null,null,null,null,null,null,null,null,null,null,null,null,null,null,null,null,null,null,null,null,null,null,null,null,null,null,null,null,null,"Page  64"]
[null,null,null,null,null,null,null,1447]
[null,null,null,null,null,null,null,1448]
[null,null,null,null,null,null,null,1449]
[null,null,null,null,null,null,null,1450]
[null,null,null,null,null,null,null,1451]
[null,null,null,null,null,null,null,1452]
[null,null,null,null,null,null,null,1453]
[null,null,null,null,null,null,null,1454]
[null,null,null,null,null,null,null,1455]
[null,null,null,null,null,null,null,1456]
[null,null,null,null,null,null,null,1457]
[null,null,null,null,null,null,null,1458]
[null,null,null,null,null,null,null,1459]
[null,null,null,null,null,null,null,1460]
[null,null,null,null,null,null,null,1461]
[null,null,null,null,null,null,null,1462]
[null,null,null,null,null,null,null,1463]
[null,null,null,null,null,null,null,1464]
[null,null,null,null,null,null,null,1465]
[null,null,null,null,null,null,null,1466]
[null,null,null,null,null,null,null,1467]
[null,null,null,null,null,null,null,1468]
[null,null,null,null,null,null,null,1469,null,null,null,null,null,null,null,null,null,null,null,null,null,null,null,null,null,null,null,null,null,null,null,null,null,null,null,null,null,null,null,null,null,null,null,null,null,null,null,null,null,null,null,null,null,null,null,null,null,null,null,null,null,null,null,null,null,null,null,null,null,null,null,null,null,null,null,null,null,null,null,null,null,null,null,null,null,null,null,null,null,null,null,null,null,null,null,null,null,null,null,null,null,null,null,null,null,null,null,null,null,null,null,null,null,null,null,null,null,null,null,null,null,"Page  65"]
[null,null,null,null,null,null,null,1470]
[null,null,null,null,null,null,null,1471]
[null,null,null,null,null,null,null,1472]
[null,null,null,null,null,null,null,1473]
[null,null,null,null,null,null,null,1474]
[null,null,null,null,null,null,null,1475]
[null,null,null,null,null,null,null,1476]
[null,null,null,null,null,null,null,1477]
[null,null,null,null,null,null,null,1478]
[null,null,null,null,null,null,null,1479]
[null,null,null,null,null,null,null,1480]
[null,null,null,null,null,null,null,1481]
[null,null,null,null,null,null,null,1482]
[null,null,null,null,null,null,null,1483]
[null,null,null,null,null,null,null,1484]
[null,null,null,null,null,null,null,1485]
[null,null,null,null,null,null,null,1486]
[null,null,null,null,null,null,null,1487]
[null,null,null,null,null,null,null,1488]
[null,null,null,null,null,null,null,1489]
[null,null,null,null,null,null,null,1490]
[null,null,null,null,null,null,null,1491]
[null,null,null,null,null,null,null,1492,null,null,null,null,null,null,null,null,null,null,null,null,null,null,null,null,null,null,null,null,null,null,null,null,null,null,null,null,null,null,null,null,null,null,null,null,null,null,null,null,null,null,null,null,null,null,null,null,null,null,null,null,null,null,null,null,null,null,null,null,null,null,null,null,null,null,null,null,null,null,null,null,null,null,null,null,null,null,null,null,null,null,null,null,null,null,null,null,null,null,null,null,null,null,null,null,null,null,null,null,null,null,null,null,null,null,null,null,null,null,null,null,null,"Page  66"]
[null,null,null,null,null,null,null,1493]
[null,null,null,null,null,null,null,1494]
[null,null,null,null,null,null,null,1495]
[null,null,null,null,null,null,null,1496]
[null,null,null,null,null,null,null,1497]
[null,null,null,null,null,null,null,1498]
[null,null,null,null,null,null,null,1499]
[null,null,null,null,null,null,null,1500]
[]
[null,null,null,null,null,null,null,null,"END OF DOCUMENT"]

{"sheet":"Validation","index":5,"n_rows":152,"n_cols":8,"rows_kept":152,"cut":false,"hidden":true,"merged":[[156,1,156,2],[14,7,15,7],[152,1,152,2],[153,1,153,2],[154,1,154,2],[155,1,155,2]]}
["Select Option",null,null,"Yes","Non-Profit Organization",null,"Match Leverage"]
["Original",null,null,"No","Faith-Based Organization",null,"Select Option"]
["Revised",null,null,null,"Institution of Higher Education","L000-Local Other","F000-Federal Other"]
["Cancelled",null,null,null,null,"L110-Staff Time","F100-Federal HUD"]
[null,null,null,null,null,"L120-Local-in-Kind","F200-Federal SBA"]
["FY 14/15",null,null,null,null,"L130-Local Land","F300-Federal EDA"]
["FY 15/16",null,null,"National Objective",null,"L200-Local Fees","F400-Federal USDA"]
["FY 16/17",null,null,"Select Option",null,"L210-Local Fee Waivers","F500-Federal FEMA"]
["FY 17/18",null,null,"LMA - Low/Mod area benefit",null,"L220-Local Audit","F600-Federal Housing Tax Credits"]
["FY 18/19",null,null,"LMC - Low/Mod limited clientele benefit",null,"L300-Local","L000-Local Other"]
["FY 19/20",null,null,"LMH - Low/Mod housing benefit",null,"L310-PTA Cash Match","L001-Local No Match Required"]
["FY 20/21",null,null,"URG - Urgent Need (requires department approval)",null,"L600-Local RDA","L110-Staff Time"]
["FY 21/22",null,null,null,null,"P000 Private Other","L120-Local-in-Kind"]
["FY 22/23",null,null,null,null,"P100-Private Equity","L130-Local Land Contribution"]
["FY 23/24",null,null,null,"14H Rehabilitation Administration","P110-Private Sweat Equity","L200-Local Fee Waiver","What's the difference?"]
["FY 24/25",null,null,null,null,"P120-Private-in-Kind","L210-Local Fee Waivers"]
[null,null,null,null,null,"P200-Private Fees","L220-Local Audit"]
[null,null,null,null,"Grant","P320-Private Financing","L300-Local Funds"]
[null,null,null,null,"Loan","P900-Private Volunteer Time","L310-PTA Cash Match General"]
[null,null,null,null,"Grant and Loan","F000-State Other","L311-PTA Cash Match ED"]
[null,null,null,"Business Type",null,"S200-State Tax Credits","L320-PTA Private Financing"]
[null,null,null,"Select Option","Select Option",null,"L330-Bonds"]
[null,null,null,"None ","11 - White",null,"L400-Goods and Services Incl."]
[null,null,null,"New","12 - Black/African American ",null,"L500-Gas Tax"]
[null,null,null,"Existing","13 - Asian","-CDBG-","L600-Local RDA"]
[null,null,null,null,"14 - American Indian/ Alaskan Native ",null,"L601-Local RDA"]
[null,null,null,null,"15 - Native Hawaiian/ Other Pacific Islander",null,"L602-Waived Interest/ Fin'e Chg"]
[null,null,null,null,"16 - Am. Indian/Alaskan Native & White ",null,"P000 Private Other"]
[null,null,null,null,"17 - Asian & White ",null,"P100-Private Equity","Delete \"Equity\"?"]
[null,null,null,null,"18 - Black/African Am. & White",null,"P110-Private Sweat Equity"]
[null,null,null,null,"19 - Am. Indian/Alaskan & Blk/African ",null,"P120-Private-in-Kind"]
[null,null,null,null,"20 - Other Multi-Racial ",null,"P130-Private-Equity in Land/ Improve"]
[null,null,null,null,null,null,"P200-Private Fees"]
[null,null,null,null,"Income Level","Accomplishment Type","P210-Private Fee Waivers"]
[null,null,null,null,"Select Option","Select Option","P220-Private Discounts"]
[null,null,null,null,"Extremely Low ( ≤ 30%)","01 - People (General)","P300-Private Funds"]
[null,null,null,null,"Low (31-50%)","04 - Households","P310-Private Cash Match"]
[null,null,null,null,"Moderate (51-80%)","08 - Businesses","P320-Private Financing"]
[null,null,null,null,"Non-Low/ Moderate (+80%)","09 - Organizations","P330-Private Loans"]
[null,null,null,null,null,"10 - Housing Units","P340-Private Banks"]
[null,null,null,null,"Select Option",null,"P350-Private EDC"]
[null,null,null,null,"Housing constructed before 1978",null,"P400-Private Good and Services"]
[null,null,null,null,"*Exempt: Housing constructed in 1978/ later",null,"P500-Private Tax Credit Equity"]
[null,null,null,null,"Exempt: No paint disturbed",null,"P600-Private Foundation/ Nonprofit G","G?"]
[null,null,null,null,"Otherwise exempt",null,"P900-Private Volunteer Time"]
[null,null,null,null,null,null,"S000-State Other"]
[null,null,null,null,"Select Option",null,"S100-State HCD"]
[null,null,null,null,"Lead Safe Work Practices (24 CFR 35.930(b)) (Hard cost < or = to $5,000)",null,"S200-State Treasurer Tax Credits-MC"]
[null,null,null,null,"Interim Controls/ Standard Practices (24 CFR 35.930(c)) (Hard cost $5,000-$25,000)",null,"S300-State SWRCB"]
[null,null,null,null,"Abatement (24 CFR 35.930(d)) (Hard cost > $25,000)",null,"S400-State CalHFA (CHFA)"]
[null,null,null,null,"N/A",null,"S500-State CSD"]
[]
[null,null,null,"Select Option"]
[null,null,null,"A 105 (a) (15) entity as defined under the HD Act",null,null,"Program Income"]
[null,null,null,"A 501 ( c ) 3"]
[null,null,null,"Another unit of local government",null,null,"PINC-Local Program Income"]
[null,null,null,"Another public agency"]
[null,null,null,"Select Option",null,"Occupancy","Loan/ Grant"]
[null,null,null,"Subrecipient",null,"Select Option"]
[null,null,null,"Admin Contractor/Program Operator",null,"Owner","CDBG (Grant)"]
[null,null,null,"Jurisdiction Staff",null,"Tenant","CDBG (Loan)"]
[]
[]
[null,null,null,"Program Income",null,"# of Bedrooms"]
[null,null,null,"Revolving Loan Fund",null,"Select Option"]
[null,null,null,null,null,1]
[null,null,null,null,null,2]
[null,null,null,null,null,3]
[null,null,null,"Loan Type",null,4,"General Admin."]
[null,null,null,"Select Option",null,"5 or More"]
[null,null,null,"Amortized",null,null,"(21A) General Administration"]
[null,null,null,"Deferred"]
[null,null,null,"Amortized / Forgivable",null,"Yes/ No","Yes/ No","Yes"]
[null,null,null,"Deferred / Forgivable",null,"Select Option"]
[null,null,null,null,null,"No","No","Yes"]
[null,null,"Select Option",null,null,"Yes","Yes*"]
[null,null,"New"]
[null,null,"Improved",null,null,"# Persons","No"]
[null,null,"No Longer Substandard",null,null,"Select Option","Yes**"]
[null,null,null,null,null,1]
[null,null,null,null,null,2,"Activity Delivery"]
[null,null,"Select Option",null,null,3]
[null,null,"Abused Children","Extremely Low Income",null,4,"Activity Delivery"]
[null,null,"Battered Spouses","Low Income",null,5]
[null,null,"Severely Disable Adults","Low Income",null,6,"Type of Household"]
[null,null,"Homeless Persons","Extremely Low Income",null,7,"Select Option"]
[null,null,"Persons With AIDS","Low Income",null,8,"Single/ Non-Elderly"]
[null,null,"Migrant Farm Workers","Low Income",null,"Vac","Elderly"]
[null,null,"Illiterate Adults","Low Income",null,null,"Related/ Single Parent"]
[null,null,"Elderly","If assistance is to acquire, construct, convert, and/or rehabilitate a senior center or to pay for providing center-based senior services, report the beneficiaries as moderate income.\nIf assistance is for other services (not center-based), report the elderly beneficiaries as low income.",null,null,"Related/Two Parent"]
[null,null,null,null,null,null,"Other"]
[]
[null,"County Code",null,"Activity Matrix Code",null,null,"Rental Assistance"]
[null,"Select Option",null,"Select Option",null,null,"Select Option"]
[null,"001 Alameda",null,"03T - Operating Cost of Homeless/AIDS Patient Programs",null,null,"HOME TBRA"]
[null,"003 Alpine",null,"05 - Other Public Services",null,null,"Sect. 8"]
[null,"005 Amador",null,"05A - Senior Services",null,null,"Other"]
[null,"007 Butte",null,"05B - Handicapped Services",null,null,"None"]
[null,"009 Calaveras",null,"05C - Legal Services",null,null,"Vacant"]
[null,"011 Colusa",null,"05D - Youth Services",null,null,"Project Based"]
[null,"013 Contra Costa",null,"05E - Transportation Services"]
[null,"015 Del Norte",null,"05F - Substance Abuse Services"]
[null,"017 El Dorado",null,"05G - Services for Battered and Abused Spouses"]
[null,"019 Fresno",null,"05H - Employment Training"]
[null,"021 Glenn",null,"05I - Crime Awareness/Prevention"]
[null,"023 Humboldt",null,"05J - Fair Housing Activities (subject to Public Services cap)"]
[null,"025 Imperial",null,"05K - Tenat/Landlord Counseling"]
[null,"027 Inyo",null,"05L - Child Care Services"]
[null,"029 Kern",null,"05M - Health Services"]
[null,"031 Kings",null,"05N - Services for Abused and Neglected Children"]
[null,"033 Lake",null,"05O - Mental Health Services"]
[null,"035 Lassen",null,"05P - Screening for Lead Based Paint/Lead Hazards"]
[null,"037 Los Angeles",null,"05Q - Subsistence Payments"]
[null,"039 Madera",null,"05R - Homeownership Assistance (not direct)"]
[null,"041 Marin",null,"05S - Rental Housing Subsidies"]
[null,"043 Mariposa",null,"05T - Security Deposits"]
[null,"045 Mendocino",null,"05U - Housing Counseling"]
[null,"047 Merced",null,"05V - Neighborhood Cleanups"]
[null,"049 Modoc",null,"05W - Food Banks"]
[null,"051 Mono",null,"15 - Code Enforcement"]
[null,"053 Monterey"]
[null,"055 Napa"]
[null,"057 Nevada"]
[null,"059 Orange"]
[null,"061 Placer"]
[null,"063 Plumas"]
[null,"065 Riverside"]
[null,"067 Sacramento"]
[null,"069 San Benito"]
[null,"071 San Bernardino"]
[null,"073 San Diego"]
[null,"075 San Francisco"]
[null,"077 San Joaquin"]
[null,"079 San Luis Obispo"]
[null,"081 San Mateo"]
[null,"083 Santa Barbara"]
[null,"085 Santa Clara"]
[null,"087 Santa Cruz"]
[null,"089 Shasta"]
[null,"091 Sierra"]
[null,"093 Siskiyou"]
[null,"095 Solano"]
[null,"097 Sonoma"]
[null,"099 Stanislaus"]
[null,"101 Sutter"]
[null,"103 Tehama"]
[null,"105 Trinity"]
[null,"107 Tulare"]
[null,"109 Tuolumne"]
[null,"111 Ventura"]
[null,"113 Yolo"]
[null,"115 Yuba"]

{"sheet":"Data Validation","index":6,"n_rows":12,"n_cols":9,"rows_kept":12,"cut":false,"hidden":true,"merged":[]}
[]
["Category1",null,null,null,null,null,null,null,"SELECT OPTION"]
["A 105 (a) (15) entity as defined under the Housing & Development Act",null,null,null,null,null,null,null,"White "]
["Another unit of local Government",null,null,null,null,null,null,null,"Black/African American "]
["Another public Agency",null,null,null,null,null,null,null,"Asian "]
[null,null,null,null,null,null,null,null,"American Indian/Alaskan Native "]
[null,null,null,null,null,null,null,null,"Native Hawaiian/Other Pacific Isl. "]
["SELECT OPTION",null,null,null,null,null,null,null,"Am. Indian/Alaskan Native & White "]
[null,null,null,null,null,null,null,null,"Asian & White "]
[null,null,null,null,null,null,null,null,"Black/African Am. & White "]
[null,null,null,null,null,null,null,null,"Am. Indian/Alaskan & Blk/African "]
[null,null,null,null,null,null,null,null,"Other Multi-Racial "]